{"text_format":"2","workbook":"xlsx","n_sheets":4,"sheets":["작업","결함 우선순위_CS","Sheet2","플랜 이름"],"not_rendered":{"charts":0,"images":0,"macros":0,"external_links":0,"defined_names":2,"comments":0,"pivot_tables":0},"unopened":[],"bounds":{"document_bytes":16777216,"sheet_cells":100000,"run_cost":"one","rows_first":2000,"rows_last":500,"rows_between":2000,"halvings":0,"cell_chars":16384,"cell_head_chars":4096},"cells_cut":0,"cells_raw":0,"read":"whole","date_system":"1900"}

{"sheet":"작업","index":0,"n_rows":428,"n_cols":25,"rows_kept":428,"cut":false,"hidden":false,"merged":[]}
["순번","작업 ID","URL","구분","작업 이름","담당","작업 담당","업무범위","버킷 이름","진행률","우선 순위","할당 대상","작성자","만든 날짜","시작 날짜","기한","지연","완료된 날짜","작성자","설명","완료된 체크리스트 항목","체크리스트 항목","레이블","예상일정","TSIT 의견"]
[1,"8NVPF25-5EuNUdgCCJx0gckAHVSI",{"$f":"$A$1&B2","v":"순번8NVPF25-5EuNUdgCCJx0gckAHVSI"},"BOS > 1:1문의","[CS개선][고객센터]1:1문의관리 > 처리상태 미구현/Front 템플릿미구현\n - 주문번호 등 선택 입력 필요","정지혜","TSIT","단위업무","CS개선","시작되지 않음","상","","정 지혜","2021.10.12.","","","false","","","bos > 1:1문의관리의 처리 상태가 처음 등록, 담당자 배정시 처리중\n, 완료 시 완료로 처리되어야 하나상태값 업데이트가 되지 않고있음\n\n> 설계 서 내 Front 템플릿 부분 작업 미진","","기획완료. 개발홀딩","","분석","1:1 문의 개발 관련 내용 분석 후 개발 일정 산정 가능"]
[2,"it1YWe4hWEuZ24gaMOMfkskAH5jn","순번it1YWe4hWEuZ24gaMOMfkskAH5jn","BOS > WMS회수관리","[CS개선][WMS회수관리] 목록/검색조건 > 제휴몰별 검색조건추가",null,"TSIT","운영","CS개선","시작되지 않음","상","","정 지혜","2021.10.12.","","","false","","","제휴몰 구분값 추가 필요\n\n- WMS 에 데이터가 있는 상태임, 싱크드 맞추어 추가 필요","","","","분석","해당 내용에 대한 정확한 업무 요건 분석 필요"]
[3,"UIj5SLqagkGFizazhBcKJckAC4FT","순번UIj5SLqagkGFizazhBcKJckAC4FT","BOS > 공통","[CS개선][BOS공통] 모달팝업/레이어팝업을 변경하고싶음\n - 일반 팝업으로 변경 필요 - 팝업내역 확인 후",null,"TSIT","단위업무","CS개선","시작되지 않음","중","","정 지혜","2021.09.10.","","","false","","","팝업페이지가 너무 작고, 움직일수 있으면 좋겠음 -> 레이어가 아니라 일반팜업으로 하면 안되는지","","","","분석","1. 일반팝업 가능여부 확인\n2. 업무범위 확인 후 일정 산정 가능\n=> 일반(모달리스 팝업)으로 변경하는 작업은 오래 걸림으로 일단 팝업을 이동할 수 있게끔 처리하는 것으로 요건 변경하면 좋겠습니다."]
[4,"a8lBtyJLQUuIsh1zAXsAwskAEtN-",{"$f":"$A$1&B5","v":"순번a8lBtyJLQUuIsh1zAXsAwskAEtN-"},"BOS > 교환상세\nBOS > 반품상세\nBOS > 취소상세\nBOS > 환불컨펌","[개선] 회수 상품 정보쪽 주문 쪽에 있는 상품 가격, 판매금액, 포인트 등의 정보 노출바람",null,"TSIT","단위업무","CS개선","시작되지 않음","중상","","정 지혜","2021.09.10.","","","false","","","","","","","분석","해당 내용에 대한 정확한 업무 요건 분석 필요"]
[5,"-iwV9-KyK0ii3XV5Ub2LGskAFq_U","순번-iwV9-KyK0ii3XV5Ub2LGskAFq_U","BOS > 교환상세\nBOS > 반품상세\nBOS > 취소상세\nBOS > 환불컨펌","[CS개선][클레임] 취소/교환/반품에 메모수정/메모이력 필요",null,"TSIT","운영","CS개선","시작되지 않음","하","","정 지혜","2021.09.10.","","","false","","","반품 / 교환 요청시 등록된 메모 수정 또는 추가 기록이 가능하면 좋을 것 같습니다 . 예를 들어 아래 전산 화면의 경우 배송비 착불 2500원 입금 내용으로  메모가 기록 되어 있습니다.  배송비를 입금 했을 경우 배송비 입금한 내역을 수정 및 추가 기록시 환불처리를 바로 할수 있을 것 같습니다.  ( 배송비가 입금되지 않을경우 환불처리에서 지연됨 )\n\n--> 메모창이 작아서 메모창도 키워주세요.","","","","5d"]
[6,"FNnesy0QS0Cl_FlDOde4_MkAA1NL","순번FNnesy0QS0Cl_FlDOde4_MkAA1NL","BOS > 교환상세\nBOS > 반품상세\nBOS > 취소상세\nBOS > 환불컨펌","[CS개선][클레임] 교환/반품요청의 메모창 팝업으로 노출\n - 별도 메모창 추가 필요",null,"TSIT","단위업무","CS개선","시작되지 않음","하","","정 지혜","2021.09.10.","","","false","","","","","","","분석","1. 일반팝업 가능여부 확인\n2. 업무범위 확인 후 일정 산정 가능"]
[7,"UJZ-SKqQgki88Wj5scCo3MkAFyiC","순번UJZ-SKqQgki88Wj5scCo3MkAFyiC","BOS > 교환출고미출고대상","[CS개선][제휴몰] 제휴몰주문번호 검색 / 제휴몰 목록셀렉트박스 추가",null,"TSIT","운영 (2번 병행)","CS개선","시작되지 않음",null,"","정 지혜","2021.09.16.","","","false","","","제휴몰 주문 검색/ 제휴몰 목록 소팅 검색항목 모두 추가.\n 제휴몰 구분, 제휴몰 주문번호 항목 추가/검색옵션추가\n\n배송관리 \n>  출고처지정관리  \n> 교환배송미출고대상 \n\n주문배송 \n> 주문목록\n\n회수관리 \n> 회수지시 목록 \n> wms 회수목록 (WMS db 바라보는부분은 이슈가있음)\n> wms회수예외관리 (WMS db 바라보는부분은 이슈가있음)\n> 환불관리\n\n--> 외부몰 주문번호, 쇼핑몰주문번호 라고 명시되있는것도 다 제휴몰 주문번호로 통일","","","","분석","제휴몰 주문검색 기능 화면의 외부몰 데이터 존재 유무 확인"]
[8,"8E_yaP5DskqWcoM0TEiEVMkAAB-c","순번8E_yaP5DskqWcoM0TEiEVMkAAB-c","BOS > 배송목록","[CS개선][BOS][배송] 주문> 배송목록 > 목록내  제휴주문번호 표기\n - 목록 횡스크롤 불편, 상세 미노출, 배송목록 미노출",null,"TSIT","운영","CS개선","시작되지 않음","상","","정 지혜","2021.10.12.","","","false","","","배송목록 내역에 제휴주문번호 표기","","","","완료"]
[9,"Pk6XnQ_9E0KodpMMhlptF8kAPhl9",null,"BOS > 샵링커송장전송관리","[CS개선][제휴몰] 샵링커송장전송관리 > 목록 > 제휴몰 명 노출",null,null,"완료","CS개선","완료됨","중간","조 민혜","정 지혜","2021.10.12.","","2021.10.18.","false","","","샵링커송장전송관리 > 목록 > 제휴몰 명 노출\n엑셀리스트에 제휴몰명 노출","","",""]
[10,"a2nBrwv-3UOkXzHDJaPs7ckACgbh",{"$f":"$A$1&B11","v":"순번a2nBrwv-3UOkXzHDJaPs7ckACgbh"},"BOS > 샵링커주문수집관리","[CS개선][제휴몰] 샵링커주문수집관리 > 미할당주문 메모\n - 미할당 메모 추가",null,"TSIT","분석필요","CS개선","시작되지 않음","최상","","정 지혜","2021.09.29.","","","false","","","설계 전까지는 샵링커 주문수집관리 > 그리드에 실패사유 입력할수 있도록 추가(wms 회수관리처럼)","","","","분석","전체 업무 분석"]
[11,"BC6kLhS_gUm1zPr5VLMmwskACmK2","순번BC6kLhS_gUm1zPr5VLMmwskACmK2","BOS > 제휴몰주문업로드","[CS개선][제휴몰] 제휴몰주문업로드/자동주문수집>주문생성시 상품> SKU코드기준으로 처리",null,"TSIT","진행중","CS개선","진행 중","중간","조 민혜","정 지혜","2021.10.12.","","2021.10.15.","true","","","상품의 코드가 없이도 SkU코드 기준으로만 처리한다.","","","","완료"]
[12,"F3Ng0N1syEiU57ubCTs3MskAKyHv","순번F3Ng0N1syEiU57ubCTs3MskAKyHv","BOS > 제휴몰주문업로드","[CS개선][제휴몰] 수동 업로드 화면 초기화 기능 - 초기화 버튼 추가",null,"TSIT","운영","CS개선","시작되지 않음","하","","정 지혜","2021.10.07.","","","false","","","안녕하세요 고객만족팀 김은주입니다. \n\n미팅 진행때  말씀드린 수동 업로드 관련하여 \n내용을 다시 한번 전달 드립니다. \n\n제휴몰 주문업르도 화면에서 보이는 것 처럼 \n화면에 아무런 주문 내용이 없는 상태에서도 주문 수집 을 누르게 되면 이전 주문내역을 인식하고 주문수집\n이 됩니다.\n이후 샵링커 주문시집관리에서  내역에서 확인시 모두 실패로 확인이 됩니다. \n초기화 버튼을 생성이후에는 \n말씀드린 것처럼 화면에 등록된 내용이 없을 경우에 \n주문 수집이 되지 않도록 처리 부탁드립니다.","","","","4d"]
[13,"R9kzcJXdKE2ycLRf3T7PZ8kACLlH","순번R9kzcJXdKE2ycLRf3T7PZ8kACLlH","BOS > 주문목록","[CS개선][주문목록] 상품별 주문이력 에 총알배송여부 노출\n - 주문목록, 주문상세 총알배송 여부 표기 필요",null,"패션개발팀","운영","CS개선","시작되지 않음","하","","정 지혜","2021.10.12.","","","false","","","주문목록 > 주문상세 > 주문상품정보 제일마지막에 표기","","",""]
[14,"S-DxXXRuBEyJq5uejilxOskAA5xl","순번S-DxXXRuBEyJq5uejilxOskAA5xl","BOS > 주문상세","[CS개선][주문상세] 주문상세 합산내역에서 쿠폰 내역 확인하도록 UI개선",null,"패션개발팀","운영 (5번 병행)","CS개선","시작되지 않음",null,"","정 지혜","2021.10.12.","","","false","","","> 화면 정리 후 진행 필요함.","","",""]
[15,"77gVJUrUCkOKkayTPXSsvckAJR6T","순번77gVJUrUCkOKkayTPXSsvckAJR6T","BOS > 주문상세","[CS개선][주문상세] 상품목록>입점업체정보>CS담당자 대표번호추가",null,"패션개발팀","운영","CS개선","시작되지 않음","하","","정 지혜","2021.10.12.","","","false","","","해당 업체 명으로 관련 업체정보 내용은 오픈 했으나\n주문 상세 내 CS 대표 번호 추가","","",""]
[16,"v1ablSaY0EaLv7s7HfqzPckAOSlm","순번v1ablSaY0EaLv7s7HfqzPckAOSlm","BOS > 주문상세","[CS개선][주문상세] 회원기본정보영역 정보 위치 변경",null,"패션개발팀","운영","CS개선","시작되지 않음","하","","정 지혜","2021.10.12.","","","false","","","기본정보 \n[현재]사이트 / 몰구분/웹구분/외부몰/주문일시/주문자/고객번호/주문번호~\n[변경] 사이트 / 몰구분/웹구분/외부몰/주문일시/주문자/주문번호/고객번호 순으로 변경\n고객번호가 중간에 있어 불편","","",""]
[17,"EikpsTnQOE-o99wR0QlNxskAFGrm","순번EikpsTnQOE-o99wR0QlNxskAFGrm","BOS > 주문상세","[CS개선][제휴몰]제휴몰주문 미할당 된 상품 표시관련건(Skucode)",null,"패션개발팀","단위업무","CS개선","시작되지 않음","중상","","정 지혜","2021.09.23.","","","false","","","19899568_\n 미할당된 주문 내역 노출될때, 미할당된 skucode는 찍을수 없는지 확인","","",""]
[18,"ypG7DEFMB0aTBFczTUFrn8kAEFKN","순번ypG7DEFMB0aTBFczTUFrn8kAEFKN","BOS > 취소접수\nBOS > 반품접수\nBOS > 교환접수\nBOS > 환불컨펌","[CS개선][제휴몰]제휴몰주문 미할당 된 상품 표시관련건(Skucode)",null,"TSIT","단위업무","CS개선","시작되지 않음","중상","","정 지혜","2021.10.12.","","","false","","","현재 휴대전화 번호는 G096의 코드를 사용하고 있으나\nbos에서 input 항목 추가 필요 > 안심번호 국번 입력 및 처리필요\n0501~0510 \n-- 공통코드에 추가시 관련 정보가 Front에도 노출될수 있으므로 \nbos에서만 처리될수 있도록 해야함.","","","","분석","해당 공통코드 사용범위 분석 필요"]
[19,"RvfRX6OdF0uHXbRNmqRWP8kAEztl","순번RvfRX6OdF0uHXbRNmqRWP8kAEztl","BOS > 취소접수\nBOS > 반품접수\nBOS > 교환접수\nBOS > 환불컨펌","[CS개선][클레임] 취소/교환/반품>접수/상세>SKUCODE추가",null,"TSIT","운영","CS개선","시작되지 않음","중상","","정 지혜","2021.10.12.","","","false","","","취소/교환/반품 > 접수/상세 화면에서 상품 SKUCODE 추가","","","","2d"]
[20,"bcoSM6KGiUq3IiWKEm8p08kACjSG","순번bcoSM6KGiUq3IiWKEm8p08kACjSG","BOS > 취소접수\nBOS > 반품접수\nBOS > 교환접수\nBOS > 환불컨펌","[CS개선][클레임] 회수입고확정 전 교환 철회기능",null,"TSIT","분석필요","CS개선","시작되지 않음","상","","정 지혜","2021.10.12.","","","false","","","","","","","완료"]
[21,"oPCHWZrP3EaNltKeh5LgFskAJYA0","순번oPCHWZrP3EaNltKeh5LgFskAJYA0","BOS > 취소접수\nBOS > 반품접수\nBOS > 교환접수\nBOS > 환불컨펌","[CS개선][결함] 교환배송비 PG점프/현금환불로직 - 휴대폰 결제시",null,"TSIT","단위업무","CS개선","시작되지 않음","중상","","정 지혜","2021.10.07.","","","false","","","안녕하세요 고객만족팀 김은주입니다.\n\n주문번호 19906524\n고객명 : 송애리 \n주문일자 : 2021.09.27 \n\n상품 교환요청시 배송비 5천원을 휴대폰을 이용하여 결제 하였습니다. \n \n\n이후 고객이 교환 철회후 반품으로 재요청을 하였습니다. \n이런 경우에는 교환 배송비 5천원을 결제 취소가 진행이 되고, \n전체 결제 금액에서 반품 배송비 2,500원 ( 남은 상품 금액 4만원 이상으로 편도부담 ) 차감후 환불이 됩니다. \n\n하지만 위 주문건의 경우 \n9월 28일 휴대폰 배송비 결제 \n10월 6일 교환 철회후 반품 요청\n\n결제월이 아닌 익월 취소가 되어 휴대폰 취소가 불가능합니다.\n이런 경우는 휴대폰 결제 금액을 현금으로 환불을 해줘야 하나 현재 시스템으로는 처리가 불가능합니다 .\n\n현재 교환철회후 반품으로 재접수 하였으며, \n현금환불로 5천원 수동 접수는 하였습니다 \n\n이와 같은 문제가 앞으로도 계속 발생이 될 수 있음으로 \n휴대폰 배송비 결제 금액을 현금  ( 계좌번호입력 ) 후 환불될 수 있도록 개선 부탁드립니다. \n\n감사합니다.","","","","분석","교환철회시 휴대폰 결제 취소 불가 일때 \nPG 점프 기능 추가 및 입금여부 기능\n계좌번호 입력 기능에 대해서 상세한 협의가 필요"]
[22,"P5v4d-o3d0-idJqIliFtEckAE6wa","순번P5v4d-o3d0-idJqIliFtEckAE6wa","BOS > 취소접수\nBOS > 반품접수\nBOS > 교환접수\nBOS > 환불컨펌","[CS개선][클레임] 취소/교환/반품>접수/상세>접수자 표출",null,"TSIT","단위업무","CS개선","시작되지 않음","중","","정 지혜","2021.10.07.","","","false","","","안녕하세요 고객만족팀 김은주입니다.\n\n상품을 주문후 취소 및 반품접수시\n접수자명이( 변경자명 ) 보스화면에 등록되도록 수정 부탁드립니다 .\n\n출고전 취소 접수를 고객이 직접 하게 되면,  환불정보에 고객 아이디가 등록이 되며, \n취소/반품/교환 요청 정보에는 아무런 내용이 표기가되지 않습니다. \n\n이후 저희가 직접 취소를 진행할경우 요청 메모에 저희가 직접 수동으로 기록해야 \n다음 상담이 진행될경우 참고하여 업무를 진행하니다. \n\n따라서 요청메모에 표기를 하지 않더라도 변경자명에 접수하는 사람의 이름이 등록될 수 있도록 부탁드립니다.\n취소 / 교환 / 반품 모두 접수자가 보일수 있도록  처리 부탁드립니다. \n\n감사합니다.","","","","분석","해당 내용에 대한 정확한 업무 요건 분석 필요"]
[23,"jRchHZfmGkepPwig2DMQ5skALWyM","순번jRchHZfmGkepPwig2DMQ5skALWyM","BOS > 취소접수\nBOS > 반품접수\nBOS > 교환접수\nBOS > 환불컨펌","[CS개선][클레임] 취소/교환/반품 알림톡 발송여부 기능 추가",null,"TSIT","진행중","CS개선","진행 중","중요","전 석훈","김 지철","2021.10.01.","","2021.10.14.","true","","","[알림]\n\t환불/교환 접수나 철회시 고객에게 계속 알림이 나감\n\t관리자에서 접수할 때 알림을 Off 할수 있도록 설정이 필요함.\n\t관리자 환불/교환접수/화면에서 체크 박스를 두고, 알림 발송여부는 N을 기본으로 처리함.","","","","완료"]
[24,"Eofn7pNCiEaxUuVffin8cMkABjxf","순번Eofn7pNCiEaxUuVffin8cMkABjxf","BOS > 환불컨펌","[CS개선][클레임] 환불관리> WMS예외관리 기록된 데이터 노출필요",null,"TSIT","단위업무","CS개선","시작되지 않음","중","","정 지혜","2021.10.12.","","","false","","","취소/교환/반품>접수/상세> \nWMS예외관리 기록된 CS메모 데이터 환불관리에 노출\nCS 메모 내용은 환불 내용에 노출될수있도록 수정 필요.","","","","분석","해당 내용에 대한 정확한 업무 요건 분석 필요"]
[25,"9wYyen4so0WhD2MVhgZHtskAH5pF","순번9wYyen4so0WhD2MVhgZHtskAH5pF","BOS > 환불컨펌","[CS개선][클레임]환불관리 > 자사주문건에 대한 착불배송비 컬럼 활성화 - 유형 변경 권한 추가",null,"TSIT","운영","CS개선","시작되지 않음","중상","","정 지혜","2021.10.12.","","","false","","","","","","","0.5d","단순 컬럼 활성화만 허용 하는 업무로 판단"]
[26,"OoxhTjNdjkuSBXdx8IhEw8kAPjI0","순번OoxhTjNdjkuSBXdx8IhEw8kAPjI0","BOS > 환불컨펌","[CS개선][클레임] 환불컨펌 사유 변경 기능 추가",null,"TSIT","운영 (25번 병행)","CS개선","시작되지 않음","중요","","김 지철","2021.10.01.","","","false","","","[환불컨펌]\n\t환불 컨펌에서 사유 변경이 가해야 한다.\n\t환불 컨펌에서 금액입력란 활성화 처리가 필요하다.\n\t기타로 접수되는 항목은 Front에서 제외한다","","","","3d"]
[27,"NSz423btDkWKuAneF_fWO8kAErjM","순번NSz423btDkWKuAneF_fWO8kAErjM","BOS > 활동회원목록\nBOS > 휴면회원목록\nBOS > 탈퇴회원목록","[CS개선][회원] 활동회원/휴면/탈퇴목록> 목록 > 생년월일값 추가",null,"패션개발팀","운영","CS개선","시작되지 않음","하","","정 지혜","2021.10.13.","","","false","","","관리대상 컬럼 바로 뒤에 생년월일 > YYYY-MM-DD 값 추가","","",""]
[28,"dUwfsIYddkavq1yzufE3P8kAG982","순번dUwfsIYddkavq1yzufE3P8kAG982","BOS > 회원목록","[CS개선][회원] 휴대폰번호 도 기간제외하고 조회토록 처리",null,"패션개발팀","운영","CS개선","시작되지 않음","하","","정 지혜","2021.10.14.","","","false","","","","","",""]
[29,"pWU2RWSGf0Ke7MZQf1dBrMkAKQEB","순번pWU2RWSGf0Ke7MZQf1dBrMkAKQEB","BOS > 회원상세","[CS개선][회원] 회원정보> 상품권이력 > TOTAL값 추가 2.","김채연","패션개발팀","운영","CS개선","시작되지 않음","중상","","정 지혜","2021.10.18.","","","false","","","회원상세 > 상품권에 TOTAL값 노출관련요청\n\n상품권 잔액: 해당 회원이 보유하고 있는 유효기간이 만료되지 않은 잔액의 합\n상품권 사용액\t: (등록-사용+취소-만료액)\n상품권 소멸액: 상품권 사용 으로 집계된 금액 – 취소액\t만료로 인해 소멸 처리 된 상품권 금액","","",""]
[30,"D9phonKZmkaB_ulwLrpQaskAMm1S","순번D9phonKZmkaB_ulwLrpQaskAMm1S","FRONT > 마이페이지 > 취소/교환/반품목록\nFRONT > 마이페이지 > 취소/교환/반품상세","[CS개선][FRONT] 마이페이지>취반교목록> 환불진행중 문구변경요청 1.","김채연","패션개발팀","운영","CS개선","시작되지 않음","상","","정 지혜","2021.10.12.","","","false","","","마이페이지 > 취소반품교환내역\n환불진행중 시  환불을 진행하고 있습니다 ( 영업일 최대 3일 이내 환불예정 ) 문구 노출됨\n\n영업일 최대 3일 이내 환불예정 문구제거","","",""]
[31,"Pz9x_v0ygkOPXlLz5KnGPMkAJ0FE","순번Pz9x_v0ygkOPXlLz5KnGPMkAJ0FE","신규메뉴 생성","[CS개선][상품권]상품권에 대한세부이력메뉴 생성 3.","김채연","패션개발팀","분석필요","CS개선","시작되지 않음","하","","정 지혜","2021.10.13.","","","false","","","1.\t상품권 잔액의 경우 \n여러 개의 등록된 상품권 중 어느 상품권의 잔액이 남아있는지 표기가 되었으면 좋겠습니다. \n( 예전 보스 화면 )\n여러 개의 상품권을 사용후 등록일자에 따라  남은 상품권의 잔액을 문의하는 고객이 있어 \n아래와 같이 등록된 상품권별로 잔액이 보이면 좋겠습니다. \n \n\n2.\t상품권 사용액의 경우 \n기간을 정해두지 않을 경우 가입 이후부터 총 사용된 금액인지, 아니면 1년동안 사용된 금액 인지 \n일정기간을 설정 후 해당 기간에 사용된 사용액으로 노출이 되었으면 좋겠습니다.  \n\n3.\t상품권 소멸액 \n상품권 소멸의 경우도 소멸 금액이 확인시 등록 일자와 사용 가능일자등이 확인되도록 표기가 되었으면 좋겠습니다.","","",""]
[32,"DrQACRqgXEilYyjLwbKF2skAIbzt","순번DrQACRqgXEilYyjLwbKF2skAIbzt","신규메뉴 생성","[CS개선][클레임] 현금수기환불관련 목록/입금이력관리 메뉴 생성","정지혜","패션개발팀","분석필요","CS개선","시작되지 않음","중","","정 지혜","2021.10.12.","","","false","","","","","",""]
[33,"JXwLi6AwW0CsmmAfir3YOskAJVTb","순번JXwLi6AwW0CsmmAfir3YOskAJVTb","신규메뉴 생성","[CS개선][제휴몰] 제휴미할당 된 이력/메모등 관리 메뉴생성","정지혜","패션개발팀","분석필요 (10번 병행)","CS개선","시작되지 않음","상","","정 지혜","2021.10.12.","","","false","","","","","기획안 완료",""]
[34,"F_bVH4FVG0axbbL-3Iw1EskAHXFN","순번F_bVH4FVG0axbbL-3Iw1EskAHXFN","신규메뉴 생성","[CS개선][제휴몰] 제휴몰 문자발송 이력","정지혜","패션개발팀","분석필요","CS개선","시작되지 않음","상","","정 지혜","2021.09.29.","","","false","","","제휴몰 품절 수신문자를 받지 못했다고 함.\n문자 발송배치 확인필요\n0737968099\n주문이 아예 실패했을때, 안나가는게 아닌지?","","기획안 완료",""]
[35,"D5i5Nj03JUKMCcxzMLsnZMkADxv3","순번D5i5Nj03JUKMCcxzMLsnZMkADxv3","신규메뉴 생성(BOS/SCM)","[CS개선][고객센터]입점업체 상담이관 기능",null,"패션개발팀","분석필요","CS개선","시작되지 않음","하","","정 지혜","2021.10.12.","","","false","","","보스화면 : 고객상담관리 > 상담이관 관리 \n 업체 전화연결이 되지 않는 업체의 경우 상담이관을 통해 문의하나 \n 해당 메뉴가 없어 업체 확인할 방법이 없음\n\n상품문의의 경우, SCM에 해당 업체의 상품일 경우\n 업체 상품에 목록을 노출 하게 되어있음, 1:1 문의도 상기와 같이 필요한지 확인 필요\n--> 범위가 큰 부분이며, 이 부분에 대한 부분은 설계 및 범위가 전체적으로 확인필요.","","",""]
[null,"Xz5yU1fLokSaNNpDBgQEwskACiyL",null,null,"[CS개선] [제휴몰] 샵링커주문수집관리 > 제휴몰 실패사유 '배송비상이' 항목추가",null,null,null,"CS개선","완료됨","중간","조 민혜","정 지혜","2021.10.12.","","2021.10.15.","false","2021.10.15.","조 민혜","동일 주문인데 배송비 정책이 다를경우 해당 주문은 실패처리 하고 \n제휴몰 실패사유 '배송비 상이' 로 데이터를 처리한다.","","",""]
[null,"I8kemDgOGk2FY7Fh7_TMCMkAHvxi",null,null,"[CS개선][상담앱] 유비커스 상담앱 콜 확인시 BOS주문목록 노출",null,null,null,"CS개선","완료됨","중간","","정 지혜","2021.10.12.","","2021.10.19.","false","2021.10.14.","정 지혜","10/19 유비커스 테스트 예정\n유비커스 측 작업 진행중","","",""]
[null,"ACNjwVtwrUarXkr5RfVZ-8kAGsCr",null,null,"[진행중] front 주문결제 > 주문상세  신용카드 전표(kcp 영수증) 화면 노출되지 않음",null,null,null,"CS개선","완료됨","중간","전 석훈","정 지혜","2021.09.16.","","","false","2021.10.08.","정 지혜","- 모바일 웹 X\n- 모바일 앱 X\n- PC O\n\n교환배송비 결제 된 영수증에서도 상동.(19872951)\n\nIOS safari / app 두가지 확인함\n--> 기간 지난 주문건일 때안되고(9/2~3일 기준주문건들),  \n--> 당일 신규 주문시 신용카드/실시간 이체 두가지 (전표/현금영수증 두개 확인시) 앱만 안됨.(IOS)\n-- >교환배송비 영수증 클릭시 안나옴..(19872951)","","",""]
[null,"n6SV_gjIGUSggr9lH-NyoskAHwNh",null,null,"네이버 페이 결제시 하단 결제 하기 버튼 미확인",null,null,null,"CS개선","완료됨","중간","전 석훈;정 지혜;김 지철","정 지혜","2021.09.03.","","","false","2021.10.08.","정 지혜","어느 환경인지 확인 필요","","",""]
[null,"TKqxEx3s20atiNQUKGMVX8kAJMdL",null,null,"입점업체의 배송목록 별도 노출 필요",null,null,null,"CS개선","완료됨","중간","문 달호","정 지혜","2021.09.09.","","","false","2021.10.08.","정 지혜","","","",""]
[null,"rE8hMxOtkEeM27gygAxWKMkABgrf",null,null,"교환 재고 부족시, 완료가 되었다고 나오고 교환접수가 안됨",null,null,null,"CS개선","완료됨","중간","김 지철","정 지혜","2021.09.10.","","","false","2021.10.08.","정 지혜",". 재고 부족시 불가상품 표시\n- a 상품의 B옵션이 재고가 없다. 라고 alert이 표시하도록 개발이 완료되었음.","","",""]
[null,"U7_7s2NqvU6B12aS8twh0ckAJMak",null,null,"프론트모바일  부분교환 할경우, 안넘어가는 케이스 확인",null,null,null,"CS개선","완료됨","긴급","전 석훈;정 지혜;김 지철","정 지혜","2021.09.24.","","","false","2021.10.08.","정 지혜","다수개 상품 중 1~2개만 교환 하려고 할경우 넘어가지 않음","","",""]
[null,"n6UCNf-t7EumeH7SuHgrmckACwKV",null,null,"입점 발주확정대상목록 에러.",null,null,null,"CS개선","완료됨","중요","김 지철","정 지혜","2021.09.24.","","","false","2021.10.08.","정 지혜","입점 발주확정대상목록은 발주확정 안됨(발주확정이 안되어 처리 불가)\n입점주문만 나오는게 아니라 자사주문까지 다 섞여 나옴\n발주확정대상목록이 나오는게 아닌 전체주문목록이 나옴","","",""]
[null,"a3rNyegJKUydbj38ZOkGyMkAKg2j",null,null,"[대기][CS협의] 교환> 반품 (19886342)",null,null,null,"CS개선","완료됨","중간","전 석훈","정 지혜","2021.09.28.","","","false","2021.10.08.","정 지혜","20벌 중 9벌 반품 합니다.\n레이스자카드원피스 1\n로하스상하 1\n레이스자카드셋업티셔츠 1\n라리트렌치코트 1\n꼬블저온스패딩조끼 130 1\n리프자카드가디건 1\n조거레깅스 크림 90 2\n프릴티셔츠 1\n\n위와 같이 상품명으로 반품할 상품을 기록 후 보내주셨습니다.\n\n14260329-4        [모이몰른] 레이스 자카드원피스 MPF1GAOP17 [가을] / 반품1개  교환1개 – 접수된 교환1건 철회후 반픔으로 변경요청\n14924676-2        [모이몰른] 로하스 상하 M211STB57P [봄] / 교환 => 반품으로 변경 \n14260337-4        [모이몰른] 레이스자카드 셋업티셔츠 MPF1GATS08 [가을] / 교환 => 반품으로 변경 요청\n14260320-4        [모이몰른] 라리 트렌치코트 MPF1GABY02 [가을] / 교환=> 반품으로 변경 요청\n14924723-4        [모이몰른] 리프 자카드가디건 M211GDG27P [봄] / 교환=> 반품으로 변경 요청","","",""]
[null,"Jax_VHvkw0q-3KFyfqJ0G8kAL06z",null,null,"wms 회수예외관리에 제휴몰 구분, 제휴몰 주문번호 항목 추가/검색옵션추가",null,null,null,"CS개선","완료됨","중간","전 석훈","정 지혜","2021.09.30.","","","false","2021.10.08.","정 지혜","","","",""]
[null,"aqlTYUDW406tB0EDtc9iH8kAHfer",null,null,"[결함][WMS] CJ송장 아닌경우 회수지시 안되는 결함",null,null,null,"CS개선","완료됨","중간","","정 지혜","2021.10.06.","","","false","2021.10.08.","정 지혜","서보성 이사님 쪽에서 대응중\n- 잔여데이터 처리남음\n회수지시 관련 에러(CJ 회수 관련) > 서보성이사님 대응건\n\n--> CJ 송장이 아니면 회수지시가 계속 반복되는 현상\n--> 수정 완료","","",""]
[null,"st4zIdQOTEWK502kfQr98ckAKrml",null,null,"[결함][주문]19887600 주문에 적용되지 않은 상품에 쿠폰이 배분된것으로 확인됨",null,null,null,"CS개선","완료됨","중간","전 석훈","정 지혜","2021.10.07.","","","false","2021.10.08.","정 지혜","coupon detail과 상품목록의 장바구니 쿠폰 배분내역이 상이\n- 상품권 100% 사용건 데이터 처리 시 문제된건\n정산 skip","","",""]
[null,"qNHvn7aCCUqAcWN28dz118kAO_M5",null,null,"네이버페이 현금영수증.",null,null,null,"CS개선","완료됨","중간","","정 지혜","2021.10.06.","","","false","2021.10.07.","정 지혜","- 네이버 측에 현금영수증 발행 가능여부 문의 하여\n결제 창에서 현금영수증 지원되도록 계약변경함. 10/7 10시 오픈예정","","",""]
[null,"pi6NxUlz2EqgULggQMyn_ckAJ8lc",null,null,"고객변심반품으로 클레임 걸었을때 wms에 배송비 받은걸로 전송되는지 확인, wms에서 동봉안되었다고 처리하고있다고 함.",null,null,null,"CS개선","완료됨","중간","문 달호","정 지혜","2021.09.16.","","","false","2021.10.06.","정 지혜","19873583\n\n\n현재  배송비 금액을 전송하지 않음.\n\n반품,교환- 자사\n고객접수 -  반품: 배송비 차감처리내용 설명  (서보성이사님과 물류담당자 통화 업무이해로 해결) \n                -  교환: 사전 결제로 내용 설명        (서보성이사님과 물류담당자 통화 업무이해로 해결) \n\nC/S 접수 - c/s담당자분이 메모에 금액을 입력후 접수함.  \n\n반품,교환- 제휴\nC/S 접수- c/s담당자분이 메모에 금액을 입력후 접수함.","","",""]
[null,"OKdyMWetO0KME1cyZBbEO8kAFTVc",null,null,"scm 배송비 정책 등록 오류",null,null,null,"CS개선","완료됨","중간","김 덕규","정 지혜","2021.09.07.","","","false","2021.10.06.","김 지철","","","",""]
[null,"3Pl_W2odSkaOM_MABZEOTckAKKMM",null,null,"주문번호 : 19873778  반품비 귀책 변경및확인 필요.",null,null,null,"CS개선","완료됨","중간","김 지철","정 지혜","2021.09.16.","","","false","2021.10.06.","김 지철","확정 할때 금액 귀책이 잘못되면 확인필요한데 이 부분 확인 바람.","","",""]
[null,"YTn1EUIh_EaxnHASp2NCvskAGyVI",null,null,"네이버 페이 정산 확인(마케팅담당자와확인)",null,null,null,"CS개선","완료됨","중간","정 지혜","정 지혜","2021.09.09.","","","false","2021.10.06.","정 지혜","","","",""]
[null,"zymWtkawVEees4iLhIyaFMkAOdQC",null,null,"반품/교환 철회 기능 오픈",null,null,null,"CS개선","완료됨","긴급","김 지철","김 지철","2021.10.01.","","","false","2021.10.06.","김 지철","[회수검품확정전]\n\t회수만 해간 상태에서 입고/상품검품이 되지 않은 상태에서 다시 반품으로 요청하는 상황이 대다수임\n\t입고완료 컨펌 이전에 교환 철회 기능 오픈 \n[회수검품확정후]\n\t검품 확정 후에는 상품준비중으로 넘어가기 때문에 출고를 취소하는 걸로 처리해야함, 상기 부분에 대해서는 영향도 파악 후 개발\n\t검품 확정 시에 교환> 취소는 추가배송비는 돌려주어야 하므로 배송비 과실 확인 필요","","",""]
[null,"81JvhdtlDE2yldglvBsPNckALwO7",null,null,"교환철회 시 교환배송비 미노출 수정",null,null,null,"CS개선","완료됨","긴급","김 지철","김 지철","2021.10.01.","","","false","2021.10.06.","김 지철","[환불/교환/주문이력]\n\t교환배송비 취소되었을 때, 이력이 사라지는 부분 이력노출되도록 필히 노출 필요.","","",""]
[null,"xquVynVbxUqLEpbq9zqODskADbjq",null,null,"[완료][CS협의] 교환철회가능문의",null,null,null,"CS개선","완료됨","중간","전 석훈","전 석훈","2021.09.24.","","","false","2021.09.29.","정 지혜","안녕하세요 고객만족팀 김은주입니다.\n주문번호 : 19890542       \n고객명 : 박선민\n고객이 모바일을 통해 2개의 상품만 교환 접수를 하고 싶었으나.\n다른 상품들을 선택하지 않을 경우 교환 접수가 되지 안하 전체 교환을 접수한 상태입니다.\n\n우선 2개의 상품만 당사로 반송한 상태이며,\n이중 1개는 품절로 인해 교환이 불가능한 상태입니다.\n\n결론은 전체 교환 접수가 되어 있으나,\n실제 1개의 상품은 반품 / 1개의 상품만 교환을 요청하는 사항입니다.\n현재 회수 요청 상태로 교환 철회를 할 수가 없어 재요청 문의 드립니다.\n\n교환 상품 : F94M-KP018B  13316276-4 남성 브이넥 배색 니트 베스트(F94M-KP018B) 블랙 95 è 블랙 100 사이즈 교환요청 \n\n\n해당 건 교환 철회  가능하도록 확인 부탁드립니다.\n감사합니다.","","",""]
[null,"hsuHdxBr1EOofXTS8K-11skALjlt",null,null,"[완료][CS협의] 교환>반품 (19881261)",null,null,null,"CS개선","완료됨","중간","전 석훈","정 지혜","2021.09.28.","","","false","2021.09.29.","정 지혜","주문번호  :  19881261 김지은 \n\t2개 상품 모두 반품으로 변경 요청 하였습니다 .\n\n아래 주문건  ( 19891732 하여진 / 19886350 이수진 / 19881261 김지은 ) 포함\n모두 3개 주문번호 교환 처리 부탁드립니다."]
[null,"FPK5zlXcakuaztDHwWHCkskAFUK5",null,null,"[완료] 배송비 관리 메뉴 > 데이터 변경 현상 및 오류",null,null,null,"CS개선","완료됨","중간","전 석훈;정 지혜","정 지혜","2021.09.23.","","","false","2021.09.29.","정 지혜","업체의 배송비 정책 수정 시 타 업체의 배송정책도 같이 수정되는 오류.","","",""]
[null,"64L4EKnnd0uSgRkNvbawt8kAEY4D",null,null,"[완료][CS협의] 교환>반품 ( 19891732 / 19886350)",null,null,null,"CS개선","완료됨","중간","전 석훈","정 지혜","2021.09.28.","","","false","2021.09.29.","정 지혜","안녕하세요 고객만족팀 김은주입니다.\n\n19891732 하여진\n \n\n19886350 이수진\n \n\n2개의 주문건 모두 교환 신청후 당사로 입고되어 검수를 진행하였으나.\n고객이 교환이 아닌 반품으로 변경후 환불 요청을 하였습니다. \n\n현재 2건의 주문건 모두 교환 대기 상태이며, \n( 취소/반품/교환) 요청정보의 상태는 상품검수중으로 물류에서 확정전 상태로 확인됩니다. \n\nCS 에서 물류로 회수완료 확정 이후 보스에 반영시까지 어느정도 시간이 걸리는 확인이 되지 않습니다. \n( 전산 연동까지 약 10분이 소요가 된다고 하나 하루 이상 걸리는 주문건도 확인됨 )\n계속 교환상품 재출고 되는 문제가 계속 발생이 되고, \n생각보다 교환 → 반품으로 변경하는 고객들도 많습니다. \n\n19886350 이수진 물류에서 회수 완료 진행 ( 약 2시 31분경 ) \n현재 2시 50분 현재 교환완료 처리 되어 교환 주문건이 생성되었으나. 취소 버튼도 확인되지 않습니다. \n \n현재 물류로 출고중지는 하였으나, 매번 이렇게 진행하기는 어려울 듯 합니다. \n\n19891732 하여진 / 19886350 이수진\n2개 주문건 모두 교환 상품이 출고되지 않도록 빠른 처리 부탁드립니다. \n\n감사합니다.","","",""]
[null,"bmNe0YEtaUGrZibyJYHVpMkAKl_b",null,null,"세트상품 송장 잘못나오는건(서보성이사 문의중)",null,null,null,"CS개선","완료됨","중요","","정 지혜","2021.09.28.","","","false","2021.09.29.","정 지혜","","","",""]
[null,"LNTfXPI-SkyyN_Awu88sDMkANJtr",null,null,"[완료] 주문번호  19901945  윤덕근 교환철회",null,null,null,"CS개선","완료됨","중간","전 석훈","정 지혜","2021.09.29.","","","false","2021.09.29.","정 지혜","","","",""]
[null,"JbSn8csGg0i21piMAscI1MkACTf2",null,null,"[완료] 19895625 주문취소 처리. scm 오류 조치바람.",null,null,null,"CS개선","완료됨","중간","전 석훈;정 지혜","정 지혜","2021.09.23.","","","false","2021.09.28.","정 지혜","현재 미출고된 4개 상품 품절 취소 요망..\nscm 관련 처리가 되지 않아 계속 민원접수됨./","","",""]
[null,"6QmyLa3I30azJZc-kgU_h8kAEyDE",null,null,"[완료] 주문에서 앱일 경우, 디바이스 구분이 빠짐",null,null,null,"CS개선","완료됨","중간","전 석훈;정 지혜","정 지혜","2021.09.09.","","","false","2021.09.28.","전 석훈","","","",""]
[null,"hS8Ribe_QUSaD9t2IGsLhckAJSOg",null,null,"무통장입금 결제에러/ 취소에러 발생",null,null,null,"CS개선","완료됨","중간","김 지철","정 지혜","2021.09.01.","","","false","2021.09.28.","김 지철","환불계좌번호 ( mod_account ) 와 예금주명 ( mod_depositor ) 값 뒤에 \n긴 공백이 포함되어 요청되었습니다.. \n\n환불 요청 시 공백제거 후 다시한 번 시도 부탁드립니다.","","",""]
[null,"3HDFf6GbWEOjYvfJZa8JUckABgI6",null,null,"BOS 구매확정 후 반품/교환 처리 허용 개발",null,null,null,"CS개선","완료됨","중간","김 지철","김 지철","2021.09.10.","","","false","2021.09.28.","김 지철","","","",""]
[null,"PvhGej1urkC2WrnOr1IrvMkANGqM",null,null,"[확인요청] 구매 확정 후 관리자에서도 반품접수가 안되는건.",null,null,null,"CS개선","완료됨","긴급","김 지철","정 지혜","2021.09.08.","","","false","2021.09.28.","김 지철","구매확정 후 에는 반품접수가 진행되지 않게 개발되어 있습니다. 적립포인트 원복 문제등, 상품평 관련 리뷰 포인트 관련 문제가 있습니다.","","",""]
[null,"8VsE88Oq4Ueuyh67ZcIRU8kAJLVD",null,null,"고객 직접취소 환불 오류건(: 19892760)",null,null,null,"CS개선","완료됨","중요","","정 지혜","2021.09.24.","","","false","2021.09.28.","정 지혜","안녕하세요 고객만족팀 김은주입니다.\n\n주문번호  : 19892760\n고객명 : 박지윤 \n\n총 5개의 상품 주문 후 고객이 직접 2개의 상품을 취소 한 것으로 확인되나, \n실제 2개의 상품 가격은 각각 부분 취소가 되었으나, \n상품은 1개만 취소가 되어 정상 발송되었습니다.\n해당 건 고객 문의가  접수된 것이 아니라 \n제가 부분 취소 주문건을 확인하고자 검색하던 중 발견한 주문 건입니다 \n\n주문 내역 확인바람","","",""]
[null,"8u0KeG3eGkuCA6UXpl-gwskAH0oW",null,null,"IOS 앱에서실시간계좌이체에러(뱅크페이앱 실행안됨)_",null,null,null,"CS개선","완료됨","중요","","정 지혜","2021.09.16.","","","false","2021.09.28.","정 지혜","IOS Safari에서는 정상\nIOS 실시간계좌이체 오류 수정 건 결제완료 후 callback url 설정값 오입력 되어 추가발생함.","","",""]
[null,"7pv5KTvg7kmdGcjFtUY3eMkAKQan",null,null,"19892769 자동취소문자 변경 이력 확인필요",null,null,null,"CS개선","완료됨","중간","문 달호","정 지혜","2021.09.16.","","","false","2021.09.28.","정 지혜","","","",""]
[null,"-SRY0iop4EmCnof2aK-8EskAKG_a",null,null,"[진행중] 주문서 페이지에 해당 영역에 상기 소스 삽입 요망",null,null,null,"CS개선","완료됨","중간","전 석훈;정 지혜","정 지혜","2021.09.16.","","","false","2021.09.28.","정 지혜","https://www.style24.com/order/form\n\n[pc 주문서]\n<div class=\"area_paybtn\"> 영역 바로 위쪽에 삽입\n\n\t\t\t\t\t\t\t\t\t\t\t\n\t\t\t\t\t\t\t\t\t\t\t\n<div class=\"com_info_txt\">\n\t\t\t\t\t\t\t\t<p class=\"tit\">품절 관련 안내</p>\n\t\t\t\t\t\t\t\t<ul>\n\t\t\t\t\t\t\t\t<li>품절시는 자동으로 취소되며 취소 알림톡을 발송드립니다. 품절취소 상품 외 나머지 상품은 발송됩니다. </li>\n                                                                <li>업체/상품/브랜드에 따라 재고는 일부 상이할수 있으므로 고객님의 너른 양해를 부탁드립니다.</li>\n\t\t\t\t\t\t\t\t</ul>\n\t\t\t\t\t\t\t</div>\n\t\t\t\t\t\t\t\n\t\t\t \n모바일 주문서\n\n<div class=\"inner\"> 안 쪽 바로 에 삽입\n\n<div class=\"announce_txt\">\n\t\t\t\t\t\t\t<div class=\"note_txt\">\n\t\t\t\t\t\t\t\t<img src=\"/images/mo/ico_content_find03.png\" alt=\"유의사항\">\n\t\t\t\t\t\t\t\t<p>유의사항</p>\n\t\t\t\t\t\t\t</div>\n\t\t\t\t\t\t\t<div class=\"announce_list\">\n\t\t\t\t\t\t\t\t<ul>\n\t\t\t\t\t\t\t\t\t\t<li>품절시는 자동으로 취소되며 취소 알림톡을 발송드립니다. 품절취소 상품 외 나머지 상품은 발송됩니다. </li>\n                                                                <li>업체/상품/브랜드에 따라 재고는 일부 상이할수 있으므로 고객님의 너른 양해를 부탁드립니다.</li>\n\t\t\t\t\t\t\t\t</ul>\n\t\t\t\t\t\t\t</div>\n\t\t\t\t\t\t</div>","","",""]
[null,"hGy8xI4aIEWWUODvpBkuD8kAH_G-",null,null,"주문상세 DELV_FEE_CD 가 X 로 등록된 데이터 확인> 해당 업체의 DELV_FEE_CD가 없는건 조치필요.",null,null,null,"CS개선","완료됨","중간","구성원;이정환;정 지혜","정 지혜","2021.09.23.","","","false","2021.09.28.","이정환","해당 X 로 등록된 데이타를 조회결과 아래의 데이타 건수가 확인됨.\n해당건의 대한 업체의 DELV_FEE_CD 정보의 매핑 정보가 필요함\n\n-- 전체 데이타 : 2,379,856 건수\n-- 2021년도 데이타 : 3,983 건수\n-- 2021년도 업체 : 91 건수\n\n[진행사항]\n2021년 8월 주문상세에는 X 로 되어 있는 것들을 업데이트 처리 진행 하였습니다.\n다만 SUPPLY_COMP_CD 와 GOODS_CD 가 X 로 마이그레이션 되어 있는 것들은 처리 못하였습니다. 해당  사유는 김성욱 차장님에게 문의 해봐야 할 것 같습니다.","","",""]
[null,"6Mh1eCg5bUGdulvON62ilskAGFIi",null,null,"WMS회수예와관리 , 환불관리 중복노출 오류 문의 ",null,null,null,"CS개선","완료됨","중요","문 달호","정 지혜","2021.09.24.","","","false","2021.09.24.","정 지혜","주문번호 : 19863862 \n고객명 : 정희승\n제휴몰 : g마켓 주문건 \n \nWMS회수예외 관리에 배송비 미동봉건으로 확인됩니다. \n해당 주문건은 2곳에서 모두 확인이됩니다. \n \n처리 방법 : WMS회수예외관리 등록건  처리사항 확인 처리후 완료  물류에서 회수완료 진행  이후 환불컨펌에서 확인\n위 방법으로 처리 진행하는것으로 알고 있습니다. \n \n하지만 해당 주문건은 현재 2개 모두 검색이 되고 있어 전달 드립니다.\n빠른 확인 부탁드립니다.","","",""]
[null,"OaXS240q3kqaKoFXsp3jWskAPk9D",null,null,"[완료] 고객 웹취소시 환불 가격 오류",null,null,null,"CS개선","완료됨","중간","전 석훈;김 지철","전 석훈","2021.09.17.","","","false","2021.09.23.","정 지혜","안녕하세요 고객만족팀 김은주입니다.\n\n주문번호 19887215        \n고객명 : 김주영\n\n주문후 상품 수령전 고객 웹 취소진행 하였으나.\n부분취소후 배송비 차감후 환불되는 오류 발생","","",""]
[null,"BqlZfLipv02RN1hlpHC2DskAPFKU",null,null,"[진행중] 교환/반품이 걸려 있을때, 구매 확정문구가 나오지 않고 반품/교환이 진행 중입니다. 라고 안내문구 노출, 구매 확정이 안나가는지도 확인 필요함.",null,null,null,"CS개선","완료됨","중간","전 석훈;정 지혜;김 지철","정 지혜","2021.09.15.","","","false","2021.09.23.","정 지혜","","","",""]
[null,"2SFt7dTTD0eElAfU53tM9skAAwO2",null,null,"IOS 카카오페이 결제안됨",null,null,null,"CS개선","완료됨","중간","김 지철","정 지혜","2021.09.02.","","","false","2021.09.23.","정 지혜","","","",""]
[null,"fCxoGzQp6U27wJz_9rF7lskAFlgC",null,null,"[완료] Front 클레임이 걸린 상품인데 구매확정 일자가 표시됨",null,null,null,"CS개선","완료됨","중요","전 석훈;정 지혜","정 지혜","2021.09.14.","","","false","2021.09.15.","전 석훈","","","",""]
[null,"gCSpcljMVEiYAqln4JFe_ckAFF1c",null,null," [진행중] 주문번호  : 19887063  세트 상품 주문시 주문상품은 2개가 나오고,반품 요청시에는 하나의 로우로 표시될때 이슈 확인",null,null,null,"CS개선","완료됨","중간","전 석훈","정 지혜","2021.09.14.","","","false","2021.09.15.","김 지철","옵션정보 테이블 JOIN 을 잘못 해서 나타난 오류로 내일 오전 수정 배포 예정입니다.","","",""]
[null,"5mnRad3FIEiO5gO4rDYxvskAPxTO",null,null,"재회수 지시를 했는데 기사가 방문오지 않음",null,null,null,"CS개선","완료됨","중간","문 달호","정 지혜","2021.09.10.","","","false","2021.09.15.","정 지혜","","","",""]
[null,"YMuE3YLy6UCt398G6aFdXMkAFYA4",null,null,"스윗트래커 배치오류로 배송중 상태로 홀드되 있는 건들 일괄 업데이트 처리 필요, 고객 배송완료 알람 off 후.",null,null,null,"CS개선","완료됨","중간","문 달호","정 지혜","2021.09.13.","","","false","2021.09.15.","정 지혜","","","",""]
[null,"wMQwhqbxlkm_9GuBjjoxcckANAA_",null,null,"[완료] 주문번호 : 19874512  고객명 : 최은미   2개의 상품 주문후 1개는 품절로 취소를 진행하였으며,  나머지 1개의 상품도 취소진행시 결제 취소 실패 메시지가 확인되어 취소가 되지 않습니다. ",null,null,null,"CS개선","완료됨","중간","전 석훈","정 지혜","2021.09.13.","","","false","2021.09.14.","전 석훈","","","",""]
[null,"0ea0Iqs4P0uVtscMKQzvFckAFm9s",null,null,"[대기][결품환불] 19866352 / 57764695 ㄱ결품으로 미출고처리했으나 오류(결품환불요청건임)",null,null,null,"CS개선","완료됨","긴급","구성원;이정환;이선미;김 지철","정 지혜","2021.09.10.","","","false","2021.09.14.","김 지철","포인트 및 정산 금액 업데이트 처리 완료 했습니다. 취소 요청 드립니다.","","",""]
[null,"FweJ3tltg0WuwvNKtp2bcskABPW3",null,null,"[대기][결품환불] 19866391_ 15007578-3    상품결품취소에러처리",null,null,null,"CS개선","완료됨","중간","구성원;이정환;이선미;김 지철","정 지혜","2021.09.10.","","","false","2021.09.14.","김 지철","포인트 업데이트처리 했습니다. 취소 진행 부탁 드릴께요.","","",""]
[null,"eSc89iK3M0KHakTKPaFT1skAIMWL",null,null,"[환불컨펌] 19862330",null,null,null,"CS개선","완료됨","중간","구성원;이정환;이선미;김 지철","정 지혜","2021.09.10.","","","false","2021.09.14.","김 지철","","","",""]
[null,"OTixethWzUm5vV0x3y3N68kAPwQj",null,null,"[완료][ghks19857632/2110300 - 구매확정환불변경-환불완료처리필요건",null,null,null,"CS개선","완료됨","중간","전 석훈","정 지혜","2021.09.10.","","","false","2021.09.14.","정 지혜","","","",""]
[null,"t96nzuA-dEyEuo47-3_DU8kAAfrm",null,null,"[완료][구매확정->배송완료변경] 19859133 환불처리필요함",null,null,null,"CS개선","완료됨","중간","전 석훈","정 지혜","2021.09.14.","","","false","2021.09.14.","전 석훈","","","",""]
[null,"eVsUc9EQUUKzU7Gu-SW9TskAIFhb",null,null,"[확인]제휴주문 교환 접수시에 고객들한테 배송비 입금하라는 문자가 나감",null,null,null,"CS개선","완료됨","중간","전 석훈","정 지혜","2021.09.10.","","","false","2021.09.14.","전 석훈","- 제휴몰 주문에 대해서는 클레임 관련 문자(품절 외 전체) 나가면 안됨.\n현재 나가고있음\n1033\n1034\n1043\n1044\n1045\n1046\n1047\n1048\n1049\n1050\n1059\n1060\n1061\n1062\n1063\n1064\n\n상기 답변번호들이 현재 제휴몰 주문에서 나가고있을 경우 나가지 않도록 조치해주세요.","","",""]
[null,"JqR4SCWR0029Z-S99N0GQMkAATMi",null,null,"[진행중][결품환불][미출고처리] 19886932 19887050 19887267  (57819045 57819567 57820399) 미출고",null,null,null,"CS개선","완료됨","중간","전 석훈;정 지혜","정 지혜","2021.09.13.","","","false","2021.09.13.","정 지혜","19886932 : res_msg=기취소된 신용카드 거래 취소요청 PG점프 취소 완료\n19887050 : res_msg=부분취소 불가 사이트 (휴대폰취소건으로 부분취소불가)\n19887267 : 취소완료\n\n-------------------------------------------------------------------------------------------\n\n주문번호 : 19887050\n상세번호 : 57819567\n현재 입점업체 품절취소, 결제타입 휴대폰 결제 부분취소 불가로 취소접수상태로 등록 했습니다.\n고객 아웃 바운드후 고객에게 입금 해주고 PG 점프 취소 승인 하시면 될꺼 같습니다.","","",""]
[null,"xudpes5m_0qSO_qadhrqiMkAHzCj",null,null,"입점업체 클레임 목록 별도 노출필요- scm 내용 bos에 그대로 옮겨서 일부만 변경하여 처리",null,null,null,"CS개선","완료됨","중간","전 석훈","정 지혜","2021.09.09.","","","false","2021.09.13.","전 석훈","","","",""]
[null,"BYZ6EfYsDEe5wjzoFIi-IMkAK5AL",null,null,"SCM 클레임 업무 BOS 이관 개발",null,null,null,"CS개선","완료됨","중간","전 석훈","김 지철","2021.09.10.","","","false","2021.09.13.","전 석훈","","","",""]
[null,"p7XE9eQb0EmobEJHtz3I48kAF2E3",null,null,"입점업체 관련 내용 별도로 노출및 처리필요",null,null,null,"CS개선","완료됨","중간","전 석훈","정 지혜","2021.09.09.","","","false","2021.09.13.","전 석훈","입점업체 클레임관련 메뉴 BOS 에 개발 예정","","",""]
[null,"7aBT-kZSmEuRX2jdn0P-ackABuCR",null,null,"주문목록에 sku코드, 세트목록 이 두개씩 나오는현상",null,null,null,"CS개선","완료됨","중간","김 지철","정 지혜","2021.09.13.","","","false","2021.09.13.","김 지철","","","",""]
[null,"9wzBxzxXrE6opbTCxTgJP8kAMWv6",null,null,"front 주문내역 막아놓은부분오픈",null,null,null,"CS개선","완료됨","중요","김 지철","정 지혜","2021.09.13.","","","false","2021.09.13.","김 지철","","","",""]
[null,"ArAL-WGrWE2tl_i3-_7yJ8kADpvL",null,null,"[완료][미출고취소] 19874512 / 57785851 ",null,null,null,"CS개선","완료됨","중간","전 석훈","정 지혜","2021.09.13.","","","false","2021.09.13.","전 석훈","","","",""]
[null,"tpk9VjPaGkiAK1AfNVBqPckAFuC7",null,null,"[확인요청] 입점업체의 주문은 관리자에서 어떻게 취소하나요 ? 메뉴 확인 요망",null,null,null,"CS개선","완료됨","중간","전 석훈","박 중재","2021.09.06.","","","false","2021.09.13.","전 석훈","","","",""]
[null,"ELv-sVwlXU-iKwABGb_o_skAITHD",null,null,"[배송완료으로변경] 19859217 구매확정건 - 반품접수필요",null,null,null,"CS개선","완료됨","중간","전 석훈","정 지혜","2021.09.13.","","","false","2021.09.13.","전 석훈","배송 완료 변경 했습니다.\n확인 부탁 드립니다.","","",""]
[null,"QMzKoXTtcEy8vLfjiOu21skAKN6H",null,null,"[환불컨펌] 19872866 / 57781944, 57781943 전체 취소요청하나 전체취소 에러,(8/31 주문건)",null,null,null,"CS개선","완료됨","중간","김 지철","정 지혜","2021.09.10.","","","false","2021.09.13.","김 지철","","","",""]
[null,"5bJHlYiWsU2KBvMtaz_8C8kAP1Cd",null,null,"[환불컨펌] 19861470",null,null,null,"CS개선","완료됨","중간","김 지철","정 지혜","2021.09.10.","","","false","2021.09.13.","김 지철","","","",""]
[null,"o75bTTVzkkO-HT9wCVLulckANomL",null,null,"[환불컨펌 ] 19862313 , 19861470 , 19864278  ",null,null,null,"CS개선","완료됨","중간","김 지철","정 지혜","2021.09.13.","","","false","2021.09.13.","김 지철","","","",""]
[null,"-uMa08JMdEyf_k7o0d3lyMkANZdG",null,null,"[환불컨펌] 19859589 김성희 패션지오",null,null,null,"CS개선","완료됨","긴급","김 지철","정 지혜","2021.09.10.","","","false","2021.09.13.","김 지철","","","",""]
[null,"PTZocABLvkG8jaJoPZvyx8kAM2nx",null,null,"[환불컨펌] 19859589 /57745136",null,null,null,"CS개선","완료됨","중간","김 지철","정 지혜","2021.09.10.","","","false","2021.09.13.","김 지철","","","",""]
[null,"11Ro90ZzgUKHRNiK7CXAockAGULs",null,null,"[반품옵션 노출후 바로 처리요청] 주문목록내 물류 sku-code 추가 필요 (제휴몰 쪽 주문은 sku-code로만 커뮤니케이션 가능) - 물류와의 소통도 sku가 있어야 원활",null,null,null,"CS개선","완료됨","중간","김 지철","정 지혜","2021.09.09.","","","false","2021.09.09.","김 지철","","","",""]
[null,"qGz8JoQLCke_vFL3LQddI8kANkI-",null,null,"[우선순위1순위] 반품 신청/반품 접수 화면에 반품 옵션이 안나오는 현상",null,null,null,"CS개선","완료됨","긴급","김 지철","정 지혜","2021.09.08.","","","false","2021.09.09.","김 지철","","","",""]
[null,"dywL8FanIkqvYqFBmBdjjskAFmdj",null,null,"마이페이지에 주문 현재 안된다는 안내문구 노출, 이 부분은 입점 1:1문의로 처리하는 부분 완료 될때까지만 노출",null,null,null,"CS개선","완료됨","중간","정 지혜","정 지혜","2021.09.08.","","","false","2021.09.09.","전 석훈","","","",""]
[null,"E4Nko5yIZkK0um5LLxJprckAEHGw",null,null,"주문번호 : 19870760 당일배송(총알) 주문 아니나 당일배송으로 넘어가는건",null,null,null,"CS개선","완료됨","긴급","문 달호","정 지혜","2021.09.09.","","","false","2021.09.09.","전 석훈","메일유첨함\n\n->  서보성이사님 통화  (교환상품이라  물류에서 보류중이였다고함.)  교환선발송건  전달,  금일 출고!","","",""]
[null,"qg6hSNoz4Umy7F8rL7gBs8kAMJjP",null,null,"업체정보가 잘못된 사례 확인 - 인터파ㅡㅋ",null,null,null,"CS개선","완료됨","중간","","정 지혜","2021.09.07.","","","false","2021.09.08.","정 지혜","","","",""]
[null,"HyFn8xOmjkCSxY66MsX8cskANgaf",null,null,"상품쿠폰에러",null,null,null,"CS개선","완료됨","긴급","전 석훈","정 지혜","2021.09.03.","","","false","2021.09.08.","정 지혜","","","",""]
[null,"d5zec-NcBUCiDdGEVm4To8kAHXjP",null,null,"입점업체 상품 환불지연 관련 입고목록 확인",null,null,null,"CS개선","완료됨","중간","전 석훈;박 중재;정 지혜;김 지철","정 지혜","2021.09.07.","","","false","2021.09.08.","전 석훈","","","",""]
[null,"bUFxzl8T00qFkgv_0DvvfMkANq8g",null,null,"front에서 교환 접수를 하고 교환배송비를 결제하였으나 교환배송비 결제 문자가 발송됨",null,null,null,"CS개선","완료됨","중간","김 지철","정 지혜","2021.09.07.","","","false","2021.09.08.","김 지철","","","",""]
[null,"ly8WEmYwkkyKBjrkJgtaYMkAFaGh",null,null,"쿠폰 다운로드 용 스크립트 전달 필요",null,null,null,"CS개선","완료됨","중간","전 석훈","정 지혜","2021.09.03.","","","false","2021.09.08.","정 지혜","이 부분 오픈 전에 오픈 프로모션 시 사용한다고 스크립트만 요청 드렸던 부분입니다.\nhtml에 삽입 할 스크립트 전달 주세요.","","",""]
[null,"a2oiw5-kOEaJLqcA829YLskADWFH",null,null,"배송비 금액 오류(4만이상 인데 배송비 발생)",null,null,null,"CS개선","완료됨","중간","김 지철","정 지혜","2021.09.07.","","","false","2021.09.07.","김 지철","","","",""]
[null,"8PWyqIKxsEyYMsEPAmGCgskADAO8",null,null,"배송비 금액 오류(자사 4만 이하인데 배송비 발생하지 않음)",null,null,null,"CS개선","완료됨","중간","김 지철","이선미","2021.09.07.","","","false","2021.09.07.","전 석훈","","","",""]
[null,"PGsXTapwXkK8Mc1JFFvKcckAChxE",null,null,"SCM 주문 다운로드 시 업체상품코드 컬럼 추가",null,null,null,"CS개선","완료됨","중간","전 석훈","정 지혜","2021.09.02.","","","false","2021.09.06.","전 석훈","","","",""]
[null,"5BZL4iwtG0iVq6YnNhHT5skAJINn",null,null,"19873193 주문 - 제휴몰인입 주문/ 배송중인데, 현재 계속 배송준비중(송장등록1일완료)",null,null,null,"CS개선","완료됨","중간","김 지철","정 지혜","2021.09.03.","","","false","2021.09.06.","김 지철","","","",""]
[null,"r24Bdtn3vUi_wojaGoYuMckABasL",null,null,"주문서쿠폰 에러",null,null,null,"CS개선","완료됨","긴급","","정 지혜","2021.09.03.","","","false","2021.09.03.","정 지혜","","","",""]
[null,"MdwugZNpzEe_tbfKzdFrCskAH-2v",null,null,"취소되지 않는 오류 발생 배송준비중 상태에서 송장 등록되어 있으나 물류에서 취소가능하다는 답변 확인후 취소시 오류 발생 주문번호 :  19874778  (",null,null,null,"CS개선","완료됨","중간","김 지철","정 지혜","2021.09.03.","","","false","2021.09.03.","정 지혜","","","",""]
[null,"HGSugOOiEEmtTOXVyv9vockAHVVI",null,null,"19868745 교환회수건 회수 택배사 전송이 안된듯 한데 확인 ",null,null,null,"CS개선","완료됨","중요","문 달호","정 지혜","2021.09.02.","","","false","2021.09.03.","문 달호","wms  as-is 데이터 문제, 조치완료,  cj쪽 회수data  전송완료  09-03 11:00","","",""]
[null,"Jzi02MH4LU-FWws3-MMvV8kAELJP",null,null,"\"9/1 웹에서 반품 접수시 회수 요청하였으나, CJ택배 프로그램에 회수여부 확인안됨 주문번호 : 19871252 \"",null,null,null,"CS개선","완료됨","중간","문 달호","정 지혜","2021.09.03.","","","false","2021.09.03.","문 달호","처리완료","","",""]
[null,"0FdM1QnlXkuQrjlnDi-zT8kAGQMk",null,null,"네이버페이 부분 취소시 금액 상이하게 표기됨 ",null,null,null,"CS개선","완료됨","중간","김 지철","정 지혜","2021.09.03.","","","false","2021.09.03.","김 지철","추가 정보 필요","","",""]
[null,"BQgS3EUe2E6I2Bdv3yKWOckAPQEs",null,null,"사은품 입고데이터 처리",null,null,null,"CS개선","완료됨","중간","문 달호","정 지혜","2021.09.02.","","","false","2021.09.03.","정 지혜","일부 잔여분만 남음","","",""]
[null,"3sEs6oAhnUyrEAGRtyIYGskAAcGx",{"$f":"$A$1&B120","v":"순번3sEs6oAhnUyrEAGRtyIYGskAAcGx"},"BOS > 브랜드검색팝업","[MD개선] 공통 > 브랜드목록 검색 팝업 > 업체조건 추가",null,null,null,"MD개선","시작되지 않음","중간","","박 중재","2021.09.09.","","","false","","","","","",""]
[null,"EpvnRTHofUCJFzdauD6JOMkAD6TE","순번EpvnRTHofUCJFzdauD6JOMkAD6TE","BOS > 브랜드검색팝업\nBOS > 업체검색팝업","[MD개선] 공통 검색 > 브랜드, 업체 1개만 검색시, 이름으로 표시 (현재는 코드로 표시되서 보기 불편함)",null,null,null,"MD개선","시작되지 않음","중간","","박 중재","2021.09.09.","","","false","","","","","",""]
[null,"ZYcZR3P-WkqYJlZZxUIOoMkAINkk","순번ZYcZR3P-WkqYJlZZxUIOoMkAINkk","BOS > 사이즈별재고현황","[MD개선] 상품 > 재고관리 > 사이즈별 재고현황 : 상품명에 팝업링크 걸어줄것",null,null,null,"MD개선","시작되지 않음","중간","","박 중재","2021.09.09.","","","false","","","현재 상품코드에 링크 걸려있어 사용하기 불편하고 다른 메뉴와 통일성 없음\n---> 상품명에 링크 거는걸로 수정","","",""]
[null,"HEBKutKxJUGo4t0kf8_jo8kAKR-6","순번HEBKutKxJUGo4t0kf8_jo8kAKR-6","BOS > 사이즈별재고현황","[MD개선] 상품 > 재고관리 > 사이즈별 재고현황 : 리스트에 컬럼추가",null,null,null,"MD개선","시작되지 않음","중간","","박 중재","2021.09.09.","","","false","","","리스트에 사이트 와 품절여부 사이에 SKU MODEL NO. 노출해줄것 (ERP 코드가 없어서 MD가 업무하기 불편함)","","",""]
[null,"qc9pH9zAqEaNVOe06XxVn8kAKmgR","순번qc9pH9zAqEaNVOe06XxVn8kAKmgR","BOS > 상품가격예약관리","[MD개선][상품] 예약가격 진행중 데이터는 종료처리 기능처리",null,null,null,"MD개선","시작되지 않음","중간","","정 지혜","2021.10.07.","","","false","","","현재 러닝되었을때 삭제가 되지 않아\n예약 일을 잘못설정했을때 수정방법이 전혀없음.\n예약 시작 이후에도 삭제 할수 있도록 처리.\n\n--> 로직을 봐서 히스토리 및, 로그는 만들어야 할거같음\n--> 종료 버튼을 만들어야함.","","",""]
[null,"gk2GaWun4kydbr142t3qi8kAMqDk","순번gk2GaWun4kydbr142t3qi8kAMqDk","BOS > 상품가격예약관리","[MD개선] 상품 > 상품관리 > 상품가격예약관리 > 예약등록팝업 : 숫자 입력시 자동 콤마표시 해줄것",null,null,null,"MD개선","시작되지 않음","중간","","박 중재","2021.09.09.","","","false","","","","","",""]
[null,"WN50q5qFt0uA8V63DKaf6ckAOPFT","순번WN50q5qFt0uA8V63DKaf6ckAOPFT","BOS > 상품목록","[MD개선] 상품 > 상품목록 > 상품 승인 상태값변경시 에러값메시지노출",null,null,null,"MD개선","시작되지 않음","중간","","박 중재","2021.09.09.","","","false","","","MD가 상품 승인시,  상품의 필수값이 누락되어 승인등록이 안된 경우 , 처리완료 팝업에 어떤 필수값이 누락되었는지 알려줬으면 함.\n\nEX )  총 2건의 상품이 승인되지 않았습니다. \n         - 상품코드 XXXXX  이미지 누락\n         - 상품코드 XXXXX   상품가격 누락   등등\n\n오류항목이 많은 경우, 팝업에서 어떻게 보여줄지는 검토 필요함","","",""]
[null,"BEc7oybb7Eecl55S2X6hKMkAP9Lt","순번BEc7oybb7Eecl55S2X6hKMkAP9Lt","BOS > 상품목록","[MD개선] 상품 > 상품목록 > 리스트에 \"미리보기\" 버튼 추가",null,null,null,"MD개선","시작되지 않음","중간","","박 중재","2021.09.09.","","","false","","","리스트에서 이미지와 브랜드 사이에 \"미리보기\" 버튼 넣어주세요(","","",""]
[null,"NAd-ds4aUUqDOcc2zdZ5RckAEibI","순번NAd-ds4aUUqDOcc2zdZ5RckAEibI","BOS > 상품목록","[MD개선] 상품목록 > 엑셀전체 다운로드 추가",null,null,null,"MD개선","시작되지 않음","중간","","박 중재","2021.09.09.","","","false","","","상품 > 상품관리 > 상품목록 : 엑셀 전체 다운로드 추가 요청건 \n > 속도이슈로 협의필요한 사항임 > 현재 max 500 개 까지 조회가능합니다. max 조회건수를, 1천건, 또는 2천건으로 늘렸을때 부하 이슈가 발생할까요 ?","","",""]
[null,"g9ai2qql9Ei1iG249IRcVckAGLfE","순번g9ai2qql9Ei1iG249IRcVckAGLfE","BOS > 상품상세","[MD개선][자사상품]상품>등록/수정> 컬러별 이미지 등록 관련 수정",null,null,null,"MD개선","시작되지 않음","중간","","정 지혜","2021.10.13.","","","false","","","상품  컬러 이미지가 컬러가 n개 일때 상품이미지가 특정 색상만 등록되었을 경우\n상품이 저장이나 러닝되지 않음. \n컬러 미사용 항목을 두고, 체크시 해당 컬러 옵션 전체 n처리, 옵션이미지 미등록하여도 등록 처리되도록 개선\n미사용 항목 체크 해제시, 전체 컬러옵션 y처리 옵션이미지 등록여부 구분","","",""]
[null,"ylLmikH66kiOn0Z0JXoNickAKOix","순번ylLmikH66kiOn0Z0JXoNickAKOix","BOS > 상품상세","[MD개선] 상품목록 > 상품상세팝업 : 주요 사항 설명 문구 추가",null,null,null,"MD개선","시작되지 않음","중간","","박 중재","2021.09.09.","","","false","","","상품상세 팝업에 주요한 내용 텍스트 설명 추가 필요함.\n\n설명문구 정리해서 올릴예정 (박중재)","","",""]
[null,"NgGse5oW8EGpDIhcsHrNvskAHTBc","순번NgGse5oW8EGpDIhcsHrNvskAHTBc","BOS > 상품상세","[MD개선] 상품 > 상품목록 > 상품상세 팝업 : 사용자검색어, 검색어 영역 비노출 처리",null,null,null,"MD개선","시작되지 않음","중간","","박 중재","2021.09.09.","","","false","","","(검색엔진을 사용하고 있기 때문에 사용안하는 기능임)","","",""]
[null,"0TJtfApLtEyt3AR6fyeY5ckACVBc","순번0TJtfApLtEyt3AR6fyeY5ckACVBc","BOS > 주문목록","[MD개선] 주문목록에서 주문금액 값 확인필요.",null,null,null,"MD개선","시작되지 않음","중간","","정 지혜","2021.09.23.","","","false","","","요청자 : 한나래 과장\n주문금액은 즉시할인가가 반영된 가격이나 총할인금액은 즉시할인 액이 추가로 표시되어 금액이 이상하게 엉키는 현상이 발생됨 \n주문금액 - 판가 \n총할인 -할인전체합계액\n실판매- 판가 -총할인 의 기준일것이나 주문금액이 즉시할인이 뺀 가격이되어있어 혼동이 있음.","","",""]
[null,"OKK4BehSsUSYIEaKPSErXMkAB4eT","순번OKK4BehSsUSYIEaKPSErXMkAB4eT","신규메뉴 생성","[MD개선][상품] SCM 동영상 관리메뉴 생성",null,null,null,"MD개선","시작되지 않음","중간","","정 지혜","2021.10.15.","","","false","","","","","",""]
[null,"ezHqD8d0mEqmE_pI_-MEL8kAPa4J","순번ezHqD8d0mEqmE_pI_-MEL8kAPa4J","신규메뉴 생성","[MD개선][제휴몰] 재고배분율 설정 관련이슈",null,null,null,"MD개선","시작되지 않음","중간","","정 지혜","2021.10.15.","","","false","","","10/18 미팅 예정","","",""]
[null,"_TxiH8EH00GSB_3HH87kfckAG3IC","순번_TxiH8EH00GSB_3HH87kfckAG3IC","입점SCM > 사이즈별재고현황","[개선][SCM] 사이즈별재고현황 SCM에서 복수 조회기능필요",null,null,null,"MD개선","시작되지 않음","중간","","정 지혜","2021.09.13.","","","false","","","","","",""]
[null,"Q_tmV6dndUyzzRu8OYoTuskAH90V","순번Q_tmV6dndUyzzRu8OYoTuskAH90V","입점SCM > 입점주문목록","[MD개선][SCM주문] 발주서 다운로드 시 업체상품코드 필요",null,null,null,"MD개선","시작되지 않음","중간","","정 지혜","2021.09.28.","","","false","","","SCM 발주서 다운로드 시 업체상품코드 표시 필요","","",""]
[null,"p0sY0Vnm-02IBsFUM-P-X8kAGAsx","순번p0sY0Vnm-02IBsFUM-P-X8kAGAsx","촬영SCM > 상품대량업로드","[MD개선][상품] 대량등록 이미지 > 덮는 형태로 수정",null,null,null,"MD개선","시작되지 않음","중간","","정 지혜","2021.09.17.","","","false","","","","","",""]
[null,"EYjQcyEO8k2Q2g_DN1bWFckAErNL","순번EYjQcyEO8k2Q2g_DN1bWFckAErNL","촬영SCM > 상품상세","[MD개선] 촬영SCM> 상품정보>상품상세기술서 저장버튼 노출",null,null,null,"MD개선","시작되지 않음","중간","","정 지혜","2021.09.28.","","","false","","","상세 팝업 저장에 수정 하도록 처리.\n가격/승인상태 외 나머지는 다 저장해도됨.","","",""]
[null,null,"순번","촬영SCM > 상품입고현황","[MD개선][촬영SCM] 입고현황 메뉴 생성",null,null,null,"MD개선","시작되지 않음","중간",null,"정 지혜",{"$nulls":7},"","",""]
[null,"t3UDY8aJ2kyw8N2F2Mn9QMkAKUvJ",null,null,"LO1518408987 / 2021092316481485 /12495031-4 상기 sku 코드는 품절이나, 품절 이라고 노티가 나오지 않음 왜그런지확인필요",null,null,null,"MD개선","완료됨","중간","조 민혜","정 지혜","2021.09.23.","","","false","2021.10.08.","정 지혜","","","",""]
[null,"QWFOAs06J02K30dMCmGndMkAOkYP",null,null,"상품 이미지 대량업로드시 외부몰용 상품이미지는 정사각형이 아닙니다. 라는 alert 노출",null,null,null,"MD개선","완료됨","중요","조 민혜;정 지혜","정 지혜","2021.09.14.","","","false","2021.10.06.","정 지혜","","","",""]
[null,"Kmvo0XVHAE2yo-mHaJZKQskAHAXz",null,null,"0735570736 / 0734292982 상품 확인 시  12889916-4 F96M-DP961A 판매중지 상품임, 재고를 안보고 현재 몰내 판매상태 보는지 확인, 현재 몰의 판매상태 관계없이 제휴주문은 넘겨야함.",null,null,null,"MD개선","완료됨","중요","조 민혜;정 지혜","정 지혜","2021.09.15.","","","false","2021.10.01.","조 민혜","","","",""]
[null,"RLcYxns_5kmUZw_0_9QprskABpGR",null,null,"ep 실패",null,null,null,"MD개선","완료됨","긴급","","정 지혜","2021.09.28.","","","false","2021.09.28.","정 지혜","ep의 쿠폰이 중복되었을때 두가지에 대한 우선순위판단을 못하는 쿼리때문에 loop돌다가 죽음.","","",""]
[null,"iH6U5vDa6kKEwiSmfZhf5skAE_8W",null,null,"품절취소대상목록 업무설명",null,null,null,"MD개선","완료됨","중간","전 석훈","전 석훈","2021.09.28.","","","false","2021.09.28.","전 석훈","* 품절취소대상목록 --> 업무설명\n\n@ SCM 입점업체 출고확정 처리시 품절취소대상 주문건 결제타입이 무통장입금, 휴대폰건을 \n    취소접수로 등록\n    CS 담당자분이 해당메뉴에서 품절취소접수 대상건을 취소승인 처리(고객아웃바운드)\n\n@ 자사의 자동품절취소대상 주문건 결제타입이 무통장입금, 휴대폰건을 취소접수로 등록\n    CS 담당자분이 해당메뉴에서 품절취소접수 대상건을 취소승인 처리(고객아웃바운드)\n\n@ 자사의 자동품절취소대상 주문건 품절대상으로 등록된건에 한해서 취소완료 처리\n    현재 품절취소 배치가 시간조정 관계로 실행중이 아니여서 실행을 하게되면 위의 건수는 줄어듬","","",""]
[null,"XaS4nnqvtUGZf8wM8PCwsMkAB4I5",null,null,"1:1문의에서 첨부된 이미지가 작게보임, 이미지 2개 첨부되었으나 1개만 보임",null,null,null,"MD개선","완료됨","중간","김 덕규","정 지혜","2021.09.09.","","","false","2021.09.28.","정 지혜","조치됨","","",""]
[null,"oWlQMCfpL0SK0TlyzG8XT8kAOIgy",null,null,"N213TH040P / prd152533001 제휴몰 상품 기술서 제너레이트 시 컬러가 하나 누락된 현상.",null,null,null,"MD개선","완료됨","중요","조 민혜","정 지혜","2021.09.15.","","2021.09.24.","false","2021.09.28.","정 지혜","","","",""]
[null,"9dCbH9L2hUu4-5hvXtvNVMkAD9Nb",null,null,"총알배송 지역 노출오류",null,null,null,"MD개선","완료됨","중간","","정 지혜","2021.09.23.","","","false","2021.09.23.","정 지혜","홈페이지에서 총알 배송가능 지역을 검색시 \n[ 충남 천안시 서북구 두정역길 48 (두정동, 두정역푸르지오아파트) ]\n충남 지역도 총알배송 가능 지역으로 확인이 됨.","","",""]
[null,"rekb3f8Tc0uQRIhtbTJuYMkAB3Ek",null,null,"M214NUN08P 상품  WMS IF SKU애 없다고 나옴",null,null,null,"MD개선","완료됨","중요","문 달호","정 지혜","2021.09.15.","","","false","2021.09.17.","문 달호","WMS DB 조회시 재고 없어도 수행되게 수정  및  SCM 배포완료 09.17","","",""]
[null,"I82vbk9yq0WKXptr0FFaIskAI5D2",null,null,"하프클럽 교환이 상품이 미매핑 누락되는 현상 > 210905446650  [모이몰른]브론디 상하 MPF1BAST23 [가을] - 머스타드/100 [모이몰른]클립모노 후라이스상하 M211NNH08P [봄] - 라임/090 [모이몰른]클립라운 양면상하 M211NNH03P [봄] - L보라/100 [모이몰른]클립로키 자가드상하 M213NNH01P [가을] - 민트/100",null,null,null,"MD개선","완료됨","중간","","정 지혜","2021.09.15.","","","false","2021.09.17.","정 지혜","","","",""]
[null,"VCE6XpqJAEyk1cFNzXICDskAGXAN",null,null,"샵링커 단건 like검색으로 변경요청",null,null,null,"MD개선","완료됨","중간","조 민혜","이선미","2021.09.07.","","","false","2021.09.14.","조 민혜","","","",""]
[null,"xW85H8lqAkaUSA33t9_CFMkANQWn",null,null,"샵링커 주문 중, 재고 없어서 바로 품절로 떨어진 내역을 주문 메모로 찍을 수 있는지 확인바람--> 미생성 상품 번호 / 상품명 / 수량 에 대해서 로그 남는대로 찍어주세요",null,null,null,"MD개선","완료됨","긴급","조 민혜","정 지혜","2021.09.08.","","","false","2021.09.14.","조 민혜","CS에서 해당 내역 찾아서 고객 응대를 엄청 많이 한다고함.\n어떤 주문인지 일수없어 상기 내용해소 필요","","",""]
[null,"uoQcnYMNq0Kuc5Z1b_vZickAJjZW",null,null,"초기 상품 등록시 상품정보 옵션/재고정보 > 노출여부 default = Y  품절여부 N 으로 처리",null,null,null,"MD개선","완료됨","중간","조 민혜;정 지혜","정 지혜","2021.09.10.","","","false","2021.09.14.","조 민혜","","","",""]
[null,"jHxuM5NSyU6M5FoWMFEttMkAF24q",null,null,"제휴주문 운송장 등록 오류의 건",null,null,null,"MD개선","완료됨","중요","","정 지혜","2021.09.09.","","","false","2021.09.13.","정 지혜","19879536 오혜영\n등록된 송장번호 : 339385637483\n발송된 송장번호 : 339385645850 ( 물류 확인건 )\n\n19880183 배정훈\n등록된 송장번호 : 339385639826\n발송된 송장번호 : 339385647600 ( 물류 확인건 )\n\n위 2건 모두 전산에 등록된 운송장번호와.\n실제 물류에서 출고된 운송장 번호가 상이합니다 . \n\n빠르게 확인 부탁드립니다. \n감사합니다.","","",""]
[null,"2huhSwODtkertdFuWp9QAMkAMQI5",null,null,"네이버, 다음 제휴 오류 (쿠폰팝업, 제휴링크유실)",null,null,null,"MD개선","완료됨","긴급","김 덕규","박 중재","2021.09.02.","","","false","2021.09.09.","박 중재","제휴경유 접속시 쿠폰 팝업 안뜸. (상품상세) / 쿠폰번호 21번 22번\n제휴경유 주문서 이동시 제휴링크 없어짐","","",""]
[null,"ah2xXDwAmUuVDBdqndXQHckAMJzd",null,null,"금일 발주이후 샵링커로 운송장 전송시 오류건이 발견되어 전달드립니다.  총 2건의 주문건이 오류로 확인됩니다 . 주문번호  19881854 ( 롯데아이몰 ) / 19881807 (  보리보리 주문건 )",null,null,null,"MD개선","완료됨","중간","조 민혜","정 지혜","2021.09.08.","","","false","2021.09.08.","조 민혜","12시 10분경 해당 두 건 재전송시켰고, \n한 건은 완료된건이이라 실패, 다른 한 건은 성공했습니다. \n\n특정한 메시지의 전송실패인 경우, 오류로 떨궈서 다음번에 재 전송할 수 있도록 소스 보완(09.09 배포예정)","","",""]
[null,"XhLIu3EfQka1ojtsA49enMkADZGj",null,null,"ep 제휴코드를 붙여도 유실되는현상",null,null,null,"MD개선","완료됨","중간","김 덕규","정 지혜","2021.09.02.","","","false","2021.09.06.","전 석훈","","","",""]
[null,"5r-xAAjA40qfy-Geq-LMEskAAs6d",null,null,"제휴 쿠폰이 노출되지 않는현상(팝업오류",null,null,null,"MD개선","완료됨","긴급","","정 지혜","2021.09.02.","","","false","2021.09.06.","전 석훈","","","",""]
[null,"fF1_dhky7kGFKUVkZkSN4skANOXZ",null,null,"wms 전일자 입고데이터 에러",null,null,null,"MD개선","완료됨","긴급","문 달호","정 지혜","2021.09.03.","","","false","2021.09.03.","정 지혜","서보성이사님 확인","","",""]
[null,"sUGWc_90Z0aVcPt0ZX4IFckAEvNW",null,null,"영업망관리 > 샵링커 송장 전송관리 송장 연동안됨",null,null,null,"MD개선","완료됨","중간","","정 지혜","2021.09.03.","","","false","2021.09.03.","조 민혜","","","",""]
[null,"LEtHZ7ZWHEiopI_qad74BckAHA-n",null,null,"제휴몰 주문수집 product id로 인한 오류",null,null,null,"MD개선","완료됨","긴급","조 민혜","정 지혜","2021.09.01.","","","false","2021.09.03.","조 민혜","","","",""]
[null,"OWrU2eC2qUuyVfsfi3AfQskAL-fj",null,null,"제휴몰 주문업로드 - 티몬 이슈 확인",null,null,null,"MD개선","완료됨","긴급","조 민혜","정 지혜","2021.09.01.","","","false","2021.09.03.","조 민혜","","","",""]
[null,"HzX99QPSBUOdLfzQyjV-FckAO4Fj",null,null,"샵링커수집목록 중 소팅 /검색조건 에러 문제(실패에러 관련 목록 조회시 에러)",null,null,null,"MD개선","완료됨","중간","조 민혜","정 지혜","2021.09.02.","","","false","2021.09.03.","조 민혜","","","",""]
[null,"djBbKWOtqkWrPu_UKB0tnckAMP6U",null,null,"템플릿 별 나간 데이터 수 확인- 김덕재 B",null,null,null,"MD개선","완료됨","중간","정 지혜","정 지혜","2021.09.02.","","","false","2021.09.02.","정 지혜","","","",""]
[null,"yJEVwhN4hE2R8bYG7Kbt1MkABYpk",{"$f":"$A$1&B164","v":"순번yJEVwhN4hE2R8bYG7Kbt1MkABYpk"},"Batch","[개선] 발주확정 처리 배치생성",null,null,null,"개선요청건","시작되지 않음","중간","","정 지혜","2021.09.29.","","","false","","","송장등록일 기준 D +2 발주 확정 배치처리","","",""]
[null,"PuJEhYaKcEqiTHyNFxQFBckAO_Ka","순번PuJEhYaKcEqiTHyNFxQFBckAO_Ka","BOS > 배송비정산\nBOS > 상품권정산","[개선][정산]배송비정산/상품권정산 그리드 상단 total값 추가",null,null,null,"개선요청건","시작되지 않음","중간","","정 지혜","2021.10.14.","","","false","","","","","",""]
[null,"U3BaxGnTyEiEKO5hrD_BSskAPpdx","순번U3BaxGnTyEiEKO5hrD_BSskAPpdx","BOS > 상품정산","[개선][정산] 정산 기준 > 상품총액 변경",null,null,null,"개선요청건","시작되지 않음","중간","이선미","정 지혜","2021.10.13.","","","false","","","즉시+상품+주문서+다다익선 까지 할인 내역 차감 하였으나, \nmD와 확인 결과 관계사 정산시 상기와 같이 처리할수 없다고 함\n재무팀/md 팀 합의 결과 md기준으로 수정하기로 최종합의\n\n*수식 변경 정리\n-쿠폰할인금액 : 상품쿠폰사용금액 + 즉시사용쿠폰금액\n-자사/입점쿠폰분담액 : 주문서쿠폰은 반영X\n-실판매가격 : 쿠폰할인금액, 다다익선할인금액만 차감(주문서쿠폰은 반영X)\n-상품총액 : 수량 * 실판매가격\n\n\n--> 다다익선 제외여부 확인중\n--> 첨부는 기존 구축시 최종 결정되었던 내용임","","",""]
[null,"wI7wxrPAGUyrdniD7boHrMkAKw_E","순번wI7wxrPAGUyrdniD7boHrMkAKw_E","BOS > 일일거래내역","[개선][통계] 통계> 일일거래내역 최대 1주일 기준으로 다운로드",null,null,null,"개선요청건","시작되지 않음","중간","","정 지혜","2021.10.12.","","","false","","","","","",""]
[null,"Wx8Be6GdBE2RuoXJdV5rbskAM2o_","순번Wx8Be6GdBE2RuoXJdV5rbskAM2o_","FRONT > app","[개선] IOS앱>상품상세 로딩 걸리는 현상",null,null,null,"개선요청건","시작되지 않음","중간","","정 지혜","2021.10.06.","","","false","","","Safari 에서는 괜찮으나, IOS app 에서만 발생","","",""]
[null,"nFCuMNre8UyLEvmSvhItc8kAAbs1","순번nFCuMNre8UyLEvmSvhItc8kAAbs1","FRONT > 전시","[개선] SBM005 코너의 메인타이틀데이터 <br> 적용되도록 front(배기영본부장님)",null,null,null,"개선요청건","완료됨","중간","조 민혜","정 지혜","2021.09.09.","","2021.10.18.","false","","","","","",""]
[null,"-4D5De3RIkm7v-AHb55VzskAFAgp","순번-4D5De3RIkm7v-AHb55VzskAFAgp",null,"[개선] 교환 출고도 주문 상품 출발 문자가 발송됨",null,null,null,"개선요청건","시작되지 않음","중간","","정 지혜","2021.09.24.","","","false","","","","","",""]
[null,"tZsXSMiwJkKZDeHmOnPO98kAEW-U","순번tZsXSMiwJkKZDeHmOnPO98kAEW-U",null,"[개선] Front 교환 출고 노출 확인",null,null,null,"개선요청건","시작되지 않음","중간","","정 지혜","2021.09.24.","","","false","","","교환 된 상품이 출고될때 주문목록에 노출되는데 이것이 교환 배송상품인지 확인되지 않음","","",""]
[null,"7GolWi5WhUKehmEPqhm8-MkAOLgj","순번7GolWi5WhUKehmEPqhm8-MkAOLgj",null,"[개선] 반품 허들이 무너졌을 경우 정책배송비+반품배송비 편도 비로 처리하고있는 부분 이슈 확인",null,null,null,"개선요청건","시작되지 않음","중간","","정 지혜","2021.09.16.","","","false","","","","","",""]
[null,"4MVYX92OG067_jbKf89wQMkAOJfW","순번4MVYX92OG067_jbKf89wQMkAOJfW",null,"[개선][정산] ERP 매출전송 시 코드 미매핑건에 대한 대응",null,null,null,"개선요청건","시작되지 않음","중간","김 덕규","박 중재","2021.09.14.","","2021.10.15.","true","","","9월 14일 시스템장애 메일로 발송된 내용 (발신인 이재연)\n\nAPI 전송 품번과,  한세드림, 한세MK ERP 품번이 상이한 경우 (주로 컬러코드, 사이즈코드에서 발생)\n전송하지 못하고있어, 아래 2가지 사항에 대한 개선 조치 필요함\n1) 일자별로 미 전송내역을 확인할수 있는 방법 (화면 또는 오류메시지 메일로 자동 전송)\n2)  위 1번처럼 품번이 상이한 상품이 발생하는 경우, 우리쪽 데이터를 매핑할수 있는 방법","","",""]
[null,"cwGEtiaKh0CnVzKYa31D2MkAAZsC","순번cwGEtiaKh0CnVzKYa31D2MkAAZsC",null,"[개선][성능개선] http 호출 제거",null,null,null,"개선요청건","시작되지 않음","낮음","","이선미","2021.09.10.","","","false","","","https --> http로 호출하면 에러가 뜸\n시큐리티, 외부 api 쪽에 http로 통신되는게 남아있음.\nhttps로 변경을 해야함","","",""]
[null,"rons2tp4_UKVGQ2k7P2YU8kAD3Hp",null,null,"[개선][BOS] 상품상세> 옵션정보> 물류 skucode 추가",null,null,null,"개선요청건","완료됨","중간","조 민혜","정 지혜","2021.09.09.","","2021.10.15.","false","2021.10.15.","조 민혜","[개선][BOS] 상품상세> 옵션정보> 물류 skucode 추가","","",""]
[null,"ycEdXcmtXEGKrRK1PY5ZqskANqMA",null,null,"IOS앱마켓 적용",null,null,null,"개선요청건","완료됨","중간","김 덕규","정 지혜","2021.09.01.","","","false","2021.09.13.","조 민혜","","","",""]
[null,"SRaJuNxuWkW-OsrtCi9R4MkAFdhd",null,null,"추천솔루션 이슈",null,null,null,"개선요청건","완료됨","중간","조 민혜;전 석훈","이정환","2021.09.02.","","","false","2021.09.06.","이정환","제니퍼에서 아래와 같은 이슈가 트래킹 되어 확인 요청 드립니다.\n\n호출 URL : www.style24.com/display/recommend/item/list\n\n이슈내용\norg.springframework.web.util.NestedServletException:\n\nRequest processing failed; nested exception is java.lang.IllegalArgumentException:\n\nIllegal character in query at index 86: https://api.eigene.io/rec/s003?size=5&cuid=1252aed4-78dc-46e8-b784-94ac42e86dd4&st=컬리수 트렌치원피스&cps=true&cpt=m004","","",""]
[null,"1AaVkm6Lzka2cfOxeh-NZskAKQf5",null,null,"SCM 업체 상품 목록 다운 컬럼에, 배송송장/택배사 컬럼 추가, 업로드는 해당 파일 업로드로 변경",null,null,null,"개선요청건","완료됨","중간","김 지철","정 지혜","2021.09.02.","","","false","2021.09.06.","김 지철","2021.09.03 배포 완료","","",""]
[null,"ynPtWnbYukGXTe3xQkVUNckAG1zY",null,null,"앱 필수 업데이트 관린 기사이트 조치",null,null,null,"개선요청건","완료됨","중간","이선미","정 지혜","2021.09.01.","","","false","2021.09.03.","이선미","","","",""]
[null,"HwsRH_zPU0qTir67kz5MZ8kAK9Qx",{"$f":"$A$1&B180","v":"순번HwsRH_zPU0qTir67kz5MZ8kAK9Qx"},"BOS > 상품권정산","[결함][정산]상품권정산/사용취소금액 일일거래내역과 상이한 부분 확인",null,null,null,"결함","시작되지 않음","중간","김 덕규","정 지혜","2021.10.14.","","","false","","","","","","","분석","정산개발업무 분석"]
[null,"8OkrlU8XzUCFYs5mfgM6uskAFaYX",{"$f":"$A$1&B181","v":"순번8OkrlU8XzUCFYs5mfgM6uskAFaYX"},"FRONT > 주문서","[결함][FRONT][주문서] 주문서>해외구매대행상품 >통관부호 불러오는 쿼리 딜레이이슈",null,null,null,"결함","시작되지 않음","중간","전 석훈","정 지혜","2021.10.13.","","2021.10.26.","false","","","","","","","완료"]
[null,"XNn3CRe1a0mnbjqb-_llCMkAN5c4",{"$f":"$A$1&B182","v":"순번XNn3CRe1a0mnbjqb-_llCMkAN5c4"},"FRONT > 주문서","[결함][FRONT][주문서][모바일] 주문서>입점상품 구매시 총알배송 노출됨",null,null,null,"결함","시작되지 않음","중간","전 석훈","정 지혜","2021.10.13.","","","false","","","","","","","완료"]
[null,"ysxfJN9eEEuVnVA0I1l2DMkAJ0HJ",{"$f":"$A$1&B183","v":"순번ysxfJN9eEEuVnVA0I1l2DMkAJ0HJ"},"WMS","[결함][WMS]회수지시 중복발생의 건",null,null,null,"결함","시작되지 않음","중간","","정 지혜","2021.10.13.","","","false","","","일전에 회수관련 하여 수정한건이(타택배등. ) 오류로 인하여 계속 회수되는 문제가 있었습니다.\n8~12일 까지 중복으로 회수요청이 되었고 주문건으로는 66건 입니다.\n \n해당건은 금일 보완(USP_WMS_DailyCjglsDeliveryInfo_Update_2021)하였으며 금일 회수요청부터는 중복 회수가 되지 않을것 입니다.\n금일 회수요청된건은 내일 한번더 회수대상에 포함되는지 확인해보도록 하겠습니다.","","","","분석","WMS 회수 관련 업무 흐름 분석 후 일정 기입"]
[null,"rpJ5anzrgE6wFLw0aDAB1ckAKHbs",null,null,"[결함][제휴몰] 배송비 수집관련 에러 조치(패플/롯데몰)",null,null,null,"결함","완료됨","중간","조 민혜","정 지혜","2021.10.12.","","2021.10.15.","false","2021.10.15.","정 지혜","","","",""]
[null,"QEpdFn6pyEiVpsmRsp-43ckANIDl",null,null,"[결함][제휴몰] 제휴몰 주문수집 배치/수집일부누락건",null,null,null,"결함","완료됨","중요","조 민혜","정 지혜","2021.09.28.","","2021.10.15.","false","2021.10.15.","조 민혜","현재 모니터링중- 배치","","",""]
[null,"uDm-koQesU6r7BlUbPPzSMkAO7sC",{"$f":"$A$1&B186","v":"순번uDm-koQesU6r7BlUbPPzSMkAO7sC"},null,"[결함][제휴몰]제휴상품기술서, 모델컷데이터 순서잘못됨/라벨컷가이드에서깨짐",null,null,null,"결함","시작되지 않음","중간","조 민혜","정 지혜","2021.10.14.","","","false","","","T214PT400P\n- 샵링커에서 확인 시 모델컷이 뒷쪽으로 노출됨.\n- 라벨 이미지가 크게 노출됨.(CSS수정필요건)\n- 기술서 내에 https://도메인이 제외되어 이미지가 html로 노출시 정상적으로 안나오는현상","","","","완료"]
[null,"70J6xhDT1UCpWx5fG9isN8kANWmU","순번70J6xhDT1UCpWx5fG9isN8kANWmU",null,"[결함][클레임] 무통장취소 환불계좌확인시 계좌번호가 유효성 체크비정상",null,null,null,"결함","시작되지 않음","중간","김 지철","정 지혜","2021.10.14.","","","false","","","안녕하세요 고객만족팀 김은주입니다.\n\n주문번호 : 19899587       \n고객명 : 임현성\n\n해당 주문건 무통장 환불 오류건으로\n처리가 지연되고 있어 금일 수기로 등록후 현금환불 예정건입니다 .\n\n현재 경영지원팀으로 현금환불 리스트를 전달하였습니다. \n\n전달시 등록된 계좌번호 ( 우리은행 – 100243416801 – 임현성 ) 환불계좌 확인시 \n계좌번화가 확인되지 않는 계좌라고 합니다. \n\n \n\n환불 계좌 등록시 유효성 검사를 진행한다고 하였으냐, \n이 부분이 정상으로 되지 않는듯 하여 재문의드립니다. \n\n빠르게 확인 부탁드립니다. \n감사합니다.","","","","완료"]
[null,"xKjv4drfKUaHFKZK5etDQ8kADL-u","순번xKjv4drfKUaHFKZK5etDQ8kADL-u",null,"[결함][클레임] 무통장입금 부분취소 안됨(9/15주문)",null,null,null,"결함","시작되지 않음","중간","","정 지혜","2021.10.14.","","","false","","","주문번호 : 19892008  옥주희 \n주문번호 : 19899587  임현성\n주문번호 : 19907709  오나현\n\n9월 15일 주문으로 경과일자 이슈로 안되는건지 확인 필요함\npg 점프후 처리 하면 되는지.\n\n-------------------------------------------------------------------------------------------------\n주문번호 : 19892008  옥주희 ---> KCP 관리자 취소금액 확인안됨\n주문번호 : 19899587  임현성 ---> 환불계좌가 AS-IS 계좌로 2013년 등록된 내용임\n주문번호 : 19907709  오나현 ---> KCP 관리자 취소금액 확인안됨\n-------------------------------------------------------------------------------------------------","","","","완료"]
[null,"aoH0EVyQ6UuB2yYWUK59MskADBbF","순번aoH0EVyQ6UuB2yYWUK59MskADBbF",null,"[결함][클레임] 교환주문 물류확인안됨",null,null,null,"결함","시작되지 않음","중간","전 석훈","정 지혜","2021.10.14.","","2021.10.14.","true","","","주문번호 19901816\n고객명 : 지수희\n \n==> 교환 주문건 뮬류 미확인건  ( 불량 교환건 )\n해당건 물류에서 교환이력이 확인되지 않아 메일로 문의드린건이나, \n고객 환불로 요청한다고 합니다. ( 이미 상품은 입고된 상태 )","","","","완료"]
[null,"gDi0M7IxGEGOp6lqfrcAzckANGw3","순번gDi0M7IxGEGOp6lqfrcAzckANGw3",null,"[결함][프로모션] 카드 프로모션 등록 후 수정시, 세팅기간이 리셋되는 현상",null,null,null,"결함","시작되지 않음","중간","김 지철","정 지혜","2021.10.14.","","2021.10.27.","false","","","","","","","완료"]
[null,"l0-g5tZVikKjUjW-RT7ma8kAAaqW","순번l0-g5tZVikKjUjW-RT7ma8kAAaqW",null,"[결함][구매확정] 구매확정된 주문에 대한 데이터가 차감된현상",null,null,null,"결함","시작되지 않음","중간","전 석훈","정 지혜","2021.10.13.","","2021.10.29.","false","","","L0veve / 19885243\n포인트를 사용하지 않고, 구매확정된 주문데이터이나\n차감이력이 발견되어 문의함, \n10/1 21:19:37에 포인트 사용 내역이 있음.(하지만 해당 주문이력은 반품/교환없이 구매확정된건)\n9/10 이후에 주문이력이 없는상태임\n구매확정된 데이터이고 이부분에 대한 반품/교환 발생되지 않았음","","","","완료","현재 오픈 후 초기 이슈 데이터로 현재 까지 데이터 모니터 결과 \n이상없는것으로 확인되고 있습니다."]
[null,"xC9zgc6wGkqdI3CTMUf3GckACs9T","순번xC9zgc6wGkqdI3CTMUf3GckACs9T",null,"[결함][클레임] Front 출고전 취소시 배송비 차감환불되는 현상",null,null,null,"결함","시작되지 않음","중간","김 지철","정 지혜","2021.10.12.","","2021.10.22.","false","","","","","","","완료"]
[null,"NB-0hR4t2UCi53oJXScwn8kAI-Tw","순번NB-0hR4t2UCi53oJXScwn8kAI-Tw",null,"[결함][전시] 몰 메인 스위퍼 영역에 상품이 1개 있을 경우 3개로 중복되어노출",null,null,null,"결함","시작되지 않음","중간","조 민혜","이선미","2021.10.12.","","2021.10.21.","false","","","(DB쿼리시 1개만 조회됨 )","","","","완료"]
[null,"ivGyu3NSXEK6pqM89uJlwskAPAgt","순번ivGyu3NSXEK6pqM89uJlwskAPAgt",null,"[결함&개선][SCM] 발주확정 > 결품 품절 처리 시, 부분취소 불가결제수단 에러",null,null,null,"결함","시작되지 않음","중간","김 지철","정 지혜","2021.10.12.","","","false","","","결품 관련하여 데이터 저장 처리 하고, 나머지 현금환불이력 목록으로 이관되도록 처리되어야 함\n현재 해외카드 이력은 처리안됨","","","","검토","현재도 기능이 필요한지에 대한 문의 (CS팀 업무협의)"]
[null,"N8GGoIxSeUukcXKUdCCGwskAJlsG","순번N8GGoIxSeUukcXKUdCCGwskAJlsG",null,"[결함][클레임] 계좌환불완료 이후 계좌번호 등록문자가 나가는 현상",null,null,null,"결함","시작되지 않음","중간","문 달호","정 지혜","2021.10.12.","","2021.10.26.","false","","","환불이 완료되었는데, 고객에게 무통장입금 등일 때 계좌번호 등록하라는 알림이 나감.","","","","3d"]
[null,"lgpR1nyyOEacFTYD8j1VockAE6T_","순번lgpR1nyyOEacFTYD8j1VockAE6T_",null,"[결함][BOS][상품] 상품이미지가 일부 옵션만 없을경우 저장이 안되는현상",null,null,null,"결함","시작되지 않음","중간","조 민혜","정 지혜","2021.10.12.","","2021.10.21.","false","","","V214PJ363P \n- 대표색상 변경후, 노출여부 다 N 처리 하여도 상품이미지가 없어 저장안되는 현상","","","","검토","필수값 관련 된 이슈로 지라 댓글 내용 참조"]
[null,"C3QpNU_NV0OcKxZM5gC9jckAHziN","순번C3QpNU_NV0OcKxZM5gC9jckAHziN",null,"[결함][배치] 공휴일에 회수배치가 실행되어 ERP 매출데이터에 공휴일 회수완료가 넘어감",null,null,null,"결함","시작되지 않음","중간","전 석훈","정 지혜","2021.10.12.","","2021.10.28.","false","","","19894801\n19904925\n19904925\n19911248\n19910582\n19902652\n19902652\n19909086\n19910859\n19908057\n\n--> 10/8 환입 완료 된 데이터임, 10/11 공휴일이나 한세드림 데이터에 11일 00시 환입 데이터로 전송\n--> 상기 주문들은 8일~9일에 회수완료된 교환건이며, 관련 데이터에 대한 처리는 공휴일 기준으로 처리가 될것인데 데이터가 만들어졌음.","","","","분석"]
[null,"C_HQR1T-202p7Dl34WBWP8kAHVKZ",null,null,"[결함][상품] 단품 파샬입고(옵션만추가) 데이터 추가되지않는현상",null,null,null,"결함","완료됨","중요","조 민혜","정 지혜","2021.09.13.","","2021.10.21.","false","2021.10.15.","조 민혜","B215DS160P_ KD 컬러가 입고되었으나 처리가안됨\n◦          A214SW102P PI 옵션없음\n           ◦          V214PT322P NA 옵션없음\n           ◦          N213SW305P BK 옵션없음\nN213SW305P GR 옵션없음\n\n해당 상품추가","","",""]
[null,"_KXqhnpCnUCE-Erwvzoo_skAJr65",{"$f":"$A$1&B199","v":"순번_KXqhnpCnUCE-Erwvzoo_skAJr65"},null,"[결함][프로모션] 다다익선 등록오류",null,null,null,"결함","시작되지 않음","긴급","전 석훈","전 석훈","2021.10.08.","","2021.11.12.","false","","","BOS 화면에서 다다익선 등록 시 오류 발생\n-> 기준상품 관련 개발 오류로 확인됨\n-> 개발요건 다시 확인 후 로직 수정바람","","","","5d"]
[null,"fQ0SMZDL-EeAGvcxV2-g5skANBLX","순번fQ0SMZDL-EeAGvcxV2-g5skANBLX",null,"[결함][배치] 배치수동/배치자동 로그가 정상적으로 안남는것",null,null,null,"결함","시작되지 않음","중간","문 달호","정 지혜","2021.10.08.","","2021.10.22.","false","","","","","","","5d","가능하지만 개발의 구조적인 부분을 수정 해야함"]
[null,"w_-0pOgh3ku046s7LXPgn8kANvA0","순번w_-0pOgh3ku046s7LXPgn8kANvA0",null,"[결함][주문]선물주문 배송지미입력건 주문취소/결품취소 로직확인",null,null,null,"결함","시작되지 않음","중간","전 석훈","정 지혜","2021.10.06.","","2021.11.03.","false","","","19912695 _ 주문 선물 배송지 미입력했으나 3일 이후 취소되지 않았고\n금일 결품 취소로 처리됨.(6일경과)","","","","1d","현재 완료 처리된것으로 알고 있고 모니터 중 입니다."]
[null,"b9U6nbap0kqgb-ZbWOrAF8kAOXCg","순번b9U6nbap0kqgb-ZbWOrAF8kAOXCg",null,"[결함][BOS>회원] CI 중복계정 회원상세 >주문목록 오류",null,null,null,"결함","시작되지 않음","중간","전 석훈","정 지혜","2021.10.06.","","2021.10.21.","false","","","본계정이 있고 naver 계정을 추가로 연동했다가 끊은 계정임\n그 이후 주문목록 조회안되는현상.\nid : santabeef","","","","분석","회원업무이슈"]
[null,"IHhi0zDPEUaPf_6eZeTQSskALdla","순번IHhi0zDPEUaPf_6eZeTQSskALdla",null,"[결함][SCM상품] 입점상품이 자사-제조 로 등록됨(E041700006294)",null,null,null,"결함","시작되지 않음","중간","조 민혜","정 지혜","2021.09.30.","","2021.11.05.","false","","","상품코드 : E041700006294\n- 추가로 있는 상품 검증 필요\n- 로직적으로 오류가 안나는지, 아직 들어갈수 있는 여지가 있는지 확인 필요.\n\n> 상품 대량상품등록\n> 상품 대량상품수정\n> 상품 단품등록\n> 상품 상세수정","","","","3d"]
[null,"4hZjXwTtoEKQpAHKXRfyH8kACVmv","순번4hZjXwTtoEKQpAHKXRfyH8kACVmv",null,"[결함] 사은품 프로모션 목록의 상태값이 잘못 노출되는 현상",null,null,null,"결함","시작되지 않음","중간","문 달호","정 지혜","2021.09.29.","","2021.10.18.","false","","","골프 구매금액별 사은품 증정행사\n- 상세 에서는 상태가 종료이나, 목록에서는 진행이라고 표시됨","","","","완료"]
[null,"1ixm5ny2hUyLpFK0e775RMkAGMdz","순번1ixm5ny2hUyLpFK0e775RMkAGMdz",null,"[결함][BOS>사용자관리] 업체별 조회 안됨",null,null,null,"결함","시작되지 않음","중간","문 달호","정 지혜","2021.09.29.","","2021.10.19.","false","","","> Bos> 사용자관리 의 입점업체는 벤더로 기준을 변경하여 조회 필요","","","","완료"]
[null,"2RYt9Ko1iU-gLXnNWYJaOskABwao","순번2RYt9Ko1iU-gLXnNWYJaOskABwao",null,"[결함][FRONT] 상품> 배송교환안내 노출안되는에러",null,null,null,"결함","시작되지 않음","중요","조 민혜","정 지혜","2021.09.29.","","2021.10.18.","false","","","https://www.style24.com/goods/detail/form?goodsCd=E259800008137&colorCd=&ithrCd=&contentsLoc=SCM001\n- 배송비 정책 등 정상등록된걸로 확인됨\n- 반품교환업체/배송비/주소 안나오는 현상\n- 총알배송은 해당없음에도 안내가 노출되는 현상","","","","1d"]
[null,"TEhE8HD4uUG-r5nSdAWql8kAI68-","순번TEhE8HD4uUG-r5nSdAWql8kAI68-",null,"[결함][상품상세] FRONT 상품리뷰 페이지가 죽는 현상",null,null,null,"결함","진행 중","중간","김 지철","정 지혜","2021.09.28.","","2021.10.20.","false","","","해당 상품 페이지 > 리뷰 클릭 시 화면이 노출되다가 \"오류가 발생하였습니다\" alert이 노출됨\nNPS13QSW90\n-. 이모티콘값, 이모지값이 에러가 났음.\n- 이모지 처리 라이브러리를 추가했음.","","","","완료"]
[null,"nXu1NDCQTUGvvucdv5HsRckAGXuh","순번nXu1NDCQTUGvvucdv5HsRckAGXuh",null,"[결함][Front] 마이페이지메인/퀵바/마이페이지>쿠폰 수량상이",null,null,null,"결함","진행 중","중간","김 지철","정 지혜","2021.09.24.","","2021.10.20.","false","","","[결함][Front] 마이페이지메인/퀵바/마이페이지>쿠폰 수량상이\n마이페이지 메인에 노출되는 쿠폰수량과, pc의 z퀵바에 표시되는 쿠폰수량,마이페이지 > 쿠폰에서 표시되는 수량이 각각 다 상이함.","","","","완료"]
[null,"Az19DbeyKU2a5ILbAskvxMkAK_if","순번Az19DbeyKU2a5ILbAskvxMkAK_if",null,"[결함][전시][퍼블리싱] front > 기획전 콘텐츠정렬이슈",null,null,null,"결함","진행 중","중간","조 민혜","정 지혜","2021.09.24.","","2021.10.21.","false","","","작은 모니터에서 이슈된건으로 정렬이 좌종렬로 쏠림","","","","완료"]
[null,"0sltf0DJEU6e3zKn8bO5kMkAGFtH","순번0sltf0DJEU6e3zKn8bO5kMkAGFtH",null,"[결함][BOS공통] 특수문자 치환 에러",null,null,null,"결함","시작되지 않음","중간","조 민혜","박 중재","2021.09.17.","","2021.10.21.","false","","","브랜드영문명 :  Lika&  입니다.   & 뒤에 amp;amp; 붙는 현상 수정부탁드립니다. \n주로 브랜드명 조회 팝업과,  조회리스트의 브랜드명 컬럼에서 나타납니다. \n\n\n영업관리 > 브랜드관리\n상품 > 상품목록 (공통조회화면)\n전시 > 메인전시관리 > 브랜드메인 > 브랜드 조회 팝업\n정산 > 상품정산 > 브랜드조회 팝업\n정산 > 상품정산 > 조회 리스트 결과값의 브랜드 컬럼\n통계 > 일일거래내역 > 조회 리스트 결과값의 브랜드 컬럼\n회원마케팅 > 쿠폰 > 쿠폰등록 팝업 > 적용대상탭 > 브랜드명","","","","완료"]
[null,"MAno6DLBi0aBAGTQyRqZzckAKzbM","순번MAno6DLBi0aBAGTQyRqZzckAKzbM",null,"[결함][주문] 마이페이지>주문> 상품권 현금영수증 등록 처리",null,null,null,"결함","시작되지 않음","긴급","문 달호","정 지혜","2021.09.16.","","2021.10.15.","true","","","안녕하세요 고객만족팀 김은주입니다.\n\n고객이 상품권으로 상품을 구매후  상품권현금영수증 신청시\n아래와 같은 오류메세지가 확인됩니다.\n\n확인 부탁드립니다.\n감사합니다.\n\n주문번호 19881265  ( 백경수 )","","","","완료"]
[null,"A3PPkJu_CkuWBXZnXkcUXckAKvEn","순번A3PPkJu_CkuWBXZnXkcUXckAKvEn",null,"[결함&개선][로직개선] 로그인/휴면계정 해제 오류",null,null,null,"결함","시작되지 않음","중간","문 달호","정 지혜","2021.09.14.","","","false","","","CASE1 CI정보가  (Y != A)  등록된 본인 인증 정보와 다르다.\n   > 인증정보.CI != 회원정보.CI\n   >  등록된 본인 인증 정보와 다르다. CS로 문의 하세요.\nCASE2 CI정보가  없는데 (Y != A AND A=X) 등록된 본인 인증 정보와 다르다.\n   > 인증정보.CI = 다른회원정보.CI\n   > 회원정보.CI 값이 NULL\n   > 이미가입 이력이 있습니다.\n   > CS로 문의 하세요.\nCASE3 CI정보가  없는데 (A = NULL, B = NULL) TB_CUSTOMER UPDATE\n   > 인증정보.CI 값이 있는데 회원테이블, 휴면테이블 정보에도 없다.\n   > 회원정보 UPDATE 후 휴면해제\n\n\n휴대폰 번호가 겹치고, front 마이페이지에서 휴대폰 번호를 변경할때\n본인 CI와 맞지않는 값으로 변경하여도 업데이트가 되어버림.\n그래서 중복 계정이 생겼을때에 발생하는 값임\n\n--> santabeef/ santabeef0\n\n\n안녕하세요 기획운영팀 정지혜입니다.\n\n \n------------------------ 정지혜 과장 메일 전달 받음휴면회원 이 로그인을 하여 휴면을 해지 하려 할 때 -----\n내용 전달 드립니다.\n\n1.     CI가 있는 경우\na.     요청한 CI = 저장 된 CI 값\nè  휴면 해제 화면 이동\n/ux/mo/mb_idInquiry_7.html\nb.     요청한 CI ≠ 저장 된 CI 값\nè  “본인인증 결과가 다릅니다. 다시한번 확인해주세요” alert\nè  Alert 후 로그인 페이지 이동\n\n2.     CI가 Null 일 경우\na.     요청한 CI = 회원 정보 내 Null 일때(휴면/활동회원 Table 전체 중 같은 CI가 없을 때)\nè  휴면해제 화면 이동 (/ux/mo/mb_idInquiry_7.html)\nè  Alert 후 CI Update\nb.     요청한 CI = 회원 정보 내 존재 할 때 (휴면/활동회원 Table 전체 중 같은 CI가 있을 때)\nè  이미 가입된 아이디가 있습니다 화면 노출\n/ux/mo/mb_join_3.html","","","","분석","회원업무이슈"]
[null,"8ONTB29HpE2_LeT0cS5PvckAAD3w","순번8ONTB29HpE2_LeT0cS5PvckAAD3w",null,"[결함][배치] 상품 요약 배치(cron.goods.summary.create) 에러",null,null,null,"결함","진행 중","중간","조 민혜","정 지혜","2021.09.13.","","2021.10.15.","true","","","cron.goods.summary.create\n-->상품요약정보 배치가 도는 건임.\ndata의 Table Drop 이 되지 않는 건","","","","불가","DB 이슈"]
[null,"wEd1_azIB0SWJBPZHaQBXMkAN3CX","순번wEd1_azIB0SWJBPZHaQBXMkAN3CX",null,"[결함][아키텍쳐] 상품평이미지 Linux폴더로 이미지 임시저장됨",null,null,null,"결함","시작되지 않음","중요","김 덕규","이정환","2021.09.09.","","","false","","",">>>> Root에 저장되고있음\n>>>> 톰캣루트권한으로 업데이트됨.\n\n상품평 이미지 등록 시 cdn 등록 전 linux 의 / 폴더로 임시 저장 되고 있습니다.\n해당 경로로의 저장은 수정이 필요합니다. (보안 및 권한 이슈 발생)","","","","완료"]
[null,"JY0yUiBCW0qRvAzUvr-JyMkANzJv","순번JY0yUiBCW0qRvAzUvr-JyMkANzJv",null,"[결함][제휴몰] GSSHOP 수집 3136184920_2559023729 주문 팩번호/쇼핑몰주문번호 동일하나 주문번호가 따로 떨어지는현상",null,null,null,"결함","시작되지 않음","중간","","정 지혜","2021.10.15.","","","false","","","- 샵링커 수집 관련 된 견해차로 확인됨","","","","완료"]
[null,"GXEOEDPcjEG9mT5VlIPObMkAIDDa","순번GXEOEDPcjEG9mT5VlIPObMkAIDDa",null,"[결함][배치][제휴몰] 샵링커 주문 수집이 \"대기\" 상태로 머물러있는현상 11시 4분 접수주문",null,null,null,"결함","시작되지 않음","중간","","정 지혜","2021.10.15.","","","false","","","","","","","완료"]
[null,"tcvzYhlkR02iE-zjY8Qg-8kABHtB","순번tcvzYhlkR02iE-zjY8Qg-8kABHtB",null,"[결함][WMS/BOS] I/F에는 데이터가 있으나, 몰 WMS간 데이터 차이 나는 부분",null,null,null,"결함","시작되지 않음","중간","","정 지혜","2021.10.15.","","","false","","","","","","","분석","WMS 관련 이슈 서보성 이사님과 협의 가 필요함"]
[null,"Yx0LRSj1zkmj8WRBOf6QjskAD64B","순번Yx0LRSj1zkmj8WRBOf6QjskAD64B",null,"[결함][주문] 주문생성오류",null,null,null,"결함","시작되지 않음","중간","","정 지혜","2021.10.18.","","","false","","","안녕하세요 고객만족팀 김은주입니다.\n\n상품을 결제까지 완료 하였으나.\n주문건이 생성되지 않는 오류가 최근들어 발생이 되고 있어 전달 드립니다. \n\n아이디 : ya8577\n고객명 : 김영아 \n정상 주문건 : 19936261\n\n총 5번의 결제를 하였으나 이중 1건만 정상으로 주문건이 생성이 되고,\n나머지 4건은 결제 오류로 주문건이 생성되지 않아 요청드립니다. \n\n나머지 4건의 경우 KCP를 통해 모두 취소 진행하였습니다.","","","","분석","현재 주문생성 관련 해서 실패시 임시 테이블에 이력 쌓는 \n작업을 진행중 입니다."]
[null,"7OSOD3Q8jESd1UN0FjBaF8kAMrf8",null,null,"[결함][제휴몰]샵링커 전송 기술서 이미지가 사이즈가 늘어나 보이는현상",null,null,null,"결함","완료됨","중간","조 민혜","정 지혜","2021.10.14.","","2021.11.05.","false","2021.10.14.","조 민혜","FW: 제휴몰 상품 등록 시 상품기술서 관련 문의 미팅의 건(4/29 15:00)\n--> 이재연과장 메일 참조","","",""]
[null,"BO2wMOvSgki-cdWxkpF8y8kAAmqJ",null,null,"[결함][제휴몰] 품목 매핑 일부 누락, 추가필요",null,null,null,"결함","완료됨","중간","조 민혜","정 지혜","2021.10.12.","","2021.10.15.","false","2021.10.14.","조 민혜","","","",""]
[null,"mnlT7sNLoESu18UaXqcB_MkAAoZw",null,null,"[결함][배치][무통장입금] 무통장입금만료 배치가 실행안됨",null,null,null,"결함","완료됨","중간","전 석훈","정 지혜","2021.10.13.","","","false","2021.10.14.","정 지혜","무통장 입금 > 미입금 만료 주문에 대한 자동취소처리 되지 않음\n\n주문번호 : 19919855 \n고객명 : 김선희 \n\ncron.order.deposit.deadline.expire","","",""]
[null,"ycgeMen8n0qMR4OH-aKSP8kANuls",null,null,"[결함][배치] 출고처지정배치(cron.delivery.loc.assign) IsBeautyDelivery컬럼 이슈",null,null,null,"결함","완료됨","중요","전 석훈;김 지철","정 지혜","2021.10.07.","","","false","2021.10.13.","김 지철","안녕하세요. 서보성 입니다.\n \n문의하신 주문건은 몰에서 인터페이스 테이블에 들어갈때 IsBeautyDelivery[화장품합배송]으로 처리되어 들어간 것으로 보입니다.\n아래 문의건외에도 9월1일 이후 주문건중 2건이 그렇게 들어간것으로 확인 됩니다.\n \n------------------------------------------------- \n주문번호    상태  주문일\n-------------------------------------------------\n19908063\t취소 2021-09-28 18:05:50.000\n19918078\t정상 2021-10-07 12:38:49.000\n \n취소건을 제외하고 정상건에 대해서 인터페이스 데이터를 수정하여 출고 되도록 처리하였습니다.\n몰에서 인터페이스로 넘기는 부분 확인 부탁드릴께요.\n \n감사합니다.\n\ncron.delivery.loc.assign 배치의 이슈\n\n IsBeautyDelivery = 1로 넘어가는 케이스가 있는지,\n몰에서 현재 넘겨주고있어 문제가 되고있음.\n\n--> 추가적으로 이슈 발생되어있음. \nIsBeautyDelivery는 화장품합배송으로 1로 넘어가면안됨\n이 부분 값이 아예 안넘겨주면 안되며, 0/null로 넘겨줘야함.","","",""]
[null,"f6U6bugXeEOMKLeJ6BvYq8kAJIOT",null,null,"[결함][WMS]출고이력 누락( 19924613 )",null,null,null,"결함","완료됨","중간","","정 지혜","2021.10.13.","","","false","2021.10.13.","정 지혜","주문번호 : 19924613 \n고객명 : 김초롱\n\n57919278\n57919279\n\n두개의 상세 번호 이력이 제외됨","","",""]
[null,"niLAf6xy00qUOpqbRXEAjMkAFcbk",null,null,"[결함][Front] 주문서> 쿠폰적용안됨",null,null,null,"결함","완료됨","중간","전 석훈","정 지혜","2021.10.13.","","","false","2021.10.13.","정 지혜","주문 시 \"쿠폰 유효성 에러 발생","","",""]
[null,"Ix7DTfGJVE6lqmm-CoqehMkADLdM",null,null,"[결함][front] 프론트 전시가가 1원씩 빠져보임",null,null,null,"결함","완료됨","중간","","정 지혜","2021.10.12.","","","false","2021.10.13.","정 지혜","https://www.style24.com/planning/detail/form?planSq=1&brandGroupNo=950\nhttps://www.style24.com/display/brand/search/goods/list/form?keyword=%EB%A1%B1%EA%B5%AC%EC%8A%A4&brandGroupNo=950","","",""]
[null,"WxaQxi7rUk6FMbyzifwj7skAH0jy",null,null,"[결함][FRONT] 상품상세 > PC 쿠폰다운로드 버튼 위치 틀어짐",null,null,null,"결함","완료됨","중간","조 민혜","정 지혜","2021.10.12.","","","false","2021.10.13.","정 지혜","아래보시면 layout.css 2617번째줄에\n.pd_detail .area_desc .desc_wrap .descript_box .desc_info .price_blk .btn_coupon >> 이부분에서\nbottom:32px;을 bottom:0px;로 수정하시면 됩니다.\n \n  \n \n감사합니다.\n이세연 드림","","",""]
[null,"i7MFmXX64k-4ahndQT3D4MkAOt9O",null,null,"[결함][제휴몰] 제휴몰 상품 기술서 > 구 상품일때 더미이미지로 전송",null,null,null,"결함","완료됨","중간","조 민혜","정 지혜","2021.10.12.","","","false","2021.10.12.","정 지혜","http://www.boribori.co.kr/product/300598522\n더미 이미지로 전송됨\n--> https://www.style24.com/goods/detail/form?goodsCd=MOW0BQST25","","",""]
[null,"wqjd0Nj7lUagkOSZpOQFNckAF6d-",null,null,"1:1 문의 답변 임시저장 기능 필요",null,null,null,"결함","완료됨","중간","김 덕규","정 지혜","2021.09.08.","","2021.09.17.","false","2021.10.08.","정 지혜","상담원이 해당 임시저장이 없어 미리 남겨놓을수를 없다고함.(상황확인후 추가 답변해야하는 부분들이 많음)\n--> 대기관련 상태 처리 안되었음. 확인 조치 필요","","",""]
[null,"0XyC2VW-Lk2-16H2owzO78kAISOo",null,null,"네이버 로그인 오류",null,null,null,"결함","완료됨","중간","전 석훈;정 지혜;김 지철","정 지혜","2021.09.10.","","","false","2021.10.08.","정 지혜","예전 접수받은","","",""]
[null,"rFZ4R579GEGM140yEocayMkALvzq",null,null,"모바일앱에서 하단 PC버전 클릭시 아이폰의 경우 아래의 화면처럼 PC 화면으로 확인이 됩니다 .",null,null,null,"결함","완료됨","중간","","정 지혜","2021.09.10.","","","false","2021.10.08.","정 지혜","","","",""]
[null,"gdX08o7jHU2QUy8Zqa3G7skAPO0D",null,null,"[대기] 본인인증 계속 반복되는현상",null,null,null,"결함","완료됨","중간","조 민혜;전 석훈;정 지혜","정 지혜","2021.09.10.","","","false","2021.10.08.","정 지혜","","","",""]
[null,"y-0MLSA-e0qS22mH0qb1tMkAHO0v",null,null,"휴면배치 오류",null,null,null,"결함","완료됨","긴급","이선미","정 지혜","2021.09.28.","","","false","2021.09.28.","정 지혜","cust_no가 잘못매핑되어 있던 주문 데이터가 휴면으로 돌면서 맞는 cust_no가 실제로 휴면 전환시에 중복으로 insert되는 오류 발생. tb_cust_dormant 테이블의 데이터 정리 완료\n\n-\n\n1.\t9월1일 이전의 데이터는 삭제해 주십시오. (6월의 데이터가 있습니다.)\n2.\t9월1일과 2일 사이에 생성된 데이터 중 현재 활동 회원의 주문건의 휴면상태를 일반 상태로 롤백 요청드립니다. \n3.\t그 이후에 1일과 2일 사이에 생성된 row를 삭제 요청드립니다.","","",""]
[null,"nGHS74bhDUyr0z94vRXwaMkAJIIr",null,null,"[진행중] BOS > 회원/마케팅 > 탈퇴회원목록 일자 선택 후 조회시 일자없이 조회시 검색구분 선택하라는 alert 노출됨",null,null,null,"결함","완료됨","중간","전 석훈","정 지혜","2021.09.16.","","","false","2021.09.17.","정 지혜","","","",""]
[null,"_c7FnVDaUE62wUqASq6YX8kAD7e9",null,null,"[완료] 회원정보 조회시 기간 없이 조회하는 내용 필요",null,null,null,"결함","완료됨","중간","전 석훈","정 지혜","2021.09.14.","","","false","2021.09.15.","전 석훈","","","",""]
[null,"UmJJs8TqOEy64sKpR5gqnckAC_hc",null,null,"CI 값이 없던 과거회원이 본인인증을 하려 할때 오류나는 현상",null,null,null,"결함","완료됨","중간","이선미","정 지혜","2021.09.09.","","","false","2021.09.14.","이선미","CI가 중복일 경우 500에러 발생 => 해당 CI로 매핑되어 있는 로그인 ID 마스킹처리되어 노출","","",""]
[null,"Y38b44V-D0esXZioS24Kc8kAKKQi",null,null,"\"현재 등급 오류로 고객 문의 - 메신저 문의  ( 예 : 아이디 : apurodite 고객명 :  류혜진 ) \"",null,null,null,"결함","완료됨","중간","전 석훈","정 지혜","2021.09.03.","","","false","2021.09.14.","전 석훈","","","",""]
[null,"dNu2pVxCs0aRWERzo5s5X8kAIVnr",null,null,"[확인요청] 등급오류 수정요청",null,null,null,"결함","완료됨","중간","전 석훈","정 지혜","2021.09.03.","","","false","2021.09.13.","전 석훈","\"아이디 : lily8032 /고객명 : 강민정 아이디 : dakyongkim /고객명 : 김다경  외 다수 등급 오류건 수정요청\"","","",""]
[null,"_SLgD4Y97U2h2GVg1Clj9skAKd2v",null,null,"pc 로그인 세션이 끈기지 않는 현상",null,null,null,"결함","완료됨","중간","김 덕규","정 지혜","2021.09.09.","","","false","2021.09.09.","전 석훈","위의 내용과 중복으로 완료 처리하겠습니다.","","",""]
[null,"RKuhwQQGR02ZhjIlBhalyskAEO1p",null,null,"예스24 로그인 시 오류",null,null,null,"결함","완료됨","중간","조 민혜","이정환","2021.09.06.","","","false","2021.09.07.","조 민혜","예스 24로 최초 로그인 후 나오는 [예스24 로그인 정보 동의] 화면에서 동의하기 누를 경우 반응 없음\n. 닫기 누르면 백그라운드 하얀 화면 상태 임","","",""]
[null,"xzDeiqoVqEWtbbW8osGj88kAMcqU",null,null,"[결함][BOS][고객센터] 1:1문의> 목록 클릭시  상세팝업이 노출되지 않음",null,null,null,"결함","완료됨","긴급","전 석훈","정 지혜","2021.10.15.","","2021.10.15.","false","2021.10.15.","정 지혜","","","",""]
[null,"mTWA37wVw0KLeiuuW9cuqskAOAny",null,null,"[결함][BOS][영업관리] 입점업체 출고처 등록안됨",null,null,null,"결함","완료됨","중간","","정 지혜","2021.10.15.","","","false","2021.10.15.","정 지혜","","","",""]
[null,"2T2z7aBXZEi-2Oi0jJYfc8kAMStT",null,null,"[개선][SCM] scm 벤더 단위로 상품목록 /주문목록 확인필요.",null,null,null,"미사용버킷","완료됨","중간","전 석훈","정 지혜","2021.09.28.","","","false","2021.10.08.","정 지혜","","","",""]
[null,"ox5CduN8JUiGM428fP8EdskAGaHS",null,null,"기존 한세드림에서 사용하던 dreamsco1 계정이 신규scm에서는 업체명이 주식회사 드림스코로 들어가있습니다.",null,null,null,"미사용버킷","완료됨","중간","김 덕규","정 지혜","2021.09.03.","","","false","2021.10.08.","정 지혜","","","",""]
[null,"laThYX5iS0WzKktTO1oKGskAGV1z",null,null,"정산 > 쿠폰금액/ 쿠폰배분관련확인",null,null,null,"미사용버킷","완료됨","중간","","정 지혜","2021.10.07.","","","false","2021.10.08.","정 지혜","","","",""]
[null,"3NL9O1V2G0yFezekI5-HdckAMy_n",null,null,"[PJT잔여] 마케팅 메일 가격 노출 오류",null,null,null,"미사용버킷","완료됨","중간","김 덕규","정 지혜","2021.09.01.","","","false","2021.10.08.","정 지혜","가격 정상가/판가 같을 때 0% 노출, 가격 영역 css깨짐 등","","",""]
[null,"F-lkMfUKokCZnK1cZJowOskAA5xN",null,null,"scm > 사이즈별 재고 재고 변경 오류",null,null,null,"미사용버킷","완료됨","중요","조 민혜","정 지혜","2021.09.03.","","","false","2021.10.08.","정 지혜","정상작동함. \n기존에 등록불가 내용이 '오류로 처리안되었습니다'와 같은 일괄적인 메시지로 보여줘서 확인이 불가능했으니, 9월 2째 주 오류(등록불가 사유)의 상세 내용이 나오도록 수정되었음. \n아마","","",""]
[null,"DzkbxHdj2UK59L2NaoaIUMkAAITP",null,null,"[결함][SCM] scm 기획전을 등록했으나 scm에서 기획전 목록이 노출되지 않음 1722 주식회사 알유진코리아",null,null,null,"미사용버킷","완료됨","중간","조 민혜;김 덕규;정 지혜","정 지혜","2021.09.15.","","","false","2021.10.08.","정 지혜","등록한 본인만 나오는 이슈로 수정 필요\n\n아예 다른벤더가 나왔었습니다.","","",""]
[null,"k4iSU7D-rEacC2U7yJjC6ckAEl3n",null,null,"제휴채널 정산 금액 산정 오류",null,null,null,"미사용버킷","완료됨","중요","","박 중재","2021.09.24.","","","false","2021.10.07.","정 지혜","해당 메뉴는 네이버, 다음, 광고대행사등이 정산시 사용하는 메뉴입니다. \n\nBOS > 제휴채널 정산\nSCM > 제휴채널 정산\n\n취소주문건이 (-) 가 아닌 (0) 으로 반영되고 있습니다. \n9월 정산을 위해 9월 말 이전에 수정 부탁합니다. \n\n\n(9월 9일 시스템장애 메일 발송건, 발신인 정석헌)","","",""]
[null,"vmP_-QmhZk2J5zzgiml1AskAOUZl",null,null,"제휴정산/일반정산 취소주문건 -로 처리되어야 하나, 0으로 처리되어 매출잘못반영됨",null,null,null,"미사용버킷","완료됨","중간","김 덕규","정 지혜","2021.09.10.","","","false","2021.10.07.","정 지혜","","","",""]
[null,"ssh5kNUdn0CNhCsMTxAeb8kAPf0g",null,null,"정산데이터 기준 벤더로 처리되어야함",null,null,null,"미사용버킷","완료됨","중간","김 덕규","정 지혜","2021.09.09.","","","false","2021.10.07.","정 지혜","재무팀","","",""]
[null,"s77lj-85MESLin-UP1m2CckAOKEL",null,null,"정산금액이 0원으로 찍히는 케이스",null,null,null,"미사용버킷","완료됨","중간","김 덕규","정 지혜","2021.09.10.","","","false","2021.10.07.","정 지혜","","","",""]
[null,"IDOqlH5BDkCEiwlCXXyXFMkAIHSK",null,null,"업체코드 4855 에 등록된 상품 업체코드 2826 으로 데이터 이관",null,null,null,"미사용버킷","완료됨","중간","이선미","정 지혜","2021.10.06.","","","false","2021.10.07.","정 지혜","","","",""]
[null,"NKKZ_astmkKfuSxlyHcauskAEIIq",null,null,"안전인증 데이터 db 처리",null,null,null,"미사용버킷","완료됨","중간","조 민혜;정 지혜","정 지혜","2021.09.29.","","","false","2021.10.06.","정 지혜","","","",""]
[null,"vmhmt0heXkKK7TjutSDJHMkAG99c",null,null,"[완료][결함] 카테고리에서 즉시할인가 적용안되는현상",null,null,null,"미사용버킷","완료됨","중간","전 석훈","정 지혜","2021.09.29.","","","false","2021.09.29.","정 지혜","카테고리 메인에 신상품 영역 부분에 디바이스 구분값이 빠져서 가격할인율을 적용하지 못하고 있었다.\n(frontGB -> 디바이스별로 구분이 되고 가격을 구분하기 위해서 해당 컬럼을 쓰고있으나, 누락됨)","","",""]
[null,"r4Sx1BqmzEaIbivlS6uQe8kAJQwW",null,null,"상품타이틀 예약관리의 예약내역이 삭제되지 않음.",null,null,null,"미사용버킷","완료됨","중요","조 민혜","정 지혜","2021.09.23.","","","false","2021.09.29.","정 지혜","안녕하세요. \n패션개발팀 이선미입니다. \n아래 오류 내용 확인해보니 쿼리 중에 예약된 단어가 포함되어 있어 오류가 발생하고 있었습니다. \n<!-- 상품 타이틀 예약건 초기화 -->\n        <update id=\"updateGoodTnmInit\" parameterType=\"Goods\">\n               /* TsaGoods.updateGoodTnmInit */\n               UPDATE TB_GOODS\n               SET UPD_NO = #{updNo}\n                 , UPD_DT = NOW()\n                 , GOODS_TNM = (SELECT S.GOODS_TNM\n                                FROM (\n                                      SELECT GT.GOODS_CD\n                                           , GT.GOODS_TNM\n                                           , RANK() OVER(PARTITION BY GT.GOODS_CD ORDER BY GT.GOODS_TNM_RES_SQ DESC) RANK\n                                      FROM TB_GOODS_TNM_RES GT\n                                      WHERE GT.APPLY_YN = 'N'\n                                      AND NOW() BETWEEN GT.APPLY_STDT AND GT.APPLY_EDDT\n                                      AND GT.GOODS_CD  = #{goodsCd}\n                                     ) S\n                                WHERE S.RANK = 1\n                                )\n               WHERE GOODS_CD = #{goodsCd}\n        </update >\n\n위의 쿼리 중 RANK 부분 다른 이름으로 수정요청드립니다. \n감사합니다.\n\n-> 상품 타이틀 삭제 할때 오류가 발생함.","","",""]
[null,"qiuqEnIG50qMEuHui_2NYskAOKEV",null,null,"카테고리 베스트 영역의 셀링문구 데이터가 이상한 위치에 노출됨",null,null,null,"미사용버킷","완료됨","중간","","정 지혜","2021.09.23.","","","false","2021.09.29.","정 지혜","https://www.style24.com/display/category/main/form?cateGb=null&cate1No=1100","","",""]
[null,"0Dv-PLFTbkKuKGi_gy5dEckANpue",null,null,"[완료] 즉시할인가 전시가 안보이는 현상",null,null,null,"미사용버킷","완료됨","긴급","전 석훈;정 지혜","정 지혜","2021.09.28.","","","false","2021.09.28.","정 지혜","- 전시 배치에 대한 수정 쿼리 결함.","","",""]
[null,"bphbstN2fEuFvBr_k9Oo08kAETIt",null,null,"옵션생성 안됨",null,null,null,"미사용버킷","완료됨","중요","조 민혜","정 지혜","2021.09.24.","","","false","2021.09.28.","정 지혜","입고는 된 데이터로 확인됨..","","",""]
[null,"ZyyXcvS6rkyTcdExs3-tJckAKezl",null,null,"기획전 에 슬라이드가 전체가 다 한꺼번에 돌아가는 현상 조치필요",null,null,null,"미사용버킷","완료됨","중간","조 민혜;정 지혜","정 지혜","2021.09.08.","","","false","2021.09.24.","조 민혜","","","",""]
[null,"-hha_afvDEq9BOe4vdyDfckAJJ3v",null,null,"총알배송 화면에서 리카앤(S0012) 브랜드는 데이터가 안나옴",null,null,null,"미사용버킷","완료됨","중간","","정 지혜","2021.09.16.","","","false","2021.09.23.","정 지혜","/planning/shot/delivery/guide/form","","",""]
[null,"Y9b7G1cIskq2SyO1_QwqP8kABiwz",null,null,"마이그레이션 - 입점상품 시즌누락 mig",null,null,null,"미사용버킷","완료됨","중간","","정 지혜","2021.09.17.","","","false","2021.09.23.","정 지혜","","","",""]
[null,"BSeVP-Epb0uHw3TKzHVhDskAFmFb",null,null,"[급] SCM /상품상태 일괄에 승인완료가 빠져있음",null,null,null,"미사용버킷","완료됨","중간","조 민혜;정 지혜","정 지혜","2021.09.14.","","","false","2021.09.16.","조 민혜","","","",""]
[null,"69WycenCnEe1_YGiIn2Y7skAOsva",null,null,"무료배송 아이콘이 중복으로 나오는케이스",null,null,null,"미사용버킷","완료됨","중간","","정 지혜","2021.09.16.","","","false","2021.09.16.","정 지혜","","","",""]
[null,"iGy0Qbqf6UGVbEJP3BMK3skABHxv",null,null,"[급] bos 상품 일괄수정 > 상품 상태 변경 누락",null,null,null,"미사용버킷","완료됨","중간","조 민혜","정 지혜","2021.09.14.","","","false","2021.09.16.","정 지혜","대량등록 엑셀인지  확인 요청","","",""]
[null,"NWPbIi2aL0mgK7_CShNY08kALzUk",null,null,"급) 상품대량수정에서 가격수정 안되는부분 수정 - 정상가 컬럼 누락되어 운영어려움",null,null,null,"미사용버킷","완료됨","긴급","조 민혜","정 지혜","2021.09.09.","","","false","2021.09.16.","정 지혜","정상가/판매가/수수료\n컬럼 필수 필요\n\n--> 판매상태변경도 없음(9/14)","","",""]
[null,"spLZk1cEdU6DtUcfYs_zI8kAGZ_z",null,null,"제휴몰 수동업로드 판매가를 잘못올려 데이터 처리 필요",null,null,null,"미사용버킷","완료됨","중간","구성원","정 지혜","2021.09.15.","","","false","2021.09.15.","정 지혜","","","",""]
[null,"Ov40KVBVl02P1Am9M8G1UMkACiW1",null,null,"정상가 DB 업데이트 ",null,null,null,"미사용버킷","완료됨","중간","이선미","정 지혜","2021.09.15.","","","false","2021.09.15.","정 지혜","","","",""]
[null,"TWXAHcB850C8opwtO5OEh8kANmvT",null,null,"기획전 : 23번 / scm에서 등록한 기획전 상세를 열었을 때 정보가 다 깨져서 나옴 ",null,null,null,"미사용버킷","완료됨","중간","조 민혜","정 지혜","2021.09.15.","","","false","2021.09.15.","정 지혜","9/15 템플릿 팝업 오류 수정완료 ( 반영완료) \n추가로 목록 나오는 기준 업체 권한으로 수정요청 -현재 등록자 기준으로 나옴","","",""]
[null,"Al2n1xuwdE6qaru2rlI7SckAGq4t",null,null,"C213TSG51P 상품 입고가  정상으로 돌고, 현재 판매중이며,  변경은 0914 15:24  배치돌기 전이나 재고반영안됨, 확인필요",null,null,null,"미사용버킷","완료됨","중간","","정 지혜","2021.09.14.","","","false","2021.09.14.","정 지혜","","","",""]
[null,"UrOkcMCtl0u-cBZOUMvzUMkAPVMg",null,null,"제휴몰 송장 잘못나간 실 송장데이터 확인",null,null,null,"미사용버킷","완료됨","중간","문 달호","정 지혜","2021.09.14.","","","false","2021.09.14.","정 지혜","","","",""]
[null,"i5V08t-Zc0avDaInFGg2zckAJeft",null,null,"주문 오류 관련 조치",null,null,null,"미사용버킷","완료됨","중간","","정 지혜","2021.09.02.","","2021.09.02.","false","2021.09.14.","전 석훈","","","",""]
[null,"brXn508d_0uCPYUT7LcnmskACBmH",null,null,"상품평 작성 알림톡, 발송 로직 수정",null,null,null,"미사용버킷","완료됨","중간","전 석훈","박 중재","2021.09.08.","","","false","2021.09.14.","전 석훈","현재 : 배송완료후 상품평 작성 알림톡 발송됨. > 마이로 접근했을때 작성가능한 상품이 없다고 나옴 (고객혼\n선)\n수정 : \"구매확정 완료후\" 상품평 작성 알림톡 발송","","",""]
[null,"iEKPMDgcLU2PLJ9jbyQXuskAFqNZ",null,null," 네이버 프리미엄 로그분석 매출 트래킹이 안되어 확인해보니 스크립트 삽입은 이상없으나 주석처리 되어 있어 데이터를 불러오지 못한다는 네이버측의 답변을 받았습니다. 해당 건 확인 부탁드립니다.  감사합니다.",null,null,null,"미사용버킷","완료됨","중요","","정 지혜","2021.09.09.","","","false","2021.09.13.","정 지혜","","","",""]
[null,"rHIKJqWnskyIrLodFn2yDskAI_nk",null,null,"welcome 쿠폰 오안내 확인",null,null,null,"미사용버킷","완료됨","중간","전 석훈","정 지혜","2021.09.03.","","","false","2021.09.13.","전 석훈","--> welcome 일때 오안내로 인해 발생되는 건 조치\n실버 등급쿠폰 계정에 있는 것확인\n고객 문의건 쿠폰 발급시 발급되었다는 문구는 확인되나 실제 고객 내역에서는 쿠폰내역  확인 불가  (아이디 : ptkim777  고객명 : 김성심 )\"","","",""]
[null,"2UcGHgXD9kKoSvBBNtbI68kANVZj",null,null,"메일 템플릿 이미지 깨짐 현상",null,null,null,"미사용버킷","완료됨","중간","김 덕규","정 지혜","2021.09.01.","","","false","2021.09.13.","조 민혜","","","",""]
[null,"mblFb-sjtk6JKQo6DvZq6skADR-k",null,null,"상품평 날짜 데이터 미표시 처리",null,null,null,"미사용버킷","완료됨","중간","문 달호","정 지혜","2021.09.09.","","","false","2021.09.13.","문 달호","메일제목 :  상품평 등록및 확인일자 등록 요청\n\n9/9 배포예정","","",""]
[null,"uqMkIvSgJUiBt2WoMNRpBckAOIuC",null,null,"입고완료 상품의 마이그레이션 되지 않아 확인 요청 N213TP952P",null,null,null,"미사용버킷","완료됨","중간","김 덕규","정 지혜","2021.09.01.","","","false","2021.09.13.","정 지혜","마이그레이션 데이터의 대한 이슈이며\n입고처리 해야될 상품과 추가 마이그레이션 할 상품을 구분 필요\n이 부분은 엠디에게 요청중","","",""]
[null,"DQtj-ZJ3MU-Q4mkAEd2WvMkAPtZ2",null,null,"품목 변경시에도 전시에 반영되지 않는 현상",null,null,null,"미사용버킷","완료됨","중간","조 민혜;정 지혜","정 지혜","2021.09.01.","","","false","2021.09.10.","조 민혜","","","",""]
[null,"aOb32vWGL0OiDvIef9Ls9MkAFurR",null,null," 업체명: 주식회사 에포드 / 브랜드명 : 탑보이   안녕하세요, 일전에 문의드린 입점업체상품 대량등록 수정건이 아직도 개선되지 않고 있습니다. (아예 반영되지않거나 부분적으로 또 판매가 0원 처리)  1111번 파일만 판매가는 잘 변경된 것 같은데 마진은 또 아예 반영되지 않았네요.  빠른 확인 부탁드립니다.",null,null,null,"미사용버킷","완료됨","중간","조 민혜","정 지혜","2021.09.08.","","","false","2021.09.09.","조 민혜","9/8 오전 확인완료. 기존에 등록한 가격이랑 데이터 꼬인부분 수정 등. CS상담사 직접확인 완료","","",""]
[null,"03jF1XTTR0C72MQMVA9LpMkABAdj",null,null,"\"카테고리 /https://www.style24.com/display/category/goods/list/form?brandGroupNo=2817&cateGb=G032_101  신상품 만 보기 데이터 선택 시 실제 신상이 아닌 다른데이터 노출(신상품이 아닌상품이 신상으로 딱지가 붙여 있고, 기준 없이 데이터가 노출됨\"",null,null,null,"미사용버킷","완료됨","중간","조 민혜","정 지혜","2021.09.01.","","","false","2021.09.09.","조 민혜","","","",""]
[null,"BxKqd6pRPE6GLg-7__s1FskAJIa8",null,null,"AND 웹/앱 메인 하단 MD픽 영역 스크롤 먹어서 멈추는 현상 발생",null,null,null,"미사용버킷","완료됨","중간","김 덕규","박 중재","2021.09.01.","","","false","2021.09.08.","정 지혜","","","",""]
[null,"Bx3DjCL730qjOE__nb86TskAMLKC",null,null,"상품 가격 대용량업로드 오류",null,null,null,"미사용버킷","완료됨","중간","조 민혜","정 지혜","2021.09.08.","","","false","2021.09.08.","조 민혜","","","",""]
[null,"L7ppKC8NKEu_6tdYU9ixBskAFhUU",null,null,"VNF14QSO02 사이즈 정보 전체 누락-",null,null,null,"미사용버킷","완료됨","중간","","정 지혜","2021.09.07.","","","false","2021.09.07.","정 지혜","ㅅ사이즈 옵션 항목이 전체 사라짐\n확인 필요 - 9/ 8 프로모션 진행건","","",""]
[null,"VMyx0lNi5kSvfbNNIc15-MkANOaf",null,null,"로그인화면 - YES24로그인 이미지 깨짐현상 > 이미지 재요청했음",null,null,null,"미사용버킷","완료됨","중간","조 민혜","박 중재","2021.09.01.","","","false","2021.09.06.","조 민혜","","","",""]
[null,"SUp-Yt1HSk-u3ZgkIQqS3ckAJUAq",null,null,"PC > 패밀리사이트 > 한세엠케이 홈페이지 누락",null,null,null,"미사용버킷","완료됨","중간","","박 중재","2021.09.01.","","","false","2021.09.03.","정 지혜","","","",""]
[null,"7N9z4t4X4kC9-Elz_OWhv8kAMfYS",null,null,"웹이즈/기타 업체 대량 판매중치 처리 ",null,null,null,"미사용버킷","완료됨","중간","구성원","정 지혜","2021.09.02.","","","false","2021.09.03.","이정환","","","",""]
[null,"ypBd08nOGEikZ8DvK9xJiMkAJtHK",null,null,"몰메인 배치 주기 점검 요망 : 1시간 단위 배치, 메인에 가격반영 지연발생",null,null,null,"미사용버킷","완료됨","중간","","박 중재","2021.09.01.","","","false","2021.09.03.","조 민혜","","","",""]
[null,"ixCIqQQWakaP87nT-5FA8skAIBMd",null,null,"2021년 10월 15일 오전 배포 내역",null,null,null,"배포이력","완료됨","중간","이정환;이선미;조 민혜;문 달호;박 중재;전 석훈;정 지혜;김 지철","조 민혜","2021.10.13.","","","false","2021.10.15.","전 석훈","[BOS]\n@ 취소,반품,교환,환불컨펌 알림톡 메세지 미발송 체크박스 개발\n@ 상품 대량 수정 엑셀 업로드 로직 수정\n@ 사용자화면 조회 업체 조회조건 입점벤더로 변경\n@ 샵링커 주문수집 - 목록에 배송번호(팩번호) 관련 항목 보이도록 수정  \n@ 샵링커 주문수집 - 배송번호 관련 참고 텍스트 추가 \n@ 샵링커 주문수집 - 목록에 등록자 잘 못 나오는 오류 수정 \n@ 샵링커 주문수집 - 엑셀다운로드 시 타이틀, 푸터 제거 \n@ 샵링커 주문수집 화면 - '엑셀다운로드' 시 '배송번호' 항목 추가 \n@ 샵링커 주문수집 화면 - '엑셀다운로드(제휴몰주문업로드 폼)' 시 '쇼핑몰 주문번호'가 '배송번호'로 변경되어 내려줌 \n  - 옥션, 지마켓, 카카오톡스토어, 위메프 만(최초 개발 시 4개 마켓 전달받은 내용)\"\n@ 샵링커 로직변경 코어반영건 \n@ 제휴몰관리 - 배송비 분기처리 관련 항목 등록/수정 기능추가 (TB_EXTMALL.DELV_FEE_SUM_YN 배송비 합산여부)\n@ 상품상세 팝업 - 옵션코드(sku) 추가 \n\n[SCM]\n@ 상품 대량 수정 엑셀 업로드 로직 수정\n@ 상품상세 팝업 - 옵션코드(sku) 추가 \n\n\n[FRONT]\n\n[BATCH]\n@ 상품요약정보 배치 로직 원복(TRUNCATE)\n@ 샵링커 로직변경 코어반영건 \n\n[PUBLIC BATCH]\n\n[CORE]\n@ 취소,반품,교환,환불컨펌 알림톡 메세지 미발송 체크박스 개발\n@ 상품 대량 수정 엑셀 업로드 로직 수정\n@ 샵링커 주문수집 - 배치 오류시 관리자에게 문자발송(이정환,이선미,조민혜)\n@ 샵링커 주문수집 - 배송비 세팅 건 수정 (몰별로 분기처리)\n@ 샵링커 주문수집 - 상품코드 필수값 체크 제외하도록 변경\n@ 샵링커 주문수집, 주문 엑셀업로드- 동일 주문서에 재고이외의 사유로 실패건이 1개라도 존재시, 해당 주문서 전체실패로 변경","","",""]
[null,"wXKtDYVoREq9_B45Wo0h5skAMyPy",null,null,"2021년 10월 12일  긴급 배포이력",null,null,null,"배포이력","완료됨","중간","","전 석훈","2021.10.12.","","","false","2021.10.14.","전 석훈","2021년 10월 12일 오후 배포 내역\n\n[BOS]\n@ 다다익선 오류 수정\n@ 환불컨펌시 요청메모 이모티콘 오류 수정\n\n[SCM]\n\n[FRONT]\n\n\n[BATCH]\n\n[PUBLIC BATCH]\n\n[CORE]","","",""]
[null,"YPr8VFJQvkWY5mL8W3mwNckAOf0s",null,null,"2021년 10월 12일 오후 배포 내역",null,null,null,"배포이력","완료됨","중간","구성원;이정환;이선미;조 민혜;문 달호;박 중재;전 석훈;박 중재;정 지혜;김 지철","전 석훈","2021.10.12.","","","false","2021.10.12.","김 지철","[BOS]\n@ 관리자 다다익선 등록 오류 수정\n\n[SCM]\n\n[FRONT]\n@ 결제금액 유효성 추가 체크 보완\n\n[BATCH]\n\n[PUBLIC BATCH]\n\n[CORE]\n@ 결제금액 유효성 추가 체크 보완","","",""]
[null,"QNen8kx25kyTCOTeFAmyiMkABaYT",null,null,"2021년 10월 12일 오전 배포이력",null,null,null,"배포이력","완료됨","중간","구성원;이정환;이선미;조 민혜;문 달호;전 석훈;박 중재;정 지혜;김 지철","조 민혜","2021.10.12.","","","false","2021.10.12.","김 지철","[ADMIN]\n@ 환불관리 변경메모 이모티콘 제거\n\n[SCM]\n\n\n[FRONT]\n@ 몰메인-메인 > 당신을위한제안기능 \n@ 상품상세- 모바일 모델정보 잘못나오는 부분 수정\n@ 상품상세- pc 쿠폰 버튼 위치 수정\n@ 카카오인증 ip 설정\n@ 상품권 현금영수증 신청 날짜 수정(주문일 -> 신청일)\n\n[BATCH]\n\n\n[CORE]\n@ 상품권 현금영수증 신청 날짜 수정(주문일 -> 신청일)","","",""]
[null,"8dNysV8TbUynM8KWdxN2_skANv8N",null,null,"2021년 10월 08일 오전 긴급 배포 내역",null,null,null,"배포이력","완료됨","중간","구성원;이정환;이선미;조 민혜;박 중재;전 석훈;정 지혜;김 지철","전 석훈","2021.10.08.","","","false","2021.10.08.","정 지혜","2021년 10월 08일 오후 배포 내역\n\n[BOS]\n\n[SCM]\n\n[FRONT]\n\n[BATCH]\n@ 자동품절취소 오류 수정\n@ 화장품여부 칼럼 NULL 처리\n\n\n[PUBLIC BATCH]\n\n[CORE]","","",""]
[null,"gjoSBi-1XEO9nUvY06G8MckABZaS",null,null,"2021년 10월 08일 오전 배포 내역",null,null,null,"배포이력","완료됨","중간","구성원;이정환;이선미;조 민혜;박 중재;전 석훈;정 지혜;김 지철","전 석훈","2021.10.08.","","","false","2021.10.08.","정 지혜","[BOS]\n@ 회수목록 제휴몰 주문번호 검색기능 추가\n@ 회수예외관리 제휴몰 주문번호 검색기능 추가\n@ 취소대상 조회시 출고처지정 상태값 추가\n@ 샵링커주문수집 코어수정 건 \n\n[SCM]\n@ wms 화장품 여부 로직변경\n\n[FRONT]\n\n[BATCH]\n@ 샵링커주문수집 코어수정 건 \n@ 한세드림 매출반영 코어수정건\n\n[PUBLIC BATCH]\n\n[CORE]\n@ 회수목록 제휴몰 주문번호 검색기능 추가\n@ 회수예외관리 제휴몰 주문번호 검색기능 추가\n@ 샵링커 주문수집- 누락수집건 수정 (gs 홈쇼핑 수집은 하되, 주문은 되지않도록 변경)\n@ 한세드림 매출반영을위한 판매일자(dtSale) 변수추가","","",""]
[null,"_jwO6rmMbEeWtaAgTHOmGMkAOWgv",null,null,"2021년 10월 07일 오후 배포 내역",null,null,null,"배포이력","완료됨","중간","구성원;이정환;이선미;조 민혜;박 중재;전 석훈;박 중재;정 지혜;김 지철","조 민혜","2021.10.07.","","","false","2021.10.08.","조 민혜","[BOS]\n@계좌인증 공통코드 변경\n@ 상품정산과 <정산확정>에 대해 상품쿠폰과 장바구니쿠폰의 입점쿠폰분담율 로직 수정\n\n[SCM]\n@ 상품정산과 <정산확정>에 대해 상품쿠폰과 장바구니쿠폰의 입점쿠폰분담율 로직 수정\n\n[FRONT]\n@ 몰메인 - 당신을 위한 추천 적용건\n@ 기획전 공유하기 링크 수정\n@ 선물하기 배송지 입력 알림톡 수정\n\n[BATCH]\n@ 품절취소 조건 수정 (선물하기상품 배송지미입력제외)\n\n[PUBLIC BATCH]\n\n[CORE]\n@ KCP 오류메세지 Alert 노출 처리\n@ 제휴몰주문 PG점프 로직 수정","","",""]
[null,"xT_0y1KWqUm5ZsaRRltlcckAHDcv",null,null,"2021년 10월 07일 오전 배포 내역",null,null,null,"배포이력","완료됨","중간","구성원;이정환;이선미;조 민혜;문 달호;박 중재;전 석훈;박 중재;정 지혜;김 지철","조 민혜","2021.10.06.","","","false","2021.10.07.","정 지혜","[BOS]\n@ BOS의 \"상품정산\" 화면의 목록과 \"정산확정\" 생성 로직\n@ 정산관련 계산식 변경 및 정산확정 목록 내 판매총액 컬럼 추가\n\n[SCM]\n@  SCM의 \"입점업체 상품정산\" 화면의 목록\n@ 정산관련 계산식 변경 및 정산확정 목록 내 판매총액 컬럼 추가\n\n[FRONT]\n\n[BATCH]\n\n[PUBLIC BATCH]\n\n[CORE]","","",""]
[null,"iQ-UcZx0O0uIa2gIb75He8kAIVGB",null,null,"2021년 10월 06일 오후 배포 내역",null,null,null,"배포이력","완료됨","중간","구성원;이정환;이선미;조 민혜;박 중재;전 석훈;정 지혜;김 지철","전 석훈","2021.10.06.","","","false","2021.10.06.","조 민혜","[BOS]\n@ 결제금액 관련 반품진해중일때 반품배송비 노출 제외\n\n[SCM]\n\n[FRONT]\n@ 장바구니 삭제 로직 수정\n\n[BATCH]\n@ 장바구니 100개 이상 일때 삭제 로직 변경\n@ 상품 요약정보 생성 배치 로직 수정\n\n[PUBLIC BATCH]\n\n[CORE]\n@ 결제금액 관련 반품진해중일때 반품배송비 노출 제외","","",""]
[null,"e5SFD5bfNky1AXZM6LF-IMkAFGDP",null,null,"2021년 10월 06일 오전 배포이력",null,null,null,"배포이력","완료됨","중간","구성원;이정환;이선미;조 민혜;박 중재;전 석훈;박 중재;정 지혜;김 지철","조 민혜","2021.10.06.","","","false","2021.10.06.","조 민혜","[BATCH 일반]\n@ 입고상품 수신 옵션만 추가된 경우 - 해당 옵션 자동등록 \n@ 샵링커 주문수집 - 일반배치로 이동 \n\n[BATCH public]\n@ 샵링커 주문수집 - 일반배치로 이동","","",""]
[null,"UgVUO7Uy_UifS0XN5BeZ_skAHttj",null,null,"2021년 10월 05일 오전 배포 내역",null,null,null,"배포이력","완료됨","중간","구성원;이정환;이선미;조 민혜;박 중재;전 석훈;정 지혜;김 지철","전 석훈","2021.10.05.","","","false","2021.10.06.","이정환","[BOS]\n@ 입점업체 주문목록 조회 기능 추가\n@ 입점업체 발주확정대상목록 조회 기능 추가\n@ 대량상품수정 - 안전인증 항목 추가\n@ 상품권정산 (잔액 항목 제거)\n@ 통계 > 일일거래내역 (취소,품절취소,반품완료,교환완료일 때 (-) 처리되게 수정)\n@ \"정산확정\" 시 수수료금액을 SUM->ROUND 하던 것을 상품정산과 동일하게 ROUND->SUM 으로 수정\n@ 반품/교환 철회 범위 수정\n@ 교환배송비 미노출 수정\n\n[SCM]\n@ 대량상품 등록/수정 - 안전인증 항목 추가\n@ 외부몰이미지  등록 오류수정\n@ 입점업체상품정산\n\n[FRONT]\n@ 주문완료 알림톡 발송 건수 체크 로직 수정\n@ 베스트 > 필터기능 구현\n@ bos 기획전 미리보기 시 > front 프론트 이동 오류 수정\n@ 출석체크 오류수정\n\n[BATCH]\n@구매확정 건 바이 건 로직 변경\n\n[PUBLIC BATCH]\n\n[CORE]","","",""]
[null,"bsp2iPlcbUaq6oFhq_ooEMkALOSx",null,null,"2021년 10월 01일 오후 배포이력",null,null,null,"배포이력","완료됨","중간","구성원;이정환;이선미;조 민혜;박 중재;전 석훈;정 지혜;김 지철","조 민혜","2021.10.01.","","","false","2021.10.01.","조 민혜","[ADMIN]\n@ 샵링커주문수집 코어 수정건\n\n[BATCH-일반]\n@ 샵링커주문수집 코어 수정건\n\n[BATCH-PUBLIC]\n@ 샵링커주문수집 코어 수정건\n@ 단품입고 추가건 1차( wms 데이터만 수집 건) 신규배치건\n\n[CORE]\n@ 샵링커 주문수집 로그 변경","","",""]
[null,"QBlVCe70M0OCH8e-Iu5FbMkAGp6O",null,null,"2021년 10월 01일 오전 배포이력",null,null,null,"배포이력","완료됨","중간","구성원;이정환;이선미;조 민혜;박 중재;전 석훈;정 지혜","조 민혜","2021.10.01.","","","false","2021.10.01.","조 민혜","[ADMIN]\n@ 샵링커주문수집 코어 수정건\n\n[BATCH-일반]\n@ 샵링커주문수집 코어 수정건\n\n[BATCH-PUBLIC]\n@ 샵링커주문수집 코어 수정건\n\n[CORE]\n@ 샵링커 주문수집 로그 추가 및 권한설정 로직추가","","",""]
[null,"Aenn4H3mak6QNcnikmZBWMkAEgVA",null,null,"2021년 09월 30일 오전 배포이력",null,null,null,"배포이력","완료됨","중간","구성원;이정환;이선미;박 중재;전 석훈;김 덕규;박 중재;정 지혜;김 지철","조 민혜","2021.09.30.","","","false","2021.09.30.","전 석훈","[ADMIN]\n@ 샵링커 주문수집 변경 안내문구 변경\n@ 샵링커 코어수정건\n\n[BATCH-일반]\n@ 샵링커 코어수정건\n@ 등급산정 쿼리 수정 (날짜조건변경)\n\n[BATCH-public]\n@ 샵링커 코어수정건\n\n[CORE]\n@ 샵링커 주문수집 - 파일생성오류 확인로그 추가 & 방어로직추가\n@ 샵링커 주문수집 - 주문체크로직 수정 : 상품상태 관계없이 주문되도록 수정( 오직 재고가 없을 경우만 주문수집 안되도록)","","",""]
[null,"biHXKJ3S8UGKFT9k6l0DOckAG863",null,null,"2021년 09월 29일 긴급 배포 내역",null,null,null,"배포이력","완료됨","중간","구성원;이선미;조 민혜;문 달호;전 석훈;박 중재;정 지혜;김 지철","전 석훈","2021.09.29.","","","false","2021.09.29.","전 석훈","[FRONT]\n@ 1:1 문의 오류 수정","","",""]
[null,"zxWV938pXEiXlVMqaGCXiMkAJcsc",null,null,"2021년 09월 29일 오전 배포 내역",null,null,null,"배포이력","완료됨","중간","구성원;이정환;이선미;조 민혜;문 달호;박 중재;전 석훈;정 지혜;김 지철","전 석훈","2021.09.29.","","","false","2021.09.29.","전 석훈","2021년 09월 29일 오전 배포 내역\n\n[BOS]\n@ 품절취소코드 사유명으로 변경\n\n[SCM]\n\n[FRONT]\n@ 선물하기관련 오류 수정 > 앱에서 받는분 입력란에 숫자값만 입력되는 결함.\n@ 카테고리메인 신상품조회시 frontGb, custGb 누락 추가\n@ 셀링문구 위치변경\n@ 로그인 아이콘 변경 (pc, mo) - 확인완료\n\n[BATCH]\n\n[PUBLIC BATCH]\n\n[CORE]\n@ 품절취소코드 사유명으로 변경","","",""]
[null,"dwENyeFeP0aVXakDkB_8l8kAAfdg",null,null,"2021년 09월 29일 오후 배포 내역",null,null,null,"배포이력","완료됨","중간","구성원;이정환;이선미;조 민혜;문 달호;박 중재;전 석훈;박 중재;정 지혜;김 지철","김 지철","2021.09.29.","","","false","2021.09.29.","전 석훈","[BOS]\n@ 상품타이틀예약관리 예약삭제 오류 수정\n     - SQL문 함수명이 컬럼명으로사용되고있어서 오류발생\n \n[BATCH]\n\n[PUBLIC-BATCH]\n\n[FRONT]\n@ APP > 선물하기 연락처 연동 오류 수정\n@ 네이버페이 주문형 검수 대응\n@ 상품권 100% 사용시 결제금액 비교 조건 수정\n\n[SCM]\n\n[CORE]","","",""]
[null,"G0IQCCrPe0-oxl9jxvLrV8kAKvTw",null,null,"2021년 09월 28일 오후 배포이력",null,null,null,"배포이력","완료됨","중간","구성원;이정환;이선미;조 민혜;문 달호;박 중재;전 석훈;김 덕규;박 중재;정 지혜;김 지철","조 민혜","2021.09.28.","","","false","2021.09.28.","정 지혜","[ADMIN]\n@ 반품 REG_NO, UPD_NO 변경 처리\n@ 샵링커 배치 주문수집- 오류 로그 찍음 & 전달받은 주문목록 xml 생성 (누락건 확인용)\n\n[SCM]\n@ core 소스 \n\n[FRONT]\n@ 반품 REG_NO, UPD_NO 변경 처리\n@ 네이버페이 주문형 검수 대응\n@ IOS 실시간계좌이체 오류 수정\n@ 옵션 정렬순서 수정 --> 확인(원인 order by 부분 오타로 정렬이 안되고있었음.)\n@ IOS 현금영수증 오류 수정\n\n[BATCH 일반]\n@ 배치 시간 변경 품절취소 분배치-> 시간배치로 변경 (YML파일)\n\n[BATCH public]\n@ 샵링커 배치 주문수집- 오류 로그 찍음 & 전달받은 주문목록 xml 생성 (누락건 확인용)\n@ ep 오류 수정\n\n[CORE]\n@ 샵링커 배치 주문수집- 오류 로그 찍음 & 전달받은 주문목록 xml 생성 (누락건 확인용)\n@ 반품 REG_NO, UPD_NO 변경 처리\n@ WMS_IF 취소 업데이트시 비고값 'istyle취소'로 변경","","",""]
[null,"aTjtQ8rDfUm2OYOHZtGLuskAE64W",null,null,"2021년 09월 27일 긴급 배포이력",null,null,null,"배포이력","완료됨","중간","구성원;이선미;조 민혜;문 달호;박 중재;박 중재;정 지혜;김 지철","전 석훈","2021.09.27.","","","false","2021.09.28.","이정환","[BOS]\n@ 원주문 배송비 관련 수정\n\n[SCM]\n\n[FRONT]\n@ 사은품 금액 산정기준 오류 수정\n@ kcp 아이폰 app 실시간계좌이체 결제 변수 추가\n\n[BATCH]\n\n[PUBLIC BATCH]\n\n[CORE]\n@ 사은품 금액 산정기준 오류 수정\n@ 원주문 배송비 관련 수정","","",""]
[null,"G-T8MaS_HUy-RqkeNTGzLckAACDp",null,null,"2021년 09월 27일 오전 배포이력",null,null,null,"배포이력","완료됨","중간","구성원;이선미;조 민혜;문 달호;전 석훈;박 중재;정 지혜;김 지철","조 민혜","2021.09.27.","","","false","2021.09.28.","이정환","[ADMIN]\n@ 샵링커상품등록- 제너레이팅 보완(이미지 누락관련부분, 샵링커에서 미리보기시 상품상세 이미지가 너무커서 가로스크롤이 나오는 부분 수정) -md확인요청\n@ 정산관련 수정 (공급업체 -> 공급벤더로 변경)\n@ 제휴채널정산 쿼리문 수정 (TB_ORDER_DETAIL_HST -> TB_ORDER_DETAIL_ITEM_HST) \n@ 1:1문의관리 개선건 (상담사할당 기능 추가 및 1:1문의상세 화면에 1:1문의이력 리스트 추가) - 결함 수정.필요\n@ 회수컨펌 PG 점프기능 CS관리자 권한 부여 적용\n@ 업체별 배송비 정책 사용여부 수정시 업체코드 조건 추가\n@ 프론트 구분 APP 수정 추가 - 추가됨\n@ 품절취소대상목록수정\n\n[SCM]\n@ 정산관련 수정 (공급업체 -> 공급벤더로 변경)\n@ 제휴채널정산 쿼리문 수정 (TB_ORDER_DETAIL_HST -> TB_ORDER_DETAIL_ITEM_HST) \n@ 업체별 배송비 정책 사용여부 수정시 업체코드 조건 추가\n\n[FRONT]\n@ 앤듀 브랜드관 영상 오류 - 동영상 2개이상 등록시 오류나는 부분 보완\n@ 기획전 상세- 상단 구분자 동작오류 수정 --> 확인\n@ 주문서 페이지에 해당 영역에 상기 소스 삽입 요망(품절취소안내문구)  -> 확인\n\n[일반 BATCH]\n@ WMS 회수예외수신 배치 wms기준에 맞게 조건 제거 \n@ 출고처지정및출고요청  TB_BIZDAY 영업일 조건 추가\n\n[PUBLIC BATCH]\n@ 샵링커 주문수집 오류확인용 log 추가 건\n\n[CORE]\n@ 정산관련 수정 (공급업체 -> 공급벤더로 변경)\n@ 제휴채널정산 쿼리문 수정 (TB_ORDER_DETAIL_HST -> TB_ORDER_DETAIL_ITEM_HST) \n@ 품절취소대상목록수정\n@ 샵링커 주문수집 오류확인용 log 추가 건","","",""]
[null,"FgFsCEm2GkWC9J0jwzNlxMkAHxko",null,null,"2021년 9월 16일 배포 이력",null,null,null,"배포이력","완료됨","중간","구성원;이정환;이선미;조 민혜;문 달호;박 중재;전 석훈;박 중재;정 지혜;김 지철","김 지철","2021.09.16.","","","false","2021.09.17.","이정환","[BOS]\n@ 대량상품수정- 승인완료로 처리시, 최초승인일 값이 없을 경우 당일날짜로 업데이트처리\n@ 샵링커송장전송관리- 주문자명 검색항목 추가 \n@ 샵링커송장전송관리- 엑셀다운시 title, footer 제거 (O)\n@ 탈퇴회원, 휴면회원 기간없음 오류 수정(o)\n@ 통계- 상품별 주문, 제휴별 주문, 채널별 주문, 브랜드별 주문 메뉴 추가건\n@ 제휴채널 정산 데이터 안나오는 이슈 (9/16 09이후 데이터) \n\n[BATCH]\n@ 회수요청시  제휴몰일때 메모 문구 수정\n@ 넷퍼시, 상품검색 - 전체색인 truncate table 이슈관련 테이블 생성으로 변경 \n   \n[PUBLIC BATCH]\n@ 스윗트래커 8.31 16이후 추적요청 일자 조정\n\n[FRONT]\n@ 구매확정 안내 문구 수정(O)\n@ ios 심사완료- 로그인 관련 주석 해제, 동영상 주석해제(O)\n@ 상품상세- 추천솔루션 영역 주석해제 (O)\n@ 기획전상세- 혜택아이콘 중복으로 나오는 부분 수정(ex 무료배송 두개나오던 것) (o)\n\n[SCM]\n@ 상품목록- 상품상태 승인완료 추가 및 저장기능 (최초승인일이 있을경우만 승인완료 가능함) \n@ 상품대량등록- 대량상품수정 엑셀업로드에 상품상태 항목 추가(O) \n@ 제휴채널 정산 데이터 안나오는 이슈 (9/16 09이후 데이터) \n\n[CORE]\n@ 제휴몰 교환신청 로직 수정\n@ 샵링커송장전송관리- 주문자명 검색항목 추가건","","",""]
[null,"fzxeUxcjtUioBvhlnvGHfskAHqL6",null,null,"2021년 09월 14일 오전 배포이력",null,null,null,"배포이력","완료됨","중간","구성원;이정환;이선미;조 민혜;문 달호;박 중재;전 석훈;박 중재;정 지혜;김 지철","김 지철","2021.09.14.","","","false","2021.09.14.","전 석훈","[BOS]\n@ 취소신청 화면 옵션 추가\n\n[BATCH]\n\n[FRONT]\n\n[SCM]\n@ 배송비정책코드 등록 오류 수정\n@ 상품상세 팝업 - 최초승인일이 있을 경우 승인완료 상태로 변경가능하도록 수정 \n\n[CORE]","","",""]
[null,"nIwoSfjFuEiuH-ZYI9ev6MkAK4nG",null,null,"2021년 09월 13일 오후 배포이력",null,null,null,"배포이력","완료됨","중간","구성원;이선미;조 민혜;문 달호;박 중재;정 지혜;김 지철","전 석훈","2021.09.13.","","","false","2021.09.14.","이정환","[ADMIN]\n@ 주문목록 중복 조회 처리\n@ WMS 회수예외 수정\n[SCM]\n\n[FRONT]\n@ 마이페이지 AS-IS 취,반,교 기능 오픈\n@ 마이페이지 AS-IS 주문목록 기능 오픈\n@ SNS 로그인 주석 (앱심사)\n@ SNS 회원가입 주석 (앱심사)\n@ 동영기능 주석 (앱심사)\n@ HISTORY BACK 기능\n@ 자동로그인 기능\n@ 비회원 배송지정보등록 불가 처리\n@ 본인인증 오류 수정-연락처 한개 이상인 유저가있을 경우 본인인증시 오류 났던 부분 수정. 본인인증된 아이디 노출(마스킹처리)\n@ 자동로그인 ssl 적용여부에 따른 쿠키생성처리\n\n[BATCH]\n\n[CORE]","","",""]
[null,"TF5xQpyDi0ykjFdxqa7g8skAFB-N",null,null,"2021년 09월 09일 오전 배포이력",null,null,null,"배포이력","완료됨","중간","구성원;이정환;조 민혜;문 달호;박 중재;정 지혜;김 지철","전 석훈","2021.09.09.","","","false","2021.09.13.","전 석훈","[ADMIN]\n@ 관리자 반품철회 기능 전체상태가능, AS-IS 반품상세화면 팝업 호출 가능\n@ LMS 제휴몰(대외용) 발신자 추가 \n@ 반품신청 화면 옵션 추가\n@ 주문목록 SKUCODE 추가\n@ 주문목록 키워드 텍스트 수정 ( 제휴몰주문번호, 샵링커주문번호)\n@ 상품상세팝업 > 자사몰노출여부 표시\n@ 샵링커 송장전송 >가이드 텍스트 추가 ( 10분후 조회)\n@ 샵링커 주문수집 > 목록& 엑셀 등록자 표시 추가 \n\n[SCM]\n@ SCM 입점업체 정산관련 메뉴 3개 추가\n\n[FRONT]\n@ 구매확정 후 알림톡 발송 수정\n@ 비로그인상태에서 바로구매 클릭시 신규회원 구매 가능 상품이면 장바구니 시퀀스 세션에서 null 처리\n@ footer의 인스타그램 URL을 수정했습니다. 앱일 때도 호출되도록\n\n[BATCH]\n@ 구매확정시 배송완료(상품평등록) 알림톡 발송  - 배송완료시점 알림톡 주석처리 \n@  as-is주문건 회수시  orderGUID 매핑\n\n[CORE]\n@ 샵링커송장 실패 보완로직추가( BOS, BATCH)\n@ 오류메시지 내용 출력 ( bos, scm)\n@ 샵링커 주문수집 시 교환건 제외 로직 추가","","",""]
[null,"vBDcl3bHZkStnLDsx0WDk8kACgbj",null,null,"2021년 09월 10일 오전 배포이력",null,null,null,"배포이력","완료됨","중간","구성원;이정환;이선미;조 민혜;문 달호;박 중재;전 석훈;박 중재;정 지혜;김 지철","전 석훈","2021.09.10.","","","false","2021.09.13.","전 석훈","[ADMIN]\n@ 2021.09.09 취소시 페이코 조건 누락 추가\n@ 샵링커주문수집관리 : 조회목록 항목 추가  '옵션1', '옵션2', '교환접수여부' \n@ 주문엑셀업로드 : 등록시 상품명 저장안되어 목록에 빈값으로 노출되는 건 보완 \n@주문목록 고객아이디 조회 조건 추가 및 성능개선\n\n[SCM]\n@ 2021.09.09 취소시 페이코 조건 누락 추가\n@ 제휴채널 정산 오류 수정\n\n[FRONT]\n@ 2021.09.09 취소시 페이코 조건 누락 추가\n\n[BATCH]\n@ 2021.09.09 취소시 페이코 조건 누락 추가\n@ 상품평 작성 알림 카톡발송-주문기준으로 발송\n@ 최종 송장번호로 업데이트 추가\n\n[CORE]\n@ 2021.09.09 취소시 페이코 조건 누락 추가\n@ 샵링커 주문수집 - 교환건 주문등록 안되도록 적용\n@ 샵링커 주문수집/주문엑셀업로드 : 재고 품절로 주문등록 안된건 관리자메모에 자동 등록\n@ 배송목록 고객아이디 조회 조건 추가 및 성능개선","","",""]
[null,"1BLWihW1606tDbE_EWafxskABbBO",null,null,"9월8일 배포",null,null,null,"배포이력","완료됨","중간","이정환;이선미","전 석훈","2021.09.08.","","","false","2021.09.09.","이정환","1. BOS \n - 상품대량수정 업로드시 가격 바로 반영되도록 수정 \n - MD 권한수정 - 메인전시관리 (브랜드,카테고리,아울렛) 레이아웃 저장 버튼 노출 \n- LMS 추가 \n- 어드민 대량수정시 입점/자사 상관없이 상품정보에 바로 반영 처리\n- 반품,교환 신청 상품 조건 삭제 \n\n2. SCM \n - 상품대량업로드 오류수정\n\n3. BATCH \n - 네이버 EP 수정(전체일 때만 이미지 삭제후 생성) \n - 전체색인, 부분색인 오류 수정 \n- wms메모 글자 안짤리게 수정\n\n4. FRONT \n - 앱. 링크이동 오류 수정\n - 유아동 카테고리에서 '신상품제외' 상품이 기본으로 노출되도록 수정\n- 네이버 sns_id - 하나의 cust_no에 두개의 sns_id존재시 오류건 수정","","",""]
[null,"OTwmRDKl702_sz5XyX1PjMkAD8Xu",null,null," 9월 7일 배포",null,null,null,"배포이력","완료됨","중간","","이선미","2021.09.07.","2021.09.07.","2021.09.07.","false","2021.09.08.","이정환","FRONT\n- 모바일 yes24 로그인 연동오류 수정되었습니다.\n- 한세드림의 브랜드 상품목록에서, 신상품제외 버튼해제 완료( 유아동 추가예정)","","",""]
[null,"Z-FJ_buiY0-4i3n8O5PLj8kAKl1O",{"$f":"$A$1&B315","v":"순번Z-FJ_buiY0-4i3n8O5PLj8kAKl1O"},null,"[PJT잔여] 카카오 로그인 오픈테스트/오픈",null,null,null,"프로젝트 미구현/잔여결함","시작되지 않음","중간","문 달호","정 지혜","2021.09.29.","2021.10.12.","2021.10.15.","true","","","특정 아이피로 체크해서 열어서 기능 확인하고 전체오픈하는걸로 한다.","","","","완료"]
[null,"QjgUSq8MaEOedbYJStCtickADejH",{"$f":"$A$1&B316","v":"순번QjgUSq8MaEOedbYJStCtickADejH"},null,"[PJT잔여] 앱 필수업데이트 팝업 노출안되는 현상",null,null,null,"프로젝트 미구현/잔여결함","시작되지 않음","중간","김 덕규","정 지혜","2021.09.28.","","","false","","","","","","","분석","김덕규이사님께 문의중"]
[null,"_2vHqqCka0SABcbqQySbHskAJ55E",{"$f":"$A$1&B317","v":"순번_2vHqqCka0SABcbqQySbHskAJ55E"},null,"[PJT잔여] 검색결과 페이지에 광고상품 미노출",null,null,null,"프로젝트 미구현/잔여결함","시작되지 않음","중간","조 민혜","정 지혜","2021.09.28.","","2021.11.19.","false","","","bos> 상품 > 상품광고키워드관리 > 키워드와 상품을 등록한 데이터를 기반으로\n키워드 가 검색결과의 쿼리\n상품이 상위에 노출될 상품들임.\n검색결과보다 우선하여, 해당 상품들이 AD라는 딱지(CSS확인) 를 붙여 노출함.","","","","2d"]
[null,"UsSjD71uH0C_HxrsFh4UQskAC2Oy",null,null,"[PJT잔여] 메인 > 당신을위한제안기능 누락",null,null,null,"프로젝트 미구현/잔여결함","완료됨","중간","조 민혜","정 지혜","2021.09.17.","","2021.10.12.","false","2021.10.12.","정 지혜","--> 개발계 개발된 내용 확인중\n추천솔루션에 있는 데이터를 노출","","",""]
[null,"hgxVgHSnYUyzm1RWeNg1vMkANusb",null,null,"등록되있는 포토상품평이 있을 경우,상품의 리뷰 목록에 1개 노출되어야 하나 노출안됨",null,null,null,"프로젝트 미구현/잔여결함","완료됨","중간","","정 지혜","2021.09.16.","","","false","2021.10.08.","정 지혜","등록되있는 포토상품평이 있을 경우,상품의 리뷰 목록에 1개 노출되어야 하나 노출안됨","","",""]
[null,"Tk6n2xBRKU6STkT1ftOOD8kALWg6",null,null,"상품상세 > 페이스북/트위터 공유 동작안함",null,null,null,"프로젝트 미구현/잔여결함","완료됨","중간","","정 지혜","2021.09.16.","","","false","2021.10.08.","정 지혜","","","",""]
[null,"MRF_s-d500ix1wAR3XH-4MkANWEc",null,null,"기획전 공유하기 기능 전체 에러.",null,null,null,"프로젝트 미구현/잔여결함","완료됨","중간","","정 지혜","2021.09.16.","","","false","2021.10.08.","정 지혜","","","",""]
[null,"PAioutXxYUqBU5XEPdyt_skALMyc",null,null,"상품검색키워드 관련 기능 프론트 누락",null,null,null,"프로젝트 미구현/잔여결함","완료됨","중간","","정 지혜","2021.09.17.","","","false","2021.10.08.","정 지혜","","","",""]
[null,"BWj_Z1BfrUmLobY1rIIRN8kAAOY9",null,null,"[결함] 기획전 '미노출' 처리 하였을 때 프론트 페이지 접근에러 남 미리보기 기능도 기획전 기간이 해당하지 않으면 조회불가함",null,null,null,"프로젝트 미구현/잔여결함","완료됨","중간","","정 지혜","2021.09.28.","","","false","2021.10.08.","정 지혜","[결함] 기획전 '미노출' 처리 하였을 때 프론트 페이지 접근에러 남 \n미리보기 기능도 기획전 기간이 해당하지 않으면 조회불가함","","",""]
[null,"086PgxJZWEmCMS2TJ9MezskAAxof",null,null,"[결함] 선물하기 주문 에러",null,null,null,"프로젝트 미구현/잔여결함","완료됨","중간","","정 지혜","2021.09.29.","","","false","2021.10.08.","정 지혜","- 주소 입력하지 않았는데 데이터 넘어감\n19908063","","",""]
[null,"5DWxLoUf9Uy5asItDcUveckAH6YS",null,null,"베스트의 여성/남성/연령 기능 동작하지 않음",null,null,null,"프로젝트 미구현/잔여결함","완료됨","중간","조 민혜","정 지혜","2021.09.16.","","","false","2021.10.05.","조 민혜","","","",""]
[null,"PSm9fYcJ_06OIyx1_SwM3MkAACNZ",null,null,"[결함] 선물하기 연락처 불러오기 미구현",null,null,null,"프로젝트 미구현/잔여결함","완료됨","중간","전 석훈;김 지철","정 지혜","2021.09.28.","","","false","2021.09.29.","김 지철","결함 내역 으로 확인","","",""]
[null,"warAkfxCBEafgo0c2sGKbckAIGeV",null,null,"[결함] 선물하기 주문 앱에서 에러",null,null,null,"프로젝트 미구현/잔여결함","완료됨","중간","전 석훈;김 지철","정 지혜","2021.09.28.","","","false","2021.09.29.","정 지혜","선물받는자 이름등록하면 계속 이름을 등록하라고 나옴.","","",""]
[null,"2XuVUTa-u0OYg0prdmuSHskACbBg",null,null,"검색결과 > 추천영역 누락",null,null,null,"프로젝트 미구현/잔여결함","완료됨","중간","","정 지혜","2021.09.17.","","","false","2021.09.28.","정 지혜","","","",""]
[null,"ivWJEl11FEOy6Qor4a8t_ckAHg0I",null,null,"상품 카카오톡 공유 하기 시, 해당 상품 링크가 아닌 메인으로 랜딩됨. ()",null,null,null,"프로젝트 미구현/잔여결함","완료됨","중요","","정 지혜","2021.09.16.","","","false","2021.09.23.","정 지혜","","","",""]
[null,"aBuQWTXVDUWTi-C1mJIczckAOkCa",null,null,"브랜드 페이지 로딩속도 10초 이상소요.",null,null,null,"프로젝트 미구현/잔여결함","완료됨","중간","조 민혜","정 지혜","2021.09.17.","","","false","2021.09.23.","정 지혜","","","",""]
[null,"U3VAolDYvUix-xURrbHIgckAHTDr",{"$f":"$A$1&B331","v":"순번U3VAolDYvUix-xURrbHIgckAHTDr"},null,"[PTJ잔여] 상품리스트> 마우스오버시 다음컷 나오지않음(기획전 외)",null,null,null,"프로젝트 미구현/잔여결함","시작되지 않음","중간","조 민혜","정 지혜","2021.09.17.","","2021.11.12.","false","","","검색엔진 페이지 외에는 상품리스트 > 마우스오버시 다음컷이 안나옴\n(db 전시하는부분)","","","","5d"]
[null,"YyZ0ve36TESN-YfChdrUdskAFBU6","순번YyZ0ve36TESN-YfChdrUdskAFBU6",null,"[PJT잔여][FRONT] 검색결과> 최근검색순 -->인기검색순",null,null,null,"프로젝트 미구현/잔여결함","시작되지 않음","중간","조 민혜","정 지혜","2021.09.17.","","2021.11.12.","false","","","검색결과에서 설계 상 검색결과는 인기검색순 노출임","","","","완료"]
[null,"0p5pyvbfb0-hzDx7Ufows8kADkbI","순번0p5pyvbfb0-hzDx7Ufows8kADkbI",null,"[PJT잔여] 출석체크 기능 정상 동작 하지 않는건->테스트필요",null,null,null,"프로젝트 미구현/잔여결함","진행 중","중간","문 달호","정 지혜","2021.09.16.","","2021.10.29.","false","","","테스트 필요","","","","완료","테스트 요청중"]
[null,"z0jp-r3J7EO7fzpC26MXb8kAA_Nn","순번z0jp-r3J7EO7fzpC26MXb8kAA_Nn",null,"[PJT잔여] 자사 무료배송비 기능 추가 개발 (상품, 주문)",null,null,null,"프로젝트 미구현/잔여결함","시작되지 않음","중간","전 석훈","김 지철","2021.09.10.","","2021.12.17.","false","","","","","",""]
[null,"g_N2Iuvv3UyvH6X9txu6VskAGGwJ","순번g_N2Iuvv3UyvH6X9txu6VskAGGwJ",null,"[PJT잔여] 네이버페이 주문형 검수 대응",null,null,null,"프로젝트 미구현/잔여결함","진행 중","중요","김 지철","김 지철","2021.09.10.","","2021.10.15.","true","","","","","",""]
[null,"E8WWFgqsn0OZOSoHhtyzYMkAPOyc","순번E8WWFgqsn0OZOSoHhtyzYMkAPOyc",null,"[PJT잔여] 통계 개발 잔여(결함수정)",null,null,null,"프로젝트 미구현/잔여결함","시작되지 않음","중간","김 덕규","정 지혜","2021.09.09.","","","false","","","- 통계건 개발은 완료 되었으나, 에러가 있음","","","","분석","오류발생 현상에 대한 자세한 내용 필요"]
[null,"aPEjKOrp1EGE9t2fPlHDoskAPAJg","순번aPEjKOrp1EGE9t2fPlHDoskAPAJg",null,"[PJT잔여] 총알배송 휴무일/일반배송휴무일 분리",null,null,null,"프로젝트 미구현/잔여결함","시작되지 않음","중간","전 석훈","정 지혜","2021.09.09.","","2021.11.05.","false","","","프로젝트 결함사항임.","","","","완료"]
[null,"KM1L3Tu1ZUeF4m1tXjBC88kALnRZ",null,null,"2021년 10월 13일 긴급 배포 내역",null,null,null,"할 일","완료됨","중간","구성원;이정환;이선미;조 민혜;문 달호;박 중재;전 석훈;정 지혜;김 지철","전 석훈","2021.10.13.","","","false","2021.10.13.","전 석훈","2021년 10월 13일 긴급 배포 내역\n\n[BOS]\n\n[SCM]\n\n[FRONT]\n@ 주문서 유효성 체크 오류 수정\n\n[BATCH]\n\n[PUBLIC BATCH]\n\n[CORE]","","",""]
[null,"6vkysjLCpEKFvN5dOJ9SnckAC-3V",null,null,"https://docs.google.com/spreadsheets/d/19dizzcCB6quIHQWIj55BSRXp0vscz3Yl1b28ym3WLzU/edit#gid=1291267654",null,null,null,"할 일","완료됨","중간","","정 지혜","2021.10.08.","","","false","2021.10.08.","정 지혜","","","",""]
[null,"oZAZEwROrkKUZfKp0JqBg8kAAFtA",null,null,"CS",null,null,null,"할 일","완료됨","중간","","정 지혜","2021.10.08.","","","false","2021.10.08.","정 지혜","","","",""]
[null,"oN_G5BUTM0ig5-ZCoeUVgckAGyFN",null,null,"CS",null,null,null,"할 일","완료됨","중간","","정 지혜","2021.10.08.","","","false","2021.10.08.","정 지혜","","","",""]
[null,"u-afJhJcH0ee97qbYR49DckAG40H",null,null,"배치 시간 및 배치 시 발송되는 데이터 점검",null,null,null,"할 일","완료됨","중간","김 덕규","정 지혜","2021.09.02.","","","false","2021.10.06.","이정환","","","",""]
[null,"G6RqpH0qcEytC1L5hbGmBMkAOHeq",null,null,"N182TH102P_ wh 이미지가 등록되어 있으나 안나오는현상",null,null,null,"할 일","완료됨","중간","","정 지혜","2021.09.24.","","","false","2021.10.06.","이정환","WH 컬러 이미지 등록되어있으나, 목록 및 상세에 노출되지 않음.","","",""]
[null,"TpOXYN-w90aOTNsbbK5pXMkAAixL",null,null,"일간 스케줄러 확인",null,null,null,"할 일","완료됨","중간","문 달호","정 지혜","2021.09.10.","","","false","2021.10.05.","정 지혜","출고처 지정\t데이터 계류건 있는지 확인필요 - 09.15 현시점 없음.\n출고확정,송장데이터 수신\t* 송장데이터 마지막에 변경되었을때 수신안되나요?\n-> 수정완료 , 수정전 data 변경송장번호로 업데이트 및 스윗트래커 배송추적요청 \nCJ 회수지시 요청 \n-> 서보성이사님 확인 (09.13~ 09.14  모니터링)\t　\nCJ 재회수지시 요청\t\n-> 서보성이사님 확인(WMS_IF DB 확인 및 CJ DB 확인) 　\nwms에서 재회수 나가는지확인  \n->  서보성이사님 확인 (09.13~ 09.14  모니터링)\t　\t　\nCJ 회수지시 결과 \n- >  주문/배송>회수관리> 회수지시목록 화면에서 \tCJ 회수상태 확인가능\n       (wms에서 cj쪽 전송결과는 반영하지 않음,  cj쪽 회수송장번호 트래킹시점 부터 bos에서 확인가능)　\nCJ 재회수지시 결과\t*결과호출 여부확인 \n-> 재회수지시 요청시 상태값 재회수지시로 표현되며 cj쪽 회수송장번호 트래킹 시점부터 cj쪽 상태값 확인 가능. )\n\n입고데이터 수신  \t　 \n반품입고 데이터 수신\t　\n-> 회수입고결과 수신 배치 정상 수행중.\n회수 예외 데이터 수신\t　\n-> 회수입고 예외 수신 배치  정상 수행중. \n\n---------------------------------------------------------------------\n샵링커 주문데이터수신\t*교환 주문 안들어오는지 다시확인\n샵링커 송장데이터송신\t*오송장 건 왜 발생되는지 확인","","",""]
[null,"m567Gohpz02SCIt_nXCL58kAMmUb",null,null,"품절취소 SMS (알림톡) 메뉴 확인요청",null,null,null,"할 일","완료됨","중요","문 달호","전 석훈","2021.09.16.","","","false","2021.09.28.","정 지혜","안녕하세요 고객만족팀 김은주입니다.\n\n주문번호 : 19892769\n고객명 : 송민영\n\n3개의 상품 주문후 1개의 상품 품절로 등록되어 자동으로 취소가 진행 되었습니다.\n\n\n\n====================================================\n\n메일확인결과  \n\n고객문의 : 사이즈 품절전  연락 주세요 \n\nC/S  문의  :   발송된 SMS(알림톡) 확인 메뉴 있는지에 댜한  문의같아보임. \n\n== 현상태 :  품절 취소 알림톡 발송됨.  \n                     발송내역 확인 메뉴는 없음,\n\n========================================\n\n송민영 고객님 양해의 말씀을 드립니다.\n\n주문하신 상품이 품절되어 부득이하게 취소되었습니다.\n결제하신 금액은 환불해 드리겠습니다.\n\n■ 취소상품명 : [모이몰른] 피케리프 주름스커트 M213SKG30P [가을] \n■ 주문번호 : 19892769\n\n품절 상품에 대한 환불금액은 결제하신 수단으로 부분취소/환불 하여 드리겠습니다. 각 결제수단 별 3~7일 소요될 수있습니다.\n\n불편사항이나 문의사항은 1:1문의/고객센터로 문의주시면\n빠르게 안내드리겠습니다.\n스타일24 바로가기 : https://www.style24.com\n스타일24 고객센터 : 1544-5336\n\n발신일: 2021-09-15 19:40:13","","",""]
[null,"QeSp47hEqEuAmo5QTe_vH8kAFs3Z",null,null,"기획전 상단 구분자 동작오류",null,null,null,"할 일","완료됨","중간","조 민혜","박 중재","2021.09.24.","","","false","2021.09.28.","정 지혜","모바일 (웹/앱)   기획전,  기획전 상단 틀고정 구분자 동작오류 (9/24 메일 발송, 발신인 박중재)\n \n- 첫번째 구분자, 두번째 구분자까지만 정상 동작하고, 세번째 구분자부터는 동작안함\n    - 상품 리스트를 스크롤시, 각 구분자 영역에 맞게 상단 구분자가 변경되어야 하지만 안됨\n    - 선택박스 클릭후, 각 구분자를 직접 선택하는 경우에도 구분자 명칭 변경 안됨","","",""]
[null,"-oOGcWs9Lk2o_W9EAJWeBskAHsNx",null,null,"2021년 09월 28일 오전 배포이력",null,null,null,"할 일","완료됨","중간","구성원;이정환;이선미;조 민혜;문 달호;박 중재;전 석훈;박 중재;정 지혜;김 지철","조 민혜","2021.09.28.","","","false","2021.09.28.","전 석훈","[ADMIN]\n\n[SCM]\n\n\n[FRONT]\n\n[BATCH 일반]\n@ (긴급배포) 스케쥴 설정 누락 오류로 인한 긴급배포 \n\n[BATCH public]\n@ (긴급배포) 스케쥴 설정 누락 오류로 인한 긴급배포 \n\n[CORE]\n@ 반품 REG_NO, UPD_NO 변경 처리","","",""]
[null,"tidRmKAgNUqWczF692KMFMkAKyFq",null,null,"[완료] RE: 전체 반품 회수입고 수량 오류 문의",null,null,null,"할 일","완료됨","긴급","전 석훈;정 지혜","정 지혜","2021.09.24.","","","false","2021.09.28.","전 석훈","주문번호  : 19871411 \n고객명 : 노수진 \n\n해당 주문건도 반품 수량이 총 2개 + 1개 = 3개의 상품이 입고되었으나.\n회수 수량이 4개로 표시가되어 환불이 되지 않습니다.","","",""]
[null,"xApWPtL7kUqB1zN7Y1cfpckAGJIq",null,null,"[완료] 배송비 정책에 따른 부분취소 및 전체취소 배송비 계산 결함 수정",null,null,null,"할 일","완료됨","중간","전 석훈;정 지혜;김 지철","정 지혜","2021.09.23.","","","false","2021.09.28.","김 지철","19882659 주문 파생건\n\n\n안녕하세요 고객만족팀 김은주입니다.\n\n주문번호 : 19882659       \n고객명 : 이선영\n\n해당상품 입점업체 상품으로 \n운송장 번호가 등록이 되었으나. 실제 품절로 발송이 되지 못한 상품입니다. \n\n이후 반품 접수시 품절로 취소접수를 하였으나. \n왕복 배송비 6,000원이 차감후 환불되는 오류가 확인되어 문의드립니다. \n\n해당 사항 확인후 나머지 6천원도 취소처리 부탁드립니다.\n감사합니다.","","",""]
[null,"yE7cBIW7ckeF8EXzqlUQtMkAByiG",null,null,"옵션순서 적용안됨",null,null,null,"할 일","완료됨","중요","조 민혜","정 지혜","2021.09.28.","","","false","2021.09.28.","정 지혜","https://www.style24.com/goods/detail/form?goodsCd=E289800009755\n해당 링크 보시면 옵션 노출 순서가 설정해둔 것과 다르게 뒤죽박죽인데요,\n오류인 건지 확인 부탁드려요.","","",""]
[null,"pIRYfSUV202ir-QbfVRJKMkABrzH",null,null,"앤듀 브랜드관 영상 오류",null,null,null,"할 일","완료됨","중간","조 민혜","정 지혜","2021.09.23.","","","false","2021.09.28.","조 민혜","영","","",""]
[null,"9R9cemefTkOWlWiYdd0a88kAJ0SM",null,null,"[완료] 반품/취소/환불시 오류문의",null,null,null,"할 일","완료됨","중간","전 석훈;정 지혜","전 석훈","2021.09.14.","","","false","2021.09.28.","정 지혜","안녕하세요 고객만족팀 김은주입니다.\n\n@ 반품  / 취소 / 환불 관련하여 \n일부 주문건이 계속 오류가 발생되어 문의드립니다.\n\n@ 반품 접수 오류 ( 제휴 주문건 – / 고객변심 / 배송비 차감 없음 )\n19888236 백한기 ---> 반품접수중\n19888175 최영진 ---> 어떤상품인지 알수없음 상세번호 전달 요청\n19886622 신연식 ---> 어떤상품인지 알수없음 상세번호 전달 요청\n19881131 정지현 ---> 반품접수중\n19876886 임미경 ---> 반품접수중\n19870910 이정운 ---> 회수방법이 누락되어 있어서 접수 불가.\n19869471 박영식 ---> 반품접수중\n19869394 이경선 ---> 반품접수중\n19867854 김현우 ---> 회수방법이 누락되어 있어서 접수 불가.\n19886153 김영래 ---> 반품접수중\n\n@ 자사 반품접수시 오류 \n19887050 김리하 -> 부분반품 / 고객변심 -> 2500원 차감\n19881131 정지현 -> 전체반품 / 고객변심 -> 5000원 차감\n19874479 김성혜 -> 전체반품 / 상품불량-> 무상반품건 ---> 회수방법이 누락되어 있어서 접수 불가.\n19886622 신연식 -> 부분반품 / 고객변심  5천원 차감\n\n자사배송비정책이 N 처리 되어 있어서 반품접수가 불가했던것으로 추측이 됩니다.\n다시 한번 반품접수 부탁드립니다.\n혹시라도 오류가 있다면 다시 한번 문의 주시면 신속하게 처리해 드리겠습니다.","","",""]
[null,"6uYZtI_JHEOH1CP89pZbnMkAASza",null,null,"[완료] 주문번호 19859391 (  고객명 :  김정희 15386092-2 [투미] Y 슬림 정장팬츠 - TMTW612S1B_19 19)Black 067   해당 상품 품절 ",null,null,null,"할 일","완료됨","중간","전 석훈;정 지혜","정 지혜","2021.09.24.","","","false","2021.09.27.","정 지혜","","","",""]
[null,"OK_mdoNlp0GJvDD1mrCrZckAFfWX",null,null,"2021년 09월 24일 오전 배포이력",null,null,null,"할 일","완료됨","중간","구성원;이선미;조 민혜;문 달호;박 중재;전 석훈;정 지혜;김 지철","조 민혜","2021.09.23.","","","false","2021.09.24.","조 민혜","[BOS]\n@ 구매확정 반품/교환 접수 처리\n\n[BATCH]\n@ 네이버페이 결제형 정산 개발\n\n[FRONT]\n@ 기획전 상세 - 템플릿 슬라이드 동시에 움직이는 오류 수정, 상품목록 전체가 안 나오는 오류 수정\n@ 네이버페이 카드결제 카드코드 추가\n\n[CORE]\n@ 배송비 정책에 따른 부분취소 및 전체취소 배송비 계산 결함 수정","","",""]
[null,"0Axo4VvCgkSJvTFf9SJ4xckAO0Al",null,null,"주문번호 : 19880673 ( 품절 취소  ) ",null,null,null,"할 일","완료됨","중간","","정 지혜","2021.09.24.","","","false","2021.09.24.","정 지혜","배송처가n으로 되어있으면 반품 발생시 오류가 생김...","","",""]
[null,"Av2shav9OU2B1BYSR3tcLckALF__",null,null,"[진행중] 구매확정 반품접수 문의",null,null,null,"할 일","완료됨","중간","전 석훈;정 지혜","전 석훈","2021.09.15.","","","false","2021.09.24.","정 지혜","안녕하세요 고객만족팀 김은주입니다.\n주문번호 : 19875472 \n고객명 : 김현주\n\n구매확정 상품\n11882638-1        [컨버스키즈] 빈티지 스타 티셔츠(긴팔)L ENF11QTS98 (키즈)  블랙     105\n13675595-1        [컨버스키즈] 소매 척패치 긴팔티셔츠L EPS11QTS45 (키즈)    화이트   105\n\n주문한 전체 상품 반품 요청하여 당사 물류로 입고 되었으나.\n2상품 구매확정되어 반품 접수가 되지 않습니다.\n\n해당 주문건 반품 접수로 처리 부탁드립니다.\n감사합니다.","","",""]
[null,"51IdRTfUo0GQZd6HTMVF_skAGryw",null,null,"경로 : 주문/배송 – 회수관리 - WMS회수예외관리  WMS회수예외관리 화면에서 기간 설정후 조회시 기준일 다음날 까지 조회가 됩니다.   예 ) 9/1일~ 9/11일까지 조회시 / 9월 12일 접수건까지 확인되는 오류 ",null,null,null,"할 일","완료됨","중간","","정 지혜","2021.09.16.","","","false","2021.09.24.","정 지혜","","","",""]
[null,"Xf-t_KLEF0WiQkH8K9D7fMkAMiqa",null,null,"19879427 / 57798525 구매확정->배송완료(반품접수를 위함)",null,null,null,"할 일","완료됨","중요","","정 지혜","2021.09.24.","","","false","2021.09.24.","정 지혜","","","",""]
[null,"H2PEtXCaSUiBBsjYI7G-FMkAKK6r",null,null,"코마스 광고 스크립트 수정요청",null,null,null,"할 일","완료됨","긴급","조 민혜;정 지혜","박 중재","2021.09.23.","","","false","2021.09.24.","조 민혜","9/23 1시 30분 메일 발송건 (발신인 정지혜)\n코마스(광고대행사) 에서 이용하는 \"네이버스크립트\" 수정 요청건\n\n1) 공통스크립트 내 큰 따옴표 누락\n2) 회원가입 완료페이지 https://www.style24.com/customer/join/complete/form 내 전환(2)가치 정수 형태로 수정 필요합니다.\n3) 하기 테스트 계정의 회원가입이력 삭제 (신규가입 테스트 수행하기 위함)\n   natest1 / 01067622765 \n   gksthf3452 / 01024733452\n\n현재 탈퇴회원 목록에서 조회되고 있으며,  가입이력 삭제 요망함.","","",""]
[null,"pCPsGUvYuEWg76J1holMS8kAEeIb",null,null,"운송장번호 미연동 문의",null,null,null,"할 일","완료됨","중간","조 민혜;문 달호;정 지혜","전 석훈","2021.09.16.","","","false","2021.09.23.","조 민혜","안녕하세요 고객만족팀 김은주입니다.\n\n주문번호 19892902      \n고객명 : 원호석\n제휴몰 : SSG\n\n해당 주문건 확인시  주문상태가 배송중으로 확인됩니다.\n하지만 실제 택배사 / 운송장 번호는 확인되지 않습니다\n\n이후 샵링커송장전송 관리화면에서도 해당 주문건의 송장내역은 확인되지 않습니다.\n물류확인시  339385765362  해당 운송장으로 출고된것으로 확인 된다고 합니다.\n\n-> WMS_IF DB쪽  송장번호 테이블에  데이터가 없어서  송장번호 연동이 안되었습니다.\n    서보성이사님에게 문의 확인   원인 파악 요청\n-------------------------------------------------------------------------------------------------------------------\n\n주문번호 : 19888316 \n고객명 : 정다희\n제휴몰 : SSG\n\n해당 주문건은 주문목록 상세 정보에는 운송장 번호가 등록되어 있으나,\n샵링커송장전송에서도 검색이 되지 않습니다.\n2건 모두 SSG 몰 주문건으로 샵링커송장전송에 오류가 있는듯 합니다.\n\n해당 주문건 2건 모두 내일 오전 수동으로 해당몰에 송장 등록 진행하겠습니다.\n\n확인 부탁드립니다.\n\n감사합니다.","","",""]
[null,"FLUhSDJVoEimyy170umposkAEGdf",null,null,"제휴몰 교환발주 미매핑건",null,null,null,"할 일","완료됨","중요","조 민혜;정 지혜","정 지혜","2021.09.17.","","","false","2021.09.23.","조 민혜","안녕하세요 고객만족팀 김은주입니다.\n\n자동 발주몰들이 교환주문건들도 자동으로 발주가 진행되나 \n미매핑으로 발주가 되지 않는 주문건이 있어  재확인요청드립니다. \n\n하프클럽 원주문 정상발주건 \n주문번호 : 19867049       \n하프클럽 원주문건 : 210826797377\n\n하프클럽 교환주문 정상발주건 \n주문번호 : 19885027\n하프클럽 교환주문건 : 210830034956 \n\n\n위 와 같이 제휴몰에서 교환건으로 처리 진행시 자동으로 교환주문건이 발주가 되어 발송이되었습니다.\n그런데 최근 자꾸 미매핑 되는 주문건이 발생되어 요청드립니다. \n\n하프클럽 원주문건\n주문번호 19882315\n하프클럽 원주문건 : 210908768577\n하프클럽 교환주문건 : 210909954887\n\n교환 주문건이 확인되지 않아 확인시 미매핑으로 주문건이 생성되지 않은것으로 확인됩니다","","",""]
[null,"I5WxWSX4K0GbF_a9bZGWAckABUtv",null,null,"[완료] 네이버 스크립트 오류",null,null,null,"할 일","완료됨","긴급","조 민혜;전 석훈;정 지혜","정 지혜","2021.09.23.","","","false","2021.09.23.","전 석훈","","","",""]
[null,"mQMiyPEPD0OO_W9ZlbLmTckADoLj",null,null,"2021년 09월 23일 오후 배포이력",null,null,null,"할 일","완료됨","중간","구성원;이선미;조 민혜;문 달호;박 중재;전 석훈;정 지혜;김 지철","조 민혜","2021.09.23.","","","false","2021.09.23.","전 석훈","[ADMIN]\n@ 샵링커 주문수집 - 교환건도 자동수집되도록 변경\n@ 제휴몰주문업로드 - 자신의 대기건이 존재할 경우 엑셀 업로드 못하도록 수정(알럿창 표시) \n@ 스플래시 이미지 수정 후 <저장> 버튼 클릭 시 저장안됨 오류 수정\n\n[SCM]\n@ 입점업체 권한일 때는 로그인 사용자의 권한값(공급벤더코드)를 갖고 있는 사용자가 등록한 데이터를 조회\n\n[FRONT]\n@ 브랜드 전체 > 쿼리속도 개선 \n@ 네이버 공통스크립트 - 큰따움표 누락수정\n@ 기획전 카카오 공유하기 기능 수정\n\n[BATCH]\n@ 몰메인 신상품 선정기준 - 자사몰먼저 나오도록 수정\n\n[BATCH-PUBLIC]\n@ 샵링커 주문수집 - 교환건도 자동수집되도록 변경\n\n[CORE]\n@ 샵링커 주문수집 - 교환건도 자동수집되도록 변경 (bos, batch-public)\n@ 제휴몰주문업로드 - 본인) 대기건이 존재할 경우 엑셀 업로드 못하도록 수정(알럿창 표시)","","",""]
[null,"OypMPnb_2UWgtUjnWhAz38kAM8f6",null,null,"[완료] 취소 접수 오류문의",null,null,null,"할 일","완료됨","중간","전 석훈;정 지혜","전 석훈","2021.09.23.","","","false","2021.09.23.","정 지혜","안녕하세요 고객만족팀 김은주입니다.\n\n주문번호 : 19871282 ( 8월 주문건 )\n고객명 : 윤태희\n\n해당 주문건 아직도 취소가 되지 않아 확인 요청드립니다.\n확인 부탁드립니다 .\n\n감사합니다.","","",""]
[null,"0D-gYrI7IkyotuOwLAzHl8kAHRyS",null,null,"19894430_주문취소 불가, 처리바람.",null,null,null,"할 일","완료됨","중요","조 민혜","정 지혜","2021.09.23.","","","false","2021.09.23.","정 지혜","","","",""]
[null,"5wod2cj5OE-zgZr0cco6QckAOT6Q",null,null,"[완료] 출고전 취소접수 오류 문의 ( 8월 주문건 )",null,null,null,"할 일","완료됨","중간","전 석훈","전 석훈","2021.09.16.","","","false","2021.09.23.","전 석훈","안녕하세요 고객만족팀 김은주입니다.\n주문번호 : 19860242 \n고객명 : 곽상효\n상품준비중 상품 취소시 오류 발생됩니다.","","",""]
[null,"5qSaEbqXiEaN4eHc9eKUHckAAfp6",null,null,"[완료] 19887215_ 발송전 전체취소에 대한 배송비 환불오류",null,null,null,"할 일","완료됨","중간","전 석훈;정 지혜;김 지철","정 지혜","2021.09.23.","","","false","2021.09.23.","정 지혜","배송비 오류 이슈 동일.,","","",""]
[null,"apvZx1-OqUCAE_Dd8dTSr8kAFlMQ",null,null," [완료] 19882659  _품절 취소 상품에 대한 배송비차감결함",null,null,null,"할 일","완료됨","중간","전 석훈;정 지혜","정 지혜","2021.09.23.","","","false","2021.09.23.","정 지혜","안녕하세요 고객만족팀 김은주입니다.\n\n주문번호 : 19882659       \n고객명 : 이선영\n\n해당상품 입점업체 상품으로 \n운송장 번호가 등록이 되었으나. 실제 품절로 발송이 되지 못한 상품입니다. \n\n이후 반품 접수시 품절로 취소접수를 하였으나. \n왕복 배송비 6,000원이 차감후 환불되는 오류가 확인되어 문의드립니다. \n\n해당 사항 확인후 나머지 6천원도 취소처리 부탁드립니다.\n감사합니다.","","",""]
[null,"8aqn1-fKXUyN2_oYCge2S8kAF6mJ",null,null,"[완료] 전체반품 회수입고 수량 오류문의",null,null,null,"할 일","완료됨","중간","문 달호;전 석훈;정 지혜","전 석훈","2021.09.23.","","","false","2021.09.23.","정 지혜","안녕하세요 고객만족팀 김은주입니다.\n주문번호 : 19869017\n고객명 : 윤지원\n17044925          15672824-15      소프트데일리골지레깅스   2\n16999031          15626901-5        플라워하이디프릴원피스   1\n\n해당 상품 수량 총 3개를 구매후 반품 하였습니다.\n물류 입고후 회수완료 되었으며,  환불컨펌시 총 회수 수량이 5개로 오처리 되어 있습니다.","","",""]
[null,"dHLDANy5aECeoL_-tGnaOMkAHoEz",null,null,"[완료] CS 업무대응  19874479 김성혜",null,null,null,"할 일","완료됨","중간","전 석훈;정 지혜","전 석훈","2021.09.16.","","","false","2021.09.23.","정 지혜","19874479 김성혜 -> 전체반품 / 상품불량-> 무상반품건 ---> 회수방법이 누락되어 있어서 접수 불가.\n==> 해당건이요 접수시 계속 로딩이 돌고접수가 안되요\n반품사유 - 기타 / 회수방법 - 회수없음 \n\n으로 처리해주시면됩니다.","","",""]
[null,"kVr1-_bVQkaBqm-aTPXMYskAARNd",null,null,"[완료] 구매확정 반품 접수 문의",null,null,null,"할 일","완료됨","중간","전 석훈;정 지혜","전 석훈","2021.09.16.","","","false","2021.09.23.","정 지혜","안녕하세요 고객만족팀 김은주입니다.\n\n구매확정 주문건 추가건 반품 접수처리 부탁드립니다.\n\n주문번호 : 19857288       \n고객명 : 이설\n주문일자 : 2021-08-13\n제휴사 : 하프클럽\n\n해당 주문건 WMS회수예외관리에 등록되었으나,\n구매확정건으로 반품 접수를 할 수 없습니다.\n\n해당건 이미 하프클럽에는 환불처리 된 주문 건이니  빠른 환불처리 부탁드립니다.\n\n감사합니다.","","",""]
[null,"zue_UNbWT0uj5IKLTyC0hckAESWC",null,null,"[완료] 휴대폰취소접수오류문의( 주문일:9/11)",null,null,null,"할 일","완료됨","중간","전 석훈;정 지혜","전 석훈","2021.09.16.","","","false","2021.09.23.","정 지혜","안녕하세요 고객만족팀 김은주입니다.\n주문번호 : 19887050\n고객명 : 김리하\n품절상품 : 16729515 15357190-6 치치슬럽가디건 /\n해당 주문건도  취소접수 되어 있으나,\nPG 점프 진행후  현금 환불 진행시 요청번호 클릭시 아래와 같이 로딩으로만 표시가 됩니다\n위 주문건 환불지연으로 항의건으로  현금 수동 환불 진행하겠습니다.\nPG 점프 진행후 환불완료 처리 부탁드립니다.\n감사합니다.","","",""]
[null,"aAq95LWXv0y2bJBtVjr6nskACyeN",null,null,"[완료] 고객취소 접수 환불된 오류건",null,null,null,"할 일","완료됨","중간","전 석훈;정 지혜;김 지철","전 석훈","2021.09.15.","","","false","2021.09.23.","정 지혜","안녕하세요 고객만족팀 김은주입니다.\n\n주문번호  : 19892760\n고객명 : 박지윤\n\n총 5개의 상품 주문 후 고객이 직접 2개의 상품을 취소 한 것으로 확인되나,\n실제 2개의 상품 가격은 각각 부분 취소가 되었으나,\n상품은 1개만 취소가 되어 정상 발송되었습니다.\n\n--------------------------------------------------------------------------------------------\n\n해당 주문 정보 확인 해보았습니다.\n상세번호 : 57835218 수량 2개 중 1개만 취소여서 주문상세상택값은 배송중 상태가 맞습니다.\n그래서 현재 상태는 정상 상태 입니다.\n혹시 더 이상한 내용 있으시면 다시 문의 주세요.\n\n--------------------------------------------------------------------------------------------","","",""]
[null,"ioPoyCKsgU2e5FpqasZVlskAIaWu",null,null,"19876103 품절취소인데 배송준비중",null,null,null,"할 일","완료됨","중간","","정 지혜","2021.09.23.","","","false","2021.09.23.","정 지혜","","","",""]
[null,"y1wbF9uNxkSe6Vewj7vW9MkAHyia",null,null,"2021년 9월 17일 배포 이력",null,null,null,"할 일","완료됨","중간","구성원;이정환;이선미;조 민혜;문 달호;박 중재;전 석훈;김 덕규;박 중재;정 지혜;김 지철","조 민혜","2021.09.17.","","","false","2021.09.17.","조 민혜","[BATCH]\n@ 넷퍼시 truncate table 이슈관련 테이블 생성으로 변경\n\n[SCM]\n@ 자사상품등록 - 재고가 0일 때도 상품등록 가능하도록 수정","","",""]
[null,"krTKq6rXGEiqtG9gp8z13MkANbTc",null,null,"제휴채널 정산 데이터가 09시 이후 아무것도 안잡힘",null,null,null,"할 일","완료됨","긴급","김 덕규","정 지혜","2021.09.16.","","","false","2021.09.17.","조 민혜","","","",""]
[null,"_BovUWmnrkuEzx6tlfkBR8kANHpL",null,null,"입점업체 아이디 ephod 에서 상품상태값 변경이 안된다고 문의가 와서요. (예시코드 : 17062809)  판매중지 상태인데 상품목록매뉴에서 상태값을 승인완료 로 변경하려고 하면 하기 팝업이 뜬다고 합니다.",null,null,null,"할 일","완료됨","중요","조 민혜","정 지혜","2021.09.10.","","","false","2021.09.17.","정 지혜","","","",""]
[null,"UHnjyKX1e0CCPao2sf-4zckAEqah",null,null,"[완료] 무통장환불건 오류건 문의",null,null,null,"할 일","완료됨","중간","전 석훈;정 지혜","전 석훈","2021.09.16.","","","false","2021.09.17.","정 지혜","안녕하세요 고객만족팀 김은주입니다.\n\n주문번호 19891250        \n고객명 : 김은혜\n\n가상계좌 ( 무통장 ) 주문건 출고전 취소요청하였으나.\n운송장 등록으로 반품으로 취소접수 하였습니다.\n\n이후 물류로 회수완료 처리 진행하였으며,\n환불컨펌에서 컨펌시 실퍠로 환불이되지 않습니다.\n\n해당 주문건 고객에게 14일 주문건으로 금일 우선 현금환불은 수동으로 처리 진행하였습니다\n확인후 빠른 처리 부탁드립니다.\n\n감사합니다.","","",""]
[null,"1TtaM40HmUiRzGAvYZzMQckAOfgb",null,null,"앱 심사 완료 - 로그인 관련 주석 해제, 동영상 주석해제",null,null,null,"할 일","완료됨","중간","","정 지혜","2021.09.16.","","","false","2021.09.16.","정 지혜","","","",""]
[null,"KkY9cwH4BE-kXmQhJqUnGskAL3mj",null,null,"[완료] 정산/통계에서 제휴몰 주문 반품시 0으로 나오는현상",null,null,null,"할 일","완료됨","중간","전 석훈;김 덕규","정 지혜","2021.09.15.","","","false","2021.09.16.","전 석훈","","","",""]
[null,"VsDKGUGwAkCPDGd8-TnNjMkADP94",null,null,"[진행중] 입점업체 취소건 요청",null,null,null,"할 일","완료됨","중간","박 중재;전 석훈;정 지혜","전 석훈","2021.09.14.","","","false","2021.09.16.","정 지혜","안녕하세요 고객만족팀 김은주입니다.\n주문번호  19873660\n고객명 : 김태홍\n1개상품 품절로 취소 접수 되어 있으며 취소 시 오류 발생으로 전달 드립니다.\n입점업체 상품으로 빠르게 처리 부탁 드립니다.","","",""]
[null,"CMKTwH3_AEKHBX2CK6RohskAL35w",null,null,"[완료] 출고전 취소건 취소요청",null,null,null,"할 일","완료됨","중간","전 석훈;정 지혜","전 석훈","2021.09.14.","","","false","2021.09.16.","정 지혜","안녕하세요 고객만족팀 김은주입니다.\n\n\n주문번호 : 19880673\n\n고객명 :  박원오\n \n\n해당 고객 건도 결제 완료 상태에서 취소접수 시\n\n로딩만 되고 취소 처리가 되지 않습니다.\n \n\n확인 부탁드립니다.\n\n감사합니다.","","",""]
[null,"ig49tNrx1UauMjWpTaj_R8kADI0N",null,null,"2021년 09월 15일 오후 배포이력",null,null,null,"할 일","완료됨","중간","구성원;이정환;이선미;조 민혜;문 달호;박 중재;전 석훈;정 지혜;김 지철","전 석훈","2021.09.15.","","","false","2021.09.15.","전 석훈","2021년 09월 15일 오후 배포이력\n\n[ADMIN]\n@ 상품대량등록 - 대량상품 수정 엑셀업로드 수정.  상품상태, 정상가 추가 건\n@ 환불컨펌 동봉비, 착불비 처리 로직 수정\n\n[SCM]\n\n[FRONT]\n@ 마이페이지 클레임 진행 중 구매확정 기한 날짜 표시 수정\n\n[BATCH]\n\n[PUBLIC BATCH]\n\n[CORE]","","",""]
[null,"yHzYde2sU0-_Jx3XawjcM8kAN6xl",null,null,"[완료] 쿠폰내역오류문의",null,null,null,"할 일","완료됨","중간","전 석훈","전 석훈","2021.09.14.","","","false","2021.09.15.","전 석훈","안녕하세요. 고객만족팀 김은주입니다.\n아이디 : tkfkd0217\n고객명 : 신정아\n해당 고객이 주문한 주문번호는 19891193 해당건으로 확인되며\n사용한 쿠폰을 확인하기 위해 쿠폰 내역을 확인 시 총 3건의 주문건이 확인됩니다.\n\n주문번호 : 19891186 / 19891191\n\n2개의 주문건 모두 주문내역이 조회 되지 않습니다.\n해당 오류건도 빠르게 확인 부탁드립니다.\n감사합니다.\n\n해당건을 확인해본결과 19891186 / 19891191 주문결제완료 상태가 아닌 주문접수 상태의 값이여서 회원에서 노출하는 결과값을 제거 했습니다.","","",""]
[null,"PMI3hxY8T0SrcymJ2eAs6skAOmje",null,null,"2021년 09월 15일 오전 배포이력",null,null,null,"할 일","완료됨","중간","구성원;이정환;조 민혜;문 달호;박 중재;전 석훈;김 지철","전 석훈","2021.09.15.","","","false","2021.09.15.","전 석훈","[ADMIN]\n@ 환불컨펌 회수송장번호 수정\n@ 자사배송정책 수정 시 오류 \n@ 주문목록 세트상품 2row 표기 오류 수정\n\n[SCM]\n\n[FRONT]\n@ 1.딥링크 공유하기 추가\n\n[BATCH]\n@ 즉시할인 쿠폰 조건 업체, 브랜드 OR 조건 AND 조건 변경시 오류 수정\n@ 카카오페이 properties 변경 처리 커밋\n@ 스윗트래커 8.31 16이후 추적요청 일자 조정\n\n[PUBLIC BATCH]\n\n[CORE]\n@ 즉시할인 쿠폰 조건 업체, 브랜드 OR 조건 AND 조건 변경시 오류 수정\n@ 카카오페이 properties 변경 처리 커밋","","",""]
[null,"KU0KDPVVpkOqItxkn2pFO8kAEnyW",null,null,"[완료] 자사상품  > 상품상세팝업 > 배송비정책 > \"선택\" 으로 설정된 문제 ",null,null,null,"할 일","완료됨","긴급","전 석훈;박 중재;정 지혜","박 중재","2021.09.14.","","","false","2021.09.15.","전 석훈","BOS > 자사상품 > 상품상세 팝업 > 배송비 정책 > \"선택\" 으로만 되어있음 \n\n필수값이라 상품 수정등 진행이 안됨","","",""]
[null,"VHakwvO_-0-rDbQk634lRskAGaqr",null,null,"[완료] scm 배송비정책 오류",null,null,null,"할 일","완료됨","중간","전 석훈;김 지철","정 지혜","2021.09.13.","","","false","2021.09.15.","전 석훈","배송비 정책 저장시 저장 오류!","","",""]
[null,"g0pSllJauEaSyYJTGCPQM8kAKAbj",null,null,"2021년 09월 14일 오후 배포이력",null,null,null,"할 일","완료됨","중간","조 민혜;문 달호;전 석훈;김 지철","전 석훈","2021.09.14.","","","false","2021.09.14.","전 석훈","[ADMIN]\n@ 전체취소일때 PG 점프 기능 오류 수정\n@ 회원 주문 쿠포내역 오류 수정\n\n[SCM]\n@ 2021.009.14 SCM 배송비정책 등록 오류 수정\n\n[FRONT]\n\n[BATCH]\n@ 품절 취소 오류 수정\n@ 출고처지정 보완(교환주문-> 일반배송으로 출고)\n\n[CORE]\n@ 품절 취소 오류수정\n@ wms_if 업데이트시 일자, 비고 추가","","",""]
[null,"uINyhp3hCEW_Si2ngEDxt8kAMum4",null,null,"로그인 오류 문의",null,null,null,"할 일","완료됨","중간","조 민혜","박 중재","2021.09.13.","","","false","2021.09.14.","조 민혜","스타일24 아이디:blackkong111\n이름: 이슬비\n핸드폰번호: 010 9161 7261\n\n<고객 문의 내용>\n로그인은 아이디+비밀번호를 입력하는 방법과 네이버로그인으로 시도했는데, 두 가지 모두 본인인증을 해야한다해서 인증을 하고 나면 '서비스 이용이 원활하지 않습니다'라는 메시지가 뜹니다. \n \n핸드폰을 이용한(어플이나 아이폰 safari) 접속에 오류가 있는건가 해서 노트북에서도 로그인을 시도했지만 모두 인증 후 '서비스 이용이 원활하지 않습니다'라는 메시지만 뜰 뿐입니다.","","",""]
[null,"VmDtlBB_eE6GBvlyXOxiHckALbsg",null,null,"2021년 09월 14 긴급 배포이력",null,null,null,"할 일","완료됨","중간","이정환;이선미;전 석훈;박 중재;정 지혜","전 석훈","2021.09.14.","","","false","2021.09.14.","전 석훈","[ADMIN]\n\n[SCM]\n\n[FRONT]\n\n[BATCH]\n@ 상품 할인금액 즉시 할인금액 브랜드, 업체 조건 수정\n\n[CORE]","","",""]
[null,"AmmnJXNFtkK2M-Vg0DaiIckAAHdd",null,null,"가재고 데이터 확인",null,null,null,"할 일","완료됨","중간","","정 지혜","2021.09.03.","","","false","2021.09.14.","전 석훈","","","",""]
[null,"RqSiZK_2RkGrL_8BMYBIOMkADIQt",null,null,"[19881000]주문목록에서 세트상품의 내역이 2개 노출되는건, 옵션 중복으로 노출됨",null,null,null,"할 일","완료됨","중간","","정 지혜","2021.09.14.","","","false","2021.09.14.","정 지혜","","","",""]
[null,"q8E6u_Nn1U6icfTGctQ6bckAE85N",null,null,"2021년 9월 13일 오전 배포",null,null,null,"할 일","완료됨","중간","이정환;이선미;조 민혜;문 달호;전 석훈;정 지혜;김 지철","이정환","2021.09.13.","","","false","2021.09.13.","전 석훈","[ADMIN]\n@ 1:1문의관리, 상품문의관리 목록에 <엑셀다운로드> 기능 추가함.\n@ 입접업체 클레임관련 메뉴 이관 개발\n@ 자동품절취소실패목록\n@ 주문목록 쿼리 수정\n@ 전체반품 배송비 상품권 처리\n@ 카카오페이 관련 수정\n@ 환불관리 제휴사명 추가\n     환불상세 보사기능\n@ 알림톡 보완\n@ 샵링커주문수집 - 단건조회 기능추가  (쇼핑몰주문번호, 주문자명, 주문자연락처)\n\n\n[SCM]\n@ SCM 출고 로직 수정\n@ 카카오페이 관련 수정\n@ 상품상세 팝업 > '승인완료' 이력이 존재할 경우, '수정완료'로 수정 가능하도록 변경\n\n[FRONT]\n@ 모바일웹에서만 \"PC버전\" 링크를 노출\n@ 네이버 공통 스크립트 적용 \n@ 페이스북 링크 변경\n@ 카카오페이 관련 수정\n@ 네이버스크립트 페이스북 링크변경\n@ 상품리스트로의 히스토리백\n@ 딥링크\n\n[BATCH]\n@ 카카오페이 관련 수정\n\n[CORE]","","",""]
[null,"82A6n8L9pUul6ebNl79RGckAElzK",null,null,"scm 정산메뉴 미오픈",null,null,null,"할 일","완료됨","중간","김 덕규","정 지혜","2021.09.03.","","","false","2021.09.13.","조 민혜","","","",""]
[null,"Jbl2BYneRUiyYj9KoxPP58kACJZy",null,null,"1:1 문의 페이지 오류상태",null,null,null,"할 일","완료됨","긴급","김 지철","박 중재","2021.09.13.","","","false","2021.09.13.","김 지철","","","",""]
[null,"LBuKA1pDxU2fzEIaDw7J9ckAI--x",null,null,"전시리스트(검색리스트) 확인요청",null,null,null,"할 일","완료됨","중간","조 민혜;전 석훈;김 지철","박 중재","2021.09.09.","","","false","2021.09.09.","조 민혜","전시 리스트에는 나오지만, 랜딩링크는 없고,  bos 에서도 상품조회가 안됨.\n\nhttps://www.style24.com/goods/detail/form?goodsCd=16866009&colorCd=XX","","",""]
[null,"M7tbMHJ_eU2y8SX9FHWaRckANUHv",null,null,"[확인요청] 회원 /마케팅 > 회원관리> 활동회원목록 \" 연락처 변경시 변경할 전화번호로 등록후  인증번호 발송시 오류",null,null,null,"할 일","완료됨","중간","전 석훈","정 지혜","2021.09.03.","","","false","2021.09.09.","전 석훈","","","",""]
[null,"bDeAJOxYxk2EZO67FhSs-skAKjBf",null,null,"[확인요청] CS 9월1일 문의건 주문번호 19873313 =  네이버 페이 103,660원 결제 부분 취소로 진행했으나 취소금액 상이하게 확인됨 ( 메신저 전달 )",null,null,null,"할 일","완료됨","중간","박 중재;전 석훈","박 중재","2021.09.08.","","","false","2021.09.09.","전 석훈","CS 에서 취소금액 상이건으로 접수된 건이며,  금액 산정에 이상이 없는 지 확인해 주세요","","",""]
[null,"BmuqenHNoUKeBeeCYhX3W8kAJrs-",null,null,"PC : 로그인상태에서 브라우저 창 종료시, 세션이 종료되지 않음 (다시 창을 띄웠을때 로그인이 유지되어져 있는 현상 발생)",null,null,null,"할 일","완료됨","긴급","박 중재;김 덕규","박 중재","2021.09.09.","","","false","2021.09.09.","전 석훈","","","",""]
[null,"o-eC6d4zx0K0ZlPy-wVVnckAPeiz",null,null,"9/1일 오류로 발급된 쿠폰이  마이페이지에서는 확인이 되나  실제 상품구매시 적용이 되지 않는 오류 발생 쿠폰 정상 적용될수 있게 요청 및 오류일경우 쿠폰 확인되지 않도록 삭제 요청\"",null,null,null,"할 일","완료됨","중간","전 석훈","정 지혜","2021.09.03.","","","false","2021.09.09.","정 지혜","","","",""]
[null,"z7DPJarDHUOcHNYruqdkh8kAMs26",null,null,"휴면회원 등급에러.",null,null,null,"할 일","완료됨","중간","문 달호","정 지혜","2021.09.08.","2021.09.08.","2021.09.08.","false","2021.09.08.","문 달호","휴면회원대상    등급 WELCOME 변경  DB작업","","",""]
[null,"PbYt271i1EyXEKvmz-qGUckAC5L_",null,null,"상품평 등록일 누락 ",null,null,null,"할 일","완료됨","중간","","이선미","2021.09.08.","","","false","2021.09.08.","전 석훈","","","",""]
[null,"0bxJINKh5UyYJ66XrFVYAMkAJAS9",null,null,"\"아이디 deborah34 / 송언주 /   010-2849-5174 2017년 11월  주문번호 : 15986159  카카오톡으로 금일 배송되었다는 카카오알림  수신   오류건 확인후 수정 요청\"",null,null,null,"할 일","완료됨","중간","박 중재;전 석훈;김 덕규;정 지혜","정 지혜","2021.09.03.","","","false","2021.09.08.","전 석훈","","","",""]
[null,"GnikDh0uWEa39nL5mBHfhckAJSyR",null,null,"입점업체 중복 출고 목록 확인",null,null,null,"할 일","완료됨","중간","전 석훈;정 지혜","전 석훈","2021.09.08.","","","false","2021.09.08.","전 석훈","입점업체 중복 출고 목록 확인","","",""]
[null,"GGyKvt-np0q3fOZKxVvlCckAIeBl",null,null,"등급쿠폰 에러 난다는 내용이 접수, welcome의 경우 쿠폰이 없으나 이미 받았다는 alert이 나오면서 에러라고 확인되는것으로 보임,",null,null,null,"할 일","완료됨","중간","김 지철","정 지혜","2021.09.03.","","","false","2021.09.07.","김 지철","최초 고객 외 > 받을 쿠폰이 없습니다. 1건 구매 하시고 다음달 등급 쿠폰을 받아보세요!\n라고 안내 필요","","",""]
[null,"YUybFr_Se0GfKWwith4n4MkANVFg",null,null,"bos 상품평 조회 시 이름조회 하면 조회결과 노추출안됨",null,null,null,"할 일","완료됨","중간","김 지철","정 지혜","2021.09.03.","","","false","2021.09.07.","김 지철","","","",""]
[null,"KXg9vhy4ZEm_L6FmvRWfTskAOBkw",null,null,"회원정보 주소 암호화 / 회원정보 전면 점검 필요",null,null,null,"할 일","완료됨","긴급","김 덕규","정 지혜","2021.09.03.","","","false","2021.09.07.","전 석훈","kaliste 아이디 정보 잘못나오는것으로 확인\n데이터 확인 필요\n- 이메일/ 주소데이터 깨짐\n- 이름/생년월일 데이터 다름","","",""]
[null,"BWn-TSTCWUiYw-mEUcEmOckAE5N1",null,null,"메뉴: 신규 보스 > 상품 > 사은품관리  해당 메뉴에서 사은품 조회시 아래와 같은 이미지로 조회가 되는데 사은품명이 공란이라 어떤 사은품인지 내용 확인이 어렵습니다. 사은품품번 or 사은품명을 클릭해서 작성이나 수정이 가능할지 문의드리며, 사은품 상품번호로 wms에서 사은품 조회가 어려운데 WMS 공급업체명(한세드림_20_사은품, 한세엠케이_20_사은품)에 등록되어 있는 사은품의 원코드명을 노출시켜 주실 수 있으신지 문의드립니다.",null,null,null,"할 일","완료됨","중간","문 달호","정 지혜","2021.09.03.","2021.09.06.","2021.09.06.","false","2021.09.06.","문 달호","항목명 변경:  사은품 상품번호 -> WMS 상품번호  \n항목 삭제    :  사은품 품번  (사용안함.)\n\n항목추가 : WMS상품코드, SKUCODE, SKUMODELNO \n조회조건추가 : WMS상품코드, SKUCODE, SKUMODELNO\n\n09-06 반영예정","","",""]
[null,"L658Sw8zsUClSvF1dFKZnskANg1u",null,null,"입점 발주 한적없는 상품이 상품준비중 상태로 넘어가있음 (보스크리에이티브)",null,null,null,"할 일","완료됨","긴급","전 석훈","박 중재","2021.09.06.","","","false","2021.09.06.","박 중재","","","",""]
[null,"7qhTlgRSCU-Du_peuqLssskAPwAS",null,null,"19875276 19875195 주문취소에러",null,null,null,"할 일","완료됨","중간","김 지철","정 지혜","2021.09.03.","","","false","2021.09.03.","김 지철","2021.09.03 CS 확인 완료","","",""]
[null,"dITQRz_-iEuKGaufLnHdGckAOB4b",null,null,"\"제휴 주문건이 자사몰 주문건으로 표기되어 반품 접수시 환불계좌 등록 메시지 확인되는 오류  ( 메일 발송건 )\"",null,null,null,"할 일","완료됨","중간","김 지철","정 지혜","2021.09.03.","","","false","2021.09.03.","김 지철","2021.09.03 CS 확인 완료","","",""]
[null,"RwZlzx9640y_CqzciJuQ1skAMUGl",null,null,"벤더 로그인 안되는부분 infix",null,null,null,"할 일","완료됨","긴급","","정 지혜","2021.09.01.","","","false","2021.09.02.","정 지혜","아이디 초기화 하는 것으로 처리","","",""]
[null,"_LcasY_ukkm-Cff-pyqnRskALQvK",null,null,"네이버페이 결제 오류건",null,null,null,"할 일","완료됨","중간","김 지철","정 지혜","2021.09.02.","","","false","2021.09.02.","김 지철","","","",""]
[null,"LAym2oXZ1E2_hErAn5lqz8kAM75i",null,null,"네이버 페이 결제 예약 api, 관련 조치요청사항 반영(네이버검수)",null,null,null,"할 일","완료됨","중간","김 지철","정 지혜","2021.09.02.","","","false","2021.09.02.","김 지철","","","",""]
[null,"sJWWv_VN8UGdusLylK03CckALxdI",null,null,"19874778 주문취소 오류",null,null,null,"할 일","완료됨","중간","전 석훈;김 지철","정 지혜","2021.09.02.","2021.09.02.","2021.09.02.","false","2021.09.02.","전 석훈","","","",""]
[null,"hpRaUMqV4E-Z5ycqYq6UZ8kAF_Il",null,null,"19874765 휴대폰결제건 전체 주문취소",null,null,null,"할 일","완료됨","중간","김 지철","정 지혜","2021.09.02.","","","false","2021.09.02.","정 지혜","","","",""]
[null,"AjGmKLbI70WT_3Ete6yw6skAAoIw",null,null,"모이몰른 mM 분리",null,null,null,"할 일","완료됨","중간","","정 지혜","2021.09.01.","","","false","2021.09.02.","문 달호","","","",""]
[null,"_M1jaAS9x0yHnal5ojFe-MkAPPpV",null,null,"CJ 출고인터페이스, 수취인 전화번호 컬럼 누락 : 제휴몰 주문 수집시 전화번호 공란으로 가져오는 케이스인듯",null,null,null,"할 일","완료됨","긴급","문 달호","박 중재","2021.09.01.","","","false","2021.09.02.","문 달호","","","",""]
[null,"uIklt-qtck-V5zLRsVJkq8kAP4e4",null,null,"안드로이드 메타데이터 추가",null,null,null,"할 일","완료됨","중간","","정 지혜","2021.09.01.","","","false","2021.09.01.","정 지혜","","","",""]
[null,"_N4xPhtGZkKqLoDCX3RefckAKat8",null,null,"구 scm 정산 용 오픈",null,null,null,"할 일","완료됨","중간","","정 지혜","2021.09.01.","","","false","2021.09.01.","이선미","dns 퍼져나가는 시간이 걸리긴 하지만 시간이 지나면 해결됨","","",""]
[null,"bWEbCqM30kWJlyGsyJF2LMkAHW-Y",null,null,"등급 배치 미실행 실패 - 고객안내",null,null,null,"할 일","완료됨","중간","","정 지혜","2021.09.01.","","","false","2021.09.01.","정 지혜","","","",""]
[null,"J5gik4KO102cO0pPTNUSmckAAFYa",null,null,"한세드림  전일자 매출전송",null,null,null,"할 일","완료됨","중간","","이선미","2021.09.01.","","","false","2021.09.01.","이선미","","","",""]
[null,"ErSa7De3rU6RDoCmjGbONMkAO67r",null,null,"사방넷 scm 에서 상품 등록 시 500 에러 발생",null,null,null,"할 일","완료됨","중간","","정 지혜","2021.09.01.","","","false","2021.09.01.","이정환","DNS 이슈 -> 샤방넷에 다시 접속 전달","","",""]
[null,"dJTpFj7EIEqxsXuRqwYQtskADVRT",null,null,"몰메인/브랜드 메인의 동일상품 가격차 발생(잇아이템영역)",null,null,null,"할 일","완료됨","중간","","정 지혜","2021.09.01.","","","false","2021.09.01.","이정환","배치 돌려서 처리 완료","","",""]
[36,"Quie5LqefkOBNu5aWZshjMkAKZN7",{"$f":"$A$1&B425","v":"순번Quie5LqefkOBNu5aWZshjMkAKZN7"},null,"[PJT잔여] 자사 무료배송비 기능 추가 개발 (클레임)",null,null,"분석필요","할 일","시작되지 않음","중간","김 지철","전 석훈","2021.10.15.","","2021.12.17.","false","","","","","",""]
[37,null,null,null,"회원기준 상담이력(메모) 기능 추가",null,null,"분석필요","CS개선","10.19 추가","중",{"$nulls":12},"분석","CS팀의 정확한 업무 요건 협의"]
[36,null,null,"FRONT","자사 재고분할 처리",null,"패션개발팀","단위업무"]
[37,null,null,"BATCH > 샵링커","제휴 재고분할 처리",null,"TSIT","단위업무",{"$nulls":15},"분석"]

{"sheet":"결함 우선순위_CS","index":1,"n_rows":426,"n_cols":22,"rows_kept":426,"cut":false,"hidden":false,"merged":[]}
["https://tasks.office.com/style24.com/Home/Task/","작업 ID","URL","구분","작업 이름","우선순위","버킷 이름","진행률","우선 순위","할당 대상","작성자","만든 날짜","시작 날짜","기한","지연","완료된 날짜","작성자",null,"설명","완료된 체크리스트 항목","체크리스트 항목","레이블"]
[null,"8NVPF25-5EuNUdgCCJx0gckAHVSI",{"$f":"$A$1&B2","v":"https://tasks.office.com/style24.com/Home/Task/8NVPF25-5EuNUdgCCJx0gckAHVSI"},"BOS > 1:1문의","[CS개선][고객센터]1:1문의관리 > 처리상태 미구현/Front 템플릿미구현\n - 주문번호 등 선택 입력 필요","단위업무","CS개선","시작되지 않음","상","","정 지혜","2021.10.12.","","","false","","",null,"bos > 1:1문의관리의 처리 상태가 처음 등록, 담당자 배정시 처리중, 완료 시 완료로 처리되어야 하나\n상태값 업데이트가 되지 않고있음\n\n> 설계 서 내 Front 템플릿 부분 작업 미진","","",""]
[null,"it1YWe4hWEuZ24gaMOMfkskAH5jn","https://tasks.office.com/style24.com/Home/Task/it1YWe4hWEuZ24gaMOMfkskAH5jn","BOS > WMS회수관리","[CS개선][WMS회수관리] 목록/검색조건 > 제휴몰별 검색조건추가","운영","CS개선","시작되지 않음","상","","정 지혜","2021.10.12.","","","false","","",null,"제휴몰 구분값 추가 필요\n\n- WMS 에 데이터가 있는 상태임, 싱크드 맞추어 추가 필요","","",""]
[null,"UIj5SLqagkGFizazhBcKJckAC4FT","https://tasks.office.com/style24.com/Home/Task/UIj5SLqagkGFizazhBcKJckAC4FT","BOS > 공통","[CS개선][BOS공통] 모달팝업/레이어팝업을 변경하고싶음\n - 일반 팝업으로 변경 필요 - 팝업내역 확인 후","단위업무","CS개선","시작되지 않음","중","","정 지혜","2021.09.10.","","","false","","",null,"팝업페이지가 너무 작고, 움직일수 있으면 좋겠음 -> 레이어가 아니라 일반팜업으로 하면 안되는지","","",""]
[null,"a8lBtyJLQUuIsh1zAXsAwskAEtN-","https://tasks.office.com/style24.com/Home/Task/a8lBtyJLQUuIsh1zAXsAwskAEtN-","BOS > 교환상세\nBOS > 반품상세\nBOS > 취소상세\nBOS > 환불컨펌","[개선] 회수 상품 정보쪽 주문 쪽에 있는 상품 가격, 판매금액, 포인트 등의 정보 노출바람","단위업무","CS개선","시작되지 않음","중상","","정 지혜","2021.09.10.","","","false","","",null,"","","",""]
[null,"-iwV9-KyK0ii3XV5Ub2LGskAFq_U","https://tasks.office.com/style24.com/Home/Task/-iwV9-KyK0ii3XV5Ub2LGskAFq_U","BOS > 교환상세\nBOS > 반품상세\nBOS > 취소상세\nBOS > 환불컨펌","[CS개선][클레임] 취소/교환/반품에 메모수정/메모이력 필요","운영","CS개선","시작되지 않음","하","","정 지혜","2021.09.10.","","","false","","",null,"반품 / 교환 요청시 등록된 메모 수정 또는 추가 기록이 가능하면 좋을 것 같습니다 . 예를 들어 아래 전산 화면의 경우 배송비 착불 2500원 입금 내용으로  메모가 기록 되어 있습니다.  배송비를 입금 했을 경우 배송비 입금한 내역을 수정 및 추가 기록시 환불처리를 바로 할수 있을 것 같습니다.  ( 배송비가 입금되지 않을경우 환불처리에서 지연됨 )\n\n--> 메모창이 작아서 메모창도 키워주세요.","","",""]
[null,"FNnesy0QS0Cl_FlDOde4_MkAA1NL","https://tasks.office.com/style24.com/Home/Task/FNnesy0QS0Cl_FlDOde4_MkAA1NL","BOS > 교환상세\nBOS > 반품상세\nBOS > 취소상세\nBOS > 환불컨펌","[CS개선][클레임] 교환/반품요청의 메모창 팝업으로 노출\n - 별도 메모창 추가 필요","운영","CS개선","시작되지 않음","하","","정 지혜","2021.09.10.","","","false","","",null,"","","",""]
[null,"UJZ-SKqQgki88Wj5scCo3MkAFyiC","https://tasks.office.com/style24.com/Home/Task/UJZ-SKqQgki88Wj5scCo3MkAFyiC","BOS > 교환출고미출고대상","[CS개선][제휴몰] 제휴몰주문번호 검색 / 제휴몰 목록셀렉트박스 추가","2번에 포함","CS개선","시작되지 않음",null,"","정 지혜","2021.09.16.","","","false","","",null,"제휴몰 주문 검색/ 제휴몰 목록 소팅 검색항목 모두 추가.\n 제휴몰 구분, 제휴몰 주문번호 항목 추가/검색옵션추가\n\n배송관리 \n>  출고처지정관리  \n> 교환배송미출고대상 \n\n주문배송 \n> 주문목록\n\n회수관리 \n> 회수지시 목록 \n> wms 회수목록 (WMS db 바라보는부분은 이슈가있음)\n> wms회수예외관리 (WMS db 바라보는부분은 이슈가있음)\n> 환불관리\n\n--> 외부몰 주문번호, 쇼핑몰주문번호 라고 명시되있는것도 다 제휴몰 주문번호로 통일","","",""]
[null,"8E_yaP5DskqWcoM0TEiEVMkAAB-c","https://tasks.office.com/style24.com/Home/Task/8E_yaP5DskqWcoM0TEiEVMkAAB-c","BOS > 배송목록","[CS개선][BOS][배송] 주문> 배송목록 > 목록내  제휴주문번호 표기\n - 목록 횡스크롤 불편, 상세 미노출, 배송목록 미노출","운영","CS개선","시작되지 않음","상","","정 지혜","2021.10.12.","","","false","","",null,"배송목록 내역에 제휴주문번호 표기","","",""]
[null,"Pk6XnQ_9E0KodpMMhlptF8kAPhl9",null,"BOS > 샵링커송장전송관리","[CS개선][제휴몰] 샵링커송장전송관리 > 목록 > 제휴몰 명 노출",null,"CS개선","완료됨","중간","조 민혜","정 지혜","2021.10.12.","","2021.10.18.","false","","",null,"샵링커송장전송관리 > 목록 > 제휴몰 명 노출\n엑셀리스트에 제휴몰명 노출","","",""]
[null,"a2nBrwv-3UOkXzHDJaPs7ckACgbh",{"$f":"$A$1&B11","v":"https://tasks.office.com/style24.com/Home/Task/a2nBrwv-3UOkXzHDJaPs7ckACgbh"},"BOS > 샵링커주문수집관리","[CS개선][제휴몰] 샵링커주문수집관리 > 미할당주문 메모\n - 미할당 메모 추가","프로젝트","CS개선","시작되지 않음","최상","","정 지혜","2021.09.29.","","","false","","",null,"설계 전까지는 샵링커 주문수집관리 > 그리드에 실패사유 입력할수 있도록 추가(wms 회수관리처럼)","","",""]
[null,"BC6kLhS_gUm1zPr5VLMmwskACmK2","https://tasks.office.com/style24.com/Home/Task/BC6kLhS_gUm1zPr5VLMmwskACmK2","BOS > 제휴몰주문업로드","[CS개선][제휴몰] 제휴몰주문업로드/자동주문수집>주문생성시 상품> SKU코드기준으로 처리","완료 예정","CS개선","진행 중","중간","조 민혜","정 지혜","2021.10.12.","","2021.10.15.","true","","",null,"상품의 코드가 없이도 SkU코드 기준으로만 처리한다.","","",""]
[null,"F3Ng0N1syEiU57ubCTs3MskAKyHv","https://tasks.office.com/style24.com/Home/Task/F3Ng0N1syEiU57ubCTs3MskAKyHv","BOS > 제휴몰주문업로드","[CS개선][제휴몰] 수동 업로드 화면 초기화 기능 - 초기화 버튼 추가","운영","CS개선","시작되지 않음","하","","정 지혜","2021.10.07.","","","false","","",null,"안녕하세요 고객만족팀 김은주입니다. \n\n미팅 진행때  말씀드린 수동 업로드 관련하여 \n내용을 다시 한번 전달 드립니다. \n\n제휴몰 주문업르도 화면에서 보이는 것 처럼 \n화면에 아무런 주문 내용이 없는 상태에서도 주문 수집 을 누르게 되면 이전 주문내역을 인식하고 주문수집\n이 됩니다.\n이후 샵링커 주문시집관리에서  내역에서 확인시 모두 실패로 확인이 됩니다. \n초기화 버튼을 생성이후에는 \n말씀드린 것처럼 화면에 등록된 내용이 없을 경우에 \n주문 수집이 되지 않도록 처리 부탁드립니다.","","",""]
[null,"R9kzcJXdKE2ycLRf3T7PZ8kACLlH","https://tasks.office.com/style24.com/Home/Task/R9kzcJXdKE2ycLRf3T7PZ8kACLlH","BOS > 주문목록","[CS개선][주문목록] 상품별 주문이력 에 총알배송여부 노출\n - 주문목록, 주문상세 총알배송 여부 표기 필요","운영","CS개선","시작되지 않음","하","","정 지혜","2021.10.12.","","","false","","",null,"주문목록 > 주문상세 > 주문상품정보 제일마지막에 표기","","",""]
[null,"S-DxXXRuBEyJq5uejilxOskAA5xl","https://tasks.office.com/style24.com/Home/Task/S-DxXXRuBEyJq5uejilxOskAA5xl","BOS > 주문상세","[CS개선][주문상세] 주문상세 합산내역에서 쿠폰 내역 확인하도록 UI개선","5번 병행","CS개선","시작되지 않음",null,"","정 지혜","2021.10.12.","","","false","","",null,"> 화면 정리 후 진행 필요함.","","",""]
[null,"77gVJUrUCkOKkayTPXSsvckAJR6T","https://tasks.office.com/style24.com/Home/Task/77gVJUrUCkOKkayTPXSsvckAJR6T","BOS > 주문상세","[CS개선][주문상세] 상품목록>입점업체정보>CS담당자 대표번호추가","운영","CS개선","시작되지 않음","하","","정 지혜","2021.10.12.","","","false","","",null,"해당 업체 명으로 관련 업체정보 내용은 오픈 했으나\n주문 상세 내 CS 대표 번호 추가","","",""]
[null,"v1ablSaY0EaLv7s7HfqzPckAOSlm","https://tasks.office.com/style24.com/Home/Task/v1ablSaY0EaLv7s7HfqzPckAOSlm","BOS > 주문상세","[CS개선][주문상세] 회원기본정보영역 정보 위치 변경","운영","CS개선","시작되지 않음","하","","정 지혜","2021.10.12.","","","false","","",null,"기본정보 \n[현재]사이트 / 몰구분/웹구분/외부몰/주문일시/주문자/고객번호/주문번호~\n[변경] 사이트 / 몰구분/웹구분/외부몰/주문일시/주문자/주문번호/고객번호 순으로 변경\n고객번호가 중간에 있어 불편","","",""]
[null,"EikpsTnQOE-o99wR0QlNxskAFGrm","https://tasks.office.com/style24.com/Home/Task/EikpsTnQOE-o99wR0QlNxskAFGrm","BOS > 주문상세","[CS개선][제휴몰]제휴몰주문 미할당 된 상품 표시관련건(Skucode)","단위업무","CS개선","시작되지 않음","중상","","정 지혜","2021.09.23.","","","false","","",null,"19899568_\n 미할당된 주문 내역 노출될때, 미할당된 skucode는 찍을수 없는지 확인","","",""]
[null,"ypG7DEFMB0aTBFczTUFrn8kAEFKN","https://tasks.office.com/style24.com/Home/Task/ypG7DEFMB0aTBFczTUFrn8kAEFKN","BOS > 취소접수\nBOS > 반품접수\nBOS > 교환접수\nBOS > 환불컨펌","[CS개선][클레임] 취소/교환/반품/환불접수 > 휴대폰번호> 안심국번등록","운영","CS개선","시작되지 않음","중상","","정 지혜","2021.10.12.","","","false","","",null,"현재 휴대전화 번호는 G096의 코드를 사용하고 있으나\nbos에서 input 항목 추가 필요 > 안심번호 국번 입력 및 처리필요\n0501~0510 \n-- 공통코드에 추가시 관련 정보가 Front에도 노출될수 있으므로 \nbos에서만 처리될수 있도록 해야함.","","",""]
[null,"RvfRX6OdF0uHXbRNmqRWP8kAEztl","https://tasks.office.com/style24.com/Home/Task/RvfRX6OdF0uHXbRNmqRWP8kAEztl","BOS > 취소접수\nBOS > 반품접수\nBOS > 교환접수\nBOS > 환불컨펌","[CS개선][클레임] 취소/교환/반품>접수/상세>SKUCODE추가","운영","CS개선","시작되지 않음","중상","","정 지혜","2021.10.12.","","","false","","",null,"취소/교환/반품 > 접수/상세 화면에서 상품 SKUCODE 추가","","",""]
[null,"bcoSM6KGiUq3IiWKEm8p08kACjSG","https://tasks.office.com/style24.com/Home/Task/bcoSM6KGiUq3IiWKEm8p08kACjSG","BOS > 취소접수\nBOS > 반품접수\nBOS > 교환접수\nBOS > 환불컨펌","[CS개선][클레임] 회수입고확정 전 교환 철회기능","단위업무","CS개선","시작되지 않음","상","","정 지혜","2021.10.12.","","","false","","",null,"","","",""]
[null,"oPCHWZrP3EaNltKeh5LgFskAJYA0","https://tasks.office.com/style24.com/Home/Task/oPCHWZrP3EaNltKeh5LgFskAJYA0","BOS > 취소접수\nBOS > 반품접수\nBOS > 교환접수\nBOS > 환불컨펌","[CS개선][결함] 교환배송비 PG점프/현금환불로직 - 휴대폰 결제시","단위업무","CS개선","시작되지 않음","중상","","정 지혜","2021.10.07.","","","false","","",null,"안녕하세요 고객만족팀 김은주입니다.\n\n주문번호 19906524\n고객명 : 송애리 \n주문일자 : 2021.09.27 \n\n상품 교환요청시 배송비 5천원을 휴대폰을 이용하여 결제 하였습니다. \n \n\n이후 고객이 교환 철회후 반품으로 재요청을 하였습니다. \n이런 경우에는 교환 배송비 5천원을 결제 취소가 진행이 되고, \n전체 결제 금액에서 반품 배송비 2,500원 ( 남은 상품 금액 4만원 이상으로 편도부담 ) 차감후 환불이 됩니다. \n\n하지만 위 주문건의 경우 \n9월 28일 휴대폰 배송비 결제 \n10월 6일 교환 철회후 반품 요청\n\n결제월이 아닌 익월 취소가 되어 휴대폰 취소가 불가능합니다.\n이런 경우는 휴대폰 결제 금액을 현금으로 환불을 해줘야 하나 현재 시스템으로는 처리가 불가능합니다 .\n\n현재 교환철회후 반품으로 재접수 하였으며, \n현금환불로 5천원 수동 접수는 하였습니다 \n\n이와 같은 문제가 앞으로도 계속 발생이 될 수 있음으로 \n휴대폰 배송비 결제 금액을 현금  ( 계좌번호입력 ) 후 환불될 수 있도록 개선 부탁드립니다. \n\n감사합니다.","","",""]
[null,"P5v4d-o3d0-idJqIliFtEckAE6wa","https://tasks.office.com/style24.com/Home/Task/P5v4d-o3d0-idJqIliFtEckAE6wa","BOS > 취소접수\nBOS > 반품접수\nBOS > 교환접수\nBOS > 환불컨펌","[CS개선][클레임] 취소/교환/반품>접수/상세>접수자 표출","운영","CS개선","시작되지 않음","중","","정 지혜","2021.10.07.","","","false","","",null,"안녕하세요 고객만족팀 김은주입니다.\n\n상품을 주문후 취소 및 반품접수시\n접수자명이( 변경자명 ) 보스화면에 등록되도록 수정 부탁드립니다 .\n\n출고전 취소 접수를 고객이 직접 하게 되면,  환불정보에 고객 아이디가 등록이 되며, \n취소/반품/교환 요청 정보에는 아무런 내용이 표기가되지 않습니다. \n\n이후 저희가 직접 취소를 진행할경우 요청 메모에 저희가 직접 수동으로 기록해야 \n다음 상담이 진행될경우 참고하여 업무를 진행하니다. \n\n따라서 요청메모에 표기를 하지 않더라도 변경자명에 접수하는 사람의 이름이 등록될 수 있도록 부탁드립니다.\n취소 / 교환 / 반품 모두 접수자가 보일수 있도록  처리 부탁드립니다. \n\n감사합니다.","","",""]
[null,"jRchHZfmGkepPwig2DMQ5skALWyM","https://tasks.office.com/style24.com/Home/Task/jRchHZfmGkepPwig2DMQ5skALWyM","BOS > 취소접수\nBOS > 반품접수\nBOS > 교환접수\nBOS > 환불컨펌","[CS개선][클레임] 취소/교환/반품 알림톡 발송여부 기능 추가","진행중","CS개선","진행 중","중요","전 석훈","김 지철","2021.10.01.","","2021.10.14.","true","","",null,"[알림]\n\t환불/교환 접수나 철회시 고객에게 계속 알림이 나감\n\t관리자에서 접수할 때 알림을 Off 할수 있도록 설정이 필요함.\n\t관리자 환불/교환접수/화면에서 체크 박스를 두고, 알림 발송여부는 N을 기본으로 처리함.","","",""]
[null,"Eofn7pNCiEaxUuVffin8cMkABjxf","https://tasks.office.com/style24.com/Home/Task/Eofn7pNCiEaxUuVffin8cMkABjxf","BOS > 환불컨펌","[CS개선][클레임] 환불관리> WMS예외관리 기록된 데이터 노출필요","단위업무","CS개선","시작되지 않음","중","","정 지혜","2021.10.12.","","","false","","",null,"취소/교환/반품>접수/상세> \nWMS예외관리 기록된 CS메모 데이터 환불관리에 노출\nCS 메모 내용은 환불 내용에 노출될수있도록 수정 필요.","","",""]
[null,"9wYyen4so0WhD2MVhgZHtskAH5pF","https://tasks.office.com/style24.com/Home/Task/9wYyen4so0WhD2MVhgZHtskAH5pF","BOS > 환불컨펌","[CS개선][클레임]환불관리 > 자사주문건에 대한 착불배송비 컬럼 활성화 - 유형 변경 권한 추가","운영","CS개선","시작되지 않음","중상","","정 지혜","2021.10.12.","","","false","","",null,"","","",""]
[null,"OoxhTjNdjkuSBXdx8IhEw8kAPjI0","https://tasks.office.com/style24.com/Home/Task/OoxhTjNdjkuSBXdx8IhEw8kAPjI0","BOS > 환불컨펌","[CS개선][클레임] 환불컨펌 사유 변경 기능 추가","26 포함","CS개선","시작되지 않음","중요","","김 지철","2021.10.01.","","","false","","",null,"[환불컨펌]\n\t환불 컨펌에서 사유 변경이 가해야 한다.\n\t환불 컨펌에서 금액입력란 활성화 처리가 필요하다.\n\t기타로 접수되는 항목은 Front에서 제외한다","","",""]
[null,"NSz423btDkWKuAneF_fWO8kAErjM","https://tasks.office.com/style24.com/Home/Task/NSz423btDkWKuAneF_fWO8kAErjM","BOS > 활동회원목록\nBOS > 휴면회원목록\nBOS > 탈퇴회원목록","[CS개선][회원] 활동회원/휴면/탈퇴목록> 목록 > 생년월일값 추가","운영","CS개선","시작되지 않음","하","","정 지혜","2021.10.13.","","","false","","",null,"관리대상 컬럼 바로 뒤에 생년월일 > YYYY-MM-DD 값 추가","","",""]
[null,"dUwfsIYddkavq1yzufE3P8kAG982","https://tasks.office.com/style24.com/Home/Task/dUwfsIYddkavq1yzufE3P8kAG982","BOS > 회원목록","[CS개선][회원] 휴대폰번호 도 기간제외하고 조회토록 처리","운영","CS개선","시작되지 않음","하","","정 지혜","2021.10.14.","","","false","","",null,"","","",""]
[null,"pWU2RWSGf0Ke7MZQf1dBrMkAKQEB","https://tasks.office.com/style24.com/Home/Task/pWU2RWSGf0Ke7MZQf1dBrMkAKQEB","BOS > 회원상세","[CS개선][회원] 회원정보> 상품권이력 > TOTAL값 추가","운영","CS개선","시작되지 않음","중상","","정 지혜","2021.10.18.","","","false","","",null,"회원상세 > 상품권에 TOTAL값 노출관련요청\n\n상품권 잔액: 해당 회원이 보유하고 있는 유효기간이 만료되지 않은 잔액의 합\n상품권 사용액\t: (등록-사용+취소-만료액)\n상품권 소멸액: 상품권 사용 으로 집계된 금액 – 취소액\t만료로 인해 소멸 처리 된 상품권 금액","","",""]
[null,"D9phonKZmkaB_ulwLrpQaskAMm1S","https://tasks.office.com/style24.com/Home/Task/D9phonKZmkaB_ulwLrpQaskAMm1S","FRONT > 마이페이지 > 취소/교환/반품목록\nFRONT > 마이페이지 > 취소/교환/반품상세","[CS개선][FRONT] 마이페이지>취반교목록> 환불진행중 문구변경요청","운영","CS개선","시작되지 않음","상","","정 지혜","2021.10.12.","","","false","","",null,"마이페이지 > 취소반품교환내역\n환불진행중 시  환불을 진행하고 있습니다 ( 영업일 최대 3일 이내 환불예정 ) 문구 노출됨\n\n영업일 최대 3일 이내 환불예정 문구제거","","",""]
[null,"Pz9x_v0ygkOPXlLz5KnGPMkAJ0FE","https://tasks.office.com/style24.com/Home/Task/Pz9x_v0ygkOPXlLz5KnGPMkAJ0FE","신규메뉴 생성","[CS개선][상품권]상품권에 대한세부이력메뉴 생성","단위업무","CS개선","시작되지 않음","하","","정 지혜","2021.10.13.","","","false","","",null,"1.\t상품권 잔액의 경우 \n여러 개의 등록된 상품권 중 어느 상품권의 잔액이 남아있는지 표기가 되었으면 좋겠습니다. \n( 예전 보스 화면 )\n여러 개의 상품권을 사용후 등록일자에 따라  남은 상품권의 잔액을 문의하는 고객이 있어 \n아래와 같이 등록된 상품권별로 잔액이 보이면 좋겠습니다. \n \n\n2.\t상품권 사용액의 경우 \n기간을 정해두지 않을 경우 가입 이후부터 총 사용된 금액인지, 아니면 1년동안 사용된 금액 인지 \n일정기간을 설정 후 해당 기간에 사용된 사용액으로 노출이 되었으면 좋겠습니다.  \n\n3.\t상품권 소멸액 \n상품권 소멸의 경우도 소멸 금액이 확인시 등록 일자와 사용 가능일자등이 확인되도록 표기가 되었으면 좋겠습니다.","","",""]
[null,"DrQACRqgXEilYyjLwbKF2skAIbzt","https://tasks.office.com/style24.com/Home/Task/DrQACRqgXEilYyjLwbKF2skAIbzt","신규메뉴 생성","[CS개선][클레임] 현금수기환불관련 목록/입금이력관리 메뉴 생성","단위업무","CS개선","시작되지 않음","중","","정 지혜","2021.10.12.","","","false","","",null,"","","",""]
[null,"JXwLi6AwW0CsmmAfir3YOskAJVTb","https://tasks.office.com/style24.com/Home/Task/JXwLi6AwW0CsmmAfir3YOskAJVTb","신규메뉴 생성","[CS개선][제휴몰] 제휴미할당 된 이력/메모등 관리 메뉴생성","11번 병행. 프로제트","CS개선","시작되지 않음","상","","정 지혜","2021.10.12.","","","false","","",null,"","","",""]
[null,"F_bVH4FVG0axbbL-3Iw1EskAHXFN","https://tasks.office.com/style24.com/Home/Task/F_bVH4FVG0axbbL-3Iw1EskAHXFN","신규메뉴 생성","[CS개선][제휴몰] 제휴몰 문자발송 이력","프로젝트","CS개선","시작되지 않음","상","","정 지혜","2021.09.29.","","","false","","",null,"제휴몰 품절 수신문자를 받지 못했다고 함.\n문자 발송배치 확인필요\n0737968099\n주문이 아예 실패했을때, 안나가는게 아닌지?","","",""]
[null,"D5i5Nj03JUKMCcxzMLsnZMkADxv3","https://tasks.office.com/style24.com/Home/Task/D5i5Nj03JUKMCcxzMLsnZMkADxv3","신규메뉴 생성(BOS/SCM)","[CS개선][고객센터]입점업체 상담이관 기능","프로젝트","CS개선","시작되지 않음","하","","정 지혜","2021.10.12.","","","false","","",null,"보스화면 : 고객상담관리 > 상담이관 관리 \n 업체 전화연결이 되지 않는 업체의 경우 상담이관을 통해 문의하나 \n 해당 메뉴가 없어 업체 확인할 방법이 없음\n\n상품문의의 경우, SCM에 해당 업체의 상품일 경우\n 업체 상품에 목록을 노출 하게 되어있음, 1:1 문의도 상기와 같이 필요한지 확인 필요\n--> 범위가 큰 부분이며, 이 부분에 대한 부분은 설계 및 범위가 전체적으로 확인필요.","","",""]
[null,"Xz5yU1fLokSaNNpDBgQEwskACiyL",null,null,"[CS개선] [제휴몰] 샵링커주문수집관리 > 제휴몰 실패사유 '배송비상이' 항목추가",null,"CS개선","완료됨","중간","조 민혜","정 지혜","2021.10.12.","","2021.10.15.","false","2021.10.15.","조 민혜",null,"동일 주문인데 배송비 정책이 다를경우 해당 주문은 실패처리 하고 \n제휴몰 실패사유 '배송비 상이' 로 데이터를 처리한다.","","",""]
[null,"I8kemDgOGk2FY7Fh7_TMCMkAHvxi",null,null,"[CS개선][상담앱] 유비커스 상담앱 콜 확인시 BOS주문목록 노출",null,"CS개선","완료됨","중간","","정 지혜","2021.10.12.","","2021.10.19.","false","2021.10.14.","정 지혜",null,"10/19 유비커스 테스트 예정\n유비커스 측 작업 진행중","","",""]
[null,"ACNjwVtwrUarXkr5RfVZ-8kAGsCr",null,null,"[진행중] front 주문결제 > 주문상세  신용카드 전표(kcp 영수증) 화면 노출되지 않음",null,"CS개선","완료됨","중간","전 석훈","정 지혜","2021.09.16.","","","false","2021.10.08.","정 지혜",null,"- 모바일 웹 X\n- 모바일 앱 X\n- PC O\n\n교환배송비 결제 된 영수증에서도 상동.(19872951)\n\nIOS safari / app 두가지 확인함\n--> 기간 지난 주문건일 때안되고(9/2~3일 기준주문건들),  \n--> 당일 신규 주문시 신용카드/실시간 이체 두가지 (전표/현금영수증 두개 확인시) 앱만 안됨.(IOS)\n-- >교환배송비 영수증 클릭시 안나옴..(19872951)","","",""]
[null,"n6SV_gjIGUSggr9lH-NyoskAHwNh",null,null,"네이버 페이 결제시 하단 결제 하기 버튼 미확인",null,"CS개선","완료됨","중간","전 석훈;정 지혜;김 지철","정 지혜","2021.09.03.","","","false","2021.10.08.","정 지혜",null,"어느 환경인지 확인 필요","","",""]
[null,"TKqxEx3s20atiNQUKGMVX8kAJMdL",null,null,"입점업체의 배송목록 별도 노출 필요",null,"CS개선","완료됨","중간","문 달호","정 지혜","2021.09.09.","","","false","2021.10.08.","정 지혜",null,"","","",""]
[null,"rE8hMxOtkEeM27gygAxWKMkABgrf",null,null,"교환 재고 부족시, 완료가 되었다고 나오고 교환접수가 안됨",null,"CS개선","완료됨","중간","김 지철","정 지혜","2021.09.10.","","","false","2021.10.08.","정 지혜",null,". 재고 부족시 불가상품 표시\n- a 상품의 B옵션이 재고가 없다. 라고 alert이 표시하도록 개발이 완료되었음.","","",""]
[null,"U7_7s2NqvU6B12aS8twh0ckAJMak",null,null,"프론트모바일  부분교환 할경우, 안넘어가는 케이스 확인",null,"CS개선","완료됨","긴급","전 석훈;정 지혜;김 지철","정 지혜","2021.09.24.","","","false","2021.10.08.","정 지혜",null,"다수개 상품 중 1~2개만 교환 하려고 할경우 넘어가지 않음","","",""]
[null,"n6UCNf-t7EumeH7SuHgrmckACwKV",null,null,"입점 발주확정대상목록 에러.",null,"CS개선","완료됨","중요","김 지철","정 지혜","2021.09.24.","","","false","2021.10.08.","정 지혜",null,"입점 발주확정대상목록은 발주확정 안됨(발주확정이 안되어 처리 불가)\n입점주문만 나오는게 아니라 자사주문까지 다 섞여 나옴\n발주확정대상목록이 나오는게 아닌 전체주문목록이 나옴","","",""]
[null,"a3rNyegJKUydbj38ZOkGyMkAKg2j",null,null,"[대기][CS협의] 교환> 반품 (19886342)",null,"CS개선","완료됨","중간","전 석훈","정 지혜","2021.09.28.","","","false","2021.10.08.","정 지혜",null,"20벌 중 9벌 반품 합니다.\n레이스자카드원피스 1\n로하스상하 1\n레이스자카드셋업티셔츠 1\n라리트렌치코트 1\n꼬블저온스패딩조끼 130 1\n리프자카드가디건 1\n조거레깅스 크림 90 2\n프릴티셔츠 1\n\n위와 같이 상품명으로 반품할 상품을 기록 후 보내주셨습니다.\n\n14260329-4        [모이몰른] 레이스 자카드원피스 MPF1GAOP17 [가을] / 반품1개  교환1개 – 접수된 교환1건 철회후 반픔으로 변경요청\n14924676-2        [모이몰른] 로하스 상하 M211STB57P [봄] / 교환 => 반품으로 변경 \n14260337-4        [모이몰른] 레이스자카드 셋업티셔츠 MPF1GATS08 [가을] / 교환 => 반품으로 변경 요청\n14260320-4        [모이몰른] 라리 트렌치코트 MPF1GABY02 [가을] / 교환=> 반품으로 변경 요청\n14924723-4        [모이몰른] 리프 자카드가디건 M211GDG27P [봄] / 교환=> 반품으로 변경 요청","","",""]
[null,"Jax_VHvkw0q-3KFyfqJ0G8kAL06z",null,null,"wms 회수예외관리에 제휴몰 구분, 제휴몰 주문번호 항목 추가/검색옵션추가",null,"CS개선","완료됨","중간","전 석훈","정 지혜","2021.09.30.","","","false","2021.10.08.","정 지혜",null,"","","",""]
[null,"aqlTYUDW406tB0EDtc9iH8kAHfer",null,null,"[결함][WMS] CJ송장 아닌경우 회수지시 안되는 결함",null,"CS개선","완료됨","중간","","정 지혜","2021.10.06.","","","false","2021.10.08.","정 지혜",null,"서보성 이사님 쪽에서 대응중\n- 잔여데이터 처리남음\n회수지시 관련 에러(CJ 회수 관련) > 서보성이사님 대응건\n\n--> CJ 송장이 아니면 회수지시가 계속 반복되는 현상\n--> 수정 완료","","",""]
[null,"st4zIdQOTEWK502kfQr98ckAKrml",null,null,"[결함][주문]19887600 주문에 적용되지 않은 상품에 쿠폰이 배분된것으로 확인됨",null,"CS개선","완료됨","중간","전 석훈","정 지혜","2021.10.07.","","","false","2021.10.08.","정 지혜",null,"coupon detail과 상품목록의 장바구니 쿠폰 배분내역이 상이\n- 상품권 100% 사용건 데이터 처리 시 문제된건\n정산 skip","","",""]
[null,"qNHvn7aCCUqAcWN28dz118kAO_M5",null,null,"네이버페이 현금영수증.",null,"CS개선","완료됨","중간","","정 지혜","2021.10.06.","","","false","2021.10.07.","정 지혜",null,"- 네이버 측에 현금영수증 발행 가능여부 문의 하여\n결제 창에서 현금영수증 지원되도록 계약변경함. 10/7 10시 오픈예정","","",""]
[null,"pi6NxUlz2EqgULggQMyn_ckAJ8lc",null,null,"고객변심반품으로 클레임 걸었을때 wms에 배송비 받은걸로 전송되는지 확인, wms에서 동봉안되었다고 처리하고있다고 함.",null,"CS개선","완료됨","중간","문 달호","정 지혜","2021.09.16.","","","false","2021.10.06.","정 지혜",null,"19873583\n\n\n현재  배송비 금액을 전송하지 않음.\n\n반품,교환- 자사\n고객접수 -  반품: 배송비 차감처리내용 설명  (서보성이사님과 물류담당자 통화 업무이해로 해결) \n                -  교환: 사전 결제로 내용 설명        (서보성이사님과 물류담당자 통화 업무이해로 해결) \n\nC/S 접수 - c/s담당자분이 메모에 금액을 입력후 접수함.  \n\n반품,교환- 제휴\nC/S 접수- c/s담당자분이 메모에 금액을 입력후 접수함.","","",""]
[null,"OKdyMWetO0KME1cyZBbEO8kAFTVc",null,null,"scm 배송비 정책 등록 오류",null,"CS개선","완료됨","중간","김 덕규","정 지혜","2021.09.07.","","","false","2021.10.06.","김 지철",null,"","","",""]
[null,"3Pl_W2odSkaOM_MABZEOTckAKKMM",null,null,"주문번호 : 19873778  반품비 귀책 변경및확인 필요.",null,"CS개선","완료됨","중간","김 지철","정 지혜","2021.09.16.","","","false","2021.10.06.","김 지철",null,"확정 할때 금액 귀책이 잘못되면 확인필요한데 이 부분 확인 바람.","","",""]
[null,"YTn1EUIh_EaxnHASp2NCvskAGyVI",null,null,"네이버 페이 정산 확인(마케팅담당자와확인)",null,"CS개선","완료됨","중간","정 지혜","정 지혜","2021.09.09.","","","false","2021.10.06.","정 지혜",null,"","","",""]
[null,"zymWtkawVEees4iLhIyaFMkAOdQC",null,null,"반품/교환 철회 기능 오픈",null,"CS개선","완료됨","긴급","김 지철","김 지철","2021.10.01.","","","false","2021.10.06.","김 지철",null,"[회수검품확정전]\n\t회수만 해간 상태에서 입고/상품검품이 되지 않은 상태에서 다시 반품으로 요청하는 상황이 대다수임\n\t입고완료 컨펌 이전에 교환 철회 기능 오픈 \n[회수검품확정후]\n\t검품 확정 후에는 상품준비중으로 넘어가기 때문에 출고를 취소하는 걸로 처리해야함, 상기 부분에 대해서는 영향도 파악 후 개발\n\t검품 확정 시에 교환> 취소는 추가배송비는 돌려주어야 하므로 배송비 과실 확인 필요","","",""]
[null,"81JvhdtlDE2yldglvBsPNckALwO7",null,null,"교환철회 시 교환배송비 미노출 수정",null,"CS개선","완료됨","긴급","김 지철","김 지철","2021.10.01.","","","false","2021.10.06.","김 지철",null,"[환불/교환/주문이력]\n\t교환배송비 취소되었을 때, 이력이 사라지는 부분 이력노출되도록 필히 노출 필요.","","",""]
[null,"xquVynVbxUqLEpbq9zqODskADbjq",null,null,"[완료][CS협의] 교환철회가능문의",null,"CS개선","완료됨","중간","전 석훈","전 석훈","2021.09.24.","","","false","2021.09.29.","정 지혜",null,"안녕하세요 고객만족팀 김은주입니다.\n주문번호 : 19890542       \n고객명 : 박선민\n고객이 모바일을 통해 2개의 상품만 교환 접수를 하고 싶었으나.\n다른 상품들을 선택하지 않을 경우 교환 접수가 되지 안하 전체 교환을 접수한 상태입니다.\n\n우선 2개의 상품만 당사로 반송한 상태이며,\n이중 1개는 품절로 인해 교환이 불가능한 상태입니다.\n\n결론은 전체 교환 접수가 되어 있으나,\n실제 1개의 상품은 반품 / 1개의 상품만 교환을 요청하는 사항입니다.\n현재 회수 요청 상태로 교환 철회를 할 수가 없어 재요청 문의 드립니다.\n\n교환 상품 : F94M-KP018B  13316276-4 남성 브이넥 배색 니트 베스트(F94M-KP018B) 블랙 95 è 블랙 100 사이즈 교환요청 \n\n\n해당 건 교환 철회  가능하도록 확인 부탁드립니다.\n감사합니다.","","",""]
[null,"hsuHdxBr1EOofXTS8K-11skALjlt",null,null,"[완료][CS협의] 교환>반품 (19881261)",null,"CS개선","완료됨","중간","전 석훈","정 지혜","2021.09.28.","","","false","2021.09.29.","정 지혜",null,"주문번호  :  19881261 김지은 \n\t2개 상품 모두 반품으로 변경 요청 하였습니다 .\n\n아래 주문건  ( 19891732 하여진 / 19886350 이수진 / 19881261 김지은 ) 포함\n모두 3개 주문번호 교환 처리 부탁드립니다."]
[null,"FPK5zlXcakuaztDHwWHCkskAFUK5",null,null,"[완료] 배송비 관리 메뉴 > 데이터 변경 현상 및 오류",null,"CS개선","완료됨","중간","전 석훈;정 지혜","정 지혜","2021.09.23.","","","false","2021.09.29.","정 지혜",null,"업체의 배송비 정책 수정 시 타 업체의 배송정책도 같이 수정되는 오류.","","",""]
[null,"64L4EKnnd0uSgRkNvbawt8kAEY4D",null,null,"[완료][CS협의] 교환>반품 ( 19891732 / 19886350)",null,"CS개선","완료됨","중간","전 석훈","정 지혜","2021.09.28.","","","false","2021.09.29.","정 지혜",null,"안녕하세요 고객만족팀 김은주입니다.\n\n19891732 하여진\n \n\n19886350 이수진\n \n\n2개의 주문건 모두 교환 신청후 당사로 입고되어 검수를 진행하였으나.\n고객이 교환이 아닌 반품으로 변경후 환불 요청을 하였습니다. \n\n현재 2건의 주문건 모두 교환 대기 상태이며, \n( 취소/반품/교환) 요청정보의 상태는 상품검수중으로 물류에서 확정전 상태로 확인됩니다. \n\nCS 에서 물류로 회수완료 확정 이후 보스에 반영시까지 어느정도 시간이 걸리는 확인이 되지 않습니다. \n( 전산 연동까지 약 10분이 소요가 된다고 하나 하루 이상 걸리는 주문건도 확인됨 )\n계속 교환상품 재출고 되는 문제가 계속 발생이 되고, \n생각보다 교환 → 반품으로 변경하는 고객들도 많습니다. \n\n19886350 이수진 물류에서 회수 완료 진행 ( 약 2시 31분경 ) \n현재 2시 50분 현재 교환완료 처리 되어 교환 주문건이 생성되었으나. 취소 버튼도 확인되지 않습니다. \n \n현재 물류로 출고중지는 하였으나, 매번 이렇게 진행하기는 어려울 듯 합니다. \n\n19891732 하여진 / 19886350 이수진\n2개 주문건 모두 교환 상품이 출고되지 않도록 빠른 처리 부탁드립니다. \n\n감사합니다.","","",""]
[null,"bmNe0YEtaUGrZibyJYHVpMkAKl_b",null,null,"세트상품 송장 잘못나오는건(서보성이사 문의중)",null,"CS개선","완료됨","중요","","정 지혜","2021.09.28.","","","false","2021.09.29.","정 지혜",null,"","","",""]
[null,"LNTfXPI-SkyyN_Awu88sDMkANJtr",null,null,"[완료] 주문번호  19901945  윤덕근 교환철회",null,"CS개선","완료됨","중간","전 석훈","정 지혜","2021.09.29.","","","false","2021.09.29.","정 지혜",null,"","","",""]
[null,"JbSn8csGg0i21piMAscI1MkACTf2",null,null,"[완료] 19895625 주문취소 처리. scm 오류 조치바람.",null,"CS개선","완료됨","중간","전 석훈;정 지혜","정 지혜","2021.09.23.","","","false","2021.09.28.","정 지혜",null,"현재 미출고된 4개 상품 품절 취소 요망..\nscm 관련 처리가 되지 않아 계속 민원접수됨./","","",""]
[null,"6QmyLa3I30azJZc-kgU_h8kAEyDE",null,null,"[완료] 주문에서 앱일 경우, 디바이스 구분이 빠짐",null,"CS개선","완료됨","중간","전 석훈;정 지혜","정 지혜","2021.09.09.","","","false","2021.09.28.","전 석훈",null,"","","",""]
[null,"hS8Ribe_QUSaD9t2IGsLhckAJSOg",null,null,"무통장입금 결제에러/ 취소에러 발생",null,"CS개선","완료됨","중간","김 지철","정 지혜","2021.09.01.","","","false","2021.09.28.","김 지철",null,"환불계좌번호 ( mod_account ) 와 예금주명 ( mod_depositor ) 값 뒤에 \n긴 공백이 포함되어 요청되었습니다.. \n\n환불 요청 시 공백제거 후 다시한 번 시도 부탁드립니다.","","",""]
[null,"3HDFf6GbWEOjYvfJZa8JUckABgI6",null,null,"BOS 구매확정 후 반품/교환 처리 허용 개발",null,"CS개선","완료됨","중간","김 지철","김 지철","2021.09.10.","","","false","2021.09.28.","김 지철",null,"","","",""]
[null,"PvhGej1urkC2WrnOr1IrvMkANGqM",null,null,"[확인요청] 구매 확정 후 관리자에서도 반품접수가 안되는건.",null,"CS개선","완료됨","긴급","김 지철","정 지혜","2021.09.08.","","","false","2021.09.28.","김 지철",null,"구매확정 후 에는 반품접수가 진행되지 않게 개발되어 있습니다. 적립포인트 원복 문제등, 상품평 관련 리뷰 포인트 관련 문제가 있습니다.","","",""]
[null,"8VsE88Oq4Ueuyh67ZcIRU8kAJLVD",null,null,"고객 직접취소 환불 오류건(: 19892760)",null,"CS개선","완료됨","중요","","정 지혜","2021.09.24.","","","false","2021.09.28.","정 지혜",null,"안녕하세요 고객만족팀 김은주입니다.\n\n주문번호  : 19892760\n고객명 : 박지윤 \n\n총 5개의 상품 주문 후 고객이 직접 2개의 상품을 취소 한 것으로 확인되나, \n실제 2개의 상품 가격은 각각 부분 취소가 되었으나, \n상품은 1개만 취소가 되어 정상 발송되었습니다.\n해당 건 고객 문의가  접수된 것이 아니라 \n제가 부분 취소 주문건을 확인하고자 검색하던 중 발견한 주문 건입니다 \n\n주문 내역 확인바람","","",""]
[null,"8u0KeG3eGkuCA6UXpl-gwskAH0oW",null,null,"IOS 앱에서실시간계좌이체에러(뱅크페이앱 실행안됨)_",null,"CS개선","완료됨","중요","","정 지혜","2021.09.16.","","","false","2021.09.28.","정 지혜",null,"IOS Safari에서는 정상\nIOS 실시간계좌이체 오류 수정 건 결제완료 후 callback url 설정값 오입력 되어 추가발생함.","","",""]
[null,"7pv5KTvg7kmdGcjFtUY3eMkAKQan",null,null,"19892769 자동취소문자 변경 이력 확인필요",null,"CS개선","완료됨","중간","문 달호","정 지혜","2021.09.16.","","","false","2021.09.28.","정 지혜",null,"","","",""]
[null,"-SRY0iop4EmCnof2aK-8EskAKG_a",null,null,"[진행중] 주문서 페이지에 해당 영역에 상기 소스 삽입 요망",null,"CS개선","완료됨","중간","전 석훈;정 지혜","정 지혜","2021.09.16.","","","false","2021.09.28.","정 지혜",null,"https://www.style24.com/order/form\n\n[pc 주문서]\n<div class=\"area_paybtn\"> 영역 바로 위쪽에 삽입\n\n\t\t\t\t\t\t\t\t\t\t\t\n\t\t\t\t\t\t\t\t\t\t\t\n<div class=\"com_info_txt\">\n\t\t\t\t\t\t\t\t<p class=\"tit\">품절 관련 안내</p>\n\t\t\t\t\t\t\t\t<ul>\n\t\t\t\t\t\t\t\t<li>품절시는 자동으로 취소되며 취소 알림톡을 발송드립니다. 품절취소 상품 외 나머지 상품은 발송됩니다. </li>\n                                                                <li>업체/상품/브랜드에 따라 재고는 일부 상이할수 있으므로 고객님의 너른 양해를 부탁드립니다.</li>\n\t\t\t\t\t\t\t\t</ul>\n\t\t\t\t\t\t\t</div>\n\t\t\t\t\t\t\t\n\t\t\t \n모바일 주문서\n\n<div class=\"inner\"> 안 쪽 바로 에 삽입\n\n<div class=\"announce_txt\">\n\t\t\t\t\t\t\t<div class=\"note_txt\">\n\t\t\t\t\t\t\t\t<img src=\"/images/mo/ico_content_find03.png\" alt=\"유의사항\">\n\t\t\t\t\t\t\t\t<p>유의사항</p>\n\t\t\t\t\t\t\t</div>\n\t\t\t\t\t\t\t<div class=\"announce_list\">\n\t\t\t\t\t\t\t\t<ul>\n\t\t\t\t\t\t\t\t\t\t<li>품절시는 자동으로 취소되며 취소 알림톡을 발송드립니다. 품절취소 상품 외 나머지 상품은 발송됩니다. </li>\n                                                                <li>업체/상품/브랜드에 따라 재고는 일부 상이할수 있으므로 고객님의 너른 양해를 부탁드립니다.</li>\n\t\t\t\t\t\t\t\t</ul>\n\t\t\t\t\t\t\t</div>\n\t\t\t\t\t\t</div>","","",""]
[null,"hGy8xI4aIEWWUODvpBkuD8kAH_G-",null,null,"주문상세 DELV_FEE_CD 가 X 로 등록된 데이터 확인> 해당 업체의 DELV_FEE_CD가 없는건 조치필요.",null,"CS개선","완료됨","중간","구성원;이정환;정 지혜","정 지혜","2021.09.23.","","","false","2021.09.28.","이정환",null,"해당 X 로 등록된 데이타를 조회결과 아래의 데이타 건수가 확인됨.\n해당건의 대한 업체의 DELV_FEE_CD 정보의 매핑 정보가 필요함\n\n-- 전체 데이타 : 2,379,856 건수\n-- 2021년도 데이타 : 3,983 건수\n-- 2021년도 업체 : 91 건수\n\n[진행사항]\n2021년 8월 주문상세에는 X 로 되어 있는 것들을 업데이트 처리 진행 하였습니다.\n다만 SUPPLY_COMP_CD 와 GOODS_CD 가 X 로 마이그레이션 되어 있는 것들은 처리 못하였습니다. 해당  사유는 김성욱 차장님에게 문의 해봐야 할 것 같습니다.","","",""]
[null,"6Mh1eCg5bUGdulvON62ilskAGFIi",null,null,"WMS회수예와관리 , 환불관리 중복노출 오류 문의 ",null,"CS개선","완료됨","중요","문 달호","정 지혜","2021.09.24.","","","false","2021.09.24.","정 지혜",null,"주문번호 : 19863862 \n고객명 : 정희승\n제휴몰 : g마켓 주문건 \n \nWMS회수예외 관리에 배송비 미동봉건으로 확인됩니다. \n해당 주문건은 2곳에서 모두 확인이됩니다. \n \n처리 방법 : WMS회수예외관리 등록건  처리사항 확인 처리후 완료  물류에서 회수완료 진행  이후 환불컨펌에서 확인\n위 방법으로 처리 진행하는것으로 알고 있습니다. \n \n하지만 해당 주문건은 현재 2개 모두 검색이 되고 있어 전달 드립니다.\n빠른 확인 부탁드립니다.","","",""]
[null,"OaXS240q3kqaKoFXsp3jWskAPk9D",null,null,"[완료] 고객 웹취소시 환불 가격 오류",null,"CS개선","완료됨","중간","전 석훈;김 지철","전 석훈","2021.09.17.","","","false","2021.09.23.","정 지혜",null,"안녕하세요 고객만족팀 김은주입니다.\n\n주문번호 19887215        \n고객명 : 김주영\n\n주문후 상품 수령전 고객 웹 취소진행 하였으나.\n부분취소후 배송비 차감후 환불되는 오류 발생","","",""]
[null,"BqlZfLipv02RN1hlpHC2DskAPFKU",null,null,"[진행중] 교환/반품이 걸려 있을때, 구매 확정문구가 나오지 않고 반품/교환이 진행 중입니다. 라고 안내문구 노출, 구매 확정이 안나가는지도 확인 필요함.",null,"CS개선","완료됨","중간","전 석훈;정 지혜;김 지철","정 지혜","2021.09.15.","","","false","2021.09.23.","정 지혜",null,"","","",""]
[null,"2SFt7dTTD0eElAfU53tM9skAAwO2",null,null,"IOS 카카오페이 결제안됨",null,"CS개선","완료됨","중간","김 지철","정 지혜","2021.09.02.","","","false","2021.09.23.","정 지혜",null,"","","",""]
[null,"fCxoGzQp6U27wJz_9rF7lskAFlgC",null,null,"[완료] Front 클레임이 걸린 상품인데 구매확정 일자가 표시됨",null,"CS개선","완료됨","중요","전 석훈;정 지혜","정 지혜","2021.09.14.","","","false","2021.09.15.","전 석훈",null,"","","",""]
[null,"gCSpcljMVEiYAqln4JFe_ckAFF1c",null,null," [진행중] 주문번호  : 19887063  세트 상품 주문시 주문상품은 2개가 나오고,반품 요청시에는 하나의 로우로 표시될때 이슈 확인",null,"CS개선","완료됨","중간","전 석훈","정 지혜","2021.09.14.","","","false","2021.09.15.","김 지철",null,"옵션정보 테이블 JOIN 을 잘못 해서 나타난 오류로 내일 오전 수정 배포 예정입니다.","","",""]
[null,"5mnRad3FIEiO5gO4rDYxvskAPxTO",null,null,"재회수 지시를 했는데 기사가 방문오지 않음",null,"CS개선","완료됨","중간","문 달호","정 지혜","2021.09.10.","","","false","2021.09.15.","정 지혜",null,"","","",""]
[null,"YMuE3YLy6UCt398G6aFdXMkAFYA4",null,null,"스윗트래커 배치오류로 배송중 상태로 홀드되 있는 건들 일괄 업데이트 처리 필요, 고객 배송완료 알람 off 후.",null,"CS개선","완료됨","중간","문 달호","정 지혜","2021.09.13.","","","false","2021.09.15.","정 지혜",null,"","","",""]
[null,"wMQwhqbxlkm_9GuBjjoxcckANAA_",null,null,"[완료] 주문번호 : 19874512  고객명 : 최은미   2개의 상품 주문후 1개는 품절로 취소를 진행하였으며,  나머지 1개의 상품도 취소진행시 결제 취소 실패 메시지가 확인되어 취소가 되지 않습니다. ",null,"CS개선","완료됨","중간","전 석훈","정 지혜","2021.09.13.","","","false","2021.09.14.","전 석훈",null,"","","",""]
[null,"0ea0Iqs4P0uVtscMKQzvFckAFm9s",null,null,"[대기][결품환불] 19866352 / 57764695 ㄱ결품으로 미출고처리했으나 오류(결품환불요청건임)",null,"CS개선","완료됨","긴급","구성원;이정환;이선미;김 지철","정 지혜","2021.09.10.","","","false","2021.09.14.","김 지철",null,"포인트 및 정산 금액 업데이트 처리 완료 했습니다. 취소 요청 드립니다.","","",""]
[null,"FweJ3tltg0WuwvNKtp2bcskABPW3",null,null,"[대기][결품환불] 19866391_ 15007578-3    상품결품취소에러처리",null,"CS개선","완료됨","중간","구성원;이정환;이선미;김 지철","정 지혜","2021.09.10.","","","false","2021.09.14.","김 지철",null,"포인트 업데이트처리 했습니다. 취소 진행 부탁 드릴께요.","","",""]
[null,"eSc89iK3M0KHakTKPaFT1skAIMWL",null,null,"[환불컨펌] 19862330",null,"CS개선","완료됨","중간","구성원;이정환;이선미;김 지철","정 지혜","2021.09.10.","","","false","2021.09.14.","김 지철",null,"","","",""]
[null,"OTixethWzUm5vV0x3y3N68kAPwQj",null,null,"[완료][ghks19857632/2110300 - 구매확정환불변경-환불완료처리필요건",null,"CS개선","완료됨","중간","전 석훈","정 지혜","2021.09.10.","","","false","2021.09.14.","정 지혜",null,"","","",""]
[null,"t96nzuA-dEyEuo47-3_DU8kAAfrm",null,null,"[완료][구매확정->배송완료변경] 19859133 환불처리필요함",null,"CS개선","완료됨","중간","전 석훈","정 지혜","2021.09.14.","","","false","2021.09.14.","전 석훈",null,"","","",""]
[null,"eVsUc9EQUUKzU7Gu-SW9TskAIFhb",null,null,"[확인]제휴주문 교환 접수시에 고객들한테 배송비 입금하라는 문자가 나감",null,"CS개선","완료됨","중간","전 석훈","정 지혜","2021.09.10.","","","false","2021.09.14.","전 석훈",null,"- 제휴몰 주문에 대해서는 클레임 관련 문자(품절 외 전체) 나가면 안됨.\n현재 나가고있음\n1033\n1034\n1043\n1044\n1045\n1046\n1047\n1048\n1049\n1050\n1059\n1060\n1061\n1062\n1063\n1064\n\n상기 답변번호들이 현재 제휴몰 주문에서 나가고있을 경우 나가지 않도록 조치해주세요.","","",""]
[null,"JqR4SCWR0029Z-S99N0GQMkAATMi",null,null,"[진행중][결품환불][미출고처리] 19886932 19887050 19887267  (57819045 57819567 57820399) 미출고",null,"CS개선","완료됨","중간","전 석훈;정 지혜","정 지혜","2021.09.13.","","","false","2021.09.13.","정 지혜",null,"19886932 : res_msg=기취소된 신용카드 거래 취소요청 PG점프 취소 완료\n19887050 : res_msg=부분취소 불가 사이트 (휴대폰취소건으로 부분취소불가)\n19887267 : 취소완료\n\n-------------------------------------------------------------------------------------------\n\n주문번호 : 19887050\n상세번호 : 57819567\n현재 입점업체 품절취소, 결제타입 휴대폰 결제 부분취소 불가로 취소접수상태로 등록 했습니다.\n고객 아웃 바운드후 고객에게 입금 해주고 PG 점프 취소 승인 하시면 될꺼 같습니다.","","",""]
[null,"xudpes5m_0qSO_qadhrqiMkAHzCj",null,null,"입점업체 클레임 목록 별도 노출필요- scm 내용 bos에 그대로 옮겨서 일부만 변경하여 처리",null,"CS개선","완료됨","중간","전 석훈","정 지혜","2021.09.09.","","","false","2021.09.13.","전 석훈",null,"","","",""]
[null,"BYZ6EfYsDEe5wjzoFIi-IMkAK5AL",null,null,"SCM 클레임 업무 BOS 이관 개발",null,"CS개선","완료됨","중간","전 석훈","김 지철","2021.09.10.","","","false","2021.09.13.","전 석훈",null,"","","",""]
[null,"p7XE9eQb0EmobEJHtz3I48kAF2E3",null,null,"입점업체 관련 내용 별도로 노출및 처리필요",null,"CS개선","완료됨","중간","전 석훈","정 지혜","2021.09.09.","","","false","2021.09.13.","전 석훈",null,"입점업체 클레임관련 메뉴 BOS 에 개발 예정","","",""]
[null,"7aBT-kZSmEuRX2jdn0P-ackABuCR",null,null,"주문목록에 sku코드, 세트목록 이 두개씩 나오는현상",null,"CS개선","완료됨","중간","김 지철","정 지혜","2021.09.13.","","","false","2021.09.13.","김 지철",null,"","","",""]
[null,"9wzBxzxXrE6opbTCxTgJP8kAMWv6",null,null,"front 주문내역 막아놓은부분오픈",null,"CS개선","완료됨","중요","김 지철","정 지혜","2021.09.13.","","","false","2021.09.13.","김 지철",null,"","","",""]
[null,"ArAL-WGrWE2tl_i3-_7yJ8kADpvL",null,null,"[완료][미출고취소] 19874512 / 57785851 ",null,"CS개선","완료됨","중간","전 석훈","정 지혜","2021.09.13.","","","false","2021.09.13.","전 석훈",null,"","","",""]
[null,"tpk9VjPaGkiAK1AfNVBqPckAFuC7",null,null,"[확인요청] 입점업체의 주문은 관리자에서 어떻게 취소하나요 ? 메뉴 확인 요망",null,"CS개선","완료됨","중간","전 석훈","박 중재","2021.09.06.","","","false","2021.09.13.","전 석훈",null,"","","",""]
[null,"ELv-sVwlXU-iKwABGb_o_skAITHD",null,null,"[배송완료으로변경] 19859217 구매확정건 - 반품접수필요",null,"CS개선","완료됨","중간","전 석훈","정 지혜","2021.09.13.","","","false","2021.09.13.","전 석훈",null,"배송 완료 변경 했습니다.\n확인 부탁 드립니다.","","",""]
[null,"QMzKoXTtcEy8vLfjiOu21skAKN6H",null,null,"[환불컨펌] 19872866 / 57781944, 57781943 전체 취소요청하나 전체취소 에러,(8/31 주문건)",null,"CS개선","완료됨","중간","김 지철","정 지혜","2021.09.10.","","","false","2021.09.13.","김 지철",null,"","","",""]
[null,"5bJHlYiWsU2KBvMtaz_8C8kAP1Cd",null,null,"[환불컨펌] 19861470",null,"CS개선","완료됨","중간","김 지철","정 지혜","2021.09.10.","","","false","2021.09.13.","김 지철",null,"","","",""]
[null,"o75bTTVzkkO-HT9wCVLulckANomL",null,null,"[환불컨펌 ] 19862313 , 19861470 , 19864278  ",null,"CS개선","완료됨","중간","김 지철","정 지혜","2021.09.13.","","","false","2021.09.13.","김 지철",null,"","","",""]
[null,"-uMa08JMdEyf_k7o0d3lyMkANZdG",null,null,"[환불컨펌] 19859589 김성희 패션지오",null,"CS개선","완료됨","긴급","김 지철","정 지혜","2021.09.10.","","","false","2021.09.13.","김 지철",null,"","","",""]
[null,"PTZocABLvkG8jaJoPZvyx8kAM2nx",null,null,"[환불컨펌] 19859589 /57745136",null,"CS개선","완료됨","중간","김 지철","정 지혜","2021.09.10.","","","false","2021.09.13.","김 지철",null,"","","",""]
[null,"11Ro90ZzgUKHRNiK7CXAockAGULs",null,null,"[반품옵션 노출후 바로 처리요청] 주문목록내 물류 sku-code 추가 필요 (제휴몰 쪽 주문은 sku-code로만 커뮤니케이션 가능) - 물류와의 소통도 sku가 있어야 원활",null,"CS개선","완료됨","중간","김 지철","정 지혜","2021.09.09.","","","false","2021.09.09.","김 지철",null,"","","",""]
[null,"qGz8JoQLCke_vFL3LQddI8kANkI-",null,null,"[우선순위1순위] 반품 신청/반품 접수 화면에 반품 옵션이 안나오는 현상",null,"CS개선","완료됨","긴급","김 지철","정 지혜","2021.09.08.","","","false","2021.09.09.","김 지철",null,"","","",""]
[null,"dywL8FanIkqvYqFBmBdjjskAFmdj",null,null,"마이페이지에 주문 현재 안된다는 안내문구 노출, 이 부분은 입점 1:1문의로 처리하는 부분 완료 될때까지만 노출",null,"CS개선","완료됨","중간","정 지혜","정 지혜","2021.09.08.","","","false","2021.09.09.","전 석훈",null,"","","",""]
[null,"E4Nko5yIZkK0um5LLxJprckAEHGw",null,null,"주문번호 : 19870760 당일배송(총알) 주문 아니나 당일배송으로 넘어가는건",null,"CS개선","완료됨","긴급","문 달호","정 지혜","2021.09.09.","","","false","2021.09.09.","전 석훈",null,"메일유첨함\n\n->  서보성이사님 통화  (교환상품이라  물류에서 보류중이였다고함.)  교환선발송건  전달,  금일 출고!","","",""]
[null,"qg6hSNoz4Umy7F8rL7gBs8kAMJjP",null,null,"업체정보가 잘못된 사례 확인 - 인터파ㅡㅋ",null,"CS개선","완료됨","중간","","정 지혜","2021.09.07.","","","false","2021.09.08.","정 지혜",null,"","","",""]
[null,"HyFn8xOmjkCSxY66MsX8cskANgaf",null,null,"상품쿠폰에러",null,"CS개선","완료됨","긴급","전 석훈","정 지혜","2021.09.03.","","","false","2021.09.08.","정 지혜",null,"","","",""]
[null,"d5zec-NcBUCiDdGEVm4To8kAHXjP",null,null,"입점업체 상품 환불지연 관련 입고목록 확인",null,"CS개선","완료됨","중간","전 석훈;박 중재;정 지혜;김 지철","정 지혜","2021.09.07.","","","false","2021.09.08.","전 석훈",null,"","","",""]
[null,"bUFxzl8T00qFkgv_0DvvfMkANq8g",null,null,"front에서 교환 접수를 하고 교환배송비를 결제하였으나 교환배송비 결제 문자가 발송됨",null,"CS개선","완료됨","중간","김 지철","정 지혜","2021.09.07.","","","false","2021.09.08.","김 지철",null,"","","",""]
[null,"ly8WEmYwkkyKBjrkJgtaYMkAFaGh",null,null,"쿠폰 다운로드 용 스크립트 전달 필요",null,"CS개선","완료됨","중간","전 석훈","정 지혜","2021.09.03.","","","false","2021.09.08.","정 지혜",null,"이 부분 오픈 전에 오픈 프로모션 시 사용한다고 스크립트만 요청 드렸던 부분입니다.\nhtml에 삽입 할 스크립트 전달 주세요.","","",""]
[null,"a2oiw5-kOEaJLqcA829YLskADWFH",null,null,"배송비 금액 오류(4만이상 인데 배송비 발생)",null,"CS개선","완료됨","중간","김 지철","정 지혜","2021.09.07.","","","false","2021.09.07.","김 지철",null,"","","",""]
[null,"8PWyqIKxsEyYMsEPAmGCgskADAO8",null,null,"배송비 금액 오류(자사 4만 이하인데 배송비 발생하지 않음)",null,"CS개선","완료됨","중간","김 지철","이선미","2021.09.07.","","","false","2021.09.07.","전 석훈",null,"","","",""]
[null,"PGsXTapwXkK8Mc1JFFvKcckAChxE",null,null,"SCM 주문 다운로드 시 업체상품코드 컬럼 추가",null,"CS개선","완료됨","중간","전 석훈","정 지혜","2021.09.02.","","","false","2021.09.06.","전 석훈",null,"","","",""]
[null,"5BZL4iwtG0iVq6YnNhHT5skAJINn",null,null,"19873193 주문 - 제휴몰인입 주문/ 배송중인데, 현재 계속 배송준비중(송장등록1일완료)",null,"CS개선","완료됨","중간","김 지철","정 지혜","2021.09.03.","","","false","2021.09.06.","김 지철",null,"","","",""]
[null,"r24Bdtn3vUi_wojaGoYuMckABasL",null,null,"주문서쿠폰 에러",null,"CS개선","완료됨","긴급","","정 지혜","2021.09.03.","","","false","2021.09.03.","정 지혜",null,"","","",""]
[null,"MdwugZNpzEe_tbfKzdFrCskAH-2v",null,null,"취소되지 않는 오류 발생 배송준비중 상태에서 송장 등록되어 있으나 물류에서 취소가능하다는 답변 확인후 취소시 오류 발생 주문번호 :  19874778  (",null,"CS개선","완료됨","중간","김 지철","정 지혜","2021.09.03.","","","false","2021.09.03.","정 지혜",null,"","","",""]
[null,"HGSugOOiEEmtTOXVyv9vockAHVVI",null,null,"19868745 교환회수건 회수 택배사 전송이 안된듯 한데 확인 ",null,"CS개선","완료됨","중요","문 달호","정 지혜","2021.09.02.","","","false","2021.09.03.","문 달호",null,"wms  as-is 데이터 문제, 조치완료,  cj쪽 회수data  전송완료  09-03 11:00","","",""]
[null,"Jzi02MH4LU-FWws3-MMvV8kAELJP",null,null,"\"9/1 웹에서 반품 접수시 회수 요청하였으나, CJ택배 프로그램에 회수여부 확인안됨 주문번호 : 19871252 \"",null,"CS개선","완료됨","중간","문 달호","정 지혜","2021.09.03.","","","false","2021.09.03.","문 달호",null,"처리완료","","",""]
[null,"0FdM1QnlXkuQrjlnDi-zT8kAGQMk",null,null,"네이버페이 부분 취소시 금액 상이하게 표기됨 ",null,"CS개선","완료됨","중간","김 지철","정 지혜","2021.09.03.","","","false","2021.09.03.","김 지철",null,"추가 정보 필요","","",""]
[null,"BQgS3EUe2E6I2Bdv3yKWOckAPQEs",null,null,"사은품 입고데이터 처리",null,"CS개선","완료됨","중간","문 달호","정 지혜","2021.09.02.","","","false","2021.09.03.","정 지혜",null,"일부 잔여분만 남음","","",""]
[null,"3sEs6oAhnUyrEAGRtyIYGskAAcGx",{"$f":"$A$1&B120","v":"https://tasks.office.com/style24.com/Home/Task/3sEs6oAhnUyrEAGRtyIYGskAAcGx"},"BOS > 브랜드검색팝업","[MD개선] 공통 > 브랜드목록 검색 팝업 > 업체조건 추가",null,"MD개선","시작되지 않음","중간","","박 중재","2021.09.09.","","","false","","",null,"","","",""]
[null,"EpvnRTHofUCJFzdauD6JOMkAD6TE","https://tasks.office.com/style24.com/Home/Task/EpvnRTHofUCJFzdauD6JOMkAD6TE","BOS > 브랜드검색팝업\nBOS > 업체검색팝업","[MD개선] 공통 검색 > 브랜드, 업체 1개만 검색시, 이름으로 표시 (현재는 코드로 표시되서 보기 불편함)",null,"MD개선","시작되지 않음","중간","","박 중재","2021.09.09.","","","false","","",null,"","","",""]
[null,"ZYcZR3P-WkqYJlZZxUIOoMkAINkk","https://tasks.office.com/style24.com/Home/Task/ZYcZR3P-WkqYJlZZxUIOoMkAINkk","BOS > 사이즈별재고현황","[MD개선] 상품 > 재고관리 > 사이즈별 재고현황 : 상품명에 팝업링크 걸어줄것",null,"MD개선","시작되지 않음","중간","","박 중재","2021.09.09.","","","false","","",null,"현재 상품코드에 링크 걸려있어 사용하기 불편하고 다른 메뉴와 통일성 없음\n---> 상품명에 링크 거는걸로 수정","","",""]
[null,"HEBKutKxJUGo4t0kf8_jo8kAKR-6","https://tasks.office.com/style24.com/Home/Task/HEBKutKxJUGo4t0kf8_jo8kAKR-6","BOS > 사이즈별재고현황","[MD개선] 상품 > 재고관리 > 사이즈별 재고현황 : 리스트에 컬럼추가",null,"MD개선","시작되지 않음","중간","","박 중재","2021.09.09.","","","false","","",null,"리스트에 사이트 와 품절여부 사이에 SKU MODEL NO. 노출해줄것 (ERP 코드가 없어서 MD가 업무하기 불편함)","","",""]
[null,"qc9pH9zAqEaNVOe06XxVn8kAKmgR","https://tasks.office.com/style24.com/Home/Task/qc9pH9zAqEaNVOe06XxVn8kAKmgR","BOS > 상품가격예약관리","[MD개선][상품] 예약가격 진행중 데이터는 종료처리 기능처리",null,"MD개선","시작되지 않음","중간","","정 지혜","2021.10.07.","","","false","","",null,"현재 러닝되었을때 삭제가 되지 않아\n예약 일을 잘못설정했을때 수정방법이 전혀없음.\n예약 시작 이후에도 삭제 할수 있도록 처리.\n\n--> 로직을 봐서 히스토리 및, 로그는 만들어야 할거같음\n--> 종료 버튼을 만들어야함.","","",""]
[null,"gk2GaWun4kydbr142t3qi8kAMqDk","https://tasks.office.com/style24.com/Home/Task/gk2GaWun4kydbr142t3qi8kAMqDk","BOS > 상품가격예약관리","[MD개선] 상품 > 상품관리 > 상품가격예약관리 > 예약등록팝업 : 숫자 입력시 자동 콤마표시 해줄것",null,"MD개선","시작되지 않음","중간","","박 중재","2021.09.09.","","","false","","",null,"","","",""]
[null,"WN50q5qFt0uA8V63DKaf6ckAOPFT","https://tasks.office.com/style24.com/Home/Task/WN50q5qFt0uA8V63DKaf6ckAOPFT","BOS > 상품목록","[MD개선] 상품 > 상품목록 > 상품 승인 상태값변경시 에러값메시지노출",null,"MD개선","시작되지 않음","중간","","박 중재","2021.09.09.","","","false","","",null,"MD가 상품 승인시,  상품의 필수값이 누락되어 승인등록이 안된 경우 , 처리완료 팝업에 어떤 필수값이 누락되었는지 알려줬으면 함.\n\nEX )  총 2건의 상품이 승인되지 않았습니다. \n         - 상품코드 XXXXX  이미지 누락\n         - 상품코드 XXXXX   상품가격 누락   등등\n\n오류항목이 많은 경우, 팝업에서 어떻게 보여줄지는 검토 필요함","","",""]
[null,"BEc7oybb7Eecl55S2X6hKMkAP9Lt","https://tasks.office.com/style24.com/Home/Task/BEc7oybb7Eecl55S2X6hKMkAP9Lt","BOS > 상품목록","[MD개선] 상품 > 상품목록 > 리스트에 \"미리보기\" 버튼 추가",null,"MD개선","시작되지 않음","중간","","박 중재","2021.09.09.","","","false","","",null,"리스트에서 이미지와 브랜드 사이에 \"미리보기\" 버튼 넣어주세요(","","",""]
[null,"NAd-ds4aUUqDOcc2zdZ5RckAEibI","https://tasks.office.com/style24.com/Home/Task/NAd-ds4aUUqDOcc2zdZ5RckAEibI","BOS > 상품목록","[MD개선] 상품목록 > 엑셀전체 다운로드 추가",null,"MD개선","시작되지 않음","중간","","박 중재","2021.09.09.","","","false","","",null,"상품 > 상품관리 > 상품목록 : 엑셀 전체 다운로드 추가 요청건 \n > 속도이슈로 협의필요한 사항임 > 현재 max 500 개 까지 조회가능합니다. max 조회건수를, 1천건, 또는 2천건으로 늘렸을때 부하 이슈가 발생할까요 ?","","",""]
[null,"g9ai2qql9Ei1iG249IRcVckAGLfE","https://tasks.office.com/style24.com/Home/Task/g9ai2qql9Ei1iG249IRcVckAGLfE","BOS > 상품상세","[MD개선][자사상품]상품>등록/수정> 컬러별 이미지 등록 관련 수정",null,"MD개선","시작되지 않음","중간","","정 지혜","2021.10.13.","","","false","","",null,"상품  컬러 이미지가 컬러가 n개 일때 상품이미지가 특정 색상만 등록되었을 경우\n상품이 저장이나 러닝되지 않음. \n컬러 미사용 항목을 두고, 체크시 해당 컬러 옵션 전체 n처리, 옵션이미지 미등록하여도 등록 처리되도록 개선\n미사용 항목 체크 해제시, 전체 컬러옵션 y처리 옵션이미지 등록여부 구분","","",""]
[null,"ylLmikH66kiOn0Z0JXoNickAKOix","https://tasks.office.com/style24.com/Home/Task/ylLmikH66kiOn0Z0JXoNickAKOix","BOS > 상품상세","[MD개선] 상품목록 > 상품상세팝업 : 주요 사항 설명 문구 추가",null,"MD개선","시작되지 않음","중간","","박 중재","2021.09.09.","","","false","","",null,"상품상세 팝업에 주요한 내용 텍스트 설명 추가 필요함.\n\n설명문구 정리해서 올릴예정 (박중재)","","",""]
[null,"NgGse5oW8EGpDIhcsHrNvskAHTBc","https://tasks.office.com/style24.com/Home/Task/NgGse5oW8EGpDIhcsHrNvskAHTBc","BOS > 상품상세","[MD개선] 상품 > 상품목록 > 상품상세 팝업 : 사용자검색어, 검색어 영역 비노출 처리",null,"MD개선","시작되지 않음","중간","","박 중재","2021.09.09.","","","false","","",null,"(검색엔진을 사용하고 있기 때문에 사용안하는 기능임)","","",""]
[null,"0TJtfApLtEyt3AR6fyeY5ckACVBc","https://tasks.office.com/style24.com/Home/Task/0TJtfApLtEyt3AR6fyeY5ckACVBc","BOS > 주문목록","[MD개선] 주문목록에서 주문금액 값 확인필요.",null,"MD개선","시작되지 않음","중간","","정 지혜","2021.09.23.","","","false","","",null,"요청자 : 한나래 과장\n주문금액은 즉시할인가가 반영된 가격이나 총할인금액은 즉시할인 액이 추가로 표시되어 금액이 이상하게 엉키는 현상이 발생됨 \n주문금액 - 판가 \n총할인 -할인전체합계액\n실판매- 판가 -총할인 의 기준일것이나 주문금액이 즉시할인이 뺀 가격이되어있어 혼동이 있음.","","",""]
[null,"OKK4BehSsUSYIEaKPSErXMkAB4eT","https://tasks.office.com/style24.com/Home/Task/OKK4BehSsUSYIEaKPSErXMkAB4eT","신규메뉴 생성","[MD개선][상품] SCM 동영상 관리메뉴 생성",null,"MD개선","시작되지 않음","중간","","정 지혜","2021.10.15.","","","false","","",null,"","","",""]
[null,"ezHqD8d0mEqmE_pI_-MEL8kAPa4J","https://tasks.office.com/style24.com/Home/Task/ezHqD8d0mEqmE_pI_-MEL8kAPa4J","신규메뉴 생성","[MD개선][제휴몰] 재고배분율 설정 관련이슈",null,"MD개선","시작되지 않음","중간","","정 지혜","2021.10.15.","","","false","","",null,"10/18 미팅 예정","","",""]
[null,"_TxiH8EH00GSB_3HH87kfckAG3IC","https://tasks.office.com/style24.com/Home/Task/_TxiH8EH00GSB_3HH87kfckAG3IC","입점SCM > 사이즈별재고현황","[개선][SCM] 사이즈별재고현황 SCM에서 복수 조회기능필요",null,"MD개선","시작되지 않음","중간","","정 지혜","2021.09.13.","","","false","","",null,"","","",""]
[null,"Q_tmV6dndUyzzRu8OYoTuskAH90V","https://tasks.office.com/style24.com/Home/Task/Q_tmV6dndUyzzRu8OYoTuskAH90V","입점SCM > 입점주문목록","[MD개선][SCM주문] 발주서 다운로드 시 업체상품코드 필요",null,"MD개선","시작되지 않음","중간","","정 지혜","2021.09.28.","","","false","","",null,"SCM 발주서 다운로드 시 업체상품코드 표시 필요","","",""]
[null,"p0sY0Vnm-02IBsFUM-P-X8kAGAsx","https://tasks.office.com/style24.com/Home/Task/p0sY0Vnm-02IBsFUM-P-X8kAGAsx","촬영SCM > 상품대량업로드","[MD개선][상품] 대량등록 이미지 > 덮는 형태로 수정",null,"MD개선","시작되지 않음","중간","","정 지혜","2021.09.17.","","","false","","",null,"","","",""]
[null,"EYjQcyEO8k2Q2g_DN1bWFckAErNL","https://tasks.office.com/style24.com/Home/Task/EYjQcyEO8k2Q2g_DN1bWFckAErNL","촬영SCM > 상품상세","[MD개선] 촬영SCM> 상품정보>상품상세기술서 저장버튼 노출",null,"MD개선","시작되지 않음","중간","","정 지혜","2021.09.28.","","","false","","",null,"상세 팝업 저장에 수정 하도록 처리.\n가격/승인상태 외 나머지는 다 저장해도됨.","","",""]
[null,null,"https://tasks.office.com/style24.com/Home/Task/","촬영SCM > 상품입고현황","[MD개선][촬영SCM] 입고현황 메뉴 생성",null,"MD개선","시작되지 않음","중간",null,"정 지혜",{"$nulls":8},"","",""]
[null,"t3UDY8aJ2kyw8N2F2Mn9QMkAKUvJ",null,null,"LO1518408987 / 2021092316481485 /12495031-4 상기 sku 코드는 품절이나, 품절 이라고 노티가 나오지 않음 왜그런지확인필요",null,"MD개선","완료됨","중간","조 민혜","정 지혜","2021.09.23.","","","false","2021.10.08.","정 지혜",null,"","","",""]
[null,"QWFOAs06J02K30dMCmGndMkAOkYP",null,null,"상품 이미지 대량업로드시 외부몰용 상품이미지는 정사각형이 아닙니다. 라는 alert 노출",null,"MD개선","완료됨","중요","조 민혜;정 지혜","정 지혜","2021.09.14.","","","false","2021.10.06.","정 지혜",null,"","","",""]
[null,"Kmvo0XVHAE2yo-mHaJZKQskAHAXz",null,null,"0735570736 / 0734292982 상품 확인 시  12889916-4 F96M-DP961A 판매중지 상품임, 재고를 안보고 현재 몰내 판매상태 보는지 확인, 현재 몰의 판매상태 관계없이 제휴주문은 넘겨야함.",null,"MD개선","완료됨","중요","조 민혜;정 지혜","정 지혜","2021.09.15.","","","false","2021.10.01.","조 민혜",null,"","","",""]
[null,"RLcYxns_5kmUZw_0_9QprskABpGR",null,null,"ep 실패",null,"MD개선","완료됨","긴급","","정 지혜","2021.09.28.","","","false","2021.09.28.","정 지혜",null,"ep의 쿠폰이 중복되었을때 두가지에 대한 우선순위판단을 못하는 쿼리때문에 loop돌다가 죽음.","","",""]
[null,"iH6U5vDa6kKEwiSmfZhf5skAE_8W",null,null,"품절취소대상목록 업무설명",null,"MD개선","완료됨","중간","전 석훈","전 석훈","2021.09.28.","","","false","2021.09.28.","전 석훈",null,"* 품절취소대상목록 --> 업무설명\n\n@ SCM 입점업체 출고확정 처리시 품절취소대상 주문건 결제타입이 무통장입금, 휴대폰건을 \n    취소접수로 등록\n    CS 담당자분이 해당메뉴에서 품절취소접수 대상건을 취소승인 처리(고객아웃바운드)\n\n@ 자사의 자동품절취소대상 주문건 결제타입이 무통장입금, 휴대폰건을 취소접수로 등록\n    CS 담당자분이 해당메뉴에서 품절취소접수 대상건을 취소승인 처리(고객아웃바운드)\n\n@ 자사의 자동품절취소대상 주문건 품절대상으로 등록된건에 한해서 취소완료 처리\n    현재 품절취소 배치가 시간조정 관계로 실행중이 아니여서 실행을 하게되면 위의 건수는 줄어듬","","",""]
[null,"XaS4nnqvtUGZf8wM8PCwsMkAB4I5",null,null,"1:1문의에서 첨부된 이미지가 작게보임, 이미지 2개 첨부되었으나 1개만 보임",null,"MD개선","완료됨","중간","김 덕규","정 지혜","2021.09.09.","","","false","2021.09.28.","정 지혜",null,"조치됨","","",""]
[null,"oWlQMCfpL0SK0TlyzG8XT8kAOIgy",null,null,"N213TH040P / prd152533001 제휴몰 상품 기술서 제너레이트 시 컬러가 하나 누락된 현상.",null,"MD개선","완료됨","중요","조 민혜","정 지혜","2021.09.15.","","2021.09.24.","false","2021.09.28.","정 지혜",null,"","","",""]
[null,"9dCbH9L2hUu4-5hvXtvNVMkAD9Nb",null,null,"총알배송 지역 노출오류",null,"MD개선","완료됨","중간","","정 지혜","2021.09.23.","","","false","2021.09.23.","정 지혜",null,"홈페이지에서 총알 배송가능 지역을 검색시 \n[ 충남 천안시 서북구 두정역길 48 (두정동, 두정역푸르지오아파트) ]\n충남 지역도 총알배송 가능 지역으로 확인이 됨.","","",""]
[null,"rekb3f8Tc0uQRIhtbTJuYMkAB3Ek",null,null,"M214NUN08P 상품  WMS IF SKU애 없다고 나옴",null,"MD개선","완료됨","중요","문 달호","정 지혜","2021.09.15.","","","false","2021.09.17.","문 달호",null,"WMS DB 조회시 재고 없어도 수행되게 수정  및  SCM 배포완료 09.17","","",""]
[null,"I82vbk9yq0WKXptr0FFaIskAI5D2",null,null,"하프클럽 교환이 상품이 미매핑 누락되는 현상 > 210905446650  [모이몰른]브론디 상하 MPF1BAST23 [가을] - 머스타드/100 [모이몰른]클립모노 후라이스상하 M211NNH08P [봄] - 라임/090 [모이몰른]클립라운 양면상하 M211NNH03P [봄] - L보라/100 [모이몰른]클립로키 자가드상하 M213NNH01P [가을] - 민트/100",null,"MD개선","완료됨","중간","","정 지혜","2021.09.15.","","","false","2021.09.17.","정 지혜",null,"","","",""]
[null,"VCE6XpqJAEyk1cFNzXICDskAGXAN",null,null,"샵링커 단건 like검색으로 변경요청",null,"MD개선","완료됨","중간","조 민혜","이선미","2021.09.07.","","","false","2021.09.14.","조 민혜",null,"","","",""]
[null,"xW85H8lqAkaUSA33t9_CFMkANQWn",null,null,"샵링커 주문 중, 재고 없어서 바로 품절로 떨어진 내역을 주문 메모로 찍을 수 있는지 확인바람--> 미생성 상품 번호 / 상품명 / 수량 에 대해서 로그 남는대로 찍어주세요",null,"MD개선","완료됨","긴급","조 민혜","정 지혜","2021.09.08.","","","false","2021.09.14.","조 민혜",null,"CS에서 해당 내역 찾아서 고객 응대를 엄청 많이 한다고함.\n어떤 주문인지 일수없어 상기 내용해소 필요","","",""]
[null,"uoQcnYMNq0Kuc5Z1b_vZickAJjZW",null,null,"초기 상품 등록시 상품정보 옵션/재고정보 > 노출여부 default = Y  품절여부 N 으로 처리",null,"MD개선","완료됨","중간","조 민혜;정 지혜","정 지혜","2021.09.10.","","","false","2021.09.14.","조 민혜",null,"","","",""]
[null,"jHxuM5NSyU6M5FoWMFEttMkAF24q",null,null,"제휴주문 운송장 등록 오류의 건",null,"MD개선","완료됨","중요","","정 지혜","2021.09.09.","","","false","2021.09.13.","정 지혜",null,"19879536 오혜영\n등록된 송장번호 : 339385637483\n발송된 송장번호 : 339385645850 ( 물류 확인건 )\n\n19880183 배정훈\n등록된 송장번호 : 339385639826\n발송된 송장번호 : 339385647600 ( 물류 확인건 )\n\n위 2건 모두 전산에 등록된 운송장번호와.\n실제 물류에서 출고된 운송장 번호가 상이합니다 . \n\n빠르게 확인 부탁드립니다. \n감사합니다.","","",""]
[null,"2huhSwODtkertdFuWp9QAMkAMQI5",null,null,"네이버, 다음 제휴 오류 (쿠폰팝업, 제휴링크유실)",null,"MD개선","완료됨","긴급","김 덕규","박 중재","2021.09.02.","","","false","2021.09.09.","박 중재",null,"제휴경유 접속시 쿠폰 팝업 안뜸. (상품상세) / 쿠폰번호 21번 22번\n제휴경유 주문서 이동시 제휴링크 없어짐","","",""]
[null,"ah2xXDwAmUuVDBdqndXQHckAMJzd",null,null,"금일 발주이후 샵링커로 운송장 전송시 오류건이 발견되어 전달드립니다.  총 2건의 주문건이 오류로 확인됩니다 . 주문번호  19881854 ( 롯데아이몰 ) / 19881807 (  보리보리 주문건 )",null,"MD개선","완료됨","중간","조 민혜","정 지혜","2021.09.08.","","","false","2021.09.08.","조 민혜",null,"12시 10분경 해당 두 건 재전송시켰고, \n한 건은 완료된건이이라 실패, 다른 한 건은 성공했습니다. \n\n특정한 메시지의 전송실패인 경우, 오류로 떨궈서 다음번에 재 전송할 수 있도록 소스 보완(09.09 배포예정)","","",""]
[null,"XhLIu3EfQka1ojtsA49enMkADZGj",null,null,"ep 제휴코드를 붙여도 유실되는현상",null,"MD개선","완료됨","중간","김 덕규","정 지혜","2021.09.02.","","","false","2021.09.06.","전 석훈",null,"","","",""]
[null,"5r-xAAjA40qfy-Geq-LMEskAAs6d",null,null,"제휴 쿠폰이 노출되지 않는현상(팝업오류",null,"MD개선","완료됨","긴급","","정 지혜","2021.09.02.","","","false","2021.09.06.","전 석훈",null,"","","",""]
[null,"fF1_dhky7kGFKUVkZkSN4skANOXZ",null,null,"wms 전일자 입고데이터 에러",null,"MD개선","완료됨","긴급","문 달호","정 지혜","2021.09.03.","","","false","2021.09.03.","정 지혜",null,"서보성이사님 확인","","",""]
[null,"sUGWc_90Z0aVcPt0ZX4IFckAEvNW",null,null,"영업망관리 > 샵링커 송장 전송관리 송장 연동안됨",null,"MD개선","완료됨","중간","","정 지혜","2021.09.03.","","","false","2021.09.03.","조 민혜",null,"","","",""]
[null,"LEtHZ7ZWHEiopI_qad74BckAHA-n",null,null,"제휴몰 주문수집 product id로 인한 오류",null,"MD개선","완료됨","긴급","조 민혜","정 지혜","2021.09.01.","","","false","2021.09.03.","조 민혜",null,"","","",""]
[null,"OWrU2eC2qUuyVfsfi3AfQskAL-fj",null,null,"제휴몰 주문업로드 - 티몬 이슈 확인",null,"MD개선","완료됨","긴급","조 민혜","정 지혜","2021.09.01.","","","false","2021.09.03.","조 민혜",null,"","","",""]
[null,"HzX99QPSBUOdLfzQyjV-FckAO4Fj",null,null,"샵링커수집목록 중 소팅 /검색조건 에러 문제(실패에러 관련 목록 조회시 에러)",null,"MD개선","완료됨","중간","조 민혜","정 지혜","2021.09.02.","","","false","2021.09.03.","조 민혜",null,"","","",""]
[null,"djBbKWOtqkWrPu_UKB0tnckAMP6U",null,null,"템플릿 별 나간 데이터 수 확인- 김덕재 B",null,"MD개선","완료됨","중간","정 지혜","정 지혜","2021.09.02.","","","false","2021.09.02.","정 지혜",null,"","","",""]
[null,"yJEVwhN4hE2R8bYG7Kbt1MkABYpk",{"$f":"$A$1&B164","v":"https://tasks.office.com/style24.com/Home/Task/yJEVwhN4hE2R8bYG7Kbt1MkABYpk"},"Batch","[개선] 발주확정 처리 배치생성",null,"개선요청건","시작되지 않음","중간","","정 지혜","2021.09.29.","","","false","","",null,"송장등록일 기준 D +2 발주 확정 배치처리","","",""]
[null,"PuJEhYaKcEqiTHyNFxQFBckAO_Ka","https://tasks.office.com/style24.com/Home/Task/PuJEhYaKcEqiTHyNFxQFBckAO_Ka","BOS > 배송비정산\nBOS > 상품권정산","[개선][정산]배송비정산/상품권정산 그리드 상단 total값 추가",null,"개선요청건","시작되지 않음","중간","","정 지혜","2021.10.14.","","","false","","",null,"","","",""]
[null,"U3BaxGnTyEiEKO5hrD_BSskAPpdx","https://tasks.office.com/style24.com/Home/Task/U3BaxGnTyEiEKO5hrD_BSskAPpdx","BOS > 상품정산","[개선][정산] 정산 기준 > 상품총액 변경",null,"개선요청건","시작되지 않음","중간","이선미","정 지혜","2021.10.13.","","","false","","",null,"즉시+상품+주문서+다다익선 까지 할인 내역 차감 하였으나, \nmD와 확인 결과 관계사 정산시 상기와 같이 처리할수 없다고 함\n재무팀/md 팀 합의 결과 md기준으로 수정하기로 최종합의\n\n*수식 변경 정리\n-쿠폰할인금액 : 상품쿠폰사용금액 + 즉시사용쿠폰금액\n-자사/입점쿠폰분담액 : 주문서쿠폰은 반영X\n-실판매가격 : 쿠폰할인금액, 다다익선할인금액만 차감(주문서쿠폰은 반영X)\n-상품총액 : 수량 * 실판매가격\n\n\n--> 다다익선 제외여부 확인중\n--> 첨부는 기존 구축시 최종 결정되었던 내용임","","",""]
[null,"wI7wxrPAGUyrdniD7boHrMkAKw_E","https://tasks.office.com/style24.com/Home/Task/wI7wxrPAGUyrdniD7boHrMkAKw_E","BOS > 일일거래내역","[개선][통계] 통계> 일일거래내역 최대 1주일 기준으로 다운로드",null,"개선요청건","시작되지 않음","중간","","정 지혜","2021.10.12.","","","false","","",null,"","","",""]
[null,"Wx8Be6GdBE2RuoXJdV5rbskAM2o_","https://tasks.office.com/style24.com/Home/Task/Wx8Be6GdBE2RuoXJdV5rbskAM2o_","FRONT > app","[개선] IOS앱>상품상세 로딩 걸리는 현상",null,"개선요청건","시작되지 않음","중간","","정 지혜","2021.10.06.","","","false","","",null,"Safari 에서는 괜찮으나, IOS app 에서만 발생","","",""]
[null,"nFCuMNre8UyLEvmSvhItc8kAAbs1","https://tasks.office.com/style24.com/Home/Task/nFCuMNre8UyLEvmSvhItc8kAAbs1","FRONT > 전시","[개선] SBM005 코너의 메인타이틀데이터 <br> 적용되도록 front(배기영본부장님)",null,"개선요청건","완료됨","중간","조 민혜","정 지혜","2021.09.09.","","2021.10.18.","false","","",null,"","","",""]
[null,"-4D5De3RIkm7v-AHb55VzskAFAgp","https://tasks.office.com/style24.com/Home/Task/-4D5De3RIkm7v-AHb55VzskAFAgp",null,"[개선] 교환 출고도 주문 상품 출발 문자가 발송됨",null,"개선요청건","시작되지 않음","중간","","정 지혜","2021.09.24.","","","false","","",null,"","","",""]
[null,"tZsXSMiwJkKZDeHmOnPO98kAEW-U","https://tasks.office.com/style24.com/Home/Task/tZsXSMiwJkKZDeHmOnPO98kAEW-U",null,"[개선] Front 교환 출고 노출 확인",null,"개선요청건","시작되지 않음","중간","","정 지혜","2021.09.24.","","","false","","",null,"교환 된 상품이 출고될때 주문목록에 노출되는데 이것이 교환 배송상품인지 확인되지 않음","","",""]
[null,"7GolWi5WhUKehmEPqhm8-MkAOLgj","https://tasks.office.com/style24.com/Home/Task/7GolWi5WhUKehmEPqhm8-MkAOLgj",null,"[개선] 반품 허들이 무너졌을 경우 정책배송비+반품배송비 편도 비로 처리하고있는 부분 이슈 확인",null,"개선요청건","시작되지 않음","중간","","정 지혜","2021.09.16.","","","false","","",null,"","","",""]
[null,"4MVYX92OG067_jbKf89wQMkAOJfW","https://tasks.office.com/style24.com/Home/Task/4MVYX92OG067_jbKf89wQMkAOJfW",null,"[개선][정산] ERP 매출전송 시 코드 미매핑건에 대한 대응",null,"개선요청건","시작되지 않음","중간","김 덕규","박 중재","2021.09.14.","","2021.10.15.","true","","",null,"9월 14일 시스템장애 메일로 발송된 내용 (발신인 이재연)\n\nAPI 전송 품번과,  한세드림, 한세MK ERP 품번이 상이한 경우 (주로 컬러코드, 사이즈코드에서 발생)\n전송하지 못하고있어, 아래 2가지 사항에 대한 개선 조치 필요함\n1) 일자별로 미 전송내역을 확인할수 있는 방법 (화면 또는 오류메시지 메일로 자동 전송)\n2)  위 1번처럼 품번이 상이한 상품이 발생하는 경우, 우리쪽 데이터를 매핑할수 있는 방법","","",""]
[null,"cwGEtiaKh0CnVzKYa31D2MkAAZsC","https://tasks.office.com/style24.com/Home/Task/cwGEtiaKh0CnVzKYa31D2MkAAZsC",null,"[개선][성능개선] http 호출 제거",null,"개선요청건","시작되지 않음","낮음","","이선미","2021.09.10.","","","false","","",null,"https --> http로 호출하면 에러가 뜸\n시큐리티, 외부 api 쪽에 http로 통신되는게 남아있음.\nhttps로 변경을 해야함","","",""]
[null,"rons2tp4_UKVGQ2k7P2YU8kAD3Hp",null,null,"[개선][BOS] 상품상세> 옵션정보> 물류 skucode 추가",null,"개선요청건","완료됨","중간","조 민혜","정 지혜","2021.09.09.","","2021.10.15.","false","2021.10.15.","조 민혜",null,"[개선][BOS] 상품상세> 옵션정보> 물류 skucode 추가","","",""]
[null,"ycEdXcmtXEGKrRK1PY5ZqskANqMA",null,null,"IOS앱마켓 적용",null,"개선요청건","완료됨","중간","김 덕규","정 지혜","2021.09.01.","","","false","2021.09.13.","조 민혜",null,"","","",""]
[null,"SRaJuNxuWkW-OsrtCi9R4MkAFdhd",null,null,"추천솔루션 이슈",null,"개선요청건","완료됨","중간","조 민혜;전 석훈","이정환","2021.09.02.","","","false","2021.09.06.","이정환",null,"제니퍼에서 아래와 같은 이슈가 트래킹 되어 확인 요청 드립니다.\n\n호출 URL : www.style24.com/display/recommend/item/list\n\n이슈내용\norg.springframework.web.util.NestedServletException:\n\nRequest processing failed; nested exception is java.lang.IllegalArgumentException:\n\nIllegal character in query at index 86: https://api.eigene.io/rec/s003?size=5&cuid=1252aed4-78dc-46e8-b784-94ac42e86dd4&st=컬리수 트렌치원피스&cps=true&cpt=m004","","",""]
[null,"1AaVkm6Lzka2cfOxeh-NZskAKQf5",null,null,"SCM 업체 상품 목록 다운 컬럼에, 배송송장/택배사 컬럼 추가, 업로드는 해당 파일 업로드로 변경",null,"개선요청건","완료됨","중간","김 지철","정 지혜","2021.09.02.","","","false","2021.09.06.","김 지철",null,"2021.09.03 배포 완료","","",""]
[null,"ynPtWnbYukGXTe3xQkVUNckAG1zY",null,null,"앱 필수 업데이트 관린 기사이트 조치",null,"개선요청건","완료됨","중간","이선미","정 지혜","2021.09.01.","","","false","2021.09.03.","이선미",null,"","","",""]
[null,"HwsRH_zPU0qTir67kz5MZ8kAK9Qx",{"$f":"$A$1&B180","v":"https://tasks.office.com/style24.com/Home/Task/HwsRH_zPU0qTir67kz5MZ8kAK9Qx"},"BOS > 상품권정산","[결함][정산]상품권정산/사용취소금액 일일거래내역과 상이한 부분 확인",null,"결함","시작되지 않음","중간","김 덕규","정 지혜","2021.10.14.","","","false","","",null,"","","",""]
[null,"8OkrlU8XzUCFYs5mfgM6uskAFaYX",{"$f":"$A$1&B181","v":"https://tasks.office.com/style24.com/Home/Task/8OkrlU8XzUCFYs5mfgM6uskAFaYX"},"FRONT > 주문서","[결함][FRONT][주문서] 주문서>해외구매대행상품 >통관부호 불러오는 쿼리 딜레이이슈",9,"결함","시작되지 않음","중간","전 석훈","정 지혜","2021.10.13.","","2021.10.26.","false","","",1,"","","",""]
[null,"XNn3CRe1a0mnbjqb-_llCMkAN5c4",{"$f":"$A$1&B182","v":"https://tasks.office.com/style24.com/Home/Task/XNn3CRe1a0mnbjqb-_llCMkAN5c4"},"FRONT > 주문서","[결함][FRONT][주문서][모바일] 주문서>입점상품 구매시 총알배송 노출됨",null,"결함","시작되지 않음","중간","전 석훈","정 지혜","2021.10.13.","","","false","","",null,"","","",""]
[null,"ysxfJN9eEEuVnVA0I1l2DMkAJ0HJ",{"$f":"$A$1&B183","v":"https://tasks.office.com/style24.com/Home/Task/ysxfJN9eEEuVnVA0I1l2DMkAJ0HJ"},"WMS","[결함][WMS]회수지시 중복발생의 건",7,"결함","시작되지 않음","중간","","정 지혜","2021.10.13.","","","false","","",1,"일전에 회수관련 하여 수정한건이(타택배등. ) 오류로 인하여 계속 회수되는 문제가 있었습니다.\n8~12일 까지 중복으로 회수요청이 되었고 주문건으로는 66건 입니다.\n \n해당건은 금일 보완(USP_WMS_DailyCjglsDeliveryInfo_Update_2021)하였으며 금일 회수요청부터는 중복 회수가 되지 않을것 입니다.\n금일 회수요청된건은 내일 한번더 회수대상에 포함되는지 확인해보도록 하겠습니다.","","",""]
[null,"rpJ5anzrgE6wFLw0aDAB1ckAKHbs",null,null,"[결함][제휴몰] 배송비 수집관련 에러 조치(패플/롯데몰)",null,"결함","완료됨","중간","조 민혜","정 지혜","2021.10.12.","","2021.10.15.","false","2021.10.15.","정 지혜",null,"","","",""]
[null,"QEpdFn6pyEiVpsmRsp-43ckANIDl",null,null,"[결함][제휴몰] 제휴몰 주문수집 배치/수집일부누락건",null,"결함","완료됨","중요","조 민혜","정 지혜","2021.09.28.","","2021.10.15.","false","2021.10.15.","조 민혜",null,"현재 모니터링중- 배치","","",""]
[null,"uDm-koQesU6r7BlUbPPzSMkAO7sC",{"$f":"$A$1&B186","v":"https://tasks.office.com/style24.com/Home/Task/uDm-koQesU6r7BlUbPPzSMkAO7sC"},null,"[결함][제휴몰]제휴상품기술서, 모델컷데이터 순서잘못됨/라벨컷가이드에서깨짐",null,"결함","시작되지 않음","중간","조 민혜","정 지혜","2021.10.14.","","","false","","",null,"T214PT400P\n- 샵링커에서 확인 시 모델컷이 뒷쪽으로 노출됨.\n- 라벨 이미지가 크게 노출됨.(CSS수정필요건)\n- 기술서 내에 https://도메인이 제외되어 이미지가 html로 노출시 정상적으로 안나오는현상","","",""]
[null,"70J6xhDT1UCpWx5fG9isN8kANWmU","https://tasks.office.com/style24.com/Home/Task/70J6xhDT1UCpWx5fG9isN8kANWmU",null,"[결함][클레임] 무통장취소 환불계좌확인시 계좌번호가 유효성 체크비정상",5,"결함","시작되지 않음","중간","김 지철","정 지혜","2021.10.14.","","","false","","",1,"안녕하세요 고객만족팀 김은주입니다.\n\n주문번호 : 19899587       \n고객명 : 임현성\n\n해당 주문건 무통장 환불 오류건으로\n처리가 지연되고 있어 금일 수기로 등록후 현금환불 예정건입니다 .\n\n현재 경영지원팀으로 현금환불 리스트를 전달하였습니다. \n\n전달시 등록된 계좌번호 ( 우리은행 – 100243416801 – 임현성 ) 환불계좌 확인시 \n계좌번화가 확인되지 않는 계좌라고 합니다. \n\n \n\n환불 계좌 등록시 유효성 검사를 진행한다고 하였으냐, \n이 부분이 정상으로 되지 않는듯 하여 재문의드립니다. \n\n빠르게 확인 부탁드립니다. \n감사합니다.","","",""]
[null,"xKjv4drfKUaHFKZK5etDQ8kADL-u","https://tasks.office.com/style24.com/Home/Task/xKjv4drfKUaHFKZK5etDQ8kADL-u",null,"[결함][클레임] 무통장입금 부분취소 안됨(9/15주문)",6,"결함","시작되지 않음","중간","","정 지혜","2021.10.14.","","","false","","",1,"주문번호 : 19892008  옥주희 \n주문번호 : 19899587  임현성\n주문번호 : 19907709  오나현\n\n9월 15일 주문으로 경과일자 이슈로 안되는건지 확인 필요함\npg 점프후 처리 하면 되는지.\n\n-------------------------------------------------------------------------------------------------\n주문번호 : 19892008  옥주희 ---> KCP 관리자 취소금액 확인안됨\n주문번호 : 19899587  임현성 ---> 환불계좌가 AS-IS 계좌로 2013년 등록된 내용임\n주문번호 : 19907709  오나현 ---> KCP 관리자 취소금액 확인안됨\n-------------------------------------------------------------------------------------------------","","",""]
[null,"aoH0EVyQ6UuB2yYWUK59MskADBbF","https://tasks.office.com/style24.com/Home/Task/aoH0EVyQ6UuB2yYWUK59MskADBbF",null,"[결함][클레임] 교환주문 물류확인안됨",3,"결함","시작되지 않음","중간","전 석훈","정 지혜","2021.10.14.","","2021.10.14.","true","","",1,"주문번호 19901816\n고객명 : 지수희\n \n==> 교환 주문건 뮬류 미확인건  ( 불량 교환건 )\n해당건 물류에서 교환이력이 확인되지 않아 메일로 문의드린건이나, \n고객 환불로 요청한다고 합니다. ( 이미 상품은 입고된 상태 )","","",""]
[null,"gDi0M7IxGEGOp6lqfrcAzckANGw3","https://tasks.office.com/style24.com/Home/Task/gDi0M7IxGEGOp6lqfrcAzckANGw3",null,"[결함][프로모션] 카드 프로모션 등록 후 수정시, 세팅기간이 리셋되는 현상",null,"결함","시작되지 않음","중간","김 지철","정 지혜","2021.10.14.","","2021.10.27.","false","","",null,"","","",""]
[null,"l0-g5tZVikKjUjW-RT7ma8kAAaqW","https://tasks.office.com/style24.com/Home/Task/l0-g5tZVikKjUjW-RT7ma8kAAaqW",null,"[결함][구매확정] 구매확정된 주문에 대한 데이터가 차감된현상",null,"결함","시작되지 않음","중간","전 석훈","정 지혜","2021.10.13.","","2021.10.29.","false","","",null,"L0veve / 19885243\n포인트를 사용하지 않고, 구매확정된 주문데이터이나\n차감이력이 발견되어 문의함, \n10/1 21:19:37에 포인트 사용 내역이 있음.(하지만 해당 주문이력은 반품/교환없이 구매확정된건)\n9/10 이후에 주문이력이 없는상태임\n구매확정된 데이터이고 이부분에 대한 반품/교환 발생되지 않았음","","",""]
[null,"xC9zgc6wGkqdI3CTMUf3GckACs9T","https://tasks.office.com/style24.com/Home/Task/xC9zgc6wGkqdI3CTMUf3GckACs9T",null,"[결함][클레임] Front 출고전 취소시 배송비 차감환불되는 현상",4,"결함","시작되지 않음","중간","김 지철","정 지혜","2021.10.12.","","2021.10.22.","false","","",1,"","","",""]
[null,"NB-0hR4t2UCi53oJXScwn8kAI-Tw","https://tasks.office.com/style24.com/Home/Task/NB-0hR4t2UCi53oJXScwn8kAI-Tw",null,"[결함][전시] 몰 메인 스위퍼 영역에 상품이 1개 있을 경우 3개로 중복되어노출",null,"결함","시작되지 않음","중간","조 민혜","이선미","2021.10.12.","","2021.10.21.","false","","",null,"(DB쿼리시 1개만 조회됨 )","","",""]
[null,"ivGyu3NSXEK6pqM89uJlwskAPAgt","https://tasks.office.com/style24.com/Home/Task/ivGyu3NSXEK6pqM89uJlwskAPAgt",null,"[결함&개선][SCM] 발주확정 > 결품 품절 처리 시, 부분취소 불가결제수단 에러",null,"결함","시작되지 않음","중간","김 지철","정 지혜","2021.10.12.","","","false","","",null,"결품 관련하여 데이터 저장 처리 하고, 나머지 현금환불이력 목록으로 이관되도록 처리되어야 함\n현재 해외카드 이력은 처리안됨","","",""]
[null,"N8GGoIxSeUukcXKUdCCGwskAJlsG","https://tasks.office.com/style24.com/Home/Task/N8GGoIxSeUukcXKUdCCGwskAJlsG",null,"[결함][클레임] 계좌환불완료 이후 계좌번호 등록문자가 나가는 현상",8,"결함","시작되지 않음","중간","문 달호","정 지혜","2021.10.12.","","2021.10.26.","false","","",1,"환불이 완료되었는데, 고객에게 무통장입금 등일 때 계좌번호 등록하라는 알림이 나감.","","",""]
[null,"lgpR1nyyOEacFTYD8j1VockAE6T_","https://tasks.office.com/style24.com/Home/Task/lgpR1nyyOEacFTYD8j1VockAE6T_",null,"[결함][BOS][상품] 상품이미지가 일부 옵션만 없을경우 저장이 안되는현상",null,"결함","시작되지 않음","중간","조 민혜","정 지혜","2021.10.12.","","2021.10.21.","false","","",null,"V214PJ363P \n- 대표색상 변경후, 노출여부 다 N 처리 하여도 상품이미지가 없어 저장안되는 현상","","",""]
[null,"C3QpNU_NV0OcKxZM5gC9jckAHziN","https://tasks.office.com/style24.com/Home/Task/C3QpNU_NV0OcKxZM5gC9jckAHziN",null,"[결함][배치] 공휴일에 회수배치가 실행되어 ERP 매출데이터에 공휴일 회수완료가 넘어감",null,"결함","시작되지 않음","중간","전 석훈","정 지혜","2021.10.12.","","2021.10.28.","false","","",null,"19894801\n19904925\n19904925\n19911248\n19910582\n19902652\n19902652\n19909086\n19910859\n19908057\n\n--> 10/8 환입 완료 된 데이터임, 10/11 공휴일이나 한세드림 데이터에 11일 00시 환입 데이터로 전송\n--> 상기 주문들은 8일~9일에 회수완료된 교환건이며, 관련 데이터에 대한 처리는 공휴일 기준으로 처리가 될것인데 데이터가 만들어졌음.","","",""]
[null,"C_HQR1T-202p7Dl34WBWP8kAHVKZ",null,null,"[결함][상품] 단품 파샬입고(옵션만추가) 데이터 추가되지않는현상",null,"결함","완료됨","중요","조 민혜","정 지혜","2021.09.13.","","2021.10.21.","false","2021.10.15.","조 민혜",null,"B215DS160P_ KD 컬러가 입고되었으나 처리가안됨\n◦          A214SW102P PI 옵션없음\n           ◦          V214PT322P NA 옵션없음\n           ◦          N213SW305P BK 옵션없음\nN213SW305P GR 옵션없음\n\n해당 상품추가","","",""]
[null,"_KXqhnpCnUCE-Erwvzoo_skAJr65",{"$f":"$A$1&B199","v":"https://tasks.office.com/style24.com/Home/Task/_KXqhnpCnUCE-Erwvzoo_skAJr65"},null,"[결함][프로모션] 다다익선 등록오류",null,"결함","시작되지 않음","긴급","전 석훈","전 석훈","2021.10.08.","","2021.11.12.","false","","",null,"BOS 화면에서 다다익선 등록 시 오류 발생\n-> 기준상품 관련 개발 오류로 확인됨\n-> 개발요건 다시 확인 후 로직 수정바람","","",""]
[null,"fQ0SMZDL-EeAGvcxV2-g5skANBLX","https://tasks.office.com/style24.com/Home/Task/fQ0SMZDL-EeAGvcxV2-g5skANBLX",null,"[결함][배치] 배치수동/배치자동 로그가 정상적으로 안남는것",null,"결함","시작되지 않음","중간","문 달호","정 지혜","2021.10.08.","","2021.10.22.","false","","",null,"","","",""]
[null,"w_-0pOgh3ku046s7LXPgn8kANvA0","https://tasks.office.com/style24.com/Home/Task/w_-0pOgh3ku046s7LXPgn8kANvA0",null,"[결함][주문]선물주문 배송지미입력건 주문취소/결품취소 로직확인",null,"결함","시작되지 않음","중간","전 석훈","정 지혜","2021.10.06.","","2021.11.03.","false","","",null,"19912695 _ 주문 선물 배송지 미입력했으나 3일 이후 취소되지 않았고\n금일 결품 취소로 처리됨.(6일경과)","","",""]
[null,"b9U6nbap0kqgb-ZbWOrAF8kAOXCg","https://tasks.office.com/style24.com/Home/Task/b9U6nbap0kqgb-ZbWOrAF8kAOXCg",null,"[결함][BOS>회원] CI 중복계정 회원상세 >주문목록 오류",null,"결함","시작되지 않음","중간","전 석훈","정 지혜","2021.10.06.","","2021.10.21.","false","","",null,"본계정이 있고 naver 계정을 추가로 연동했다가 끊은 계정임\n그 이후 주문목록 조회안되는현상.\nid : santabeef","","",""]
[null,"IHhi0zDPEUaPf_6eZeTQSskALdla","https://tasks.office.com/style24.com/Home/Task/IHhi0zDPEUaPf_6eZeTQSskALdla",null,"[결함][SCM상품] 입점상품이 자사-제조 로 등록됨(E041700006294)",null,"결함","시작되지 않음","중간","조 민혜","정 지혜","2021.09.30.","","2021.11.05.","false","","",null,"상품코드 : E041700006294\n- 추가로 있는 상품 검증 필요\n- 로직적으로 오류가 안나는지, 아직 들어갈수 있는 여지가 있는지 확인 필요.\n\n> 상품 대량상품등록\n> 상품 대량상품수정\n> 상품 단품등록\n> 상품 상세수정","","",""]
[null,"4hZjXwTtoEKQpAHKXRfyH8kACVmv","https://tasks.office.com/style24.com/Home/Task/4hZjXwTtoEKQpAHKXRfyH8kACVmv",null,"[결함] 사은품 프로모션 목록의 상태값이 잘못 노출되는 현상",null,"결함","시작되지 않음","중간","문 달호","정 지혜","2021.09.29.","","2021.10.18.","false","","",null,"골프 구매금액별 사은품 증정행사\n- 상세 에서는 상태가 종료이나, 목록에서는 진행이라고 표시됨","","",""]
[null,"1ixm5ny2hUyLpFK0e775RMkAGMdz","https://tasks.office.com/style24.com/Home/Task/1ixm5ny2hUyLpFK0e775RMkAGMdz",null,"[결함][BOS>사용자관리] 업체별 조회 안됨",null,"결함","시작되지 않음","중간","문 달호","정 지혜","2021.09.29.","","2021.10.19.","false","","",null,"> Bos> 사용자관리 의 입점업체는 벤더로 기준을 변경하여 조회 필요","","",""]
[null,"2RYt9Ko1iU-gLXnNWYJaOskABwao","https://tasks.office.com/style24.com/Home/Task/2RYt9Ko1iU-gLXnNWYJaOskABwao",null,"[결함][FRONT] 상품> 배송교환안내 노출안되는에러",null,"결함","시작되지 않음","중요","조 민혜","정 지혜","2021.09.29.","","2021.10.18.","false","","",null,"https://www.style24.com/goods/detail/form?goodsCd=E259800008137&colorCd=&ithrCd=&contentsLoc=SCM001\n- 배송비 정책 등 정상등록된걸로 확인됨\n- 반품교환업체/배송비/주소 안나오는 현상\n- 총알배송은 해당없음에도 안내가 노출되는 현상","","",""]
[null,"TEhE8HD4uUG-r5nSdAWql8kAI68-","https://tasks.office.com/style24.com/Home/Task/TEhE8HD4uUG-r5nSdAWql8kAI68-",null,"[결함][상품상세] FRONT 상품리뷰 페이지가 죽는 현상",null,"결함","진행 중","중간","김 지철","정 지혜","2021.09.28.","","2021.10.20.","false","","",null,"해당 상품 페이지 > 리뷰 클릭 시 화면이 노출되다가 \"오류가 발생하였습니다\" alert이 노출됨\nNPS13QSW90\n-. 이모티콘값, 이모지값이 에러가 났음.\n- 이모지 처리 라이브러리를 추가했음.","","",""]
[null,"nXu1NDCQTUGvvucdv5HsRckAGXuh","https://tasks.office.com/style24.com/Home/Task/nXu1NDCQTUGvvucdv5HsRckAGXuh",null,"[결함][Front] 마이페이지메인/퀵바/마이페이지>쿠폰 수량상이",null,"결함","진행 중","중간","김 지철","정 지혜","2021.09.24.","","2021.10.20.","false","","",null,"[결함][Front] 마이페이지메인/퀵바/마이페이지>쿠폰 수량상이\n마이페이지 메인에 노출되는 쿠폰수량과, pc의 z퀵바에 표시되는 쿠폰수량,마이페이지 > 쿠폰에서 표시되는 수량이 각각 다 상이함.","","",""]
[null,"Az19DbeyKU2a5ILbAskvxMkAK_if","https://tasks.office.com/style24.com/Home/Task/Az19DbeyKU2a5ILbAskvxMkAK_if",null,"[결함][전시][퍼블리싱] front > 기획전 콘텐츠정렬이슈",null,"결함","진행 중","중간","조 민혜","정 지혜","2021.09.24.","","2021.10.21.","false","","",null,"작은 모니터에서 이슈된건으로 정렬이 좌종렬로 쏠림","","",""]
[null,"0sltf0DJEU6e3zKn8bO5kMkAGFtH","https://tasks.office.com/style24.com/Home/Task/0sltf0DJEU6e3zKn8bO5kMkAGFtH",null,"[결함][BOS공통] 특수문자 치환 에러",null,"결함","시작되지 않음","중간","조 민혜","박 중재","2021.09.17.","","2021.10.21.","false","","",null,"브랜드영문명 :  Lika&  입니다.   & 뒤에 amp;amp; 붙는 현상 수정부탁드립니다. \n주로 브랜드명 조회 팝업과,  조회리스트의 브랜드명 컬럼에서 나타납니다. \n\n\n영업관리 > 브랜드관리\n상품 > 상품목록 (공통조회화면)\n전시 > 메인전시관리 > 브랜드메인 > 브랜드 조회 팝업\n정산 > 상품정산 > 브랜드조회 팝업\n정산 > 상품정산 > 조회 리스트 결과값의 브랜드 컬럼\n통계 > 일일거래내역 > 조회 리스트 결과값의 브랜드 컬럼\n회원마케팅 > 쿠폰 > 쿠폰등록 팝업 > 적용대상탭 > 브랜드명","","",""]
[null,"MAno6DLBi0aBAGTQyRqZzckAKzbM","https://tasks.office.com/style24.com/Home/Task/MAno6DLBi0aBAGTQyRqZzckAKzbM",null,"[결함][주문] 마이페이지>주문> 상품권 현금영수증 등록 처리",8,"결함","시작되지 않음","긴급","문 달호","정 지혜","2021.09.16.","","2021.10.15.","true","","",1,"안녕하세요 고객만족팀 김은주입니다.\n\n고객이 상품권으로 상품을 구매후  상품권현금영수증 신청시\n아래와 같은 오류메세지가 확인됩니다.\n\n확인 부탁드립니다.\n감사합니다.\n\n주문번호 19881265  ( 백경수 )","","",""]
[null,"A3PPkJu_CkuWBXZnXkcUXckAKvEn","https://tasks.office.com/style24.com/Home/Task/A3PPkJu_CkuWBXZnXkcUXckAKvEn",null,"[결함&개선][로직개선] 로그인/휴면계정 해제 오류",null,"결함","시작되지 않음","중간","문 달호","정 지혜","2021.09.14.","","","false","","",null,"CASE1 CI정보가  (Y != A)  등록된 본인 인증 정보와 다르다.\n   > 인증정보.CI != 회원정보.CI\n   >  등록된 본인 인증 정보와 다르다. CS로 문의 하세요.\nCASE2 CI정보가  없는데 (Y != A AND A=X) 등록된 본인 인증 정보와 다르다.\n   > 인증정보.CI = 다른회원정보.CI\n   > 회원정보.CI 값이 NULL\n   > 이미가입 이력이 있습니다.\n   > CS로 문의 하세요.\nCASE3 CI정보가  없는데 (A = NULL, B = NULL) TB_CUSTOMER UPDATE\n   > 인증정보.CI 값이 있는데 회원테이블, 휴면테이블 정보에도 없다.\n   > 회원정보 UPDATE 후 휴면해제\n\n\n휴대폰 번호가 겹치고, front 마이페이지에서 휴대폰 번호를 변경할때\n본인 CI와 맞지않는 값으로 변경하여도 업데이트가 되어버림.\n그래서 중복 계정이 생겼을때에 발생하는 값임\n\n--> santabeef/ santabeef0\n\n\n안녕하세요 기획운영팀 정지혜입니다.\n\n \n------------------------ 정지혜 과장 메일 전달 받음휴면회원 이 로그인을 하여 휴면을 해지 하려 할 때 -----\n내용 전달 드립니다.\n\n1.     CI가 있는 경우\na.     요청한 CI = 저장 된 CI 값\nè  휴면 해제 화면 이동\n/ux/mo/mb_idInquiry_7.html\nb.     요청한 CI ≠ 저장 된 CI 값\nè  “본인인증 결과가 다릅니다. 다시한번 확인해주세요” alert\nè  Alert 후 로그인 페이지 이동\n\n2.     CI가 Null 일 경우\na.     요청한 CI = 회원 정보 내 Null 일때(휴면/활동회원 Table 전체 중 같은 CI가 없을 때)\nè  휴면해제 화면 이동 (/ux/mo/mb_idInquiry_7.html)\nè  Alert 후 CI Update\nb.     요청한 CI = 회원 정보 내 존재 할 때 (휴면/활동회원 Table 전체 중 같은 CI가 있을 때)\nè  이미 가입된 아이디가 있습니다 화면 노출\n/ux/mo/mb_join_3.html","","",""]
[null,"8ONTB29HpE2_LeT0cS5PvckAAD3w","https://tasks.office.com/style24.com/Home/Task/8ONTB29HpE2_LeT0cS5PvckAAD3w",null,"[결함][배치] 상품 요약 배치(cron.goods.summary.create) 에러",null,"결함","진행 중","중간","조 민혜","정 지혜","2021.09.13.","","2021.10.15.","true","","",null,"cron.goods.summary.create\n-->상품요약정보 배치가 도는 건임.\ndata의 Table Drop 이 되지 않는 건","","",""]
[null,"wEd1_azIB0SWJBPZHaQBXMkAN3CX","https://tasks.office.com/style24.com/Home/Task/wEd1_azIB0SWJBPZHaQBXMkAN3CX",null,"[결함][아키텍쳐] 상품평이미지 Linux폴더로 이미지 임시저장됨",null,"결함","시작되지 않음","중요","김 덕규","이정환","2021.09.09.","","","false","","",null,">>>> Root에 저장되고있음\n>>>> 톰캣루트권한으로 업데이트됨.\n\n상품평 이미지 등록 시 cdn 등록 전 linux 의 / 폴더로 임시 저장 되고 있습니다.\n해당 경로로의 저장은 수정이 필요합니다. (보안 및 권한 이슈 발생)","","",""]
[null,"JY0yUiBCW0qRvAzUvr-JyMkANzJv","https://tasks.office.com/style24.com/Home/Task/JY0yUiBCW0qRvAzUvr-JyMkANzJv",null,"[결함][제휴몰] GSSHOP 수집 3136184920_2559023729 주문 팩번호/쇼핑몰주문번호 동일하나 주문번호가 따로 떨어지는현상",null,"결함","시작되지 않음","중간","","정 지혜","2021.10.15.","","","false","","",null,"- 샵링커 수집 관련 된 견해차로 확인됨","","",""]
[null,"GXEOEDPcjEG9mT5VlIPObMkAIDDa","https://tasks.office.com/style24.com/Home/Task/GXEOEDPcjEG9mT5VlIPObMkAIDDa",null,"[결함][배치][제휴몰] 샵링커 주문 수집이 \"대기\" 상태로 머물러있는현상 11시 4분 접수주문",null,"결함","시작되지 않음","중간","","정 지혜","2021.10.15.","","","false","","",null,"","","",""]
[null,"tcvzYhlkR02iE-zjY8Qg-8kABHtB","https://tasks.office.com/style24.com/Home/Task/tcvzYhlkR02iE-zjY8Qg-8kABHtB",null,"[결함][WMS/BOS] I/F에는 데이터가 있으나, 몰 WMS간 데이터 차이 나는 부분",2,"결함","시작되지 않음","중간","","정 지혜","2021.10.15.","","","false","","",1,null,"","",""]
[null,"Yx0LRSj1zkmj8WRBOf6QjskAD64B","https://tasks.office.com/style24.com/Home/Task/Yx0LRSj1zkmj8WRBOf6QjskAD64B",null,"[결함][주문] 주문생성오류",1,"결함","시작되지 않음","중간","","정 지혜","2021.10.18.","","","false","","",1,"안녕하세요 고객만족팀 김은주입니다.\n\n상품을 결제까지 완료 하였으나.\n주문건이 생성되지 않는 오류가 최근들어 발생이 되고 있어 전달 드립니다. \n\n아이디 : ya8577\n고객명 : 김영아 \n정상 주문건 : 19936261\n\n총 5번의 결제를 하였으나 이중 1건만 정상으로 주문건이 생성이 되고,\n나머지 4건은 결제 오류로 주문건이 생성되지 않아 요청드립니다. \n\n나머지 4건의 경우 KCP를 통해 모두 취소 진행하였습니다.","","",""]
[null,"7OSOD3Q8jESd1UN0FjBaF8kAMrf8",null,null,"[결함][제휴몰]샵링커 전송 기술서 이미지가 사이즈가 늘어나 보이는현상",null,"결함","완료됨","중간","조 민혜","정 지혜","2021.10.14.","","2021.11.05.","false","2021.10.14.","조 민혜",null,"FW: 제휴몰 상품 등록 시 상품기술서 관련 문의 미팅의 건(4/29 15:00)\n--> 이재연과장 메일 참조","","",""]
[null,"BO2wMOvSgki-cdWxkpF8y8kAAmqJ",null,null,"[결함][제휴몰] 품목 매핑 일부 누락, 추가필요",null,"결함","완료됨","중간","조 민혜","정 지혜","2021.10.12.","","2021.10.15.","false","2021.10.14.","조 민혜",null,"","","",""]
[null,"mnlT7sNLoESu18UaXqcB_MkAAoZw",null,null,"[결함][배치][무통장입금] 무통장입금만료 배치가 실행안됨",null,"결함","완료됨","중간","전 석훈","정 지혜","2021.10.13.","","","false","2021.10.14.","정 지혜",null,"무통장 입금 > 미입금 만료 주문에 대한 자동취소처리 되지 않음\n\n주문번호 : 19919855 \n고객명 : 김선희 \n\ncron.order.deposit.deadline.expire","","",""]
[null,"ycgeMen8n0qMR4OH-aKSP8kANuls",null,null,"[결함][배치] 출고처지정배치(cron.delivery.loc.assign) IsBeautyDelivery컬럼 이슈",null,"결함","완료됨","중요","전 석훈;김 지철","정 지혜","2021.10.07.","","","false","2021.10.13.","김 지철",null,"안녕하세요. 서보성 입니다.\n \n문의하신 주문건은 몰에서 인터페이스 테이블에 들어갈때 IsBeautyDelivery[화장품합배송]으로 처리되어 들어간 것으로 보입니다.\n아래 문의건외에도 9월1일 이후 주문건중 2건이 그렇게 들어간것으로 확인 됩니다.\n \n------------------------------------------------- \n주문번호    상태  주문일\n-------------------------------------------------\n19908063\t취소 2021-09-28 18:05:50.000\n19918078\t정상 2021-10-07 12:38:49.000\n \n취소건을 제외하고 정상건에 대해서 인터페이스 데이터를 수정하여 출고 되도록 처리하였습니다.\n몰에서 인터페이스로 넘기는 부분 확인 부탁드릴께요.\n \n감사합니다.\n\ncron.delivery.loc.assign 배치의 이슈\n\n IsBeautyDelivery = 1로 넘어가는 케이스가 있는지,\n몰에서 현재 넘겨주고있어 문제가 되고있음.\n\n--> 추가적으로 이슈 발생되어있음. \nIsBeautyDelivery는 화장품합배송으로 1로 넘어가면안됨\n이 부분 값이 아예 안넘겨주면 안되며, 0/null로 넘겨줘야함.","","",""]
[null,"f6U6bugXeEOMKLeJ6BvYq8kAJIOT",null,null,"[결함][WMS]출고이력 누락( 19924613 )",null,"결함","완료됨","중간","","정 지혜","2021.10.13.","","","false","2021.10.13.","정 지혜",null,"주문번호 : 19924613 \n고객명 : 김초롱\n\n57919278\n57919279\n\n두개의 상세 번호 이력이 제외됨","","",""]
[null,"niLAf6xy00qUOpqbRXEAjMkAFcbk",null,null,"[결함][Front] 주문서> 쿠폰적용안됨",null,"결함","완료됨","중간","전 석훈","정 지혜","2021.10.13.","","","false","2021.10.13.","정 지혜",null,"주문 시 \"쿠폰 유효성 에러 발생","","",""]
[null,"Ix7DTfGJVE6lqmm-CoqehMkADLdM",null,null,"[결함][front] 프론트 전시가가 1원씩 빠져보임",null,"결함","완료됨","중간","","정 지혜","2021.10.12.","","","false","2021.10.13.","정 지혜",null,"https://www.style24.com/planning/detail/form?planSq=1&brandGroupNo=950\nhttps://www.style24.com/display/brand/search/goods/list/form?keyword=%EB%A1%B1%EA%B5%AC%EC%8A%A4&brandGroupNo=950","","",""]
[null,"WxaQxi7rUk6FMbyzifwj7skAH0jy",null,null,"[결함][FRONT] 상품상세 > PC 쿠폰다운로드 버튼 위치 틀어짐",null,"결함","완료됨","중간","조 민혜","정 지혜","2021.10.12.","","","false","2021.10.13.","정 지혜",null,"아래보시면 layout.css 2617번째줄에\n.pd_detail .area_desc .desc_wrap .descript_box .desc_info .price_blk .btn_coupon >> 이부분에서\nbottom:32px;을 bottom:0px;로 수정하시면 됩니다.\n \n  \n \n감사합니다.\n이세연 드림","","",""]
[null,"i7MFmXX64k-4ahndQT3D4MkAOt9O",null,null,"[결함][제휴몰] 제휴몰 상품 기술서 > 구 상품일때 더미이미지로 전송",null,"결함","완료됨","중간","조 민혜","정 지혜","2021.10.12.","","","false","2021.10.12.","정 지혜",null,"http://www.boribori.co.kr/product/300598522\n더미 이미지로 전송됨\n--> https://www.style24.com/goods/detail/form?goodsCd=MOW0BQST25","","",""]
[null,"wqjd0Nj7lUagkOSZpOQFNckAF6d-",null,null,"1:1 문의 답변 임시저장 기능 필요",null,"결함","완료됨","중간","김 덕규","정 지혜","2021.09.08.","","2021.09.17.","false","2021.10.08.","정 지혜",null,"상담원이 해당 임시저장이 없어 미리 남겨놓을수를 없다고함.(상황확인후 추가 답변해야하는 부분들이 많음)\n--> 대기관련 상태 처리 안되었음. 확인 조치 필요","","",""]
[null,"0XyC2VW-Lk2-16H2owzO78kAISOo",null,null,"네이버 로그인 오류",null,"결함","완료됨","중간","전 석훈;정 지혜;김 지철","정 지혜","2021.09.10.","","","false","2021.10.08.","정 지혜",null,"예전 접수받은","","",""]
[null,"rFZ4R579GEGM140yEocayMkALvzq",null,null,"모바일앱에서 하단 PC버전 클릭시 아이폰의 경우 아래의 화면처럼 PC 화면으로 확인이 됩니다 .",null,"결함","완료됨","중간","","정 지혜","2021.09.10.","","","false","2021.10.08.","정 지혜",null,"","","",""]
[null,"gdX08o7jHU2QUy8Zqa3G7skAPO0D",null,null,"[대기] 본인인증 계속 반복되는현상",null,"결함","완료됨","중간","조 민혜;전 석훈;정 지혜","정 지혜","2021.09.10.","","","false","2021.10.08.","정 지혜",null,"","","",""]
[null,"y-0MLSA-e0qS22mH0qb1tMkAHO0v",null,null,"휴면배치 오류",null,"결함","완료됨","긴급","이선미","정 지혜","2021.09.28.","","","false","2021.09.28.","정 지혜",null,"cust_no가 잘못매핑되어 있던 주문 데이터가 휴면으로 돌면서 맞는 cust_no가 실제로 휴면 전환시에 중복으로 insert되는 오류 발생. tb_cust_dormant 테이블의 데이터 정리 완료\n\n-\n\n1.\t9월1일 이전의 데이터는 삭제해 주십시오. (6월의 데이터가 있습니다.)\n2.\t9월1일과 2일 사이에 생성된 데이터 중 현재 활동 회원의 주문건의 휴면상태를 일반 상태로 롤백 요청드립니다. \n3.\t그 이후에 1일과 2일 사이에 생성된 row를 삭제 요청드립니다.","","",""]
[null,"nGHS74bhDUyr0z94vRXwaMkAJIIr",null,null,"[진행중] BOS > 회원/마케팅 > 탈퇴회원목록 일자 선택 후 조회시 일자없이 조회시 검색구분 선택하라는 alert 노출됨",null,"결함","완료됨","중간","전 석훈","정 지혜","2021.09.16.","","","false","2021.09.17.","정 지혜",null,"","","",""]
[null,"_c7FnVDaUE62wUqASq6YX8kAD7e9",null,null,"[완료] 회원정보 조회시 기간 없이 조회하는 내용 필요",null,"결함","완료됨","중간","전 석훈","정 지혜","2021.09.14.","","","false","2021.09.15.","전 석훈",null,"","","",""]
[null,"UmJJs8TqOEy64sKpR5gqnckAC_hc",null,null,"CI 값이 없던 과거회원이 본인인증을 하려 할때 오류나는 현상",null,"결함","완료됨","중간","이선미","정 지혜","2021.09.09.","","","false","2021.09.14.","이선미",null,"CI가 중복일 경우 500에러 발생 => 해당 CI로 매핑되어 있는 로그인 ID 마스킹처리되어 노출","","",""]
[null,"Y38b44V-D0esXZioS24Kc8kAKKQi",null,null,"\"현재 등급 오류로 고객 문의 - 메신저 문의  ( 예 : 아이디 : apurodite 고객명 :  류혜진 ) \"",null,"결함","완료됨","중간","전 석훈","정 지혜","2021.09.03.","","","false","2021.09.14.","전 석훈",null,"","","",""]
[null,"dNu2pVxCs0aRWERzo5s5X8kAIVnr",null,null,"[확인요청] 등급오류 수정요청",null,"결함","완료됨","중간","전 석훈","정 지혜","2021.09.03.","","","false","2021.09.13.","전 석훈",null,"\"아이디 : lily8032 /고객명 : 강민정 아이디 : dakyongkim /고객명 : 김다경  외 다수 등급 오류건 수정요청\"","","",""]
[null,"_SLgD4Y97U2h2GVg1Clj9skAKd2v",null,null,"pc 로그인 세션이 끈기지 않는 현상",null,"결함","완료됨","중간","김 덕규","정 지혜","2021.09.09.","","","false","2021.09.09.","전 석훈",null,"위의 내용과 중복으로 완료 처리하겠습니다.","","",""]
[null,"RKuhwQQGR02ZhjIlBhalyskAEO1p",null,null,"예스24 로그인 시 오류",null,"결함","완료됨","중간","조 민혜","이정환","2021.09.06.","","","false","2021.09.07.","조 민혜",null,"예스 24로 최초 로그인 후 나오는 [예스24 로그인 정보 동의] 화면에서 동의하기 누를 경우 반응 없음\n. 닫기 누르면 백그라운드 하얀 화면 상태 임","","",""]
[null,"xzDeiqoVqEWtbbW8osGj88kAMcqU",null,null,"[결함][BOS][고객센터] 1:1문의> 목록 클릭시  상세팝업이 노출되지 않음",null,"결함","완료됨","긴급","전 석훈","정 지혜","2021.10.15.","","2021.10.15.","false","2021.10.15.","정 지혜",null,"","","",""]
[null,"mTWA37wVw0KLeiuuW9cuqskAOAny",null,null,"[결함][BOS][영업관리] 입점업체 출고처 등록안됨",null,"결함","완료됨","중간","","정 지혜","2021.10.15.","","","false","2021.10.15.","정 지혜",null,"","","",""]
[null,"2T2z7aBXZEi-2Oi0jJYfc8kAMStT",null,null,"[개선][SCM] scm 벤더 단위로 상품목록 /주문목록 확인필요.",null,"미사용버킷","완료됨","중간","전 석훈","정 지혜","2021.09.28.","","","false","2021.10.08.","정 지혜",null,"","","",""]
[null,"ox5CduN8JUiGM428fP8EdskAGaHS",null,null,"기존 한세드림에서 사용하던 dreamsco1 계정이 신규scm에서는 업체명이 주식회사 드림스코로 들어가있습니다.",null,"미사용버킷","완료됨","중간","김 덕규","정 지혜","2021.09.03.","","","false","2021.10.08.","정 지혜",null,"","","",""]
[null,"laThYX5iS0WzKktTO1oKGskAGV1z",null,null,"정산 > 쿠폰금액/ 쿠폰배분관련확인",null,"미사용버킷","완료됨","중간","","정 지혜","2021.10.07.","","","false","2021.10.08.","정 지혜",null,"","","",""]
[null,"3NL9O1V2G0yFezekI5-HdckAMy_n",null,null,"[PJT잔여] 마케팅 메일 가격 노출 오류",null,"미사용버킷","완료됨","중간","김 덕규","정 지혜","2021.09.01.","","","false","2021.10.08.","정 지혜",null,"가격 정상가/판가 같을 때 0% 노출, 가격 영역 css깨짐 등","","",""]
[null,"F-lkMfUKokCZnK1cZJowOskAA5xN",null,null,"scm > 사이즈별 재고 재고 변경 오류",null,"미사용버킷","완료됨","중요","조 민혜","정 지혜","2021.09.03.","","","false","2021.10.08.","정 지혜",null,"정상작동함. \n기존에 등록불가 내용이 '오류로 처리안되었습니다'와 같은 일괄적인 메시지로 보여줘서 확인이 불가능했으니, 9월 2째 주 오류(등록불가 사유)의 상세 내용이 나오도록 수정되었음. \n아마","","",""]
[null,"DzkbxHdj2UK59L2NaoaIUMkAAITP",null,null,"[결함][SCM] scm 기획전을 등록했으나 scm에서 기획전 목록이 노출되지 않음 1722 주식회사 알유진코리아",null,"미사용버킷","완료됨","중간","조 민혜;김 덕규;정 지혜","정 지혜","2021.09.15.","","","false","2021.10.08.","정 지혜",null,"등록한 본인만 나오는 이슈로 수정 필요\n\n아예 다른벤더가 나왔었습니다.","","",""]
[null,"k4iSU7D-rEacC2U7yJjC6ckAEl3n",null,null,"제휴채널 정산 금액 산정 오류",null,"미사용버킷","완료됨","중요","","박 중재","2021.09.24.","","","false","2021.10.07.","정 지혜",null,"해당 메뉴는 네이버, 다음, 광고대행사등이 정산시 사용하는 메뉴입니다. \n\nBOS > 제휴채널 정산\nSCM > 제휴채널 정산\n\n취소주문건이 (-) 가 아닌 (0) 으로 반영되고 있습니다. \n9월 정산을 위해 9월 말 이전에 수정 부탁합니다. \n\n\n(9월 9일 시스템장애 메일 발송건, 발신인 정석헌)","","",""]
[null,"vmP_-QmhZk2J5zzgiml1AskAOUZl",null,null,"제휴정산/일반정산 취소주문건 -로 처리되어야 하나, 0으로 처리되어 매출잘못반영됨",null,"미사용버킷","완료됨","중간","김 덕규","정 지혜","2021.09.10.","","","false","2021.10.07.","정 지혜",null,"","","",""]
[null,"ssh5kNUdn0CNhCsMTxAeb8kAPf0g",null,null,"정산데이터 기준 벤더로 처리되어야함",null,"미사용버킷","완료됨","중간","김 덕규","정 지혜","2021.09.09.","","","false","2021.10.07.","정 지혜",null,"재무팀","","",""]
[null,"s77lj-85MESLin-UP1m2CckAOKEL",null,null,"정산금액이 0원으로 찍히는 케이스",null,"미사용버킷","완료됨","중간","김 덕규","정 지혜","2021.09.10.","","","false","2021.10.07.","정 지혜",null,"","","",""]
[null,"IDOqlH5BDkCEiwlCXXyXFMkAIHSK",null,null,"업체코드 4855 에 등록된 상품 업체코드 2826 으로 데이터 이관",null,"미사용버킷","완료됨","중간","이선미","정 지혜","2021.10.06.","","","false","2021.10.07.","정 지혜",null,"","","",""]
[null,"NKKZ_astmkKfuSxlyHcauskAEIIq",null,null,"안전인증 데이터 db 처리",null,"미사용버킷","완료됨","중간","조 민혜;정 지혜","정 지혜","2021.09.29.","","","false","2021.10.06.","정 지혜",null,"","","",""]
[null,"vmhmt0heXkKK7TjutSDJHMkAG99c",null,null,"[완료][결함] 카테고리에서 즉시할인가 적용안되는현상",null,"미사용버킷","완료됨","중간","전 석훈","정 지혜","2021.09.29.","","","false","2021.09.29.","정 지혜",null,"카테고리 메인에 신상품 영역 부분에 디바이스 구분값이 빠져서 가격할인율을 적용하지 못하고 있었다.\n(frontGB -> 디바이스별로 구분이 되고 가격을 구분하기 위해서 해당 컬럼을 쓰고있으나, 누락됨)","","",""]
[null,"r4Sx1BqmzEaIbivlS6uQe8kAJQwW",null,null,"상품타이틀 예약관리의 예약내역이 삭제되지 않음.",null,"미사용버킷","완료됨","중요","조 민혜","정 지혜","2021.09.23.","","","false","2021.09.29.","정 지혜",null,"안녕하세요. \n패션개발팀 이선미입니다. \n아래 오류 내용 확인해보니 쿼리 중에 예약된 단어가 포함되어 있어 오류가 발생하고 있었습니다. \n<!-- 상품 타이틀 예약건 초기화 -->\n        <update id=\"updateGoodTnmInit\" parameterType=\"Goods\">\n               /* TsaGoods.updateGoodTnmInit */\n               UPDATE TB_GOODS\n               SET UPD_NO = #{updNo}\n                 , UPD_DT = NOW()\n                 , GOODS_TNM = (SELECT S.GOODS_TNM\n                                FROM (\n                                      SELECT GT.GOODS_CD\n                                           , GT.GOODS_TNM\n                                           , RANK() OVER(PARTITION BY GT.GOODS_CD ORDER BY GT.GOODS_TNM_RES_SQ DESC) RANK\n                                      FROM TB_GOODS_TNM_RES GT\n                                      WHERE GT.APPLY_YN = 'N'\n                                      AND NOW() BETWEEN GT.APPLY_STDT AND GT.APPLY_EDDT\n                                      AND GT.GOODS_CD  = #{goodsCd}\n                                     ) S\n                                WHERE S.RANK = 1\n                                )\n               WHERE GOODS_CD = #{goodsCd}\n        </update >\n\n위의 쿼리 중 RANK 부분 다른 이름으로 수정요청드립니다. \n감사합니다.\n\n-> 상품 타이틀 삭제 할때 오류가 발생함.","","",""]
[null,"qiuqEnIG50qMEuHui_2NYskAOKEV",null,null,"카테고리 베스트 영역의 셀링문구 데이터가 이상한 위치에 노출됨",null,"미사용버킷","완료됨","중간","","정 지혜","2021.09.23.","","","false","2021.09.29.","정 지혜",null,"https://www.style24.com/display/category/main/form?cateGb=null&cate1No=1100","","",""]
[null,"0Dv-PLFTbkKuKGi_gy5dEckANpue",null,null,"[완료] 즉시할인가 전시가 안보이는 현상",null,"미사용버킷","완료됨","긴급","전 석훈;정 지혜","정 지혜","2021.09.28.","","","false","2021.09.28.","정 지혜",null,"- 전시 배치에 대한 수정 쿼리 결함.","","",""]
[null,"bphbstN2fEuFvBr_k9Oo08kAETIt",null,null,"옵션생성 안됨",null,"미사용버킷","완료됨","중요","조 민혜","정 지혜","2021.09.24.","","","false","2021.09.28.","정 지혜",null,"입고는 된 데이터로 확인됨..","","",""]
[null,"ZyyXcvS6rkyTcdExs3-tJckAKezl",null,null,"기획전 에 슬라이드가 전체가 다 한꺼번에 돌아가는 현상 조치필요",null,"미사용버킷","완료됨","중간","조 민혜;정 지혜","정 지혜","2021.09.08.","","","false","2021.09.24.","조 민혜",null,"","","",""]
[null,"-hha_afvDEq9BOe4vdyDfckAJJ3v",null,null,"총알배송 화면에서 리카앤(S0012) 브랜드는 데이터가 안나옴",null,"미사용버킷","완료됨","중간","","정 지혜","2021.09.16.","","","false","2021.09.23.","정 지혜",null,"/planning/shot/delivery/guide/form","","",""]
[null,"Y9b7G1cIskq2SyO1_QwqP8kABiwz",null,null,"마이그레이션 - 입점상품 시즌누락 mig",null,"미사용버킷","완료됨","중간","","정 지혜","2021.09.17.","","","false","2021.09.23.","정 지혜",null,"","","",""]
[null,"BSeVP-Epb0uHw3TKzHVhDskAFmFb",null,null,"[급] SCM /상품상태 일괄에 승인완료가 빠져있음",null,"미사용버킷","완료됨","중간","조 민혜;정 지혜","정 지혜","2021.09.14.","","","false","2021.09.16.","조 민혜",null,"","","",""]
[null,"69WycenCnEe1_YGiIn2Y7skAOsva",null,null,"무료배송 아이콘이 중복으로 나오는케이스",null,"미사용버킷","완료됨","중간","","정 지혜","2021.09.16.","","","false","2021.09.16.","정 지혜",null,"","","",""]
[null,"iGy0Qbqf6UGVbEJP3BMK3skABHxv",null,null,"[급] bos 상품 일괄수정 > 상품 상태 변경 누락",null,"미사용버킷","완료됨","중간","조 민혜","정 지혜","2021.09.14.","","","false","2021.09.16.","정 지혜",null,"대량등록 엑셀인지  확인 요청","","",""]
[null,"NWPbIi2aL0mgK7_CShNY08kALzUk",null,null,"급) 상품대량수정에서 가격수정 안되는부분 수정 - 정상가 컬럼 누락되어 운영어려움",null,"미사용버킷","완료됨","긴급","조 민혜","정 지혜","2021.09.09.","","","false","2021.09.16.","정 지혜",null,"정상가/판매가/수수료\n컬럼 필수 필요\n\n--> 판매상태변경도 없음(9/14)","","",""]
[null,"spLZk1cEdU6DtUcfYs_zI8kAGZ_z",null,null,"제휴몰 수동업로드 판매가를 잘못올려 데이터 처리 필요",null,"미사용버킷","완료됨","중간","구성원","정 지혜","2021.09.15.","","","false","2021.09.15.","정 지혜",null,"","","",""]
[null,"Ov40KVBVl02P1Am9M8G1UMkACiW1",null,null,"정상가 DB 업데이트 ",null,"미사용버킷","완료됨","중간","이선미","정 지혜","2021.09.15.","","","false","2021.09.15.","정 지혜",null,"","","",""]
[null,"TWXAHcB850C8opwtO5OEh8kANmvT",null,null,"기획전 : 23번 / scm에서 등록한 기획전 상세를 열었을 때 정보가 다 깨져서 나옴 ",null,"미사용버킷","완료됨","중간","조 민혜","정 지혜","2021.09.15.","","","false","2021.09.15.","정 지혜",null,"9/15 템플릿 팝업 오류 수정완료 ( 반영완료) \n추가로 목록 나오는 기준 업체 권한으로 수정요청 -현재 등록자 기준으로 나옴","","",""]
[null,"Al2n1xuwdE6qaru2rlI7SckAGq4t",null,null,"C213TSG51P 상품 입고가  정상으로 돌고, 현재 판매중이며,  변경은 0914 15:24  배치돌기 전이나 재고반영안됨, 확인필요",null,"미사용버킷","완료됨","중간","","정 지혜","2021.09.14.","","","false","2021.09.14.","정 지혜",null,"","","",""]
[null,"UrOkcMCtl0u-cBZOUMvzUMkAPVMg",null,null,"제휴몰 송장 잘못나간 실 송장데이터 확인",null,"미사용버킷","완료됨","중간","문 달호","정 지혜","2021.09.14.","","","false","2021.09.14.","정 지혜",null,"","","",""]
[null,"i5V08t-Zc0avDaInFGg2zckAJeft",null,null,"주문 오류 관련 조치",null,"미사용버킷","완료됨","중간","","정 지혜","2021.09.02.","","2021.09.02.","false","2021.09.14.","전 석훈",null,"","","",""]
[null,"brXn508d_0uCPYUT7LcnmskACBmH",null,null,"상품평 작성 알림톡, 발송 로직 수정",null,"미사용버킷","완료됨","중간","전 석훈","박 중재","2021.09.08.","","","false","2021.09.14.","전 석훈",null,"현재 : 배송완료후 상품평 작성 알림톡 발송됨. > 마이로 접근했을때 작성가능한 상품이 없다고 나옴 (고객혼\n선)\n수정 : \"구매확정 완료후\" 상품평 작성 알림톡 발송","","",""]
[null,"iEKPMDgcLU2PLJ9jbyQXuskAFqNZ",null,null," 네이버 프리미엄 로그분석 매출 트래킹이 안되어 확인해보니 스크립트 삽입은 이상없으나 주석처리 되어 있어 데이터를 불러오지 못한다는 네이버측의 답변을 받았습니다. 해당 건 확인 부탁드립니다.  감사합니다.",null,"미사용버킷","완료됨","중요","","정 지혜","2021.09.09.","","","false","2021.09.13.","정 지혜",null,"","","",""]
[null,"rHIKJqWnskyIrLodFn2yDskAI_nk",null,null,"welcome 쿠폰 오안내 확인",null,"미사용버킷","완료됨","중간","전 석훈","정 지혜","2021.09.03.","","","false","2021.09.13.","전 석훈",null,"--> welcome 일때 오안내로 인해 발생되는 건 조치\n실버 등급쿠폰 계정에 있는 것확인\n고객 문의건 쿠폰 발급시 발급되었다는 문구는 확인되나 실제 고객 내역에서는 쿠폰내역  확인 불가  (아이디 : ptkim777  고객명 : 김성심 )\"","","",""]
[null,"2UcGHgXD9kKoSvBBNtbI68kANVZj",null,null,"메일 템플릿 이미지 깨짐 현상",null,"미사용버킷","완료됨","중간","김 덕규","정 지혜","2021.09.01.","","","false","2021.09.13.","조 민혜",null,"","","",""]
[null,"mblFb-sjtk6JKQo6DvZq6skADR-k",null,null,"상품평 날짜 데이터 미표시 처리",null,"미사용버킷","완료됨","중간","문 달호","정 지혜","2021.09.09.","","","false","2021.09.13.","문 달호",null,"메일제목 :  상품평 등록및 확인일자 등록 요청\n\n9/9 배포예정","","",""]
[null,"uqMkIvSgJUiBt2WoMNRpBckAOIuC",null,null,"입고완료 상품의 마이그레이션 되지 않아 확인 요청 N213TP952P",null,"미사용버킷","완료됨","중간","김 덕규","정 지혜","2021.09.01.","","","false","2021.09.13.","정 지혜",null,"마이그레이션 데이터의 대한 이슈이며\n입고처리 해야될 상품과 추가 마이그레이션 할 상품을 구분 필요\n이 부분은 엠디에게 요청중","","",""]
[null,"DQtj-ZJ3MU-Q4mkAEd2WvMkAPtZ2",null,null,"품목 변경시에도 전시에 반영되지 않는 현상",null,"미사용버킷","완료됨","중간","조 민혜;정 지혜","정 지혜","2021.09.01.","","","false","2021.09.10.","조 민혜",null,"","","",""]
[null,"aOb32vWGL0OiDvIef9Ls9MkAFurR",null,null," 업체명: 주식회사 에포드 / 브랜드명 : 탑보이   안녕하세요, 일전에 문의드린 입점업체상품 대량등록 수정건이 아직도 개선되지 않고 있습니다. (아예 반영되지않거나 부분적으로 또 판매가 0원 처리)  1111번 파일만 판매가는 잘 변경된 것 같은데 마진은 또 아예 반영되지 않았네요.  빠른 확인 부탁드립니다.",null,"미사용버킷","완료됨","중간","조 민혜","정 지혜","2021.09.08.","","","false","2021.09.09.","조 민혜",null,"9/8 오전 확인완료. 기존에 등록한 가격이랑 데이터 꼬인부분 수정 등. CS상담사 직접확인 완료","","",""]
[null,"03jF1XTTR0C72MQMVA9LpMkABAdj",null,null,"\"카테고리 /https://www.style24.com/display/category/goods/list/form?brandGroupNo=2817&cateGb=G032_101  신상품 만 보기 데이터 선택 시 실제 신상이 아닌 다른데이터 노출(신상품이 아닌상품이 신상으로 딱지가 붙여 있고, 기준 없이 데이터가 노출됨\"",null,"미사용버킷","완료됨","중간","조 민혜","정 지혜","2021.09.01.","","","false","2021.09.09.","조 민혜",null,"","","",""]
[null,"BxKqd6pRPE6GLg-7__s1FskAJIa8",null,null,"AND 웹/앱 메인 하단 MD픽 영역 스크롤 먹어서 멈추는 현상 발생",null,"미사용버킷","완료됨","중간","김 덕규","박 중재","2021.09.01.","","","false","2021.09.08.","정 지혜",null,"","","",""]
[null,"Bx3DjCL730qjOE__nb86TskAMLKC",null,null,"상품 가격 대용량업로드 오류",null,"미사용버킷","완료됨","중간","조 민혜","정 지혜","2021.09.08.","","","false","2021.09.08.","조 민혜",null,"","","",""]
[null,"L7ppKC8NKEu_6tdYU9ixBskAFhUU",null,null,"VNF14QSO02 사이즈 정보 전체 누락-",null,"미사용버킷","완료됨","중간","","정 지혜","2021.09.07.","","","false","2021.09.07.","정 지혜",null,"ㅅ사이즈 옵션 항목이 전체 사라짐\n확인 필요 - 9/ 8 프로모션 진행건","","",""]
[null,"VMyx0lNi5kSvfbNNIc15-MkANOaf",null,null,"로그인화면 - YES24로그인 이미지 깨짐현상 > 이미지 재요청했음",null,"미사용버킷","완료됨","중간","조 민혜","박 중재","2021.09.01.","","","false","2021.09.06.","조 민혜",null,"","","",""]
[null,"SUp-Yt1HSk-u3ZgkIQqS3ckAJUAq",null,null,"PC > 패밀리사이트 > 한세엠케이 홈페이지 누락",null,"미사용버킷","완료됨","중간","","박 중재","2021.09.01.","","","false","2021.09.03.","정 지혜",null,"","","",""]
[null,"7N9z4t4X4kC9-Elz_OWhv8kAMfYS",null,null,"웹이즈/기타 업체 대량 판매중치 처리 ",null,"미사용버킷","완료됨","중간","구성원","정 지혜","2021.09.02.","","","false","2021.09.03.","이정환",null,"","","",""]
[null,"ypBd08nOGEikZ8DvK9xJiMkAJtHK",null,null,"몰메인 배치 주기 점검 요망 : 1시간 단위 배치, 메인에 가격반영 지연발생",null,"미사용버킷","완료됨","중간","","박 중재","2021.09.01.","","","false","2021.09.03.","조 민혜",null,"","","",""]
[null,"ixCIqQQWakaP87nT-5FA8skAIBMd",null,null,"2021년 10월 15일 오전 배포 내역",null,"배포이력","완료됨","중간","이정환;이선미;조 민혜;문 달호;박 중재;전 석훈;정 지혜;김 지철","조 민혜","2021.10.13.","","","false","2021.10.15.","전 석훈",null,"[BOS]\n@ 취소,반품,교환,환불컨펌 알림톡 메세지 미발송 체크박스 개발\n@ 상품 대량 수정 엑셀 업로드 로직 수정\n@ 사용자화면 조회 업체 조회조건 입점벤더로 변경\n@ 샵링커 주문수집 - 목록에 배송번호(팩번호) 관련 항목 보이도록 수정  \n@ 샵링커 주문수집 - 배송번호 관련 참고 텍스트 추가 \n@ 샵링커 주문수집 - 목록에 등록자 잘 못 나오는 오류 수정 \n@ 샵링커 주문수집 - 엑셀다운로드 시 타이틀, 푸터 제거 \n@ 샵링커 주문수집 화면 - '엑셀다운로드' 시 '배송번호' 항목 추가 \n@ 샵링커 주문수집 화면 - '엑셀다운로드(제휴몰주문업로드 폼)' 시 '쇼핑몰 주문번호'가 '배송번호'로 변경되어 내려줌 \n  - 옥션, 지마켓, 카카오톡스토어, 위메프 만(최초 개발 시 4개 마켓 전달받은 내용)\"\n@ 샵링커 로직변경 코어반영건 \n@ 제휴몰관리 - 배송비 분기처리 관련 항목 등록/수정 기능추가 (TB_EXTMALL.DELV_FEE_SUM_YN 배송비 합산여부)\n@ 상품상세 팝업 - 옵션코드(sku) 추가 \n\n[SCM]\n@ 상품 대량 수정 엑셀 업로드 로직 수정\n@ 상품상세 팝업 - 옵션코드(sku) 추가 \n\n\n[FRONT]\n\n[BATCH]\n@ 상품요약정보 배치 로직 원복(TRUNCATE)\n@ 샵링커 로직변경 코어반영건 \n\n[PUBLIC BATCH]\n\n[CORE]\n@ 취소,반품,교환,환불컨펌 알림톡 메세지 미발송 체크박스 개발\n@ 상품 대량 수정 엑셀 업로드 로직 수정\n@ 샵링커 주문수집 - 배치 오류시 관리자에게 문자발송(이정환,이선미,조민혜)\n@ 샵링커 주문수집 - 배송비 세팅 건 수정 (몰별로 분기처리)\n@ 샵링커 주문수집 - 상품코드 필수값 체크 제외하도록 변경\n@ 샵링커 주문수집, 주문 엑셀업로드- 동일 주문서에 재고이외의 사유로 실패건이 1개라도 존재시, 해당 주문서 전체실패로 변경","","",""]
[null,"wXKtDYVoREq9_B45Wo0h5skAMyPy",null,null,"2021년 10월 12일  긴급 배포이력",null,"배포이력","완료됨","중간","","전 석훈","2021.10.12.","","","false","2021.10.14.","전 석훈",null,"2021년 10월 12일 오후 배포 내역\n\n[BOS]\n@ 다다익선 오류 수정\n@ 환불컨펌시 요청메모 이모티콘 오류 수정\n\n[SCM]\n\n[FRONT]\n\n\n[BATCH]\n\n[PUBLIC BATCH]\n\n[CORE]","","",""]
[null,"YPr8VFJQvkWY5mL8W3mwNckAOf0s",null,null,"2021년 10월 12일 오후 배포 내역",null,"배포이력","완료됨","중간","구성원;이정환;이선미;조 민혜;문 달호;박 중재;전 석훈;박 중재;정 지혜;김 지철","전 석훈","2021.10.12.","","","false","2021.10.12.","김 지철",null,"[BOS]\n@ 관리자 다다익선 등록 오류 수정\n\n[SCM]\n\n[FRONT]\n@ 결제금액 유효성 추가 체크 보완\n\n[BATCH]\n\n[PUBLIC BATCH]\n\n[CORE]\n@ 결제금액 유효성 추가 체크 보완","","",""]
[null,"QNen8kx25kyTCOTeFAmyiMkABaYT",null,null,"2021년 10월 12일 오전 배포이력",null,"배포이력","완료됨","중간","구성원;이정환;이선미;조 민혜;문 달호;전 석훈;박 중재;정 지혜;김 지철","조 민혜","2021.10.12.","","","false","2021.10.12.","김 지철",null,"[ADMIN]\n@ 환불관리 변경메모 이모티콘 제거\n\n[SCM]\n\n\n[FRONT]\n@ 몰메인-메인 > 당신을위한제안기능 \n@ 상품상세- 모바일 모델정보 잘못나오는 부분 수정\n@ 상품상세- pc 쿠폰 버튼 위치 수정\n@ 카카오인증 ip 설정\n@ 상품권 현금영수증 신청 날짜 수정(주문일 -> 신청일)\n\n[BATCH]\n\n\n[CORE]\n@ 상품권 현금영수증 신청 날짜 수정(주문일 -> 신청일)","","",""]
[null,"8dNysV8TbUynM8KWdxN2_skANv8N",null,null,"2021년 10월 08일 오전 긴급 배포 내역",null,"배포이력","완료됨","중간","구성원;이정환;이선미;조 민혜;박 중재;전 석훈;정 지혜;김 지철","전 석훈","2021.10.08.","","","false","2021.10.08.","정 지혜",null,"2021년 10월 08일 오후 배포 내역\n\n[BOS]\n\n[SCM]\n\n[FRONT]\n\n[BATCH]\n@ 자동품절취소 오류 수정\n@ 화장품여부 칼럼 NULL 처리\n\n\n[PUBLIC BATCH]\n\n[CORE]","","",""]
[null,"gjoSBi-1XEO9nUvY06G8MckABZaS",null,null,"2021년 10월 08일 오전 배포 내역",null,"배포이력","완료됨","중간","구성원;이정환;이선미;조 민혜;박 중재;전 석훈;정 지혜;김 지철","전 석훈","2021.10.08.","","","false","2021.10.08.","정 지혜",null,"[BOS]\n@ 회수목록 제휴몰 주문번호 검색기능 추가\n@ 회수예외관리 제휴몰 주문번호 검색기능 추가\n@ 취소대상 조회시 출고처지정 상태값 추가\n@ 샵링커주문수집 코어수정 건 \n\n[SCM]\n@ wms 화장품 여부 로직변경\n\n[FRONT]\n\n[BATCH]\n@ 샵링커주문수집 코어수정 건 \n@ 한세드림 매출반영 코어수정건\n\n[PUBLIC BATCH]\n\n[CORE]\n@ 회수목록 제휴몰 주문번호 검색기능 추가\n@ 회수예외관리 제휴몰 주문번호 검색기능 추가\n@ 샵링커 주문수집- 누락수집건 수정 (gs 홈쇼핑 수집은 하되, 주문은 되지않도록 변경)\n@ 한세드림 매출반영을위한 판매일자(dtSale) 변수추가","","",""]
[null,"_jwO6rmMbEeWtaAgTHOmGMkAOWgv",null,null,"2021년 10월 07일 오후 배포 내역",null,"배포이력","완료됨","중간","구성원;이정환;이선미;조 민혜;박 중재;전 석훈;박 중재;정 지혜;김 지철","조 민혜","2021.10.07.","","","false","2021.10.08.","조 민혜",null,"[BOS]\n@계좌인증 공통코드 변경\n@ 상품정산과 <정산확정>에 대해 상품쿠폰과 장바구니쿠폰의 입점쿠폰분담율 로직 수정\n\n[SCM]\n@ 상품정산과 <정산확정>에 대해 상품쿠폰과 장바구니쿠폰의 입점쿠폰분담율 로직 수정\n\n[FRONT]\n@ 몰메인 - 당신을 위한 추천 적용건\n@ 기획전 공유하기 링크 수정\n@ 선물하기 배송지 입력 알림톡 수정\n\n[BATCH]\n@ 품절취소 조건 수정 (선물하기상품 배송지미입력제외)\n\n[PUBLIC BATCH]\n\n[CORE]\n@ KCP 오류메세지 Alert 노출 처리\n@ 제휴몰주문 PG점프 로직 수정","","",""]
[null,"xT_0y1KWqUm5ZsaRRltlcckAHDcv",null,null,"2021년 10월 07일 오전 배포 내역",null,"배포이력","완료됨","중간","구성원;이정환;이선미;조 민혜;문 달호;박 중재;전 석훈;박 중재;정 지혜;김 지철","조 민혜","2021.10.06.","","","false","2021.10.07.","정 지혜",null,"[BOS]\n@ BOS의 \"상품정산\" 화면의 목록과 \"정산확정\" 생성 로직\n@ 정산관련 계산식 변경 및 정산확정 목록 내 판매총액 컬럼 추가\n\n[SCM]\n@  SCM의 \"입점업체 상품정산\" 화면의 목록\n@ 정산관련 계산식 변경 및 정산확정 목록 내 판매총액 컬럼 추가\n\n[FRONT]\n\n[BATCH]\n\n[PUBLIC BATCH]\n\n[CORE]","","",""]
[null,"iQ-UcZx0O0uIa2gIb75He8kAIVGB",null,null,"2021년 10월 06일 오후 배포 내역",null,"배포이력","완료됨","중간","구성원;이정환;이선미;조 민혜;박 중재;전 석훈;정 지혜;김 지철","전 석훈","2021.10.06.","","","false","2021.10.06.","조 민혜",null,"[BOS]\n@ 결제금액 관련 반품진해중일때 반품배송비 노출 제외\n\n[SCM]\n\n[FRONT]\n@ 장바구니 삭제 로직 수정\n\n[BATCH]\n@ 장바구니 100개 이상 일때 삭제 로직 변경\n@ 상품 요약정보 생성 배치 로직 수정\n\n[PUBLIC BATCH]\n\n[CORE]\n@ 결제금액 관련 반품진해중일때 반품배송비 노출 제외","","",""]
[null,"e5SFD5bfNky1AXZM6LF-IMkAFGDP",null,null,"2021년 10월 06일 오전 배포이력",null,"배포이력","완료됨","중간","구성원;이정환;이선미;조 민혜;박 중재;전 석훈;박 중재;정 지혜;김 지철","조 민혜","2021.10.06.","","","false","2021.10.06.","조 민혜",null,"[BATCH 일반]\n@ 입고상품 수신 옵션만 추가된 경우 - 해당 옵션 자동등록 \n@ 샵링커 주문수집 - 일반배치로 이동 \n\n[BATCH public]\n@ 샵링커 주문수집 - 일반배치로 이동","","",""]
[null,"UgVUO7Uy_UifS0XN5BeZ_skAHttj",null,null,"2021년 10월 05일 오전 배포 내역",null,"배포이력","완료됨","중간","구성원;이정환;이선미;조 민혜;박 중재;전 석훈;정 지혜;김 지철","전 석훈","2021.10.05.","","","false","2021.10.06.","이정환",null,"[BOS]\n@ 입점업체 주문목록 조회 기능 추가\n@ 입점업체 발주확정대상목록 조회 기능 추가\n@ 대량상품수정 - 안전인증 항목 추가\n@ 상품권정산 (잔액 항목 제거)\n@ 통계 > 일일거래내역 (취소,품절취소,반품완료,교환완료일 때 (-) 처리되게 수정)\n@ \"정산확정\" 시 수수료금액을 SUM->ROUND 하던 것을 상품정산과 동일하게 ROUND->SUM 으로 수정\n@ 반품/교환 철회 범위 수정\n@ 교환배송비 미노출 수정\n\n[SCM]\n@ 대량상품 등록/수정 - 안전인증 항목 추가\n@ 외부몰이미지  등록 오류수정\n@ 입점업체상품정산\n\n[FRONT]\n@ 주문완료 알림톡 발송 건수 체크 로직 수정\n@ 베스트 > 필터기능 구현\n@ bos 기획전 미리보기 시 > front 프론트 이동 오류 수정\n@ 출석체크 오류수정\n\n[BATCH]\n@구매확정 건 바이 건 로직 변경\n\n[PUBLIC BATCH]\n\n[CORE]","","",""]
[null,"bsp2iPlcbUaq6oFhq_ooEMkALOSx",null,null,"2021년 10월 01일 오후 배포이력",null,"배포이력","완료됨","중간","구성원;이정환;이선미;조 민혜;박 중재;전 석훈;정 지혜;김 지철","조 민혜","2021.10.01.","","","false","2021.10.01.","조 민혜",null,"[ADMIN]\n@ 샵링커주문수집 코어 수정건\n\n[BATCH-일반]\n@ 샵링커주문수집 코어 수정건\n\n[BATCH-PUBLIC]\n@ 샵링커주문수집 코어 수정건\n@ 단품입고 추가건 1차( wms 데이터만 수집 건) 신규배치건\n\n[CORE]\n@ 샵링커 주문수집 로그 변경","","",""]
[null,"QBlVCe70M0OCH8e-Iu5FbMkAGp6O",null,null,"2021년 10월 01일 오전 배포이력",null,"배포이력","완료됨","중간","구성원;이정환;이선미;조 민혜;박 중재;전 석훈;정 지혜","조 민혜","2021.10.01.","","","false","2021.10.01.","조 민혜",null,"[ADMIN]\n@ 샵링커주문수집 코어 수정건\n\n[BATCH-일반]\n@ 샵링커주문수집 코어 수정건\n\n[BATCH-PUBLIC]\n@ 샵링커주문수집 코어 수정건\n\n[CORE]\n@ 샵링커 주문수집 로그 추가 및 권한설정 로직추가","","",""]
[null,"Aenn4H3mak6QNcnikmZBWMkAEgVA",null,null,"2021년 09월 30일 오전 배포이력",null,"배포이력","완료됨","중간","구성원;이정환;이선미;박 중재;전 석훈;김 덕규;박 중재;정 지혜;김 지철","조 민혜","2021.09.30.","","","false","2021.09.30.","전 석훈",null,"[ADMIN]\n@ 샵링커 주문수집 변경 안내문구 변경\n@ 샵링커 코어수정건\n\n[BATCH-일반]\n@ 샵링커 코어수정건\n@ 등급산정 쿼리 수정 (날짜조건변경)\n\n[BATCH-public]\n@ 샵링커 코어수정건\n\n[CORE]\n@ 샵링커 주문수집 - 파일생성오류 확인로그 추가 & 방어로직추가\n@ 샵링커 주문수집 - 주문체크로직 수정 : 상품상태 관계없이 주문되도록 수정( 오직 재고가 없을 경우만 주문수집 안되도록)","","",""]
[null,"biHXKJ3S8UGKFT9k6l0DOckAG863",null,null,"2021년 09월 29일 긴급 배포 내역",null,"배포이력","완료됨","중간","구성원;이선미;조 민혜;문 달호;전 석훈;박 중재;정 지혜;김 지철","전 석훈","2021.09.29.","","","false","2021.09.29.","전 석훈",null,"[FRONT]\n@ 1:1 문의 오류 수정","","",""]
[null,"zxWV938pXEiXlVMqaGCXiMkAJcsc",null,null,"2021년 09월 29일 오전 배포 내역",null,"배포이력","완료됨","중간","구성원;이정환;이선미;조 민혜;문 달호;박 중재;전 석훈;정 지혜;김 지철","전 석훈","2021.09.29.","","","false","2021.09.29.","전 석훈",null,"2021년 09월 29일 오전 배포 내역\n\n[BOS]\n@ 품절취소코드 사유명으로 변경\n\n[SCM]\n\n[FRONT]\n@ 선물하기관련 오류 수정 > 앱에서 받는분 입력란에 숫자값만 입력되는 결함.\n@ 카테고리메인 신상품조회시 frontGb, custGb 누락 추가\n@ 셀링문구 위치변경\n@ 로그인 아이콘 변경 (pc, mo) - 확인완료\n\n[BATCH]\n\n[PUBLIC BATCH]\n\n[CORE]\n@ 품절취소코드 사유명으로 변경","","",""]
[null,"dwENyeFeP0aVXakDkB_8l8kAAfdg",null,null,"2021년 09월 29일 오후 배포 내역",null,"배포이력","완료됨","중간","구성원;이정환;이선미;조 민혜;문 달호;박 중재;전 석훈;박 중재;정 지혜;김 지철","김 지철","2021.09.29.","","","false","2021.09.29.","전 석훈",null,"[BOS]\n@ 상품타이틀예약관리 예약삭제 오류 수정\n     - SQL문 함수명이 컬럼명으로사용되고있어서 오류발생\n \n[BATCH]\n\n[PUBLIC-BATCH]\n\n[FRONT]\n@ APP > 선물하기 연락처 연동 오류 수정\n@ 네이버페이 주문형 검수 대응\n@ 상품권 100% 사용시 결제금액 비교 조건 수정\n\n[SCM]\n\n[CORE]","","",""]
[null,"G0IQCCrPe0-oxl9jxvLrV8kAKvTw",null,null,"2021년 09월 28일 오후 배포이력",null,"배포이력","완료됨","중간","구성원;이정환;이선미;조 민혜;문 달호;박 중재;전 석훈;김 덕규;박 중재;정 지혜;김 지철","조 민혜","2021.09.28.","","","false","2021.09.28.","정 지혜",null,"[ADMIN]\n@ 반품 REG_NO, UPD_NO 변경 처리\n@ 샵링커 배치 주문수집- 오류 로그 찍음 & 전달받은 주문목록 xml 생성 (누락건 확인용)\n\n[SCM]\n@ core 소스 \n\n[FRONT]\n@ 반품 REG_NO, UPD_NO 변경 처리\n@ 네이버페이 주문형 검수 대응\n@ IOS 실시간계좌이체 오류 수정\n@ 옵션 정렬순서 수정 --> 확인(원인 order by 부분 오타로 정렬이 안되고있었음.)\n@ IOS 현금영수증 오류 수정\n\n[BATCH 일반]\n@ 배치 시간 변경 품절취소 분배치-> 시간배치로 변경 (YML파일)\n\n[BATCH public]\n@ 샵링커 배치 주문수집- 오류 로그 찍음 & 전달받은 주문목록 xml 생성 (누락건 확인용)\n@ ep 오류 수정\n\n[CORE]\n@ 샵링커 배치 주문수집- 오류 로그 찍음 & 전달받은 주문목록 xml 생성 (누락건 확인용)\n@ 반품 REG_NO, UPD_NO 변경 처리\n@ WMS_IF 취소 업데이트시 비고값 'istyle취소'로 변경","","",""]
[null,"aTjtQ8rDfUm2OYOHZtGLuskAE64W",null,null,"2021년 09월 27일 긴급 배포이력",null,"배포이력","완료됨","중간","구성원;이선미;조 민혜;문 달호;박 중재;박 중재;정 지혜;김 지철","전 석훈","2021.09.27.","","","false","2021.09.28.","이정환",null,"[BOS]\n@ 원주문 배송비 관련 수정\n\n[SCM]\n\n[FRONT]\n@ 사은품 금액 산정기준 오류 수정\n@ kcp 아이폰 app 실시간계좌이체 결제 변수 추가\n\n[BATCH]\n\n[PUBLIC BATCH]\n\n[CORE]\n@ 사은품 금액 산정기준 오류 수정\n@ 원주문 배송비 관련 수정","","",""]
[null,"G-T8MaS_HUy-RqkeNTGzLckAACDp",null,null,"2021년 09월 27일 오전 배포이력",null,"배포이력","완료됨","중간","구성원;이선미;조 민혜;문 달호;전 석훈;박 중재;정 지혜;김 지철","조 민혜","2021.09.27.","","","false","2021.09.28.","이정환",null,"[ADMIN]\n@ 샵링커상품등록- 제너레이팅 보완(이미지 누락관련부분, 샵링커에서 미리보기시 상품상세 이미지가 너무커서 가로스크롤이 나오는 부분 수정) -md확인요청\n@ 정산관련 수정 (공급업체 -> 공급벤더로 변경)\n@ 제휴채널정산 쿼리문 수정 (TB_ORDER_DETAIL_HST -> TB_ORDER_DETAIL_ITEM_HST) \n@ 1:1문의관리 개선건 (상담사할당 기능 추가 및 1:1문의상세 화면에 1:1문의이력 리스트 추가) - 결함 수정.필요\n@ 회수컨펌 PG 점프기능 CS관리자 권한 부여 적용\n@ 업체별 배송비 정책 사용여부 수정시 업체코드 조건 추가\n@ 프론트 구분 APP 수정 추가 - 추가됨\n@ 품절취소대상목록수정\n\n[SCM]\n@ 정산관련 수정 (공급업체 -> 공급벤더로 변경)\n@ 제휴채널정산 쿼리문 수정 (TB_ORDER_DETAIL_HST -> TB_ORDER_DETAIL_ITEM_HST) \n@ 업체별 배송비 정책 사용여부 수정시 업체코드 조건 추가\n\n[FRONT]\n@ 앤듀 브랜드관 영상 오류 - 동영상 2개이상 등록시 오류나는 부분 보완\n@ 기획전 상세- 상단 구분자 동작오류 수정 --> 확인\n@ 주문서 페이지에 해당 영역에 상기 소스 삽입 요망(품절취소안내문구)  -> 확인\n\n[일반 BATCH]\n@ WMS 회수예외수신 배치 wms기준에 맞게 조건 제거 \n@ 출고처지정및출고요청  TB_BIZDAY 영업일 조건 추가\n\n[PUBLIC BATCH]\n@ 샵링커 주문수집 오류확인용 log 추가 건\n\n[CORE]\n@ 정산관련 수정 (공급업체 -> 공급벤더로 변경)\n@ 제휴채널정산 쿼리문 수정 (TB_ORDER_DETAIL_HST -> TB_ORDER_DETAIL_ITEM_HST) \n@ 품절취소대상목록수정\n@ 샵링커 주문수집 오류확인용 log 추가 건","","",""]
[null,"FgFsCEm2GkWC9J0jwzNlxMkAHxko",null,null,"2021년 9월 16일 배포 이력",null,"배포이력","완료됨","중간","구성원;이정환;이선미;조 민혜;문 달호;박 중재;전 석훈;박 중재;정 지혜;김 지철","김 지철","2021.09.16.","","","false","2021.09.17.","이정환",null,"[BOS]\n@ 대량상품수정- 승인완료로 처리시, 최초승인일 값이 없을 경우 당일날짜로 업데이트처리\n@ 샵링커송장전송관리- 주문자명 검색항목 추가 \n@ 샵링커송장전송관리- 엑셀다운시 title, footer 제거 (O)\n@ 탈퇴회원, 휴면회원 기간없음 오류 수정(o)\n@ 통계- 상품별 주문, 제휴별 주문, 채널별 주문, 브랜드별 주문 메뉴 추가건\n@ 제휴채널 정산 데이터 안나오는 이슈 (9/16 09이후 데이터) \n\n[BATCH]\n@ 회수요청시  제휴몰일때 메모 문구 수정\n@ 넷퍼시, 상품검색 - 전체색인 truncate table 이슈관련 테이블 생성으로 변경 \n   \n[PUBLIC BATCH]\n@ 스윗트래커 8.31 16이후 추적요청 일자 조정\n\n[FRONT]\n@ 구매확정 안내 문구 수정(O)\n@ ios 심사완료- 로그인 관련 주석 해제, 동영상 주석해제(O)\n@ 상품상세- 추천솔루션 영역 주석해제 (O)\n@ 기획전상세- 혜택아이콘 중복으로 나오는 부분 수정(ex 무료배송 두개나오던 것) (o)\n\n[SCM]\n@ 상품목록- 상품상태 승인완료 추가 및 저장기능 (최초승인일이 있을경우만 승인완료 가능함) \n@ 상품대량등록- 대량상품수정 엑셀업로드에 상품상태 항목 추가(O) \n@ 제휴채널 정산 데이터 안나오는 이슈 (9/16 09이후 데이터) \n\n[CORE]\n@ 제휴몰 교환신청 로직 수정\n@ 샵링커송장전송관리- 주문자명 검색항목 추가건","","",""]
[null,"fzxeUxcjtUioBvhlnvGHfskAHqL6",null,null,"2021년 09월 14일 오전 배포이력",null,"배포이력","완료됨","중간","구성원;이정환;이선미;조 민혜;문 달호;박 중재;전 석훈;박 중재;정 지혜;김 지철","김 지철","2021.09.14.","","","false","2021.09.14.","전 석훈",null,"[BOS]\n@ 취소신청 화면 옵션 추가\n\n[BATCH]\n\n[FRONT]\n\n[SCM]\n@ 배송비정책코드 등록 오류 수정\n@ 상품상세 팝업 - 최초승인일이 있을 경우 승인완료 상태로 변경가능하도록 수정 \n\n[CORE]","","",""]
[null,"nIwoSfjFuEiuH-ZYI9ev6MkAK4nG",null,null,"2021년 09월 13일 오후 배포이력",null,"배포이력","완료됨","중간","구성원;이선미;조 민혜;문 달호;박 중재;정 지혜;김 지철","전 석훈","2021.09.13.","","","false","2021.09.14.","이정환",null,"[ADMIN]\n@ 주문목록 중복 조회 처리\n@ WMS 회수예외 수정\n[SCM]\n\n[FRONT]\n@ 마이페이지 AS-IS 취,반,교 기능 오픈\n@ 마이페이지 AS-IS 주문목록 기능 오픈\n@ SNS 로그인 주석 (앱심사)\n@ SNS 회원가입 주석 (앱심사)\n@ 동영기능 주석 (앱심사)\n@ HISTORY BACK 기능\n@ 자동로그인 기능\n@ 비회원 배송지정보등록 불가 처리\n@ 본인인증 오류 수정-연락처 한개 이상인 유저가있을 경우 본인인증시 오류 났던 부분 수정. 본인인증된 아이디 노출(마스킹처리)\n@ 자동로그인 ssl 적용여부에 따른 쿠키생성처리\n\n[BATCH]\n\n[CORE]","","",""]
[null,"TF5xQpyDi0ykjFdxqa7g8skAFB-N",null,null,"2021년 09월 09일 오전 배포이력",null,"배포이력","완료됨","중간","구성원;이정환;조 민혜;문 달호;박 중재;정 지혜;김 지철","전 석훈","2021.09.09.","","","false","2021.09.13.","전 석훈",null,"[ADMIN]\n@ 관리자 반품철회 기능 전체상태가능, AS-IS 반품상세화면 팝업 호출 가능\n@ LMS 제휴몰(대외용) 발신자 추가 \n@ 반품신청 화면 옵션 추가\n@ 주문목록 SKUCODE 추가\n@ 주문목록 키워드 텍스트 수정 ( 제휴몰주문번호, 샵링커주문번호)\n@ 상품상세팝업 > 자사몰노출여부 표시\n@ 샵링커 송장전송 >가이드 텍스트 추가 ( 10분후 조회)\n@ 샵링커 주문수집 > 목록& 엑셀 등록자 표시 추가 \n\n[SCM]\n@ SCM 입점업체 정산관련 메뉴 3개 추가\n\n[FRONT]\n@ 구매확정 후 알림톡 발송 수정\n@ 비로그인상태에서 바로구매 클릭시 신규회원 구매 가능 상품이면 장바구니 시퀀스 세션에서 null 처리\n@ footer의 인스타그램 URL을 수정했습니다. 앱일 때도 호출되도록\n\n[BATCH]\n@ 구매확정시 배송완료(상품평등록) 알림톡 발송  - 배송완료시점 알림톡 주석처리 \n@  as-is주문건 회수시  orderGUID 매핑\n\n[CORE]\n@ 샵링커송장 실패 보완로직추가( BOS, BATCH)\n@ 오류메시지 내용 출력 ( bos, scm)\n@ 샵링커 주문수집 시 교환건 제외 로직 추가","","",""]
[null,"vBDcl3bHZkStnLDsx0WDk8kACgbj",null,null,"2021년 09월 10일 오전 배포이력",null,"배포이력","완료됨","중간","구성원;이정환;이선미;조 민혜;문 달호;박 중재;전 석훈;박 중재;정 지혜;김 지철","전 석훈","2021.09.10.","","","false","2021.09.13.","전 석훈",null,"[ADMIN]\n@ 2021.09.09 취소시 페이코 조건 누락 추가\n@ 샵링커주문수집관리 : 조회목록 항목 추가  '옵션1', '옵션2', '교환접수여부' \n@ 주문엑셀업로드 : 등록시 상품명 저장안되어 목록에 빈값으로 노출되는 건 보완 \n@주문목록 고객아이디 조회 조건 추가 및 성능개선\n\n[SCM]\n@ 2021.09.09 취소시 페이코 조건 누락 추가\n@ 제휴채널 정산 오류 수정\n\n[FRONT]\n@ 2021.09.09 취소시 페이코 조건 누락 추가\n\n[BATCH]\n@ 2021.09.09 취소시 페이코 조건 누락 추가\n@ 상품평 작성 알림 카톡발송-주문기준으로 발송\n@ 최종 송장번호로 업데이트 추가\n\n[CORE]\n@ 2021.09.09 취소시 페이코 조건 누락 추가\n@ 샵링커 주문수집 - 교환건 주문등록 안되도록 적용\n@ 샵링커 주문수집/주문엑셀업로드 : 재고 품절로 주문등록 안된건 관리자메모에 자동 등록\n@ 배송목록 고객아이디 조회 조건 추가 및 성능개선","","",""]
[null,"1BLWihW1606tDbE_EWafxskABbBO",null,null,"9월8일 배포",null,"배포이력","완료됨","중간","이정환;이선미","전 석훈","2021.09.08.","","","false","2021.09.09.","이정환",null,"1. BOS \n - 상품대량수정 업로드시 가격 바로 반영되도록 수정 \n - MD 권한수정 - 메인전시관리 (브랜드,카테고리,아울렛) 레이아웃 저장 버튼 노출 \n- LMS 추가 \n- 어드민 대량수정시 입점/자사 상관없이 상품정보에 바로 반영 처리\n- 반품,교환 신청 상품 조건 삭제 \n\n2. SCM \n - 상품대량업로드 오류수정\n\n3. BATCH \n - 네이버 EP 수정(전체일 때만 이미지 삭제후 생성) \n - 전체색인, 부분색인 오류 수정 \n- wms메모 글자 안짤리게 수정\n\n4. FRONT \n - 앱. 링크이동 오류 수정\n - 유아동 카테고리에서 '신상품제외' 상품이 기본으로 노출되도록 수정\n- 네이버 sns_id - 하나의 cust_no에 두개의 sns_id존재시 오류건 수정","","",""]
[null,"OTwmRDKl702_sz5XyX1PjMkAD8Xu",null,null," 9월 7일 배포",null,"배포이력","완료됨","중간","","이선미","2021.09.07.","2021.09.07.","2021.09.07.","false","2021.09.08.","이정환",null,"FRONT\n- 모바일 yes24 로그인 연동오류 수정되었습니다.\n- 한세드림의 브랜드 상품목록에서, 신상품제외 버튼해제 완료( 유아동 추가예정)","","",""]
[null,"Z-FJ_buiY0-4i3n8O5PLj8kAKl1O",{"$f":"$A$1&B315","v":"https://tasks.office.com/style24.com/Home/Task/Z-FJ_buiY0-4i3n8O5PLj8kAKl1O"},null,"[PJT잔여] 카카오 로그인 오픈테스트/오픈",null,"프로젝트 미구현/잔여결함","시작되지 않음","중간","문 달호","정 지혜","2021.09.29.","2021.10.12.","2021.10.15.","true","","",null,"특정 아이피로 체크해서 열어서 기능 확인하고 전체오픈하는걸로 한다.","","",""]
[null,"QjgUSq8MaEOedbYJStCtickADejH",{"$f":"$A$1&B316","v":"https://tasks.office.com/style24.com/Home/Task/QjgUSq8MaEOedbYJStCtickADejH"},null,"[PJT잔여] 앱 필수업데이트 팝업 노출안되는 현상",null,"프로젝트 미구현/잔여결함","시작되지 않음","중간","김 덕규","정 지혜","2021.09.28.","","","false","","",null,"","","",""]
[null,"_2vHqqCka0SABcbqQySbHskAJ55E",{"$f":"$A$1&B317","v":"https://tasks.office.com/style24.com/Home/Task/_2vHqqCka0SABcbqQySbHskAJ55E"},null,"[PJT잔여] 검색결과 페이지에 광고상품 미노출",null,"프로젝트 미구현/잔여결함","시작되지 않음","중간","조 민혜","정 지혜","2021.09.28.","","2021.11.19.","false","","",null,"bos> 상품 > 상품광고키워드관리 > 키워드와 상품을 등록한 데이터를 기반으로\n키워드 가 검색결과의 쿼리\n상품이 상위에 노출될 상품들임.\n검색결과보다 우선하여, 해당 상품들이 AD라는 딱지(CSS확인) 를 붙여 노출함.","","",""]
[null,"UsSjD71uH0C_HxrsFh4UQskAC2Oy",null,null,"[PJT잔여] 메인 > 당신을위한제안기능 누락",null,"프로젝트 미구현/잔여결함","완료됨","중간","조 민혜","정 지혜","2021.09.17.","","2021.10.12.","false","2021.10.12.","정 지혜",null,"--> 개발계 개발된 내용 확인중\n추천솔루션에 있는 데이터를 노출","","",""]
[null,"hgxVgHSnYUyzm1RWeNg1vMkANusb",null,null,"등록되있는 포토상품평이 있을 경우,상품의 리뷰 목록에 1개 노출되어야 하나 노출안됨",null,"프로젝트 미구현/잔여결함","완료됨","중간","","정 지혜","2021.09.16.","","","false","2021.10.08.","정 지혜",null,"등록되있는 포토상품평이 있을 경우,상품의 리뷰 목록에 1개 노출되어야 하나 노출안됨","","",""]
[null,"Tk6n2xBRKU6STkT1ftOOD8kALWg6",null,null,"상품상세 > 페이스북/트위터 공유 동작안함",null,"프로젝트 미구현/잔여결함","완료됨","중간","","정 지혜","2021.09.16.","","","false","2021.10.08.","정 지혜",null,"","","",""]
[null,"MRF_s-d500ix1wAR3XH-4MkANWEc",null,null,"기획전 공유하기 기능 전체 에러.",null,"프로젝트 미구현/잔여결함","완료됨","중간","","정 지혜","2021.09.16.","","","false","2021.10.08.","정 지혜",null,"","","",""]
[null,"PAioutXxYUqBU5XEPdyt_skALMyc",null,null,"상품검색키워드 관련 기능 프론트 누락",null,"프로젝트 미구현/잔여결함","완료됨","중간","","정 지혜","2021.09.17.","","","false","2021.10.08.","정 지혜",null,"","","",""]
[null,"BWj_Z1BfrUmLobY1rIIRN8kAAOY9",null,null,"[결함] 기획전 '미노출' 처리 하였을 때 프론트 페이지 접근에러 남 미리보기 기능도 기획전 기간이 해당하지 않으면 조회불가함",null,"프로젝트 미구현/잔여결함","완료됨","중간","","정 지혜","2021.09.28.","","","false","2021.10.08.","정 지혜",null,"[결함] 기획전 '미노출' 처리 하였을 때 프론트 페이지 접근에러 남 \n미리보기 기능도 기획전 기간이 해당하지 않으면 조회불가함","","",""]
[null,"086PgxJZWEmCMS2TJ9MezskAAxof",null,null,"[결함] 선물하기 주문 에러",null,"프로젝트 미구현/잔여결함","완료됨","중간","","정 지혜","2021.09.29.","","","false","2021.10.08.","정 지혜",null,"- 주소 입력하지 않았는데 데이터 넘어감\n19908063","","",""]
[null,"5DWxLoUf9Uy5asItDcUveckAH6YS",null,null,"베스트의 여성/남성/연령 기능 동작하지 않음",null,"프로젝트 미구현/잔여결함","완료됨","중간","조 민혜","정 지혜","2021.09.16.","","","false","2021.10.05.","조 민혜",null,"","","",""]
[null,"PSm9fYcJ_06OIyx1_SwM3MkAACNZ",null,null,"[결함] 선물하기 연락처 불러오기 미구현",null,"프로젝트 미구현/잔여결함","완료됨","중간","전 석훈;김 지철","정 지혜","2021.09.28.","","","false","2021.09.29.","김 지철",null,"결함 내역 으로 확인","","",""]
[null,"warAkfxCBEafgo0c2sGKbckAIGeV",null,null,"[결함] 선물하기 주문 앱에서 에러",null,"프로젝트 미구현/잔여결함","완료됨","중간","전 석훈;김 지철","정 지혜","2021.09.28.","","","false","2021.09.29.","정 지혜",null,"선물받는자 이름등록하면 계속 이름을 등록하라고 나옴.","","",""]
[null,"2XuVUTa-u0OYg0prdmuSHskACbBg",null,null,"검색결과 > 추천영역 누락",null,"프로젝트 미구현/잔여결함","완료됨","중간","","정 지혜","2021.09.17.","","","false","2021.09.28.","정 지혜",null,"","","",""]
[null,"ivWJEl11FEOy6Qor4a8t_ckAHg0I",null,null,"상품 카카오톡 공유 하기 시, 해당 상품 링크가 아닌 메인으로 랜딩됨. ()",null,"프로젝트 미구현/잔여결함","완료됨","중요","","정 지혜","2021.09.16.","","","false","2021.09.23.","정 지혜",null,"","","",""]
[null,"aBuQWTXVDUWTi-C1mJIczckAOkCa",null,null,"브랜드 페이지 로딩속도 10초 이상소요.",null,"프로젝트 미구현/잔여결함","완료됨","중간","조 민혜","정 지혜","2021.09.17.","","","false","2021.09.23.","정 지혜",null,"","","",""]
[null,"U3VAolDYvUix-xURrbHIgckAHTDr",{"$f":"$A$1&B331","v":"https://tasks.office.com/style24.com/Home/Task/U3VAolDYvUix-xURrbHIgckAHTDr"},null,"[PTJ잔여] 상품리스트> 마우스오버시 다음컷 나오지않음(기획전 외)",null,"프로젝트 미구현/잔여결함","시작되지 않음","중간","조 민혜","정 지혜","2021.09.17.","","2021.11.12.","false","","",null,"검색엔진 페이지 외에는 상품리스트 > 마우스오버시 다음컷이 안나옴\n(db 전시하는부분)","","",""]
[null,"YyZ0ve36TESN-YfChdrUdskAFBU6","https://tasks.office.com/style24.com/Home/Task/YyZ0ve36TESN-YfChdrUdskAFBU6",null,"[PJT잔여][FRONT] 검색결과> 최근검색순 -->인기검색순",null,"프로젝트 미구현/잔여결함","시작되지 않음","중간","조 민혜","정 지혜","2021.09.17.","","2021.11.12.","false","","",null,"검색결과에서 설계 상 검색결과는 인기검색순 노출임","","",""]
[null,"0p5pyvbfb0-hzDx7Ufows8kADkbI","https://tasks.office.com/style24.com/Home/Task/0p5pyvbfb0-hzDx7Ufows8kADkbI",null,"[PJT잔여] 출석체크 기능 정상 동작 하지 않는건->테스트필요",null,"프로젝트 미구현/잔여결함","진행 중","중간","문 달호","정 지혜","2021.09.16.","","2021.10.29.","false","","",null,"테스트 필요","","",""]
[null,"z0jp-r3J7EO7fzpC26MXb8kAA_Nn","https://tasks.office.com/style24.com/Home/Task/z0jp-r3J7EO7fzpC26MXb8kAA_Nn",null,"[PJT잔여] 자사 무료배송비 기능 추가 개발 (상품, 주문)",null,"프로젝트 미구현/잔여결함","시작되지 않음","중간","전 석훈","김 지철","2021.09.10.","","2021.12.17.","false","","",null,"","","",""]
[null,"g_N2Iuvv3UyvH6X9txu6VskAGGwJ","https://tasks.office.com/style24.com/Home/Task/g_N2Iuvv3UyvH6X9txu6VskAGGwJ",null,"[PJT잔여] 네이버페이 주문형 검수 대응",null,"프로젝트 미구현/잔여결함","진행 중","중요","김 지철","김 지철","2021.09.10.","","2021.10.15.","true","","",null,"","","",""]
[null,"E8WWFgqsn0OZOSoHhtyzYMkAPOyc","https://tasks.office.com/style24.com/Home/Task/E8WWFgqsn0OZOSoHhtyzYMkAPOyc",null,"[PJT잔여] 통계 개발 잔여(결함수정)",null,"프로젝트 미구현/잔여결함","시작되지 않음","중간","김 덕규","정 지혜","2021.09.09.","","","false","","",null,"- 통계건 개발은 완료 되었으나, 에러가 있음","","",""]
[null,"aPEjKOrp1EGE9t2fPlHDoskAPAJg","https://tasks.office.com/style24.com/Home/Task/aPEjKOrp1EGE9t2fPlHDoskAPAJg",null,"[PJT잔여] 총알배송 휴무일/일반배송휴무일 분리",null,"프로젝트 미구현/잔여결함","시작되지 않음","중간","전 석훈","정 지혜","2021.09.09.","","2021.11.05.","false","","",null,"프로젝트 결함사항임.","","",""]
[null,"KM1L3Tu1ZUeF4m1tXjBC88kALnRZ",null,null,"2021년 10월 13일 긴급 배포 내역",null,"할 일","완료됨","중간","구성원;이정환;이선미;조 민혜;문 달호;박 중재;전 석훈;정 지혜;김 지철","전 석훈","2021.10.13.","","","false","2021.10.13.","전 석훈",null,"2021년 10월 13일 긴급 배포 내역\n\n[BOS]\n\n[SCM]\n\n[FRONT]\n@ 주문서 유효성 체크 오류 수정\n\n[BATCH]\n\n[PUBLIC BATCH]\n\n[CORE]","","",""]
[null,"6vkysjLCpEKFvN5dOJ9SnckAC-3V",null,null,"https://docs.google.com/spreadsheets/d/19dizzcCB6quIHQWIj55BSRXp0vscz3Yl1b28ym3WLzU/edit#gid=1291267654",null,"할 일","완료됨","중간","","정 지혜","2021.10.08.","","","false","2021.10.08.","정 지혜",null,"","","",""]
[null,"oZAZEwROrkKUZfKp0JqBg8kAAFtA",null,null,"CS",null,"할 일","완료됨","중간","","정 지혜","2021.10.08.","","","false","2021.10.08.","정 지혜",null,"","","",""]
[null,"oN_G5BUTM0ig5-ZCoeUVgckAGyFN",null,null,"CS",null,"할 일","완료됨","중간","","정 지혜","2021.10.08.","","","false","2021.10.08.","정 지혜",null,"","","",""]
[null,"u-afJhJcH0ee97qbYR49DckAG40H",null,null,"배치 시간 및 배치 시 발송되는 데이터 점검",null,"할 일","완료됨","중간","김 덕규","정 지혜","2021.09.02.","","","false","2021.10.06.","이정환",null,"","","",""]
[null,"G6RqpH0qcEytC1L5hbGmBMkAOHeq",null,null,"N182TH102P_ wh 이미지가 등록되어 있으나 안나오는현상",null,"할 일","완료됨","중간","","정 지혜","2021.09.24.","","","false","2021.10.06.","이정환",null,"WH 컬러 이미지 등록되어있으나, 목록 및 상세에 노출되지 않음.","","",""]
[null,"TpOXYN-w90aOTNsbbK5pXMkAAixL",null,null,"일간 스케줄러 확인",null,"할 일","완료됨","중간","문 달호","정 지혜","2021.09.10.","","","false","2021.10.05.","정 지혜",null,"출고처 지정\t데이터 계류건 있는지 확인필요 - 09.15 현시점 없음.\n출고확정,송장데이터 수신\t* 송장데이터 마지막에 변경되었을때 수신안되나요?\n-> 수정완료 , 수정전 data 변경송장번호로 업데이트 및 스윗트래커 배송추적요청 \nCJ 회수지시 요청 \n-> 서보성이사님 확인 (09.13~ 09.14  모니터링)\t　\nCJ 재회수지시 요청\t\n-> 서보성이사님 확인(WMS_IF DB 확인 및 CJ DB 확인) 　\nwms에서 재회수 나가는지확인  \n->  서보성이사님 확인 (09.13~ 09.14  모니터링)\t　\t　\nCJ 회수지시 결과 \n- >  주문/배송>회수관리> 회수지시목록 화면에서 \tCJ 회수상태 확인가능\n       (wms에서 cj쪽 전송결과는 반영하지 않음,  cj쪽 회수송장번호 트래킹시점 부터 bos에서 확인가능)　\nCJ 재회수지시 결과\t*결과호출 여부확인 \n-> 재회수지시 요청시 상태값 재회수지시로 표현되며 cj쪽 회수송장번호 트래킹 시점부터 cj쪽 상태값 확인 가능. )\n\n입고데이터 수신  \t　 \n반품입고 데이터 수신\t　\n-> 회수입고결과 수신 배치 정상 수행중.\n회수 예외 데이터 수신\t　\n-> 회수입고 예외 수신 배치  정상 수행중. \n\n---------------------------------------------------------------------\n샵링커 주문데이터수신\t*교환 주문 안들어오는지 다시확인\n샵링커 송장데이터송신\t*오송장 건 왜 발생되는지 확인","","",""]
[null,"m567Gohpz02SCIt_nXCL58kAMmUb",null,null,"품절취소 SMS (알림톡) 메뉴 확인요청",null,"할 일","완료됨","중요","문 달호","전 석훈","2021.09.16.","","","false","2021.09.28.","정 지혜",null,"안녕하세요 고객만족팀 김은주입니다.\n\n주문번호 : 19892769\n고객명 : 송민영\n\n3개의 상품 주문후 1개의 상품 품절로 등록되어 자동으로 취소가 진행 되었습니다.\n\n\n\n====================================================\n\n메일확인결과  \n\n고객문의 : 사이즈 품절전  연락 주세요 \n\nC/S  문의  :   발송된 SMS(알림톡) 확인 메뉴 있는지에 댜한  문의같아보임. \n\n== 현상태 :  품절 취소 알림톡 발송됨.  \n                     발송내역 확인 메뉴는 없음,\n\n========================================\n\n송민영 고객님 양해의 말씀을 드립니다.\n\n주문하신 상품이 품절되어 부득이하게 취소되었습니다.\n결제하신 금액은 환불해 드리겠습니다.\n\n■ 취소상품명 : [모이몰른] 피케리프 주름스커트 M213SKG30P [가을] \n■ 주문번호 : 19892769\n\n품절 상품에 대한 환불금액은 결제하신 수단으로 부분취소/환불 하여 드리겠습니다. 각 결제수단 별 3~7일 소요될 수있습니다.\n\n불편사항이나 문의사항은 1:1문의/고객센터로 문의주시면\n빠르게 안내드리겠습니다.\n스타일24 바로가기 : https://www.style24.com\n스타일24 고객센터 : 1544-5336\n\n발신일: 2021-09-15 19:40:13","","",""]
[null,"QeSp47hEqEuAmo5QTe_vH8kAFs3Z",null,null,"기획전 상단 구분자 동작오류",null,"할 일","완료됨","중간","조 민혜","박 중재","2021.09.24.","","","false","2021.09.28.","정 지혜",null,"모바일 (웹/앱)   기획전,  기획전 상단 틀고정 구분자 동작오류 (9/24 메일 발송, 발신인 박중재)\n \n- 첫번째 구분자, 두번째 구분자까지만 정상 동작하고, 세번째 구분자부터는 동작안함\n    - 상품 리스트를 스크롤시, 각 구분자 영역에 맞게 상단 구분자가 변경되어야 하지만 안됨\n    - 선택박스 클릭후, 각 구분자를 직접 선택하는 경우에도 구분자 명칭 변경 안됨","","",""]
[null,"-oOGcWs9Lk2o_W9EAJWeBskAHsNx",null,null,"2021년 09월 28일 오전 배포이력",null,"할 일","완료됨","중간","구성원;이정환;이선미;조 민혜;문 달호;박 중재;전 석훈;박 중재;정 지혜;김 지철","조 민혜","2021.09.28.","","","false","2021.09.28.","전 석훈",null,"[ADMIN]\n\n[SCM]\n\n\n[FRONT]\n\n[BATCH 일반]\n@ (긴급배포) 스케쥴 설정 누락 오류로 인한 긴급배포 \n\n[BATCH public]\n@ (긴급배포) 스케쥴 설정 누락 오류로 인한 긴급배포 \n\n[CORE]\n@ 반품 REG_NO, UPD_NO 변경 처리","","",""]
[null,"tidRmKAgNUqWczF692KMFMkAKyFq",null,null,"[완료] RE: 전체 반품 회수입고 수량 오류 문의",null,"할 일","완료됨","긴급","전 석훈;정 지혜","정 지혜","2021.09.24.","","","false","2021.09.28.","전 석훈",null,"주문번호  : 19871411 \n고객명 : 노수진 \n\n해당 주문건도 반품 수량이 총 2개 + 1개 = 3개의 상품이 입고되었으나.\n회수 수량이 4개로 표시가되어 환불이 되지 않습니다.","","",""]
[null,"xApWPtL7kUqB1zN7Y1cfpckAGJIq",null,null,"[완료] 배송비 정책에 따른 부분취소 및 전체취소 배송비 계산 결함 수정",null,"할 일","완료됨","중간","전 석훈;정 지혜;김 지철","정 지혜","2021.09.23.","","","false","2021.09.28.","김 지철",null,"19882659 주문 파생건\n\n\n안녕하세요 고객만족팀 김은주입니다.\n\n주문번호 : 19882659       \n고객명 : 이선영\n\n해당상품 입점업체 상품으로 \n운송장 번호가 등록이 되었으나. 실제 품절로 발송이 되지 못한 상품입니다. \n\n이후 반품 접수시 품절로 취소접수를 하였으나. \n왕복 배송비 6,000원이 차감후 환불되는 오류가 확인되어 문의드립니다. \n\n해당 사항 확인후 나머지 6천원도 취소처리 부탁드립니다.\n감사합니다.","","",""]
[null,"yE7cBIW7ckeF8EXzqlUQtMkAByiG",null,null,"옵션순서 적용안됨",null,"할 일","완료됨","중요","조 민혜","정 지혜","2021.09.28.","","","false","2021.09.28.","정 지혜",null,"https://www.style24.com/goods/detail/form?goodsCd=E289800009755\n해당 링크 보시면 옵션 노출 순서가 설정해둔 것과 다르게 뒤죽박죽인데요,\n오류인 건지 확인 부탁드려요.","","",""]
[null,"pIRYfSUV202ir-QbfVRJKMkABrzH",null,null,"앤듀 브랜드관 영상 오류",null,"할 일","완료됨","중간","조 민혜","정 지혜","2021.09.23.","","","false","2021.09.28.","조 민혜",null,"영","","",""]
[null,"9R9cemefTkOWlWiYdd0a88kAJ0SM",null,null,"[완료] 반품/취소/환불시 오류문의",null,"할 일","완료됨","중간","전 석훈;정 지혜","전 석훈","2021.09.14.","","","false","2021.09.28.","정 지혜",null,"안녕하세요 고객만족팀 김은주입니다.\n\n@ 반품  / 취소 / 환불 관련하여 \n일부 주문건이 계속 오류가 발생되어 문의드립니다.\n\n@ 반품 접수 오류 ( 제휴 주문건 – / 고객변심 / 배송비 차감 없음 )\n19888236 백한기 ---> 반품접수중\n19888175 최영진 ---> 어떤상품인지 알수없음 상세번호 전달 요청\n19886622 신연식 ---> 어떤상품인지 알수없음 상세번호 전달 요청\n19881131 정지현 ---> 반품접수중\n19876886 임미경 ---> 반품접수중\n19870910 이정운 ---> 회수방법이 누락되어 있어서 접수 불가.\n19869471 박영식 ---> 반품접수중\n19869394 이경선 ---> 반품접수중\n19867854 김현우 ---> 회수방법이 누락되어 있어서 접수 불가.\n19886153 김영래 ---> 반품접수중\n\n@ 자사 반품접수시 오류 \n19887050 김리하 -> 부분반품 / 고객변심 -> 2500원 차감\n19881131 정지현 -> 전체반품 / 고객변심 -> 5000원 차감\n19874479 김성혜 -> 전체반품 / 상품불량-> 무상반품건 ---> 회수방법이 누락되어 있어서 접수 불가.\n19886622 신연식 -> 부분반품 / 고객변심  5천원 차감\n\n자사배송비정책이 N 처리 되어 있어서 반품접수가 불가했던것으로 추측이 됩니다.\n다시 한번 반품접수 부탁드립니다.\n혹시라도 오류가 있다면 다시 한번 문의 주시면 신속하게 처리해 드리겠습니다.","","",""]
[null,"6uYZtI_JHEOH1CP89pZbnMkAASza",null,null,"[완료] 주문번호 19859391 (  고객명 :  김정희 15386092-2 [투미] Y 슬림 정장팬츠 - TMTW612S1B_19 19)Black 067   해당 상품 품절 ",null,"할 일","완료됨","중간","전 석훈;정 지혜","정 지혜","2021.09.24.","","","false","2021.09.27.","정 지혜",null,"","","",""]
[null,"OK_mdoNlp0GJvDD1mrCrZckAFfWX",null,null,"2021년 09월 24일 오전 배포이력",null,"할 일","완료됨","중간","구성원;이선미;조 민혜;문 달호;박 중재;전 석훈;정 지혜;김 지철","조 민혜","2021.09.23.","","","false","2021.09.24.","조 민혜",null,"[BOS]\n@ 구매확정 반품/교환 접수 처리\n\n[BATCH]\n@ 네이버페이 결제형 정산 개발\n\n[FRONT]\n@ 기획전 상세 - 템플릿 슬라이드 동시에 움직이는 오류 수정, 상품목록 전체가 안 나오는 오류 수정\n@ 네이버페이 카드결제 카드코드 추가\n\n[CORE]\n@ 배송비 정책에 따른 부분취소 및 전체취소 배송비 계산 결함 수정","","",""]
[null,"0Axo4VvCgkSJvTFf9SJ4xckAO0Al",null,null,"주문번호 : 19880673 ( 품절 취소  ) ",null,"할 일","완료됨","중간","","정 지혜","2021.09.24.","","","false","2021.09.24.","정 지혜",null,"배송처가n으로 되어있으면 반품 발생시 오류가 생김...","","",""]
[null,"Av2shav9OU2B1BYSR3tcLckALF__",null,null,"[진행중] 구매확정 반품접수 문의",null,"할 일","완료됨","중간","전 석훈;정 지혜","전 석훈","2021.09.15.","","","false","2021.09.24.","정 지혜",null,"안녕하세요 고객만족팀 김은주입니다.\n주문번호 : 19875472 \n고객명 : 김현주\n\n구매확정 상품\n11882638-1        [컨버스키즈] 빈티지 스타 티셔츠(긴팔)L ENF11QTS98 (키즈)  블랙     105\n13675595-1        [컨버스키즈] 소매 척패치 긴팔티셔츠L EPS11QTS45 (키즈)    화이트   105\n\n주문한 전체 상품 반품 요청하여 당사 물류로 입고 되었으나.\n2상품 구매확정되어 반품 접수가 되지 않습니다.\n\n해당 주문건 반품 접수로 처리 부탁드립니다.\n감사합니다.","","",""]
[null,"51IdRTfUo0GQZd6HTMVF_skAGryw",null,null,"경로 : 주문/배송 – 회수관리 - WMS회수예외관리  WMS회수예외관리 화면에서 기간 설정후 조회시 기준일 다음날 까지 조회가 됩니다.   예 ) 9/1일~ 9/11일까지 조회시 / 9월 12일 접수건까지 확인되는 오류 ",null,"할 일","완료됨","중간","","정 지혜","2021.09.16.","","","false","2021.09.24.","정 지혜",null,"","","",""]
[null,"Xf-t_KLEF0WiQkH8K9D7fMkAMiqa",null,null,"19879427 / 57798525 구매확정->배송완료(반품접수를 위함)",null,"할 일","완료됨","중요","","정 지혜","2021.09.24.","","","false","2021.09.24.","정 지혜",null,"","","",""]
[null,"H2PEtXCaSUiBBsjYI7G-FMkAKK6r",null,null,"코마스 광고 스크립트 수정요청",null,"할 일","완료됨","긴급","조 민혜;정 지혜","박 중재","2021.09.23.","","","false","2021.09.24.","조 민혜",null,"9/23 1시 30분 메일 발송건 (발신인 정지혜)\n코마스(광고대행사) 에서 이용하는 \"네이버스크립트\" 수정 요청건\n\n1) 공통스크립트 내 큰 따옴표 누락\n2) 회원가입 완료페이지 https://www.style24.com/customer/join/complete/form 내 전환(2)가치 정수 형태로 수정 필요합니다.\n3) 하기 테스트 계정의 회원가입이력 삭제 (신규가입 테스트 수행하기 위함)\n   natest1 / 01067622765 \n   gksthf3452 / 01024733452\n\n현재 탈퇴회원 목록에서 조회되고 있으며,  가입이력 삭제 요망함.","","",""]
[null,"pCPsGUvYuEWg76J1holMS8kAEeIb",null,null,"운송장번호 미연동 문의",null,"할 일","완료됨","중간","조 민혜;문 달호;정 지혜","전 석훈","2021.09.16.","","","false","2021.09.23.","조 민혜",null,"안녕하세요 고객만족팀 김은주입니다.\n\n주문번호 19892902      \n고객명 : 원호석\n제휴몰 : SSG\n\n해당 주문건 확인시  주문상태가 배송중으로 확인됩니다.\n하지만 실제 택배사 / 운송장 번호는 확인되지 않습니다\n\n이후 샵링커송장전송 관리화면에서도 해당 주문건의 송장내역은 확인되지 않습니다.\n물류확인시  339385765362  해당 운송장으로 출고된것으로 확인 된다고 합니다.\n\n-> WMS_IF DB쪽  송장번호 테이블에  데이터가 없어서  송장번호 연동이 안되었습니다.\n    서보성이사님에게 문의 확인   원인 파악 요청\n-------------------------------------------------------------------------------------------------------------------\n\n주문번호 : 19888316 \n고객명 : 정다희\n제휴몰 : SSG\n\n해당 주문건은 주문목록 상세 정보에는 운송장 번호가 등록되어 있으나,\n샵링커송장전송에서도 검색이 되지 않습니다.\n2건 모두 SSG 몰 주문건으로 샵링커송장전송에 오류가 있는듯 합니다.\n\n해당 주문건 2건 모두 내일 오전 수동으로 해당몰에 송장 등록 진행하겠습니다.\n\n확인 부탁드립니다.\n\n감사합니다.","","",""]
[null,"FLUhSDJVoEimyy170umposkAEGdf",null,null,"제휴몰 교환발주 미매핑건",null,"할 일","완료됨","중요","조 민혜;정 지혜","정 지혜","2021.09.17.","","","false","2021.09.23.","조 민혜",null,"안녕하세요 고객만족팀 김은주입니다.\n\n자동 발주몰들이 교환주문건들도 자동으로 발주가 진행되나 \n미매핑으로 발주가 되지 않는 주문건이 있어  재확인요청드립니다. \n\n하프클럽 원주문 정상발주건 \n주문번호 : 19867049       \n하프클럽 원주문건 : 210826797377\n\n하프클럽 교환주문 정상발주건 \n주문번호 : 19885027\n하프클럽 교환주문건 : 210830034956 \n\n\n위 와 같이 제휴몰에서 교환건으로 처리 진행시 자동으로 교환주문건이 발주가 되어 발송이되었습니다.\n그런데 최근 자꾸 미매핑 되는 주문건이 발생되어 요청드립니다. \n\n하프클럽 원주문건\n주문번호 19882315\n하프클럽 원주문건 : 210908768577\n하프클럽 교환주문건 : 210909954887\n\n교환 주문건이 확인되지 않아 확인시 미매핑으로 주문건이 생성되지 않은것으로 확인됩니다","","",""]
[null,"I5WxWSX4K0GbF_a9bZGWAckABUtv",null,null,"[완료] 네이버 스크립트 오류",null,"할 일","완료됨","긴급","조 민혜;전 석훈;정 지혜","정 지혜","2021.09.23.","","","false","2021.09.23.","전 석훈",null,"","","",""]
[null,"mQMiyPEPD0OO_W9ZlbLmTckADoLj",null,null,"2021년 09월 23일 오후 배포이력",null,"할 일","완료됨","중간","구성원;이선미;조 민혜;문 달호;박 중재;전 석훈;정 지혜;김 지철","조 민혜","2021.09.23.","","","false","2021.09.23.","전 석훈",null,"[ADMIN]\n@ 샵링커 주문수집 - 교환건도 자동수집되도록 변경\n@ 제휴몰주문업로드 - 자신의 대기건이 존재할 경우 엑셀 업로드 못하도록 수정(알럿창 표시) \n@ 스플래시 이미지 수정 후 <저장> 버튼 클릭 시 저장안됨 오류 수정\n\n[SCM]\n@ 입점업체 권한일 때는 로그인 사용자의 권한값(공급벤더코드)를 갖고 있는 사용자가 등록한 데이터를 조회\n\n[FRONT]\n@ 브랜드 전체 > 쿼리속도 개선 \n@ 네이버 공통스크립트 - 큰따움표 누락수정\n@ 기획전 카카오 공유하기 기능 수정\n\n[BATCH]\n@ 몰메인 신상품 선정기준 - 자사몰먼저 나오도록 수정\n\n[BATCH-PUBLIC]\n@ 샵링커 주문수집 - 교환건도 자동수집되도록 변경\n\n[CORE]\n@ 샵링커 주문수집 - 교환건도 자동수집되도록 변경 (bos, batch-public)\n@ 제휴몰주문업로드 - 본인) 대기건이 존재할 경우 엑셀 업로드 못하도록 수정(알럿창 표시)","","",""]
[null,"OypMPnb_2UWgtUjnWhAz38kAM8f6",null,null,"[완료] 취소 접수 오류문의",null,"할 일","완료됨","중간","전 석훈;정 지혜","전 석훈","2021.09.23.","","","false","2021.09.23.","정 지혜",null,"안녕하세요 고객만족팀 김은주입니다.\n\n주문번호 : 19871282 ( 8월 주문건 )\n고객명 : 윤태희\n\n해당 주문건 아직도 취소가 되지 않아 확인 요청드립니다.\n확인 부탁드립니다 .\n\n감사합니다.","","",""]
[null,"0D-gYrI7IkyotuOwLAzHl8kAHRyS",null,null,"19894430_주문취소 불가, 처리바람.",null,"할 일","완료됨","중요","조 민혜","정 지혜","2021.09.23.","","","false","2021.09.23.","정 지혜",null,"","","",""]
[null,"5wod2cj5OE-zgZr0cco6QckAOT6Q",null,null,"[완료] 출고전 취소접수 오류 문의 ( 8월 주문건 )",null,"할 일","완료됨","중간","전 석훈","전 석훈","2021.09.16.","","","false","2021.09.23.","전 석훈",null,"안녕하세요 고객만족팀 김은주입니다.\n주문번호 : 19860242 \n고객명 : 곽상효\n상품준비중 상품 취소시 오류 발생됩니다.","","",""]
[null,"5qSaEbqXiEaN4eHc9eKUHckAAfp6",null,null,"[완료] 19887215_ 발송전 전체취소에 대한 배송비 환불오류",null,"할 일","완료됨","중간","전 석훈;정 지혜;김 지철","정 지혜","2021.09.23.","","","false","2021.09.23.","정 지혜",null,"배송비 오류 이슈 동일.,","","",""]
[null,"apvZx1-OqUCAE_Dd8dTSr8kAFlMQ",null,null," [완료] 19882659  _품절 취소 상품에 대한 배송비차감결함",null,"할 일","완료됨","중간","전 석훈;정 지혜","정 지혜","2021.09.23.","","","false","2021.09.23.","정 지혜",null,"안녕하세요 고객만족팀 김은주입니다.\n\n주문번호 : 19882659       \n고객명 : 이선영\n\n해당상품 입점업체 상품으로 \n운송장 번호가 등록이 되었으나. 실제 품절로 발송이 되지 못한 상품입니다. \n\n이후 반품 접수시 품절로 취소접수를 하였으나. \n왕복 배송비 6,000원이 차감후 환불되는 오류가 확인되어 문의드립니다. \n\n해당 사항 확인후 나머지 6천원도 취소처리 부탁드립니다.\n감사합니다.","","",""]
[null,"8aqn1-fKXUyN2_oYCge2S8kAF6mJ",null,null,"[완료] 전체반품 회수입고 수량 오류문의",null,"할 일","완료됨","중간","문 달호;전 석훈;정 지혜","전 석훈","2021.09.23.","","","false","2021.09.23.","정 지혜",null,"안녕하세요 고객만족팀 김은주입니다.\n주문번호 : 19869017\n고객명 : 윤지원\n17044925          15672824-15      소프트데일리골지레깅스   2\n16999031          15626901-5        플라워하이디프릴원피스   1\n\n해당 상품 수량 총 3개를 구매후 반품 하였습니다.\n물류 입고후 회수완료 되었으며,  환불컨펌시 총 회수 수량이 5개로 오처리 되어 있습니다.","","",""]
[null,"dHLDANy5aECeoL_-tGnaOMkAHoEz",null,null,"[완료] CS 업무대응  19874479 김성혜",null,"할 일","완료됨","중간","전 석훈;정 지혜","전 석훈","2021.09.16.","","","false","2021.09.23.","정 지혜",null,"19874479 김성혜 -> 전체반품 / 상품불량-> 무상반품건 ---> 회수방법이 누락되어 있어서 접수 불가.\n==> 해당건이요 접수시 계속 로딩이 돌고접수가 안되요\n반품사유 - 기타 / 회수방법 - 회수없음 \n\n으로 처리해주시면됩니다.","","",""]
[null,"kVr1-_bVQkaBqm-aTPXMYskAARNd",null,null,"[완료] 구매확정 반품 접수 문의",null,"할 일","완료됨","중간","전 석훈;정 지혜","전 석훈","2021.09.16.","","","false","2021.09.23.","정 지혜",null,"안녕하세요 고객만족팀 김은주입니다.\n\n구매확정 주문건 추가건 반품 접수처리 부탁드립니다.\n\n주문번호 : 19857288       \n고객명 : 이설\n주문일자 : 2021-08-13\n제휴사 : 하프클럽\n\n해당 주문건 WMS회수예외관리에 등록되었으나,\n구매확정건으로 반품 접수를 할 수 없습니다.\n\n해당건 이미 하프클럽에는 환불처리 된 주문 건이니  빠른 환불처리 부탁드립니다.\n\n감사합니다.","","",""]
[null,"zue_UNbWT0uj5IKLTyC0hckAESWC",null,null,"[완료] 휴대폰취소접수오류문의( 주문일:9/11)",null,"할 일","완료됨","중간","전 석훈;정 지혜","전 석훈","2021.09.16.","","","false","2021.09.23.","정 지혜",null,"안녕하세요 고객만족팀 김은주입니다.\n주문번호 : 19887050\n고객명 : 김리하\n품절상품 : 16729515 15357190-6 치치슬럽가디건 /\n해당 주문건도  취소접수 되어 있으나,\nPG 점프 진행후  현금 환불 진행시 요청번호 클릭시 아래와 같이 로딩으로만 표시가 됩니다\n위 주문건 환불지연으로 항의건으로  현금 수동 환불 진행하겠습니다.\nPG 점프 진행후 환불완료 처리 부탁드립니다.\n감사합니다.","","",""]
[null,"aAq95LWXv0y2bJBtVjr6nskACyeN",null,null,"[완료] 고객취소 접수 환불된 오류건",null,"할 일","완료됨","중간","전 석훈;정 지혜;김 지철","전 석훈","2021.09.15.","","","false","2021.09.23.","정 지혜",null,"안녕하세요 고객만족팀 김은주입니다.\n\n주문번호  : 19892760\n고객명 : 박지윤\n\n총 5개의 상품 주문 후 고객이 직접 2개의 상품을 취소 한 것으로 확인되나,\n실제 2개의 상품 가격은 각각 부분 취소가 되었으나,\n상품은 1개만 취소가 되어 정상 발송되었습니다.\n\n--------------------------------------------------------------------------------------------\n\n해당 주문 정보 확인 해보았습니다.\n상세번호 : 57835218 수량 2개 중 1개만 취소여서 주문상세상택값은 배송중 상태가 맞습니다.\n그래서 현재 상태는 정상 상태 입니다.\n혹시 더 이상한 내용 있으시면 다시 문의 주세요.\n\n--------------------------------------------------------------------------------------------","","",""]
[null,"ioPoyCKsgU2e5FpqasZVlskAIaWu",null,null,"19876103 품절취소인데 배송준비중",null,"할 일","완료됨","중간","","정 지혜","2021.09.23.","","","false","2021.09.23.","정 지혜",null,"","","",""]
[null,"y1wbF9uNxkSe6Vewj7vW9MkAHyia",null,null,"2021년 9월 17일 배포 이력",null,"할 일","완료됨","중간","구성원;이정환;이선미;조 민혜;문 달호;박 중재;전 석훈;김 덕규;박 중재;정 지혜;김 지철","조 민혜","2021.09.17.","","","false","2021.09.17.","조 민혜",null,"[BATCH]\n@ 넷퍼시 truncate table 이슈관련 테이블 생성으로 변경\n\n[SCM]\n@ 자사상품등록 - 재고가 0일 때도 상품등록 가능하도록 수정","","",""]
[null,"krTKq6rXGEiqtG9gp8z13MkANbTc",null,null,"제휴채널 정산 데이터가 09시 이후 아무것도 안잡힘",null,"할 일","완료됨","긴급","김 덕규","정 지혜","2021.09.16.","","","false","2021.09.17.","조 민혜",null,"","","",""]
[null,"_BovUWmnrkuEzx6tlfkBR8kANHpL",null,null,"입점업체 아이디 ephod 에서 상품상태값 변경이 안된다고 문의가 와서요. (예시코드 : 17062809)  판매중지 상태인데 상품목록매뉴에서 상태값을 승인완료 로 변경하려고 하면 하기 팝업이 뜬다고 합니다.",null,"할 일","완료됨","중요","조 민혜","정 지혜","2021.09.10.","","","false","2021.09.17.","정 지혜",null,"","","",""]
[null,"UHnjyKX1e0CCPao2sf-4zckAEqah",null,null,"[완료] 무통장환불건 오류건 문의",null,"할 일","완료됨","중간","전 석훈;정 지혜","전 석훈","2021.09.16.","","","false","2021.09.17.","정 지혜",null,"안녕하세요 고객만족팀 김은주입니다.\n\n주문번호 19891250        \n고객명 : 김은혜\n\n가상계좌 ( 무통장 ) 주문건 출고전 취소요청하였으나.\n운송장 등록으로 반품으로 취소접수 하였습니다.\n\n이후 물류로 회수완료 처리 진행하였으며,\n환불컨펌에서 컨펌시 실퍠로 환불이되지 않습니다.\n\n해당 주문건 고객에게 14일 주문건으로 금일 우선 현금환불은 수동으로 처리 진행하였습니다\n확인후 빠른 처리 부탁드립니다.\n\n감사합니다.","","",""]
[null,"1TtaM40HmUiRzGAvYZzMQckAOfgb",null,null,"앱 심사 완료 - 로그인 관련 주석 해제, 동영상 주석해제",null,"할 일","완료됨","중간","","정 지혜","2021.09.16.","","","false","2021.09.16.","정 지혜",null,"","","",""]
[null,"KkY9cwH4BE-kXmQhJqUnGskAL3mj",null,null,"[완료] 정산/통계에서 제휴몰 주문 반품시 0으로 나오는현상",null,"할 일","완료됨","중간","전 석훈;김 덕규","정 지혜","2021.09.15.","","","false","2021.09.16.","전 석훈",null,"","","",""]
[null,"VsDKGUGwAkCPDGd8-TnNjMkADP94",null,null,"[진행중] 입점업체 취소건 요청",null,"할 일","완료됨","중간","박 중재;전 석훈;정 지혜","전 석훈","2021.09.14.","","","false","2021.09.16.","정 지혜",null,"안녕하세요 고객만족팀 김은주입니다.\n주문번호  19873660\n고객명 : 김태홍\n1개상품 품절로 취소 접수 되어 있으며 취소 시 오류 발생으로 전달 드립니다.\n입점업체 상품으로 빠르게 처리 부탁 드립니다.","","",""]
[null,"CMKTwH3_AEKHBX2CK6RohskAL35w",null,null,"[완료] 출고전 취소건 취소요청",null,"할 일","완료됨","중간","전 석훈;정 지혜","전 석훈","2021.09.14.","","","false","2021.09.16.","정 지혜",null,"안녕하세요 고객만족팀 김은주입니다.\n\n\n주문번호 : 19880673\n\n고객명 :  박원오\n \n\n해당 고객 건도 결제 완료 상태에서 취소접수 시\n\n로딩만 되고 취소 처리가 되지 않습니다.\n \n\n확인 부탁드립니다.\n\n감사합니다.","","",""]
[null,"ig49tNrx1UauMjWpTaj_R8kADI0N",null,null,"2021년 09월 15일 오후 배포이력",null,"할 일","완료됨","중간","구성원;이정환;이선미;조 민혜;문 달호;박 중재;전 석훈;정 지혜;김 지철","전 석훈","2021.09.15.","","","false","2021.09.15.","전 석훈",null,"2021년 09월 15일 오후 배포이력\n\n[ADMIN]\n@ 상품대량등록 - 대량상품 수정 엑셀업로드 수정.  상품상태, 정상가 추가 건\n@ 환불컨펌 동봉비, 착불비 처리 로직 수정\n\n[SCM]\n\n[FRONT]\n@ 마이페이지 클레임 진행 중 구매확정 기한 날짜 표시 수정\n\n[BATCH]\n\n[PUBLIC BATCH]\n\n[CORE]","","",""]
[null,"yHzYde2sU0-_Jx3XawjcM8kAN6xl",null,null,"[완료] 쿠폰내역오류문의",null,"할 일","완료됨","중간","전 석훈","전 석훈","2021.09.14.","","","false","2021.09.15.","전 석훈",null,"안녕하세요. 고객만족팀 김은주입니다.\n아이디 : tkfkd0217\n고객명 : 신정아\n해당 고객이 주문한 주문번호는 19891193 해당건으로 확인되며\n사용한 쿠폰을 확인하기 위해 쿠폰 내역을 확인 시 총 3건의 주문건이 확인됩니다.\n\n주문번호 : 19891186 / 19891191\n\n2개의 주문건 모두 주문내역이 조회 되지 않습니다.\n해당 오류건도 빠르게 확인 부탁드립니다.\n감사합니다.\n\n해당건을 확인해본결과 19891186 / 19891191 주문결제완료 상태가 아닌 주문접수 상태의 값이여서 회원에서 노출하는 결과값을 제거 했습니다.","","",""]
[null,"PMI3hxY8T0SrcymJ2eAs6skAOmje",null,null,"2021년 09월 15일 오전 배포이력",null,"할 일","완료됨","중간","구성원;이정환;조 민혜;문 달호;박 중재;전 석훈;김 지철","전 석훈","2021.09.15.","","","false","2021.09.15.","전 석훈",null,"[ADMIN]\n@ 환불컨펌 회수송장번호 수정\n@ 자사배송정책 수정 시 오류 \n@ 주문목록 세트상품 2row 표기 오류 수정\n\n[SCM]\n\n[FRONT]\n@ 1.딥링크 공유하기 추가\n\n[BATCH]\n@ 즉시할인 쿠폰 조건 업체, 브랜드 OR 조건 AND 조건 변경시 오류 수정\n@ 카카오페이 properties 변경 처리 커밋\n@ 스윗트래커 8.31 16이후 추적요청 일자 조정\n\n[PUBLIC BATCH]\n\n[CORE]\n@ 즉시할인 쿠폰 조건 업체, 브랜드 OR 조건 AND 조건 변경시 오류 수정\n@ 카카오페이 properties 변경 처리 커밋","","",""]
[null,"KU0KDPVVpkOqItxkn2pFO8kAEnyW",null,null,"[완료] 자사상품  > 상품상세팝업 > 배송비정책 > \"선택\" 으로 설정된 문제 ",null,"할 일","완료됨","긴급","전 석훈;박 중재;정 지혜","박 중재","2021.09.14.","","","false","2021.09.15.","전 석훈",null,"BOS > 자사상품 > 상품상세 팝업 > 배송비 정책 > \"선택\" 으로만 되어있음 \n\n필수값이라 상품 수정등 진행이 안됨","","",""]
[null,"VHakwvO_-0-rDbQk634lRskAGaqr",null,null,"[완료] scm 배송비정책 오류",null,"할 일","완료됨","중간","전 석훈;김 지철","정 지혜","2021.09.13.","","","false","2021.09.15.","전 석훈",null,"배송비 정책 저장시 저장 오류!","","",""]
[null,"g0pSllJauEaSyYJTGCPQM8kAKAbj",null,null,"2021년 09월 14일 오후 배포이력",null,"할 일","완료됨","중간","조 민혜;문 달호;전 석훈;김 지철","전 석훈","2021.09.14.","","","false","2021.09.14.","전 석훈",null,"[ADMIN]\n@ 전체취소일때 PG 점프 기능 오류 수정\n@ 회원 주문 쿠포내역 오류 수정\n\n[SCM]\n@ 2021.009.14 SCM 배송비정책 등록 오류 수정\n\n[FRONT]\n\n[BATCH]\n@ 품절 취소 오류 수정\n@ 출고처지정 보완(교환주문-> 일반배송으로 출고)\n\n[CORE]\n@ 품절 취소 오류수정\n@ wms_if 업데이트시 일자, 비고 추가","","",""]
[null,"uINyhp3hCEW_Si2ngEDxt8kAMum4",null,null,"로그인 오류 문의",null,"할 일","완료됨","중간","조 민혜","박 중재","2021.09.13.","","","false","2021.09.14.","조 민혜",null,"스타일24 아이디:blackkong111\n이름: 이슬비\n핸드폰번호: 010 9161 7261\n\n<고객 문의 내용>\n로그인은 아이디+비밀번호를 입력하는 방법과 네이버로그인으로 시도했는데, 두 가지 모두 본인인증을 해야한다해서 인증을 하고 나면 '서비스 이용이 원활하지 않습니다'라는 메시지가 뜹니다. \n \n핸드폰을 이용한(어플이나 아이폰 safari) 접속에 오류가 있는건가 해서 노트북에서도 로그인을 시도했지만 모두 인증 후 '서비스 이용이 원활하지 않습니다'라는 메시지만 뜰 뿐입니다.","","",""]
[null,"VmDtlBB_eE6GBvlyXOxiHckALbsg",null,null,"2021년 09월 14 긴급 배포이력",null,"할 일","완료됨","중간","이정환;이선미;전 석훈;박 중재;정 지혜","전 석훈","2021.09.14.","","","false","2021.09.14.","전 석훈",null,"[ADMIN]\n\n[SCM]\n\n[FRONT]\n\n[BATCH]\n@ 상품 할인금액 즉시 할인금액 브랜드, 업체 조건 수정\n\n[CORE]","","",""]
[null,"AmmnJXNFtkK2M-Vg0DaiIckAAHdd",null,null,"가재고 데이터 확인",null,"할 일","완료됨","중간","","정 지혜","2021.09.03.","","","false","2021.09.14.","전 석훈",null,"","","",""]
[null,"RqSiZK_2RkGrL_8BMYBIOMkADIQt",null,null,"[19881000]주문목록에서 세트상품의 내역이 2개 노출되는건, 옵션 중복으로 노출됨",null,"할 일","완료됨","중간","","정 지혜","2021.09.14.","","","false","2021.09.14.","정 지혜",null,"","","",""]
[null,"q8E6u_Nn1U6icfTGctQ6bckAE85N",null,null,"2021년 9월 13일 오전 배포",null,"할 일","완료됨","중간","이정환;이선미;조 민혜;문 달호;전 석훈;정 지혜;김 지철","이정환","2021.09.13.","","","false","2021.09.13.","전 석훈",null,"[ADMIN]\n@ 1:1문의관리, 상품문의관리 목록에 <엑셀다운로드> 기능 추가함.\n@ 입접업체 클레임관련 메뉴 이관 개발\n@ 자동품절취소실패목록\n@ 주문목록 쿼리 수정\n@ 전체반품 배송비 상품권 처리\n@ 카카오페이 관련 수정\n@ 환불관리 제휴사명 추가\n     환불상세 보사기능\n@ 알림톡 보완\n@ 샵링커주문수집 - 단건조회 기능추가  (쇼핑몰주문번호, 주문자명, 주문자연락처)\n\n\n[SCM]\n@ SCM 출고 로직 수정\n@ 카카오페이 관련 수정\n@ 상품상세 팝업 > '승인완료' 이력이 존재할 경우, '수정완료'로 수정 가능하도록 변경\n\n[FRONT]\n@ 모바일웹에서만 \"PC버전\" 링크를 노출\n@ 네이버 공통 스크립트 적용 \n@ 페이스북 링크 변경\n@ 카카오페이 관련 수정\n@ 네이버스크립트 페이스북 링크변경\n@ 상품리스트로의 히스토리백\n@ 딥링크\n\n[BATCH]\n@ 카카오페이 관련 수정\n\n[CORE]","","",""]
[null,"82A6n8L9pUul6ebNl79RGckAElzK",null,null,"scm 정산메뉴 미오픈",null,"할 일","완료됨","중간","김 덕규","정 지혜","2021.09.03.","","","false","2021.09.13.","조 민혜",null,"","","",""]
[null,"Jbl2BYneRUiyYj9KoxPP58kACJZy",null,null,"1:1 문의 페이지 오류상태",null,"할 일","완료됨","긴급","김 지철","박 중재","2021.09.13.","","","false","2021.09.13.","김 지철",null,"","","",""]
[null,"LBuKA1pDxU2fzEIaDw7J9ckAI--x",null,null,"전시리스트(검색리스트) 확인요청",null,"할 일","완료됨","중간","조 민혜;전 석훈;김 지철","박 중재","2021.09.09.","","","false","2021.09.09.","조 민혜",null,"전시 리스트에는 나오지만, 랜딩링크는 없고,  bos 에서도 상품조회가 안됨.\n\nhttps://www.style24.com/goods/detail/form?goodsCd=16866009&colorCd=XX","","",""]
[null,"M7tbMHJ_eU2y8SX9FHWaRckANUHv",null,null,"[확인요청] 회원 /마케팅 > 회원관리> 활동회원목록 \" 연락처 변경시 변경할 전화번호로 등록후  인증번호 발송시 오류",null,"할 일","완료됨","중간","전 석훈","정 지혜","2021.09.03.","","","false","2021.09.09.","전 석훈",null,"","","",""]
[null,"bDeAJOxYxk2EZO67FhSs-skAKjBf",null,null,"[확인요청] CS 9월1일 문의건 주문번호 19873313 =  네이버 페이 103,660원 결제 부분 취소로 진행했으나 취소금액 상이하게 확인됨 ( 메신저 전달 )",null,"할 일","완료됨","중간","박 중재;전 석훈","박 중재","2021.09.08.","","","false","2021.09.09.","전 석훈",null,"CS 에서 취소금액 상이건으로 접수된 건이며,  금액 산정에 이상이 없는 지 확인해 주세요","","",""]
[null,"BmuqenHNoUKeBeeCYhX3W8kAJrs-",null,null,"PC : 로그인상태에서 브라우저 창 종료시, 세션이 종료되지 않음 (다시 창을 띄웠을때 로그인이 유지되어져 있는 현상 발생)",null,"할 일","완료됨","긴급","박 중재;김 덕규","박 중재","2021.09.09.","","","false","2021.09.09.","전 석훈",null,"","","",""]
[null,"o-eC6d4zx0K0ZlPy-wVVnckAPeiz",null,null,"9/1일 오류로 발급된 쿠폰이  마이페이지에서는 확인이 되나  실제 상품구매시 적용이 되지 않는 오류 발생 쿠폰 정상 적용될수 있게 요청 및 오류일경우 쿠폰 확인되지 않도록 삭제 요청\"",null,"할 일","완료됨","중간","전 석훈","정 지혜","2021.09.03.","","","false","2021.09.09.","정 지혜",null,"","","",""]
[null,"z7DPJarDHUOcHNYruqdkh8kAMs26",null,null,"휴면회원 등급에러.",null,"할 일","완료됨","중간","문 달호","정 지혜","2021.09.08.","2021.09.08.","2021.09.08.","false","2021.09.08.","문 달호",null,"휴면회원대상    등급 WELCOME 변경  DB작업","","",""]
[null,"PbYt271i1EyXEKvmz-qGUckAC5L_",null,null,"상품평 등록일 누락 ",null,"할 일","완료됨","중간","","이선미","2021.09.08.","","","false","2021.09.08.","전 석훈",null,"","","",""]
[null,"0bxJINKh5UyYJ66XrFVYAMkAJAS9",null,null,"\"아이디 deborah34 / 송언주 /   010-2849-5174 2017년 11월  주문번호 : 15986159  카카오톡으로 금일 배송되었다는 카카오알림  수신   오류건 확인후 수정 요청\"",null,"할 일","완료됨","중간","박 중재;전 석훈;김 덕규;정 지혜","정 지혜","2021.09.03.","","","false","2021.09.08.","전 석훈",null,"","","",""]
[null,"GnikDh0uWEa39nL5mBHfhckAJSyR",null,null,"입점업체 중복 출고 목록 확인",null,"할 일","완료됨","중간","전 석훈;정 지혜","전 석훈","2021.09.08.","","","false","2021.09.08.","전 석훈",null,"입점업체 중복 출고 목록 확인","","",""]
[null,"GGyKvt-np0q3fOZKxVvlCckAIeBl",null,null,"등급쿠폰 에러 난다는 내용이 접수, welcome의 경우 쿠폰이 없으나 이미 받았다는 alert이 나오면서 에러라고 확인되는것으로 보임,",null,"할 일","완료됨","중간","김 지철","정 지혜","2021.09.03.","","","false","2021.09.07.","김 지철",null,"최초 고객 외 > 받을 쿠폰이 없습니다. 1건 구매 하시고 다음달 등급 쿠폰을 받아보세요!\n라고 안내 필요","","",""]
[null,"YUybFr_Se0GfKWwith4n4MkANVFg",null,null,"bos 상품평 조회 시 이름조회 하면 조회결과 노추출안됨",null,"할 일","완료됨","중간","김 지철","정 지혜","2021.09.03.","","","false","2021.09.07.","김 지철",null,"","","",""]
[null,"KXg9vhy4ZEm_L6FmvRWfTskAOBkw",null,null,"회원정보 주소 암호화 / 회원정보 전면 점검 필요",null,"할 일","완료됨","긴급","김 덕규","정 지혜","2021.09.03.","","","false","2021.09.07.","전 석훈",null,"kaliste 아이디 정보 잘못나오는것으로 확인\n데이터 확인 필요\n- 이메일/ 주소데이터 깨짐\n- 이름/생년월일 데이터 다름","","",""]
[null,"BWn-TSTCWUiYw-mEUcEmOckAE5N1",null,null,"메뉴: 신규 보스 > 상품 > 사은품관리  해당 메뉴에서 사은품 조회시 아래와 같은 이미지로 조회가 되는데 사은품명이 공란이라 어떤 사은품인지 내용 확인이 어렵습니다. 사은품품번 or 사은품명을 클릭해서 작성이나 수정이 가능할지 문의드리며, 사은품 상품번호로 wms에서 사은품 조회가 어려운데 WMS 공급업체명(한세드림_20_사은품, 한세엠케이_20_사은품)에 등록되어 있는 사은품의 원코드명을 노출시켜 주실 수 있으신지 문의드립니다.",null,"할 일","완료됨","중간","문 달호","정 지혜","2021.09.03.","2021.09.06.","2021.09.06.","false","2021.09.06.","문 달호",null,"항목명 변경:  사은품 상품번호 -> WMS 상품번호  \n항목 삭제    :  사은품 품번  (사용안함.)\n\n항목추가 : WMS상품코드, SKUCODE, SKUMODELNO \n조회조건추가 : WMS상품코드, SKUCODE, SKUMODELNO\n\n09-06 반영예정","","",""]
[null,"L658Sw8zsUClSvF1dFKZnskANg1u",null,null,"입점 발주 한적없는 상품이 상품준비중 상태로 넘어가있음 (보스크리에이티브)",null,"할 일","완료됨","긴급","전 석훈","박 중재","2021.09.06.","","","false","2021.09.06.","박 중재",null,"","","",""]
[null,"7qhTlgRSCU-Du_peuqLssskAPwAS",null,null,"19875276 19875195 주문취소에러",null,"할 일","완료됨","중간","김 지철","정 지혜","2021.09.03.","","","false","2021.09.03.","김 지철",null,"2021.09.03 CS 확인 완료","","",""]
[null,"dITQRz_-iEuKGaufLnHdGckAOB4b",null,null,"\"제휴 주문건이 자사몰 주문건으로 표기되어 반품 접수시 환불계좌 등록 메시지 확인되는 오류  ( 메일 발송건 )\"",null,"할 일","완료됨","중간","김 지철","정 지혜","2021.09.03.","","","false","2021.09.03.","김 지철",null,"2021.09.03 CS 확인 완료","","",""]
[null,"RwZlzx9640y_CqzciJuQ1skAMUGl",null,null,"벤더 로그인 안되는부분 infix",null,"할 일","완료됨","긴급","","정 지혜","2021.09.01.","","","false","2021.09.02.","정 지혜",null,"아이디 초기화 하는 것으로 처리","","",""]
[null,"_LcasY_ukkm-Cff-pyqnRskALQvK",null,null,"네이버페이 결제 오류건",null,"할 일","완료됨","중간","김 지철","정 지혜","2021.09.02.","","","false","2021.09.02.","김 지철",null,"","","",""]
[null,"LAym2oXZ1E2_hErAn5lqz8kAM75i",null,null,"네이버 페이 결제 예약 api, 관련 조치요청사항 반영(네이버검수)",null,"할 일","완료됨","중간","김 지철","정 지혜","2021.09.02.","","","false","2021.09.02.","김 지철",null,"","","",""]
[null,"sJWWv_VN8UGdusLylK03CckALxdI",null,null,"19874778 주문취소 오류",null,"할 일","완료됨","중간","전 석훈;김 지철","정 지혜","2021.09.02.","2021.09.02.","2021.09.02.","false","2021.09.02.","전 석훈",null,"","","",""]
[null,"hpRaUMqV4E-Z5ycqYq6UZ8kAF_Il",null,null,"19874765 휴대폰결제건 전체 주문취소",null,"할 일","완료됨","중간","김 지철","정 지혜","2021.09.02.","","","false","2021.09.02.","정 지혜",null,"","","",""]
[null,"AjGmKLbI70WT_3Ete6yw6skAAoIw",null,null,"모이몰른 mM 분리",null,"할 일","완료됨","중간","","정 지혜","2021.09.01.","","","false","2021.09.02.","문 달호",null,"","","",""]
[null,"_M1jaAS9x0yHnal5ojFe-MkAPPpV",null,null,"CJ 출고인터페이스, 수취인 전화번호 컬럼 누락 : 제휴몰 주문 수집시 전화번호 공란으로 가져오는 케이스인듯",null,"할 일","완료됨","긴급","문 달호","박 중재","2021.09.01.","","","false","2021.09.02.","문 달호",null,"","","",""]
[null,"uIklt-qtck-V5zLRsVJkq8kAP4e4",null,null,"안드로이드 메타데이터 추가",null,"할 일","완료됨","중간","","정 지혜","2021.09.01.","","","false","2021.09.01.","정 지혜",null,"","","",""]
[null,"_N4xPhtGZkKqLoDCX3RefckAKat8",null,null,"구 scm 정산 용 오픈",null,"할 일","완료됨","중간","","정 지혜","2021.09.01.","","","false","2021.09.01.","이선미",null,"dns 퍼져나가는 시간이 걸리긴 하지만 시간이 지나면 해결됨","","",""]
[null,"bWEbCqM30kWJlyGsyJF2LMkAHW-Y",null,null,"등급 배치 미실행 실패 - 고객안내",null,"할 일","완료됨","중간","","정 지혜","2021.09.01.","","","false","2021.09.01.","정 지혜",null,"","","",""]
[null,"J5gik4KO102cO0pPTNUSmckAAFYa",null,null,"한세드림  전일자 매출전송",null,"할 일","완료됨","중간","","이선미","2021.09.01.","","","false","2021.09.01.","이선미",null,"","","",""]
[null,"ErSa7De3rU6RDoCmjGbONMkAO67r",null,null,"사방넷 scm 에서 상품 등록 시 500 에러 발생",null,"할 일","완료됨","중간","","정 지혜","2021.09.01.","","","false","2021.09.01.","이정환",null,"DNS 이슈 -> 샤방넷에 다시 접속 전달","","",""]
[null,"dJTpFj7EIEqxsXuRqwYQtskADVRT",null,null,"몰메인/브랜드 메인의 동일상품 가격차 발생(잇아이템영역)",null,"할 일","완료됨","중간","","정 지혜","2021.09.01.","","","false","2021.09.01.","이정환",null,"배치 돌려서 처리 완료","","",""]
[null,"Quie5LqefkOBNu5aWZshjMkAKZN7",{"$f":"$A$1&B425","v":"https://tasks.office.com/style24.com/Home/Task/Quie5LqefkOBNu5aWZshjMkAKZN7"},null,"[PJT잔여] 자사 무료배송비 기능 추가 개발 (클레임)",null,"할 일","시작되지 않음","중간","김 지철","전 석훈","2021.10.15.","","2021.12.17.","false","","",null,"","","",""]
[{"$nulls":4},"회원기준 상담이력(메모) 기능 추가","단위업무",null,"10.19 추가","중"]

{"sheet":"Sheet2","index":2,"n_rows":0,"n_cols":0,"rows_kept":0,"cut":false,"hidden":false,"merged":[]}

{"sheet":"플랜 이름","index":3,"n_rows":3,"n_cols":2,"rows_kept":3,"cut":false,"hidden":false,"merged":[]}
["플랜 이름","오류 사항"]
["플랜 ID","U-jUhTjfN0SntQl-S6R19ckABai9"]
["내보낸 날짜 ","2021.10.18."]